{"text_format":"1","workbook":"xlsx","n_sheets":2,"sheets":["Keçi","Rapor"],"not_rendered":{"charts":0,"images":0,"macros":1,"external_links":0,"defined_names":95,"comments":1,"pivot_tables":0},"unopened":[],"bounds":{"document_bytes":16777216,"sheet_cells":100000,"rows_first":2000,"rows_last":500,"rows_between":2000,"halvings":0,"cell_chars":16384,"cell_head_chars":4096},"cells_cut":0,"cells_raw":0,"read":"whole","date_system":"1900"}

{"sheet":"Keçi","index":0,"n_rows":286,"n_cols":106,"rows_kept":286,"cut":false,"hidden":false,"merged":[[2,4,2,5],[18,7,18,8],[49,18,49,19],[40,18,40,20],[39,18,39,20],[19,7,19,8],[0,6,0,7],[17,7,17,8],[50,15,52,16],[50,18,50,19],[0,15,1,20],[2,15,2,20],[16,6,16,8],[2,12,2,13],[3,12,3,13]]}
[null,null,null,null,null,null,"Coşkun & İnal & İnal",null,null,{"$f":"TODAY()","v":"2024-11-12"},null,null,null,null,null,"Selçuk Üniversitesi Veteriner Fakültesi Rasyon Hazırlama Programları"]
[null,"KEÇİLER İÇİN EN DÜŞÜK MALİYETLİ"]
[null,"Rasyon Hazırlama Programı","MİKTAR","Fiyat,₺","Yem sınırları",null,"BESİN MADDESİ","İHTİYAÇ","RASYON","SONUÇ","KM'de %",null,"Gerekli Kesif Yem Miktarı",null,null,"Fİ - Şİ - BC"]
[null,"VERİLECEK YEMLER",{"$f":"SUM(Rapor!Y5:Y30)","v":2.15},{"$f":"(C5*D5+C6*D6+C7*D7+C8*D8+C9*D9+C10*D10+C11*D11+C12*D12+C13*D13+C14*D14+C15*D15+C16*D16+C17*D17+C18*D18+C19*D19+C20*D20+C21*D21+C22*D22+C23*D23+C24*D24+C25*D25+C26*D26+C27*D27+C28*D28+C29*D29+C30*D30)","v":10.5},"En az","En çok",{"$f":"Rapor!G4","v":"KM,kg"},1.8554950000000001,{"$f":"Rapor!I4","v":1.9300000000000002},{"$f":"Rapor!J4","v":"FAZLA"},null,null,"ve KM'deki Bileşimi"]
[1,"Buğday Samanı",1,1.5,0,1,{"$f":"Rapor!G5","v":"ME,Mcal"},3.5541999999999998,{"$f":"Rapor!I5","v":3.7010400000000003},{"$f":"Rapor!J5","v":"FAZLA"},{"$f":"Rapor!K5","v":"1918 kcal/kg"},null,"Miktar,kg",{"$f":"Rapor!O5","v":-8.3713483146067469E-2}]
[1,"Fiğ Kuru Otu",0.8,6,0,1,{"$f":"Rapor!G6","v":"Ham Protein,g"},199.22750124999999,{"$f":"Rapor!I6","v":200.95160000000001},{"$f":"Rapor!J6","v":"TAMAM"},{"$f":"Rapor!K6","v":"10,4"},null,"HP,%",{"$f":"Rapor!O6","v":2.3140712032749793}]
[4,"KOYUN SÜT YEMİ",0.35,12,0,1,{"$f":"Rapor!G7","v":"Metabolik Protein"},null,{"$f":"Rapor!I7","v":139.62200000000001},null,{"$f":"Rapor!K7","v":7.2343005181347149},null,"ME,Mcal",{"$f":"Rapor!O7","v":1.9708744379571901}]
[null,null,0,null,0,0,{"$f":"Rapor!G8","v":"Rumende Yıkılabilir Protein"},null,{"$f":"Rapor!I8","v":96.714000000000013},null,{"$f":"Rapor!K8","v":5.0110880829015549},null,"Ca,%",{"$f":"Rapor!O8","v":9.7837393463525899}]
[null,null,0,null,0,0,{"$f":"Rapor!G9","v":"Rumende Yıkımlanmayan Protein"},null,{"$f":"Rapor!I9","v":34.180000000000007},null,{"$f":"Rapor!K9","v":1.7709844559585495},null,"P,%",{"$f":"Rapor!O9","v":0.11244211797866048}]
[null,null,0,null,0,0,{"$f":"Rapor!G10","v":"Ca,g"},6.2082250000000005,{"$f":"Rapor!I10","v":13.497600000000002},{"$f":"Rapor!J10","v":"FAZLA"},{"$f":"Rapor!K10","v":"0,70"},null,null,null,null,"Rasyonu hazırlanan hayvan :",{"$f":"IF(KeciVerimYonu=\"\",\"\",CONCATENATE(\"Keçi, \",KeciVerimYonu))","v":"Keçi, Sütçü"}]
[null,null,0,null,0,0,{"$f":"Rapor!G11","v":"P,g"},4.1780249999999999,{"$f":"Rapor!I11","v":4.2618000000000009},{"$f":"Rapor!J11","v":"FAZLA"},{"$f":"Rapor!K11","v":"0,22"},null,null,null,null,"Tipi :",{"$f":"IF(KeciTipi=\"\",\"\",KeciTipi)","v":"Dişi"}]
[null,null,0,null,0,0,{"$f":"Rapor!G12","v":"Ca/P Oranı"},1.4859233728855143,{"$f":"Rapor!I12","v":3.1671124876812611},{"$f":"Rapor!J12","v":"FAZLA"},null,null,null,null,null,"Durumu :",{"$f":"IF(KeciDurum=\"\",\"\",KeciDurum)","v":"Erken Laktasyon"}]
[null,null,0,null,0,0,{"$f":"Rapor!G13","v":"Kaba Yem,%"},null,null,null,{"$f":"Rapor!K13","v":84.041450777202073},null,null,null,null,{"$f":"IF(KeciYavruSay=\"Sağılıyor\",\"\",\"Yavru Sayısı :\")","v":"Yavru Sayısı :"},{"$f":"IF(KeciYavruSay=\"\",\"\",KeciYavruSay)","v":"Tek"}]
[null,null,0,null,0,0,{"$f":"Rapor!G14","v":"HS,%"},null,null,null,{"$f":"Rapor!K14","v":32.610673575129532},null,null,null,null,"Süt Verim Düzeyi :",{"$f":"IF(SutVerimDuzey=\"\",\"\",SutVerimDuzey)","v":""}]
[null,null,0,null,0,0,{"$f":"Rapor!G15","v":"NDF,%"},null,null,null,{"$f":"Rapor!K15","v":59.889119170984465},null,null,null,null,"Canlı Ağırlığı :",{"$f":"IF(BW=\"\",\"\",CONCATENATE(BW,\" kg\"))","v":"55 kg"}]
[null,null,0,null,0,0,null,null,null,null,null,null,null,null,null,"Canlı Ağırlık Artışı :",{"$f":"IF(ADG=\"\",\"\",CONCATENATE(ADG,\" g\"))","v":""}]
[null,null,0,null,0,0,null,null,null,null,null,null,null,null,null,"Tiftik Verimi :",{"$f":"IF(Tiftik=\"\",\"\",CONCATENATE(Tiftik,\" kg\"))","v":""}]
[null,null,0,null,0,0,"Verim Yönü :","Sütçü"]
[null,null,0,null,0,0,"Tipi :","Dişi"]
[null,null,0,null,0,0,"Durumu :","Erken Laktasyon"]
[null,null,0,null,0,0,"Yavru Sayısı :","Tek",null,null,null,null,null,null,null,null,"GÜNLÜK","BESİN "]
[null,null,0,null,0,0,"Süt Verim Düzeyi :","",null,null,null,null,null,null,null,"VERİLECEK YEMLER","MİKTAR,kg","MADDELERİ","İHTİYAÇ","RASYON","SONUÇ"]
[null,null,0,null,0,0,"Canlı Ağırlık :",55,"kg",null,null,null,null,null,null,"Arpa Samanı",1,{"$f":"G4","v":"KM,kg"},1.3277399999999997,1.3542947999999999,"TAMAM"]
[null,null,0,null,0,0,"Canlı Ağırlık Artışı :",null,"g/gün",null,null,null,null,null,null,"Mısır Silajı, Süt Olumu",0.67820577099922119,{"$f":"G5","v":"ME,Mcal"},2.5464000000000002,2.5234823892128126,"TAMAM"]
[null,null,0,null,0,0,"Tiftik Verimi :",null,"kg/yıl",null,null,null,null,null,null,"Mısır, Tane",8.974974152602791E-2,"Ham Protein,g",118.4425,117.37651763770289,"TAMAM"]
[null,null,0,null,0,0,null,null,null,null,null,null,null,null,null,"Ayçiçeği Küspesi, Kabuklu, %28",0.21326358763579467,"Metabolik Protein",null,65.157371741394343]
[null,null,0,null,0,0,null,null,null,null,null,null,null,null,null,"Mermer Tozu",2.9710839272701177E-3,"Rumende Yıkılabilir Protein",null,65.157371741394343]
[null,null,0,null,0,0,null,null,null,null,null,null,null,null,null,"Tuz",1E-3,"Rumende Yıkımlanmayan Protein",null,52.929232436262673]
[null,null,0,null,0,0,null,null,null,null,null,null,null,null,null,"Vitamin-Mineral Karması",1E-3,"Ca,g",4.3186999999999998,5.5447244473702089,"FAZLA"]
[null,null,0,null,0,0,null,null,null,null,null,null,null,null,null,null,null,"P,g",2.6731000000000003,3.4319593757804707,"FAZLA"]
[null,null,null,null,null,null,null,null,null,null,null,null,null,null,null,null,null,"Ca/P Oranı",1.6156148292244956,1.6156148253093086,"TAMAM"]
[null,null,null,null,null,null,null,null,null,null,null,null,null,null,null,null,null,"Kaba Yem,%"]
[null,null,null,null,null,null,null,null,null,null,null,null,null,null,null,null,null,"HS,%"]
[null,null,null,null,null,null,null,null,null,null,null,null,null,null,null,null,null,"NDF,%"]
[]
[]
[]
[]
[]
[null,null,null,null,null,null,null,null,null,null,null,null,null,null,null,null,null,null,"Hazırlayan:"]
[null,null,null,null,null,null,null,null,null,null,null,null,null,null,null,null,null,null,"Fİnal"]
[]
[]
[]
[]
[]
[]
[]
[null,null,null,null,null,null,null,null,null,null,null,null,null,null,null,null,1.9861901840883136,"kg"]
[null,null,null,null,null,null,null,null,null,null,null,null,null,null,null,"Kurum:",null,null,"Tarih:"]
[null,null,null,null,null,null,null,null,null,null,null,null,null,null,null,"S.Ü.VET.FAK.HBBH.ABD",null,null,"20.03.2019"]
[]
[]
[]
[]
[]
[]
[]
[]
[]
[]
[]
[]
[]
[]
[]
[]
[]
[]
[]
[]
[]
[]
[]
[]
[]
[]
[]
[]
[]
[]
[]
[]
[]
[]
[]
[]
[]
[]
[]
[]
[]
[]
[]
[]
[]
[]
[]
[]
[]
[]
[]
[]
[]
[]
[]
[]
[]
[]
[]
[]
[]
[]
[]
[]
[]
[]
[]
[]
[]
[]
[]
[]
[]
[]
[]
[]
[]
[]
[]
[]
[]
[]
[]
[]
[]
[]
[]
[]
[]
[]
[]
[]
[]
[]
[]
[]
[]
[]
[]
[]
[]
[]
[]
[]
[]
[]
[]
[]
[]
[]
[]
[]
[]
[]
[]
[]
[]
[]
[]
[]
[]
[]
[]
[]
[]
[]
[]
[]
[]
[]
[]
[]
[]
[]
[]
[]
[]
[]
[]
[]
[]
[]
[]
[]
[]
[]
[]
[]
[]
[]
[]
[]
[]
[]
[]
[]
[]
[]
[]
[]
[]
[]
[]
[]
[]
[]
[]
[]
[]
[]
[]
[]
[]
[]
[]
[]
[]
[]
[]
[]
[]
[]
[]
[]
[]
[]
[]
[]
[]
[]
[]
[]
[]
[]
[]
[]
[]
[]
[]
[]
[]
[]
[]
[]
[]
[]
[]
[]
[]
[]
[]
[]
[]
[]
[]
[]
[]
[]
[]
[]
[]
[]
[]
[]
[]
[]
[]
[null,null,null,null,null,null,null,null,null,null,null,null,null,null,null,null,null,null,null,null,null,null,null,null,null,null,null,null,null,null,null,null,null,null,null,null,null,null,null,null,null,null,null,null,null,null,null,null,null,null,null,null,null,null,null,null,null,null,null,null,null,null,null,null,null,null,null,null,null,null,null,null,null,null,null,null,null,null,"88","2,26","15,09","2,1","3","",",75",",41","","","79","3,48","1,85","1,22","","","","","","","","","","","","","",""]
[]
[]
[]
[]
[null,null,null,null,null,null,null,null,null,null,null,null,null,null,null,null,null,null,null,null,null,null,null,null,null,null,null,null,null,null,null,null,null,null,null,null,null,null,null,null,null,null,null,null,null,null,null,null,null,null,null,null,null,null,null,null,null,null,null,null,null,null,null,null,null,null,null,null,null,null,null,null,null,null,null,null,null,null,88,286,16,10,0,0,8,48,59,211,0,0,0,0,0,78,0,0,"6,1",0,0,0,0,0,0,50,0,1]
[null,null,null,null,null,null,null,null,null,null,null,null,null,null,null,null,null,null,null,null,null,null,null,null,null,null,null,null,null,null,null,null,null,null,null,null,null,null,null,null,null,null,null,null,null,null,null,null,null,null,null,null,null,null,null,null,null,null,null,null,null,null,null,null,null,null,null,null,null,null,null,null,null,null,null,null,null,null,88,286,16,10,0,0,8,48,59,211,0,0,0,0,0,78,0,0,"6,1",0,0,0,0,0,0,50,0,1]
[null,null,null,null,null,null,null,null,null,null,null,null,null,null,null,null,null,null,null,null,null,null,null,null,null,null,null,null,null,null,null,null,null,null,null,null,null,null,null,null,null,null,null,null,null,null,null,null,null,null,null,null,null,null,null,null,null,null,null,null,null,null,null,null,null,null,null,null,null,null,null,null,null,null,null,null,null,null,88,"2,86",16,10,0,0,8,48,59,211,0,0,0,0,0,78,0,0,61,0,0,0,0,0,0,50,0,1]

{"sheet":"Rapor","index":1,"n_rows":533,"n_cols":108,"rows_kept":533,"cut":false,"hidden":false,"merged":[[28,9,28,10],[20,9,20,10],[23,9,23,10],[24,9,24,10],[26,9,26,10],[25,9,25,10],[27,9,27,10],[1,23,2,23],[0,6,0,7],[25,11,25,12],[2,1,3,1],[21,11,21,13],[2,4,2,5],[24,11,24,12],[22,11,22,13],[23,11,23,13],[21,9,21,10],[22,9,22,10]]}
[null,"Keçiler İçin En Düşük Maliyetli",null,null,null,null,"Coşkun & İnal & İnal",null,null,null,null,null,null,null,null,null,null,null,null,"Keçinin verim yönü",null,"KEÇİNİN TANIMLANMASI",null,null,null,2,3,4,5,6,7,8,9,10,11,null,null,null,null,null,null,null,null,null,null,null,null,null,null,null,null,"Seçilen Yemler",null,null,null,null,null,null,null,null,null,null,null,null,null,null,null,null,null,null,null,null,null,null,null,null,null,null,null,null,null,null,null,null,null,null,null,null,null,null,null,null,null,null,null,null,null,null,null,null,null,null,null,null,null,null,null,"Seçilen"]
[null,"Rasyon Hazırlama Programı",null,null,null,null,null,null,null,null,null,null,null,null,null,null,null,null,null,"Sütçü",null,null,null,"VERİLECEK YEMLER",{"$f":"SUM(Y5:Y30)","v":2.15},null,null,null,null,null,null,null,null,null,null,null,null,null,null,null,null,null,null,null,null,null,null,null,null,null,null,"Toplu yem seçimi için kullanılır","HAYVANIN ÖZELLİĞİ","KM","ME","HP(20)","HP(40)","HP(60)","MP","DIP","Ca","P","VitA,RE","VitE,IU","Na,g","Cl,g","K,g","Mg,g","S,g","Co,mg","Cu,mg","I,mg","Fe,mg","Mn,mg","Se,mg","Zn,mg",null,"KURU KABA YEMLER","KM,%","ME, Mcal/kg","HP,%","MP,%","DIP,%","RUP,%","Ca,%","P,%","HS,%","NDF,%","TSBM,%","SE, Mcal/kg","NEyp, Mcal/kg","NEb, Mcal/kg","NEl, Mcal/kg","ADF,%","eNDF,%","HY,%","HK,%","K,%","Cl,%","S,%","Zn,ppm","VitA, RE/kg","VitE,ppm","Fiyat,TL","En az","En çok",null,"Yemler"]
[null,"VERİLECEK YEMLER","MİKTAR","Fiyat,₺","Yemler için",null,"BESİN MAD.","İHTİYAÇLAR","RASYON","SONUÇ","KM'de %",null,"Gerekli Kesif Yem Miktarı",null,null,null,null,null,null,"Sütçü Olmayan",null,{"$f":"CONCATENATE(KeciVerimYonu,\", \",KeciTipi,\", \",KeciDurum,\", \",KeciYavruSay,\", \",SutVerimDuzey)","v":"Sütçü, Dişi, Erken Laktasyon, Tek, "},null,null,"Miktar","KM","ME","HP","MP","DIP","RUP","Ca","P","HS","NDF",null,null,null,null,null,null,null,null,null,null,null,null,null,null,null,null,null,"Sütçü, Dişi, Yaşama Payı, , ",{"$f":" -0.000047*BW^2 + 0.0228*BW + 0.1565","v":1.2683250000000001},{"$f":" -0.000086*BW^2 + 0.0429*BW + 0.3177","v":2.4170500000000001},{"$f":" -0.002915*BW^2 + 1.4839*BW + 11.863","v":84.659625000000005},{"$f":" -0.003095*BW^2 + 1.4548*BW + 10.226","v":80.877625000000009},{"$f":" -0.002915*BW^2 + 1.3839*BW + 9.8631","v":77.159724999999995},{"$f":" -0.002083*BW^2 + 1.0113*BW + 7.6488","v":56.969225000000002},{"$f":" -0.002204*BW^2 + 1.0792*BW + 7.5893","v":60.278199999999998},{"$f":" -0.000089*BW^2 + 0.034*BW + 0.6601","v":2.260875},{"$f":" -0.000089*BW^2 + 0.034*BW + 0.2601","v":1.8608750000000001},null,null,null,null,null,null,null,null,null,null,null,null,null,null,1,"Adi Japon Üçgülü (Lespedeza) Kuru Otu",92,2,14,9.8000000000000007,9.6,8.4,1.1000000000000001,0.22,30,null,54,2.4,1.2,0.4,1.2,null,null,3,7,1,null,0.19,29,8,null,8,0,1,null,"Arpa, Tane"]
[null,null,{"$f":"SUM(Y5:Y30)","v":2.15},{"$f":"Keçi!D4","v":10.5},"En az","En çok","KM,kg",{"$f":"Keçi!H4","v":1.8554950000000001},{"$f":"Z32","v":1.9300000000000002},{"$f":"IF(OR(H4=\"\",H4=0)=TRUE,\" \",IF(I4>(H4*1.02),\"FAZLA\",IF(I4<(H4*0.99),\"EKSİK\",\"TAMAM\")))","v":"FAZLA"},null,null,"ve KM'deki Bileşimi",null,null,null,null,null,null,"Tiftik Keçisi",null,null,null,null,null,null,null,null,null,null,null,null,null,null,null,null,null,null,null,null,null,null,null,null,null,null,null,null,null,null,null,"KİREÇTAŞI","Sütçü, Dişi, Flaşing, , ",{"$f":" -0.0000525*BW^2 + 0.0254*BW + 0.1686","v":1.4067875000000001},{"$f":" -0.000092*BW^2 + 0.0471*BW + 0.3539","v":2.6660999999999997},{"$f":" -0.003213*BW^2 + 1.6345*BW + 12.762","v":92.940175000000011},{"$f":" -0.003213*BW^2 + 1.5702*BW + 12.298","v":88.939675000000008},{"$f":" -0.002975*BW^2 + 1.5036*BW + 11.369","v":85.067625000000007},{"$f":" -0.002438*BW^2 + 1.1363*BW + 7.5417","v":62.663250000000005},{"$f":" -0.0025*BW^2 + 1.2012*BW + 8.0595","v":66.563000000000002},{"$f":" -0.00007*BW^2 + 0.0352*BW + 0.7155","v":2.4397500000000001},{"$f":" -0.000047*BW^2 + 0.0319*BW + 0.3893","v":2.0016249999999998},null,null,null,null,null,null,null,null,null,null,null,null,null,null,2,"Arpa Kuru Otu",90,2.1,9,6.3,5.0999999999999996,null,0.3,0.28000000000000003,28,65,57,2.5,1.3,0.6,1.3,37,98,2.1,8,1.6,null,0.19,25,10.6,null,5,0,1]
[{"$f":"Keçi!A5","v":1},{"$f":"Keçi!B5","v":"Buğday Samanı"},{"$f":"Keçi!C5","v":1},{"$f":"Keçi!D5","v":1.5},{"$f":"Keçi!E5","v":0},{"$f":"Keçi!F5","v":1},"ME,Mcal",{"$f":"Keçi!H5","v":3.5541999999999998},{"$f":"AA32","v":3.7010400000000003},{"$f":"IF(OR(H5=\"\",H5=0)=TRUE,\"     \",IF(I5>(H5*1.01),\"FAZLA\",IF(I5<(H5*0.99),\"EKSİK\",\"TAMAM\")))","v":"FAZLA"},{"$f":"IF(I$5>0,CONCATENATE(TEXT((I5*1000)/I$4,\"0\"),\" kcal/kg\"),\"\")","v":"1918 kcal/kg"},null,"Miktar,kg",null,{"$f":"(H23-I4)/0.89","v":-8.3713483146067469E-2},null,null,null,null,null,null,"Yem Grupları",null,{"$f":"Keçi!B5","v":"Buğday Samanı"},{"$f":"IF(X5=0,0,C5)","v":1},{"$f":"IF($X5=0,0,VLOOKUP($B5,$BZ$3:$DB$533,Z$1,FALSE))","v":91},1.5,3,2.1,0.3,1.8,0.16,0.05,43,81,null,null,null,null,null,null,null,null,null,null,null,null,null,null,null,null,"VİTAMİN-MİNERAL KARMASI","Sütçü, Dişi, Erken Gebelik, Tek, ",{"$f":" -0.000053*BW^2 + 0.02515*BW + 0.2246","v":1.4475249999999997},{"$f":" -0.00011*BW^2 + 0.048*BW + 0.4311","v":2.7383500000000001},{"$f":" -0.00452*BW^2+ 2.0286*BW + 23.738","v":121.63799999999999},{"$f":" -0.0047*BW^2 + 1.9804*BW + 21.649","v":116.3535},{"$f":" -0.004702*BW^2 + 1.9161*BW + 20.185","v":111.34694999999999},{"$f":" -0.003689*BW^2 + 1.4369*BW + 14.071","v":81.94127499999999},{"$f":" -0.002617*BW^2+ 1.2048*BW + 10.536","v":68.883575000000008},{"$f":" -0.0001*BW^2 + 0.0379*BW + 2.7113","v":4.4933000000000005},{"$f":" -0.000077*BW^2 + 0.0353*BW + 1.1208","v":2.8293749999999998},null,null,null,null,null,null,null,null,null,null,null,null,null,null,3,"Arpa Samanı",90,1.6,4,2.8,0.6,2.8,0.33,0.08,42,78,4.3,1.9,1,0,0.9,52,100,1.9,7,2.1,0.67,0.16,7,400,null,1.5,0,1]
[{"$f":"Keçi!A6","v":1},{"$f":"Keçi!B6","v":"Fiğ Kuru Otu"},{"$f":"Keçi!C6","v":0.8},{"$f":"Keçi!D6","v":6},{"$f":"Keçi!E6","v":0},{"$f":"Keçi!F6","v":1},"Ham Protein,g",{"$f":"Keçi!H6","v":199.22750124999999},{"$f":"AB32","v":200.95160000000001},{"$f":"IF(OR(H6=\"\",H6=0)=TRUE,\"     \",IF(I6>(H6*1.01),\"FAZLA\",IF(I6<(H6*0.99),\"EKSİK\",\"TAMAM\")))","v":"TAMAM"},{"$f":"IF(I6>0,CONCATENATE(TEXT(I6/(I$4*1000)*100,\"0,0\")),\"\")","v":"10,4"},null,"HP,%",null,{"$f":"((H25-I6)/10)/($H23-$I4)","v":2.3140712032749793},null,null,null,null,null,null,"Kuru Kaba Yemler",null,{"$f":"Keçi!B6","v":"Fiğ Kuru Otu"},0.8,89,2.1,18,12.6,13.2,2.5,1.25,0.34,30,48,null,null,null,null,null,null,null,null,null,null,null,null,null,null,null,null,"TUZ","Sütçü, Dişi, Erken Gebelik, İkiz, ",{"$f":"-0.0000535*BW^2+0.0263*BW + 0.258","v":1.5426625},{"$f":" -0.000101*BW^2 + 0.0501*BW + 0.4989","v":2.9488750000000001},{"$f":" -0.00702*BW^2 + 2.5536*BW + 20.988","v":140.20049999999998},{"$f":"-0.006844*BW^2 + 2.4494*BW + 19.958","v":133.97189999999998},{"$f":" -0.006547*BW^2 + 2.3512*BW + 18.679","v":128.190325},{"$f":" -0.00488*BW^2 + 1.7345*BW + 13.679","v":94.314499999999995},{"$f":" -0.002497*BW^2 + 1.2464*BW + 12.571","v":73.569575},{"$f":" -0.000172*BW^2 + 0.0484*BW + 4.0387","v":6.1804000000000006},{"$f":" -0.000157*BW^2 + 0.0461*BW + 1.4905","v":3.5510750000000004},null,null,null,null,null,null,null,null,null,null,null,null,null,null,4,"Ayçiçeği Tohumu Kabukları",90,1.4,4,2.8,0.6,2.6,0,0.11,52,73,40,1.8,0.9,0,0.8,63,90,2.2000000000000002,3,0.2,null,0.19,200,null,null,3,0,1]
[{"$f":"Keçi!A7","v":4},{"$f":"Keçi!B7","v":"KOYUN SÜT YEMİ"},{"$f":"Keçi!C7","v":0.35},{"$f":"Keçi!D7","v":12},{"$f":"Keçi!E7","v":0},{"$f":"Keçi!F7","v":1},"Metabolik Protein",null,{"$f":"AC32","v":139.62200000000001},null,{"$f":"AC32/Z32/10","v":7.2343005181347149},null,"ME,Mcal",null,{"$f":"(H24-I5)/($H23-$I4)","v":1.9708744379571901},null,null,null,null,"Keçinin tipi",null,"Sulu Kaba Yemler",null,{"$f":"Keçi!B7","v":"KOYUN SÜT YEMİ"},0.35,88,2.73,14.77,10,0,0,1.02,0.45,7.95,25,null,null,null,null,null,null,null,null,null,null,null,null,null,null,null,null,null,"Sütçü, Dişi, Erken Gebelik, Üçüz, ",{"$f":" -0.000047*BW^2 + 0.0259*BW + 0.3107","v":1.5930249999999999},{"$f":" -0.000085*BW^2 + 0.0492*BW + 0.5986","v":3.0474750000000004},{"$f":" -0.0044*BW^2 + 2.3107*BW + 36.405","v":150.18350000000001},{"$f":" -0.003808*BW^2 + 2.1571*BW + 36.238","v":143.35929999999999},{"$f":" -0.00357*BW^2 + 2.05*BW + 35.143","v":137.09375},{"$f":" -0.002617*BW^2 + 1.5214*BW + 25.048","v":100.808575},{"$f":" -0.002022*BW^2 + 1.2036*BW + 15.881","v":75.96244999999999},{"$f":" -0.000059*BW^2 + 0.0361*BW + 5.7595","v":7.5665250000000004},{"$f":" -0.000023*BW^2 + 0.0307*BW + 2.5095","v":4.128425},null,null,null,null,null,null,null,null,null,null,null,null,null,null,5,"Badem Kabukları",89,2.1,5,3.5,1.5,3,0.25,0.1,16,35,59,2.6,1.3,0.6,1.3,27,100,3.3,7,2,0.03,7.0000000000000007E-2,20,null,null,3,0,1]
[{"$f":"Keçi!A8","v":0},{"$f":"Keçi!B8","v":0},{"$f":"Keçi!C8","v":0},{"$f":"Keçi!D8","v":0},{"$f":"Keçi!E8","v":0},{"$f":"Keçi!F8","v":0},"Rumende Yıkılabilir Protein",null,{"$f":"AD32","v":96.714000000000013},null,{"$f":"(AD32/Z32/10)","v":5.0110880829015549},null,"Ca,%",null,{"$f":"((H29-I10)/10)/($H23-$I4)","v":9.7837393463525899},null,null,null,null,"Dişi",null,"Silajlar",null,{"$f":"Keçi!B8","v":0},0,0,0,0,0,0,0,0,0,0,0,null,null,null,null,null,null,null,null,null,null,null,null,null,null,null,null,null,"Sütçü, Dişi, Geç Gebelik, Tek, ",{"$f":" - 0.000069*BW^2 + 0.0356*BW - 0.0834","v":1.665875},{"$f":" -0.000131*BW^2 + 0.0579*BW + 0.6287","v":3.416925},{"$f":" -0.01119*BW^2 + 3.5048*BW + 15.964","v":174.87824999999998},{"$f":" -0.010892*BW^2 + 3.3708*BW + 14.649","v":167.09469999999999},{"$f":" -0.01006*BW^2 + 3.1792*BW + 14.982","v":159.40649999999999},{"$f":" -0.007618*BW^2 + 2.3667*BW + 10.381","v":117.50505},{"$f":" -0.00357*BW^2 + 1.4738*BW + 15.119","v":85.378749999999997},{"$f":" -0.000243*BW^2 + 0.0648*BW + 2.0637","v":4.8926249999999989},{"$f":" -0.000154*BW^2 + 0.0544*BW + 0.6571","v":3.1832500000000001},null,null,null,null,null,null,null,null,null,null,null,null,null,null,6,"Bezelye Kuru Otu",89,2.2000000000000002,10,7,6,null,1.2,0.21,32,62,60,2.6,1.3,0.7,1.3,52,92,1.8,7,1.2,null,0.2,20,null,null,10,0,1]
[{"$f":"Keçi!A9","v":0},{"$f":"Keçi!B9","v":0},{"$f":"Keçi!C9","v":0},{"$f":"Keçi!D9","v":0},{"$f":"Keçi!E9","v":0},{"$f":"Keçi!F9","v":0},"Rumende Yıkımlanmayan Protein",null,{"$f":"AE32","v":34.180000000000007},null,{"$f":"AE32/Z32/10","v":1.7709844559585495},null,"P,%",null,{"$f":"((H30-I11)/10)/($H23-$I4)","v":0.11244211797866048},null,null,null,null,"Erkek",null,"Enerji Kaynakları",null,{"$f":"Keçi!B9","v":0},0,0,0,0,0,0,0,0,0,0,0,null,null,null,null,null,null,null,null,null,null,null,null,null,null,null,null,null,"Sütçü, Dişi, Geç Gebelik, İkiz, ",{"$f":" - 0.000068*BW^2 + 0.0351*BW + 0.0071","v":1.7319},{"$f":" -0.000126*BW^2 + 0.0621*BW + 0.78","v":3.8143500000000001},{"$f":" 0.0004752*BW^3 - 0.078*BW^2 + 6.4418*BW + 1.4048","v":198.81519999999998},{"$f":" 0.0004481*BW^3 - 0.07365*BW^2+ 6.1172*BW + 1.5238","v":189.73118750000003},{"$f":" 0.0004034*BW^3 - 0.0665*BW^2 + 5.6703*BW + 3.9048","v":181.72447500000001},{"$f":" 0.000286*BW^3 - 0.05*BW^2 + 4.353*BW - 0.119","v":135.62924999999998},{"$f":" -0.00333*BW^2 + 1.5571*BW + 19.69","v":95.257249999999999},{"$f":" 0.000162*BW^2 + 0.0198*BW + 4.5768","v":6.1558500000000009},{"$f":" 0.000156*BW^2 + 0.0189*BW + 2.0345","v":3.5459000000000001},null,null,null,null,null,null,null,null,null,null,null,null,null,null,7,"Bezelye Samanı",89,1.8,7,4.9000000000000004,3.3,null,0.6,0.15,42,72,50,2.2000000000000002,1.1000000000000001,0.3,1.1000000000000001,49,98,1.3,7,1.1000000000000001,null,0.15,null,null,null,3,0,1]
[{"$f":"Keçi!A10","v":0},{"$f":"Keçi!B10","v":0},{"$f":"Keçi!C10","v":0},{"$f":"Keçi!D10","v":0},{"$f":"Keçi!E10","v":0},{"$f":"Keçi!F10","v":0},"Ca,g",{"$f":"Keçi!H10","v":6.2082250000000005},{"$f":"AF32","v":13.497600000000002},{"$f":"IF(OR(H10=\"\",H10=0)=TRUE,\"     \",IF(I10>(H10*1.01),\"FAZLA\",IF(I10<(H10*0.99),\"EKSİK\",\"TAMAM\")))","v":"FAZLA"},{"$f":"IF(I10>0,CONCATENATE(TEXT(I10/(I$4*1000)*100,\"0,00\")),\"\")","v":"0,70"},null,null,null,null,null,null,null,null,"Oğlak",null,"Yan Ürünler",null,{"$f":"Keçi!B10","v":0},0,0,0,0,0,0,0,0,0,0,0,null,null,null,null,null,null,null,null,null,null,null,null,null,null,null,null,null,"Sütçü, Dişi, Geç Gebelik, Üçüz, ",{"$f":" - 0.000068*BW^2 + 0.0349*BW + 0.045","v":1.7587999999999999},{"$f":" -0.000103*BW^2+ 0.061*BW + 0.98","v":4.0234249999999996},{"$f":" -0.00678*BW^2 + 3.475*BW + 47.786","v":218.4015},{"$f":" -0.005355*BW^2 + 3.1821*BW + 49.357","v":208.17362499999999},{"$f":" -0.00476*BW^2 + 3*BW + 48.333","v":198.934},{"$f":" -0.004282*BW^2 + 2.3071*BW + 32.714","v":146.65145000000001},{"$f":" -0.002379*BW^2 + 1.5071*BW + 24.524","v":100.218025},{"$f":" -0.00007*BW^2+ 0.0421*BW + 5.4429","v":7.5466499999999996},{"$f":" -0.00007*BW^2 + 0.0421*BW + 2.0143","v":4.1180500000000002},null,null,null,null,null,null,null,null,null,null,null,null,null,null,8,"Beyaz Üçgül (Clover Ladino) Kuru Otu",90,2.2000000000000002,21,14.7,15.9,5.3,1.35,0.32,22,36,61,2.7,1.4,0.7,1.3,32,92,2,9,2.4,0.3,0.2,17,16.600000000000001,null,8,0,1]
[{"$f":"Keçi!A11","v":0},{"$f":"Keçi!B11","v":0},{"$f":"Keçi!C11","v":0},{"$f":"Keçi!D11","v":0},{"$f":"Keçi!E11","v":0},{"$f":"Keçi!F11","v":0},"P,g",{"$f":"Keçi!H11","v":4.1780249999999999},{"$f":"AG32","v":4.2618000000000009},{"$f":"IF(OR(H11=\"\",H11=0)=TRUE,\"     \",IF(I11>(H11*1.01),\"FAZLA\",IF(I11<(H11*0.99),\"EKSİK\",\"TAMAM\")))","v":"FAZLA"},{"$f":"IF(I11>0,CONCATENATE(TEXT(I11/(I$4*1000)*100,\"0,00\")),\"\")","v":"0,22"},null,null,null,null,null,null,null,null,null,null,"Protein Kaynakları",null,{"$f":"Keçi!B11","v":0},0,0,0,0,0,0,0,0,0,0,0,null,null,null,null,null,null,null,null,null,null,null,null,null,null,null,null,null,"Sütçü, Dişi, Erken Laktasyon, Tek, ",{"$f":" -0.0000522*BW^2 + 0.0302*BW + 0.3524","v":1.8554950000000001},{"$f":" -0.000104*BW^2 + 0.0581*BW + 0.6733","v":3.5541999999999998},{"$f":" -0.006423*BW^2 + 3.1643*BW + 49.143","v":203.74992499999999},{"$f":" -0.0063089*BW^2 + 3.0321*BW + 47.024","v":194.70507749999999},{"$f":" -0.006665*BW^2 + 2.9714*BW + 43.238","v":186.50337500000001},{"$f":" -0.0044*BW^2 + 2.125*BW + 33.405","v":136.97},{"$f":" -0.003213*BW^2 + 1.5179*BW + 15.357","v":89.122174999999999},{"$f":" -0.000083*BW^2 + 0.0432*BW + 4.0833","v":6.2082250000000005},{"$f":" -0.000035*BW^2 + 0.0375*BW + 2.2214","v":4.1780249999999999},null,null,null,null,null,null,null,null,null,null,null,null,null,null,9,"Brom Otu (Bromegrass) Kuru Otu ",89,2,10,7,6,33,0.4,0.23,35,66,55,2.4,1.2,0.5,1.2,41,98,2.2999999999999998,9,1.9,0.4,0.19,19,6.8,null,8,0,1]
[{"$f":"Keçi!A12","v":0},{"$f":"Keçi!B12","v":0},{"$f":"Keçi!C12","v":0},{"$f":"Keçi!D12","v":0},{"$f":"Keçi!E12","v":0},{"$f":"Keçi!F12","v":0},"Ca/P Oranı",{"$f":"Keçi!H12","v":1.4859233728855143},{"$f":"I10/I11","v":3.1671124876812611},{"$f":"IF(OR(H12=\"\",H12=0)=TRUE,\"     \",IF(I12>(H12*1.01),\"FAZLA\",IF(I12<(H12*0.99),\"EKSİK\",\"TAMAM\")))","v":"FAZLA"},null,null,null,null,null,null,null,null,null,null,null,"Vitamin-Mineral ve Katkı Maddeleri",null,{"$f":"Keçi!B12","v":0},0,0,0,0,0,0,0,0,0,0,0,null,null,null,null,null,null,null,null,null,null,null,null,null,null,null,null,null,"Sütçü, Dişi, Erken Laktasyon, İkiz, ",{"$f":" -0.0000736*BW^2 + 0.0392*BW + 0.5208","v":2.4541600000000003},{"$f":" -0.000136*BW^2 + 0.0743*BW + 1.022","v":4.6970999999999998},{"$f":" -0.00982*BW^2 + 4.7968*BW + 89.236","v":323.35450000000003},{"$f":" -0.009285*BW^2+ 4.5671*BW + 85.743","v":308.84637499999997},{"$f":" -0.009285*BW^2 + 4.4129*BW + 80.771","v":295.39337499999999},{"$f":" -0.0066*BW^2 + 3.2246*BW + 59.907","v":217.29500000000002},{"$f":" -0.00339*BW^2 + 1.8582*BW + 25.207","v":117.15325000000001},{"$f":" -0.0000717*BW^2 + 0.0496*BW + 7.6171","v":10.128207499999998},{"$f":" 0.04*BW + 4.3","v":6.5},null,null,null,null,null,null,null,null,null,null,null,null,null,null,10,"Buğday Kuru Otu",90,2.1,9,6.3,5.0999999999999996,2.2999999999999998,0.21,0.22,29,66,57,2.5,1.3,0.6,1.3,38,98,2,8,1.4,0.5,0.19,23,17,null,6,0,1]
[{"$f":"Keçi!A13","v":0},{"$f":"Keçi!B13","v":0},{"$f":"Keçi!C13","v":0},{"$f":"Keçi!D13","v":0},{"$f":"Keçi!E13","v":0},{"$f":"Keçi!F13","v":0},"Kaba Yem,%",null,null,null,{"$f":"IF(Y32=0,0,Y32/I4*100)","v":84.041450777202073},null,null,null,null,null,null,null,null,"Yavru sayısı",null,null,null,{"$f":"Keçi!B13","v":0},0,0,0,0,0,0,0,0,0,0,0,null,null,null,null,null,null,null,null,null,null,null,null,null,null,null,null,null,"Sütçü, Dişi, Erken Laktasyon, Üçüz, ",{"$f":"  -0.00006048*BW^3 + 0.0127*BW^2 - 0.8158*BW + 18.9","v":2.3861399999999975},{"$f":" -0.000164*BW^2 + 0.0903*BW + 1.3649","v":5.8353000000000002},{"$f":" -0.002416*BW^3 + 0.51959*BW^2 - 31.133*BW + 955.97","v":413.45274999999992},{"$f":" -0.0021662*BW^3 + 0.4671*BW^2 - 27.783*BW + 870.37","v":394.88097499999992},{"$f":" -0.0020828*BW^3 + 0.4489*BW^2 - 26.717*BW + 836.11","v":378.0716500000002},{"$f":" -0.0016*BW^3 + 0.3411*BW^2 - 20.417*BW + 632.89","v":275.58249999999987},{"$f":" -0.004998*BW^2 + 2.39*BW + 29.2","v":145.53105000000002},{"$f":" -0.00008294*BW^3 + 0.0184*BW^2 - 1.2517*BW + 39.974","v":12.991357499999985},{"$f":" 0.000786*BW^2 - 0.037*BW + 7.6229","v":7.9655500000000004},null,null,null,null,null,null,null,null,null,null,null,null,null,null,11,"Buğday Samanı",91,1.5,3,2.1,0.3,1.8,0.16,0.05,43,81,42,1.9,0.9,0,0.9,58,98,1.8,8,1.3,0.32,0.17,6,400,null,1.5,0,1]
[{"$f":"Keçi!A14","v":0},{"$f":"Keçi!B14","v":0},{"$f":"Keçi!C14","v":0},{"$f":"Keçi!D14","v":0},{"$f":"Keçi!E14","v":0},{"$f":"Keçi!F14","v":0},"HS,%",null,null,null,{"$f":"AH32/Z32*100","v":32.610673575129532},null,null,null,null,null,null,null,null,"Tek",null,null,null,{"$f":"Keçi!B14","v":0},0,0,0,0,0,0,0,0,0,0,0,null,null,null,null,null,null,null,null,null,null,null,null,null,null,null,null,null,"Sütçü, Dişi, Erken Laktasyon, Sağılıyor, Düşük",{"$f":"0.0000025*BW^3 - 0.000562*BW^2 + 0.07*BW - 0.146","v":2.4198875000000006},{"$f":" -0.0002069*BW^2 + 0.1081*BW + 1.6614","v":6.9810274999999997},{"$f":" -0.002*BW^3 + 0.393574*BW^2 - 19.05*BW + 703.69","v":513.75135},{"$f":" -0.0257*BW^2+ 9.28*BW + 61.343","v":494.00049999999999},{"$f":" -0.025*BW^2 + 8.95*BW + 55.2","v":471.82499999999993},{"$f":" -0.01785*BW^2 + 6.53*BW + 41.971","v":347.12475000000006},{"$f":" -0.006426*BW^2 + 2.87*BW + 35.686","v":174.09735000000001},{"$f":" -0.00007433*BW^3 + 0.0152*BW^2 - 0.94*BW + 34.32","v":16.233346249999997},{"$f":" -0.000067*BW^3 + 0.013597*BW^2 - 0.8333*BW + 25.446","v":9.5982999999999912},null,null,null,null,null,null,null,null,null,null,null,null,null,null,12,"Buğday Samanı, Amonyakla muamele ",85,1.8,9,6.3,5.0999999999999996,2.2999999999999998,0.15,0.05,40,76,50,2.2000000000000002,1.1000000000000001,0.3,1.1000000000000001,55,98,1.5,9,1.3,0.3,0.16,6,null,null,2,0,1]
[{"$f":"Keçi!A15","v":0},{"$f":"Keçi!B15","v":0},{"$f":"Keçi!C15","v":0},{"$f":"Keçi!D15","v":0},{"$f":"Keçi!E15","v":0},{"$f":"Keçi!F15","v":0},"NDF,%",null,null,null,{"$f":"AI32/Z32*100","v":59.889119170984465},null,null,null,null,null,null,null,null,"İkiz",null,null,null,{"$f":"Keçi!B15","v":0},0,{"$f":"IF($X15=0,0,VLOOKUP($B15,$BZ$3:$DB$533,Z$1,FALSE))","v":0},0,0,0,0,0,0,0,0,0,null,null,null,null,null,null,null,null,null,null,null,null,null,null,null,null,null,"Sütçü, Dişi, Erken Laktasyon, Sağılıyor, Orta",{"$f":" -0.0000785*BW^2 + 0.0427*BW + 0.7217","v":2.8327375000000004},{"$f":" -0.0002355*BW^2 + 0.1241*BW + 2.0071","v":8.1202124999999992},{"$f":" -0.01714*BW^2 + 8.64*BW + 203.03","v":626.38150000000007},{"$f":" -0.015713*BW^2 + 8.16*BW + 196.54","v":597.80817500000001},{"$f":" -0.016428*BW^2+ 8.01*BW + 180.89","v":571.74530000000004},{"$f":" -0.01214*BW^2+ 5.89*BW + 134.03","v":421.25649999999996},{"$f":" -0.006426*BW^2 + 3.17*BW + 47.686","v":202.59735000000001},{"$f":" -0.000214*BW^2 + 0.075*BW + 16.483","v":19.960650000000001},{"$f":" -0.000142*BW^2 + 0.062*BW + 8.6686","v":11.649049999999999},null,null,null,null,null,null,null,null,null,null,null,null,null,null,13,"Çavdar Samanı",89,1.6,4,2.8,0.6,null,0.24,0.09,44,71,44,1.9,1,0,0.9,55,100,1.5,6,1,0.24,0.11,null,null,null,3,0,1]
[{"$f":"Keçi!A16","v":0},{"$f":"Keçi!B16","v":0},{"$f":"Keçi!C16","v":0},{"$f":"Keçi!D16","v":0},{"$f":"Keçi!E16","v":0},{"$f":"Keçi!F16","v":0},null,null,null,null,null,null,null,null,null,null,null,null,null,"Üçüz",null,null,null,{"$f":"Keçi!B16","v":0},0,0,0,0,0,0,0,0,0,0,0,null,null,null,null,null,null,null,null,null,null,null,null,null,null,null,null,null,"Sütçü, Dişi, Erken Laktasyon, Sağılıyor, Yüksek",{"$f":" -0.0001*BW^2 + 0.05*BW + 0.78","v":3.2275},{"$f":" -0.00026*BW^2 + 0.1401*BW + 2.3589","v":9.2778999999999989},{"$f":" -0.02214*BW^2 + 10.43*BW + 231.23","v":737.90649999999994},{"$f":" -0.02*BW^2 + 9.78*BW + 227.4","v":704.8},{"$f":" -0.017855*BW^2 + 9.19*BW + 222.37","v":673.80862500000001},{"$f":" -0.01428*BW^2 + 6.92*BW + 158.86","v":496.26300000000003},{"$f":" -0.006426*BW^2 + 3.47*BW + 59.686","v":231.09735000000003},{"$f":" 0.05*BW + 20.9","v":23.65},{"$f":" -0.000142*BW^2 + 0.068*BW + 10.449","v":13.759450000000001},null,null,null,null,null,null,null,null,null,null,null,null,null,null,14,"Çayır Kelp Kuyruğu (Timothy) Kuru Otu, Çiçek Başı",88,2.1,11,7.7,6.9,2.4,0.57999999999999996,0.26,32,63,59,2.6,1.3,0.6,1.3,39,98,2.7,6,1.9,0.51,0.21,30,5.6,38,11,0,1]
[{"$f":"Keçi!A17","v":0},{"$f":"Keçi!B17","v":0},{"$f":"Keçi!C17","v":0},{"$f":"Keçi!D17","v":0},{"$f":"Keçi!E17","v":0},{"$f":"Keçi!F17","v":0},null,null,null,null,null,null,null,null,null,null,null,null,null,"Sağılıyor",null,null,null,{"$f":"Keçi!B17","v":0},0,0,0,0,0,0,0,0,0,0,0,null,null,null,null,null,null,null,null,null,null,null,null,null,null,null,null,null,"Sütçü, Dişi, Orta Laktasyon, Tek, ",{"$f":" -0.00006*BW^2 + 0.03*BW + 0.366","v":1.8344999999999998},{"$f":" -0.000111*BW^2 + 0.0569*BW + 0.7205","v":3.5142250000000002},{"$f":" -0.00607*BW^2+ 2.8179*BW + 46.257","v":182.87975},{"$f":" -0.005833*BW^2+ 2.7036*BW +43.548","v":174.60117499999998},{"$f":" -0.00583*BW^2 + 2.6107*BW + 41.262","v":167.21475000000001},{"$f":" -0.003808*BW^2 + 1.8643*BW + 31.952","v":122.9693},{"$f":" -0.002974*BW^2 + 1.4393*BW + 17.69","v":87.855150000000009},{"$f":" -0.000059*BW^2 + 0.0382*BW + 4.231","v":6.1535250000000001},{"$f":" -0.000059*BW^2 + 0.0382*BW + 2.231","v":4.1535250000000001},null,null,null,null,null,null,null,null,null,null,null,null,null,null,15,"Çayır Kelp Kuyruğu (Timothy) Kuru Otu, Tam Çiçeklenme",88,2.1,8,5.6,4.2,2.4,0.43,0.2,34,65,57,2.5,1.3,0.6,1.3,40,98,2.6,5,1.8,0.62,0.13,25,null,null,11,0,1]
[{"$f":"Keçi!A18","v":0},{"$f":"Keçi!B18","v":0},{"$f":"Keçi!C18","v":0},{"$f":"Keçi!D18","v":0},{"$f":"Keçi!E18","v":0},{"$f":"Keçi!F18","v":0},null,null,null,null,null,null,null,null,null,null,null,null,null,null,null,null,null,{"$f":"Keçi!B18","v":0},0,0,0,0,0,0,0,0,0,0,0,null,null,null,null,null,null,null,null,null,null,null,null,null,null,null,null,null,"Sütçü, Dişi, Orta Laktasyon, İkiz, ",{"$f":" -0.0000667*BW^2 + 0.036*BW + 0.6276","v":2.4058324999999998},{"$f":" -0.000131*BW^2 + 0.0697*BW + 1.1664","v":4.6036250000000001},{"$f":" -0.008925*BW^2 + 4.1121*BW + 81.871","v":281.03837499999997},{"$f":" -0.008213*BW^2+ 3.8964*BW + 78.5","v":267.95767499999999},{"$f":" -0.00732*BW^2 + 3.6404*BW + 78.279","v":256.358},{"$f":" -0.00482*BW^2 + 2.6182*BW + 59.093","v":188.51350000000002},{"$f":" -0.004105*BW^2 + 1.8482*BW + 25.75","v":114.98337500000001},{"$f":" -0.0001775*BW^2 + 0.0606*BW + 7.2814","v":10.077462499999999},{"$f":" -0.000089*BW^2 + 0.0476*BW + 4.1421","v":6.4908750000000008},null,null,null,null,null,null,null,null,null,null,null,null,null,null,16,"Çayır Kuru Otu",88,2.1,10,7,6,3,0.6,0.21,33,63,58,2.6,1.3,0.6,1.3,41,98,3,6,2,null,0.2,28,null,null,11,0,1]
[{"$f":"Keçi!A19","v":0},{"$f":"Keçi!B19","v":0},{"$f":"Keçi!C19","v":0},{"$f":"Keçi!D19","v":0},{"$f":"Keçi!E19","v":0},{"$f":"Keçi!F19","v":0},null,null,null,null,null,null,null,null,null,null,null,null,null,null,null,null,null,{"$f":"Keçi!B19","v":0},0,0,0,0,0,0,0,0,0,0,0,null,null,null,null,null,null,null,null,null,null,null,null,null,null,null,null,null,"Sütçü, Dişi, Orta Laktasyon, Üçüz, ",{"$f":" -0.0000857*BW^2 + 0.0438*BW + 0.8331","v":2.9828574999999997},{"$f":" -0.000178*BW^2 + 0.0859*BW + 1.5137","v":5.6997499999999999},{"$f":" -0.012855*BW^2 + 5.54*BW + 113.37","v":379.18362500000001},{"$f":" -0.012143*BW^2 + 5.27*BW + 109.03","v":362.147425},{"$f":" -0.011428*BW^2 + 5.02*BW + 104.69","v":346.22029999999995},{"$f":" -0.00714*BW^2 + 3.52*BW + 83.029","v":255.03049999999999},{"$f":" -0.004285*BW^2 + 2.12*BW + 38.857","v":142.49487500000001},{"$f":" -0.000214*BW^2+ 0.075*BW + 10.483","v":13.960650000000001},{"$f":" -0.000071*BW^2+ 0.055*BW + 5.9343","v":8.7445249999999994},null,null,null,null,null,null,null,null,null,null,null,null,null,null,17,"Çayır Kuru Otu (Meadow)",90,1.8,7,4.9000000000000004,3.3,1.6,0.61,0.18,33,70,50,2.2000000000000002,1.1000000000000001,0.3,1.1000000000000001,44,98,2.5,9,1.6,null,0.17,24,null,null,11,0,1]
[{"$f":"Keçi!A20","v":0},{"$f":"Keçi!B20","v":0},{"$f":"Keçi!C20","v":0},{"$f":"Keçi!D20","v":0},{"$f":"Keçi!E20","v":0},{"$f":"Keçi!F20","v":0},null,null,null,null,null,null,null,null,null,null,null,null,null,"Süt Verimi Düzeyi",null,null,null,{"$f":"Keçi!B20","v":0},0,0,0,0,0,0,0,0,0,0,0,null,null,null,null,null,null,null,null,null,null,null,null,null,null,null,null,null,"Sütçü, Dişi, Orta Laktasyon, Sağılıyor, Düşük",{"$f":" - 0.000036*BW^3 + 0.007345*BW^2 - 0.4387*BW + 10.679","v":2.7796250000000011},{"$f":" -0.000192*BW^2 + 0.0979*BW + 1.9886","v":6.7923},{"$f":" -0.0028335*BW^3 + 0.56435*BW^2 - 30.917*BW + 912.94","v":448.24018749999982},{"$f":" -0.042267*BW^2 + 10.946*BW - 35.418","v":438.75432499999999},{"$f":" -0.0271*BW^2 + 8.8*BW + 11.629","v":413.65150000000006},{"$f":" -0.021427*BW^2 + 6.66*BW + 3.4857","v":304.96902500000004},{"$f":" -0.003572*BW^2 + 2.27*BW + 55.514","v":169.55869999999999},{"$f":" -0.000785*BW^2 + 0.189*BW + 9.0371","v":17.057475},{"$f":" - 0.0005*BW^2 + 0.145*BW + 3.86","v":10.3225},null,null,null,null,null,null,null,null,null,null,null,null,null,null,18,"Çayır Kuru Otu (Prairie)",91,1.8,7,4.9000000000000004,3.3,2.6,0.4,0.15,34,67,50,2.2000000000000002,1.1000000000000001,0.3,1.1000000000000001,47,98,2,8,1.1000000000000001,0.06,0.06,34,4.8,null,11,0,1]
[{"$f":"Keçi!A21","v":0},{"$f":"Keçi!B21","v":0},{"$f":"Keçi!C21","v":0},{"$f":"Keçi!D21","v":0},{"$f":"Keçi!E21","v":0},{"$f":"Keçi!F21","v":0},null,null,null,"KEÇİ",null,null,null,null,null,null,null,null,null,"Düşük",null,null,null,{"$f":"Keçi!B21","v":0},0,0,0,0,0,0,0,0,0,0,0,null,null,null,null,null,null,null,null,null,null,null,null,null,null,null,null,null,"Sütçü, Dişi, Orta Laktasyon, Sağılıyor, Orta",{"$f":" - 0.00002735*BW^3 + 0.0056*BW^2 - 0.319*BW + 8.1489","v":2.9935437499999988},{"$f":" -0.000221*BW^2 + 0.1115*BW + 2.4283","v":7.8922750000000006},{"$f":" -0.04568*BW^2 + 12*BW + 10.543","v":532.36099999999999},{"$f":" -0.04214*BW^2 + 11.23*BW + 18.029","v":508.20549999999997},{"$f":" -0.0407*BW^2 + 10.81*BW + 14.343","v":485.77550000000008},{"$f":" -0.030712*BW^2 + 8.05*BW + 7.9429","v":357.78910000000008},{"$f":" -0.005715*BW^2 + 2.8*BW + 60.343","v":197.05512500000003},{"$f":" -0.001214*BW^2 + 0.229*BW + 11.363","v":20.28565},{"$f":" - 0.000857*BW^2 + 0.184*BW + 4.2514","v":11.778974999999999},null,null,null,null,null,null,null,null,null,null,null,null,null,null,19,"Çayır Kuru Otu (Rye Grass) ",90,2.1,10,7,6,3,0.45,0.3,33,65,58,2.6,1.3,0.6,1.3,38,98,3.3,8,2.2000000000000002,null,0.18,27,24,211,11,0,1]
[{"$f":"Keçi!A22","v":0},{"$f":"Keçi!B22","v":0},{"$f":"Keçi!C22","v":0},{"$f":"Keçi!D22","v":0},{"$f":"Keçi!E22","v":0},{"$f":"Keçi!F23","v":0},"BESİN MAD.","İHTİYAÇLAR",null,"Verim Yönü :",null,"Sütçü",null,null,null,null,null,null,null,"Orta",null,null,null,{"$f":"Keçi!B22","v":0},0,0,0,0,0,0,0,0,0,0,0,null,null,null,null,null,null,null,null,null,null,null,null,null,null,null,null,null,"Sütçü, Dişi, Orta Laktasyon, Sağılıyor, Yüksek",{"$f":" 0.000871*BW^2 - 0.0699*BW + 4.2985","v":3.0887749999999996},{"$f":" -0.00025*BW^2 + 0.1255*BW + 2.84","v":8.9862500000000001},{"$f":" 0.00789*BW^2 + 5.67*BW + 275.23","v":610.94725000000005},{"$f":" 0.008573*BW^2 + 5.26*BW + 268.09","v":583.32332500000007},{"$f":" 0.0084*BW^2 + 4.98*BW + 259","v":558.31000000000006},{"$f":" 0.006433*BW^2 + 3.65*BW + 190.31","v":410.51982499999997},{"$f":" -0.007142*BW^2 + 3.26*BW + 66.629","v":224.32445000000001},{"$f":" 0.0008575*BW^2 - 0.042*BW + 23.189","v":23.4729375},{"$f":" 0.000357*BW^2 + 0.025*BW + 11.169","v":13.623925},null,null,null,null,null,null,null,null,null,null,null,null,null,null,20,"Çayır Salkım Otu (Bluegrass) Samanı ",93,1.6,6,4.2,2.4,null,0.2,0.1,40,78,45,2,1,0.1,1,50,90,1.1000000000000001,6,null,null,null,null,null,null,2,0,1]
[{"$f":"Keçi!A23","v":0},{"$f":"Keçi!B23","v":0},{"$f":"Keçi!C23","v":0},{"$f":"Keçi!D23","v":0},{"$f":"Keçi!E23","v":0},{"$f":"Keçi!F24","v":0},"Kuru Madde, kg",{"$f":"VLOOKUP(Keci,KeciReqs,2,FALSE)","v":1.8554950000000001},null,"Tipi :",null,"Dişi",null,null,null,null,null,null,null,"Yüksek",null,null,null,{"$f":"Keçi!B23","v":0},0,0,0,0,0,0,0,0,0,0,0,null,null,null,null,null,null,null,null,null,null,null,null,null,null,null,null,null,"Sütçü, Dişi, Geç Laktasyon, Tek, ",{"$f":" -0.0000535*BW^2 + 0.0276*BW + 0.3207","v":1.6768624999999999},{"$f":" -0.000098*BW^2 + 0.0521*BW + 0.6405","v":3.2095499999999997},{"$f":" -0.00511*BW^2 + 2.4107*BW + 35.548","v":152.67874999999998},{"$f":" -0.004167*BW^2+ 2.2179*BW + 36.167","v":145.54632500000002},{"$f":" -0.00416*BW^2 + 2.1464*BW + 33.595","v":139.06299999999999},{"$f":" -0.00333*BW^2 + 1.6143*BW + 23.762","v":102.47525},{"$f":" -0.002379*BW^2 + 1.2857*BW + 16.524","v":80.041025000000019},{"$f":" -0.000119*BW^2 + 0.0436*BW + 3.919","v":5.9570249999999998},{"$f":" -0.00006*BW^2 + 0.0354*BW + 2.1881","v":3.9535999999999998},null,null,null,null,null,null,null,null,null,null,null,null,null,null,21,"Çayır Üçgülü (Clover Red) Kuru Otu",88,2,15,10.5,10.5,4.2,1.5,0.25,30,51,55,2.4,1.2,0.5,1.2,39,92,2.5,8,1.7,0.32,0.17,17,4,null,11,0,1]
[{"$f":"Keçi!A24","v":0},{"$f":"Keçi!B24","v":0},{"$f":"Keçi!C24","v":0},{"$f":"Keçi!D24","v":0},{"$f":"Keçi!E24","v":0},{"$f":"Keçi!F25","v":0},"Metabolik Enerji, Mcal",{"$f":"VLOOKUP(Keci,KeciReqs,3,FALSE)","v":3.5541999999999998},null,"Durumu :",null,"Erken Laktasyon",null,null,null,null,null,null,null,null,null,null,null,{"$f":"Keçi!B24","v":0},0,0,0,0,0,0,0,0,0,0,0,null,null,null,null,null,null,null,null,null,null,null,null,null,null,null,null,null,"Sütçü, Dişi, Geç Laktasyon, İkiz, ",{"$f":" -0.0000565*BW^2 + 0.0319*BW + 0.5051","v":2.0886874999999998},{"$f":" -0.0001063*BW^2 + 0.0607*BW + 0.9766","v":3.9935424999999998},{"$f":" -0.0066*BW^2 + 3.2504*BW + 61.736","v":220.54299999999998},{"$f":" -0.006785*BW^2 + 3.165*BW + 56.757","v":210.30737499999998},{"$f":" -0.00589*BW^2 + 2.9546*BW + 56.564","v":201.24975000000001},{"$f":" -0.005*BW^2 + 2.2529*BW + 39.314","v":148.0985},{"$f":" -0.002498*BW^2 + 1.4764*BW + 26.157","v":99.802549999999997},{"$f":" 0.0346*BW + 7.7029","v":9.6059000000000001},{"$f":" 0.0329*BW + 4.2143","v":6.0237999999999996},null,null,null,null,null,null,null,null,null,null,null,null,null,null,22,"Domuz Ayrığı (Orchardgrass) Kuru Otu",88,2.1,10,7,6,2.7,0.32,0.3,34,67,59,2.6,1.3,0.6,1.3,40,98,3.3,8,2.6,0.41,0.2,26,4.4000000000000004,191,11,0,1]
[{"$f":"Keçi!A25","v":0},{"$f":"Keçi!B25","v":0},{"$f":"Keçi!C25","v":0},{"$f":"Keçi!D25","v":0},{"$f":"Keçi!E25","v":0},{"$f":"Keçi!F26","v":0},"Ham Protein, g",{"$f":"(VLOOKUP(Keci,KeciReqs,4,FALSE)+VLOOKUP(Keci,KeciReqs,5,FALSE))/2","v":199.22750124999999},null,"Yavru Sayısı :",null,"Tek",null,null,null,null,null,null,null,null,null,null,null,{"$f":"Keçi!B25","v":0},0,{"$f":"IF($X25=0,0,VLOOKUP($B25,$BZ$3:$DB$533,Z$1,FALSE))","v":0},0,0,0,0,0,0,0,0,0,null,null,null,null,null,null,null,null,null,null,null,null,null,null,null,null,null,"Sütçü, Dişi, Geç Laktasyon, Üçüz, ",{"$f":" -0.00005*BW^2 + 0.0345*BW + 0.76","v":2.5062500000000005},{"$f":" -0.000114*BW^2 + 0.0686*BW + 1.3629","v":4.7910499999999994},{"$f":" -0.0064*BW^2 + 3.83*BW + 97.486","v":288.77600000000001},{"$f":" -0.005*BW^2 + 3.51*BW + 97.8","v":275.72499999999997},{"$f":" -0.00714*BW^2 + 3.68*BW + 82.829","v":263.63049999999998},{"$f":" -0.004284*BW^2 + 2.56*BW + 66.457","v":194.2979},{"$f":" -0.00214*BW^2 + 1.61*BW + 37.629","v":119.7055},{"$f":" -0.000142*BW^2 + 0.058*BW + 10.549","v":13.30945},{"$f":" -0.000142*BW^2+ 0.058*BW + 5.3486","v":8.1090499999999999},null,null,null,null,null,null,null,null,null,null,null,null,null,null,23,"Fiğ Kuru Otu",89,2.1,18,12.6,13.2,2.5,1.25,0.34,30,48,58,2.6,1.3,0.6,1.3,33,92,1.8,8,2.4,null,0.13,null,92.2,null,6,0,1]
[{"$f":"Keçi!A26","v":0},{"$f":"Keçi!B26","v":0},{"$f":"Keçi!C26","v":0},{"$f":"Keçi!D26","v":0},{"$f":"Keçi!E26","v":0},{"$f":"Keçi!F22","v":0},"Metabolik Protein,g",null,"MP","Süt Verimi Düzeyi :",null,"",null,null,null,null,null,null,null,"Oğlak seçenekleri",null,null,null,{"$f":"Keçi!B26","v":0},0,0,0,0,0,0,0,0,0,0,0,null,null,null,null,null,null,null,null,null,null,null,null,null,null,null,null,null,"Sütçü, Dişi, Geç Laktasyon, Sağılıyor, Düşük",{"$f":" -0.0000715*BW^2 + 0.0414*BW + 0.8503","v":2.9110125},{"$f":" -0.00015*BW^2+ 0.0811*BW + 1.562","v":5.5687500000000005},{"$f":" -0.00925*BW^2 + 4.89*BW + 114.86","v":355.82875000000001},{"$f":" -0.00857*BW^2 + 4.62*BW + 111.51","v":339.68574999999998},{"$f":" -0.00857*BW^2 + 4.46*BW + 105.71","v":325.08575000000002},{"$f":" -0.00714*BW^2+ 3.4*BW + 73.829","v":239.23050000000001},{"$f":" -0.002855*BW^2 + 1.9*BW + 43.171","v":139.03462500000001},{"$f":" -0.000214*BW^2 + 0.075*BW+ 13.483","v":16.960650000000001},{"$f":" -0.000071*BW^2 + 0.053*BW + 7.5143","v":10.214525},null,null,null,null,null,null,null,null,null,null,null,null,null,null,24,"Kamışsı Yumak Kuru Otu, Olgun",88,1.9,11,7.7,6.9,3.3,0.45,0.26,30,73,52,2.2999999999999998,1.1000000000000001,0.4,1.1000000000000001,42,98,5,6,1.7,null,0.14000000000000001,22,null,null,10,0,1]
[{"$f":"Keçi!A27","v":0},{"$f":"Keçi!B27","v":0},{"$f":"Keçi!C27","v":0},{"$f":"Keçi!D27","v":0},{"$f":"Keçi!E27","v":0},{"$f":"Keçi!F27","v":0},"Rumende Yıkılabilir Protein,g",null,"DIP","Canlı Ağırlık :",null,55,"kg",null,null,null,null,null,null,"Dişi",null,null,null,{"$f":"Keçi!B27","v":0},0,0,0,0,0,0,0,0,0,0,0,null,null,null,null,null,null,null,null,null,null,null,null,null,null,null,null,null,"Sütçü, Dişi, Geç Laktasyon, Sağılıyor, Orta",{"$f":" -0.0001*BW^2+ 0.049*BW + 0.94","v":3.3325},{"$f":" -0.000178*BW^2 + 0.0919*BW + 1.562","v":6.0780500000000002},{"$f":" -0.01425*BW^2 + 6.16*BW + 129.06","v":424.75375000000003},{"$f":" -0.01357*BW^2 + 5.87*BW + 123.51","v":405.31074999999998},{"$f":" -0.01071*BW^2 + 5.29*BW + 129.54","v":388.09224999999992},{"$f":" -0.007855*BW^2 + 3.89*BW + 95.371","v":285.55962500000004},{"$f":" -0.00357*BW^2 + 2.17*BW + 50.514","v":159.06475},{"$f":" -0.000142*BW^2 + 0.068*BW + 17.349","v":20.65945},{"$f":" -0.000071*BW^2 + 0.057*BW + 9.4343","v":12.354525000000001},null,null,null,null,null,null,null,null,null,null,null,null,null,null,25,"Kamışsı Yumak Samanı",94,1.6,4,2.8,0.6,null,0,0.06,41,null,43,1.9,1,0,0.9,null,null,1.1000000000000001,6,null,null,null,null,null,null,3,0,1]
[{"$f":"Keçi!A28","v":0},{"$f":"Keçi!B28","v":0},{"$f":"Keçi!C28","v":0},{"$f":"Keçi!D28","v":0},{"$f":"Keçi!E28","v":0},{"$f":"Keçi!F28","v":0},"Rumende Yıkımlanmayan Protein,g",null,"RUP","Canlı Ağırlık Artışı :",null,null,"g/gün",null,null,null,null,null,null,"Erkek",null,null,null,{"$f":"Keçi!B28","v":0},0,0,0,0,0,0,0,0,0,0,0,null,null,null,null,null,null,null,null,null,null,null,null,null,null,null,null,null,"Sütçü, Dişi, Geç Laktasyon, Sağılıyor, Yüksek",{"$f":"  - 0.00009*BW^2 + 0.0515*BW + 1.1966","v":3.75685},{"$f":" -0.0002*BW^2 + 0.1018*BW + 2.164","v":7.1579999999999995},{"$f":" - 0.0171*BW^2 + 7.18*BW + 149.23","v":492.40249999999992},{"$f":" -0.052856*BW^2 + 12.48*BW - 70.629","v":455.88159999999993},{"$f":" -0.05*BW^2 + 11.86*BW - 64.8","v":436.24999999999994},{"$f":" -0.035*BW^2+ 8.47*BW - 38.6","v":321.375},{"$f":" -0.005712*BW^2 + 2.64*BW + 50.543","v":178.46420000000001},{"$f":" -0.0015*BW^2 + 0.283*BW + 12.8","v":23.827499999999997},{"$f":" -0.001428*BW^2 + 0.27*BW + 3.3857","v":13.916},null,null,null,null,null,null,null,null,null,null,null,null,null,null,26,"Kır Ayrığı (Wheatgrass) Kuru Otu",92,2,10,7,6,3.3,0.33,0.2,33,65,54,2.4,1.2,0.4,1.2,36,98,2.4,7,2,null,null,32,null,null,11,0,1]
[{"$f":"Keçi!A29","v":0},{"$f":"Keçi!B29","v":0},{"$f":"Keçi!C29","v":0},{"$f":"Keçi!D29","v":0},{"$f":"Keçi!E29","v":0},{"$f":"Keçi!F29","v":0},"Ca, g",{"$f":"VLOOKUP(Keci,KeciReqs,9,FALSE)","v":6.2082250000000005},null,"Tiftik Verimi :",null,null,"kg/yıl",null,null,null,null,null,null,"Kastre Erkek",null,null,null,{"$f":"Keçi!B29","v":0},0,0,0,0,0,0,0,0,0,0,0,null,null,null,null,null,null,null,null,null,null,null,null,null,null,null,null,null,"Sütçü, Erkek, Yaşama Payı, , ",{"$f":" -0.0000219*BW^2 + 0.0216*BW + 0.338","v":1.4597525000000002},{"$f":" -0.000043*BW^2+ 0.0418*BW + 0.612","v":2.7809249999999999},{"$f":" -0.001372*BW^2 + 1.3623*BW + 21.4","v":92.176199999999994},{"$f":" -0.001257*BW^2 + 1.2874*BW + 21","v":88.004575000000003},{"$f":" -0.001257*BW^2 + 1.2474*BW + 19","v":83.804575},{"$f":" -0.000913*BW^2 + 0.9109*BW + 14.8","v":62.137675000000002},{"$f":" -0.001256*BW^2 + 1.0714*BW + 14.6","v":69.727599999999995},{"$f":" -0.000023*BW^2 + 0.0286*BW + 1.02","v":2.523425},{"$f":" -0.000023*BW^2 + 0.0278*BW + 0.66","v":2.1194250000000001},null,null,null,null,null,null,null,null,null,null,null,null,null,null,27,"Korunga Kuru Otu",88,2.2000000000000002,14,9.8000000000000007,9.6,8.4,null,null,24,null,61,2.7,1.4,0.7,1.4,null,null,3.1,9,null,null,null,null,null,null,11,0,1]
[{"$f":"Keçi!A30","v":0},{"$f":"Keçi!B30","v":0},{"$f":"Keçi!C30","v":0},{"$f":"Keçi!D30","v":0},{"$f":"Keçi!E30","v":0},{"$f":"Keçi!F30","v":0},"P, g",{"$f":"VLOOKUP(Keci,KeciReqs,10,FALSE)","v":4.1780249999999999},null,null,null,null,null,null,null,null,null,null,null,null,null,null,null,{"$f":"Keçi!B30","v":0},0,0,0,0,0,0,0,0,0,0,0,null,null,null,null,null,null,null,null,null,null,null,null,null,null,null,null,null,"Sütçü, Erkek, Flaşing, , ",{"$f":" -0.000025*BW^2 + 0.0241*BW + 0.352","v":1.6018749999999997},{"$f":" -0.000047*BW^2 + 0.0458*BW + 0.68","v":3.0568250000000003},{"$f":" -0.001715*BW^2 + 1.5389*BW + 21.6","v":101.051625},{"$f":" -0.0016*BW^2 + 1.456*BW + 21.4","v":96.639999999999986},{"$f":" -0.0016*BW^2 + 1.408*BW + 19.8","v":92.399999999999991},{"$f":" -0.001142*BW^2 + 1.0366*BW + 14.2","v":67.758449999999996},{"$f":" -0.001256*BW^2 + 1.1594*BW + 16.2","v":76.167599999999993},{"$f":" -0.0000345*BW^2 + 0.0329*BW + 1.04","v":2.7451375000000002},{"$f":" -0.000045*BW^2 + 0.0347*BW + 0.5","v":2.2723750000000003},null,null,null,null,null,null,null,null,null,null,null,null,null,null,28,"Köpekdişi (Bermudagrass) Kuru Otu ",89,2,10,7,6,2,0.47,0.21,30,73,56,2.5,1.2,0.5,1.2,36,98,2.1,6,1.5,null,0.22,16,21,null,11,0,1,null,"Mısır, Tane"]
[null,null,null,null,null,null,"VitA,RE",{"$f":"VLOOKUP(Keci,KeciReqs,11,FALSE)","v":0},null,null,null,null,null,null,null,null,null,null,null,null,null,null,null,null,null,null,null,null,null,null,null,null,null,null,null,null,null,null,null,null,null,null,null,null,null,null,null,null,null,null,null,null,"Sütçü, Oğlak, Dişi, , ",{"$f":"IF(BW<15,(0.0000027*ADG^2+0.0007*ADG+0.3119),IF(BW<20,(0.000007*ADG^2-0.0008*ADG+0.54),IF(BW<25,(0.000003*ADG^2-0.00085*ADG+0.7263),IF(BW<30,(0.000008*ADG^2-0.0006*ADG+0.8347),IF(BW<35,(0.00000053*ADG^2+0.00003*ADG+0.9506),IF(BW<40,(0.0000062*ADG^2-0.0005*ADG+1.0683),(0.000006*ADG^2-0.0006*ADG+1.1792) ))))))","v":1.1792},{"$f":"(-0.000229*BW^2+0.0553*BW+0.1949) +ADG*0.0055148","v":2.5436749999999999},{"$f":"IF(BW<15,(0.000022*ADG^2+0.4267*ADG+25.748),IF(BW<20,(-0.000019*ADG^2+0.4341*ADG+35.043),IF(BW<25,(-0.0000032*ADG^2+0.4336*ADG+43.016),IF(BW<30,(0.0000044*ADG^2+0.4301*ADG+51.099),IF(BW<35,(0.0000049*ADG^2+0.4291*ADG+58.725),IF(BW<40,(0.0000116*ADG^2+0.4269*ADG+66.119),(0.0000042*ADG^2+0.4305*ADG+72.67) ))))))","v":72.67},{"$f":"IF(BW<15,(0.0000193*ADG^2+0.4059*ADG+24.957),IF(BW<20,(0.0000414*ADG^2+0.4048*ADG+33.338),IF(BW<25,(-0.0000004*ADG^2+0.4119*ADG+41.237),IF(BW<30,(0.00000185*ADG^2+0.4117*ADG+48.878),IF(BW<35,(-0.00001128*ADG^2+0.4144*ADG+55.826),IF(BW<40,(-0.00001125*ADG^2+0.4144*ADG+62.826),(-0.00001085*ADG^2+0.4148*ADG+69.326) ))))))","v":69.325999999999993},{"$f":"IF(BW<15,(-0.000062*ADG^2+0.4085*ADG+22.914),IF(BW<20,(0.000045*ADG^2+0.3856*ADG+32.128),IF(BW<25,(-0.000029*ADG^2+0.4028*ADG+38.994),IF(BW<30,(-0.0000008*ADG^2+0.3933*ADG+46.66),IF(BW<35,(-0.00001*ADG^2+0.3988*ADG+53.08),IF(BW<40,(0.000002*ADG^2+0.3939*ADG+59.979),(0.00001*ADG^2+0.393*ADG+66.14) ))))))","v":66.14},{"$f":"IF(BW<15,(-0.00002*ADG^2+0.2933*ADG+17.252),IF(BW<20,(-0.00002*ADG^2+0.2933*ADG+23.252),IF(BW<25,(0.000002*ADG^2+0.2917*ADG+28.878),IF(BW<30,(0.000007*ADG^2+0.2884*ADG+34.321),IF(BW<35,(-0.000005*ADG^2+0.2909*ADG+39.275),IF(BW<40,(-0.00001*ADG^2+0.2944*ADG+43.826),(0.000008*ADG^2+0.2874*ADG+48.95) ))))))","v":48.95},{"$f":"IF(BW<15,(0.0000023*ADG^2+0.1408*ADG+17.791),IF(BW<20,(-0.0000021*ADG^2+0.1392*ADG+24.209),IF(BW<25,(0.0000025*ADG^2+0.1384*ADG+30.222),IF(BW<30,(0.0000314*ADG^2+0.1289*ADG+35.883),IF(BW<35,(-0.0000273*ADG^2+0.1454*ADG+40.737),IF(BW<40,(-0.0000273*ADG^2+0.1454*ADG+45.737),(0.0000063*ADG^2+0.1348*ADG+50.915) ))))))","v":50.914999999999999},{"$f":"IF(BW<15,(0.000006*ADG^2+0.0251*ADG+0.9295),IF(BW<20,(0.000017*ADG^2+0.0219*ADG+1.2719),IF(BW<25,(0.000001*ADG^2+0.0245*ADG+1.487),IF(BW<30,(-0.000005*ADG^2+0.0259*ADG+1.6202),IF(BW<35,(-0.0000018*ADG^2+0.0254*ADG+1.8099),IF(BW<40,(-0.0000089*ADG^2+0.0277*ADG+1.9607),(0.0000033*ADG^2+0.0249*ADG+2.1767) ))))))","v":2.1766999999999999},{"$f":"IF(BW<15,(-0.0000017*ADG^2+0.0114*ADG+0.5043),IF(BW<20,(0.0000123*ADG^2+0.0074*ADG+0.8591),IF(BW<25,(0.00000395*ADG^2+0.0087*ADG+1.0777),IF(BW<30,(-0.00000555*ADG^2+0.0109*ADG+1.2103),IF(BW<35,(-0.0000017*ADG^2+0.0101*ADG+1.4065),IF(BW<40,(-0.00000905*ADG^2+0.0123*ADG+1.5628),(0.00000495*ADG^2+0.0092*ADG+1.7665) ))))))","v":1.7665},null,null,null,null,null,null,null,null,null,null,null,null,null,null,29,"Köpekdişi (Bermudagrass) Kuru Otu ",89,1.9,10,7,6,1.8,0.46,0.2,30,78,53,2.2999999999999998,1.2,0.4,1.2,39,98,1.9,8,1.5,null,0.25,33,11.6,null,11,0,1]
[null,null,null,null,null,null,"VitE,IU",{"$f":"VLOOKUP(Keci,KeciReqs,12,FALSE)","v":0},null,null,null,null,null,null,null,null,null,null,null,"Keçinin durumu",null,null,null,"TOPLAM",{"$f":"SUM(Y35:Y60)","v":1.6220000000000001},{"$f":"SUM(Z35:Z60)","v":1.9300000000000002},3.7010400000000003,200.95160000000001,139.62200000000001,96.714000000000013,34.180000000000007,13.497600000000002,4.2618000000000009,0.62938600000000011,1.1558600000000001,null,null,null,null,null,null,null,null,null,null,null,null,null,null,null,null,null,"Sütçü, Oğlak, Kastre Erkek, , ",{"$f":"IF(BW<15,(0.0000027*ADG^2+0.0007*ADG+0.3119),IF(BW<20,(0.000007*ADG^2-0.0008*ADG+0.54),IF(BW<25,(0.000003*ADG^2-0.00085*ADG+0.7263),IF(BW<30,(0.000008*ADG^2-0.0006*ADG+0.8347),IF(BW<35,(0.00000053*ADG^2+0.00003*ADG+0.9506),IF(BW<40,(0.0000062*ADG^2-0.0005*ADG+1.0683),(0.000006*ADG^2-0.0006*ADG+1.1792) ))))))","v":1.1792},{"$f":"(-0.000229*BW^2+0.0553*BW+0.1949) +ADG*0.0055148","v":2.5436749999999999},{"$f":"IF(BW<15,(0.000022*ADG^2+0.4267*ADG+25.748),IF(BW<20,(-0.000019*ADG^2+0.4341*ADG+35.043),IF(BW<25,(-0.0000032*ADG^2+0.4336*ADG+43.016),IF(BW<30,(0.0000044*ADG^2+0.4301*ADG+51.099),IF(BW<35,(0.0000049*ADG^2+0.4291*ADG+58.725),IF(BW<40,(0.0000116*ADG^2+0.4269*ADG+66.119),(0.0000042*ADG^2+0.4305*ADG+72.67) ))))))","v":72.67},{"$f":"IF(BW<15,(0.0000193*ADG^2+0.4059*ADG+24.957),IF(BW<20,(0.0000414*ADG^2+0.4048*ADG+33.338),IF(BW<25,(-0.0000004*ADG^2+0.4119*ADG+41.237),IF(BW<30,(0.00000185*ADG^2+0.4117*ADG+48.878),IF(BW<35,(-0.00001128*ADG^2+0.4144*ADG+55.826),IF(BW<40,(-0.00001125*ADG^2+0.4144*ADG+62.826),(-0.00001085*ADG^2+0.4148*ADG+69.326) ))))))","v":69.325999999999993},{"$f":"IF(BW<15,(-0.000062*ADG^2+0.4085*ADG+22.914),IF(BW<20,(0.000045*ADG^2+0.3856*ADG+32.128),IF(BW<25,(-0.000029*ADG^2+0.4028*ADG+38.994),IF(BW<30,(-0.0000008*ADG^2+0.3933*ADG+46.66),IF(BW<35,(-0.00001*ADG^2+0.3988*ADG+53.08),IF(BW<40,(0.000002*ADG^2+0.3939*ADG+59.979),(0.00001*ADG^2+0.393*ADG+66.14) ))))))","v":66.14},{"$f":"IF(BW<15,(-0.00002*ADG^2+0.2933*ADG+17.252),IF(BW<20,(-0.00002*ADG^2+0.2933*ADG+23.252),IF(BW<25,(0.000002*ADG^2+0.2917*ADG+28.878),IF(BW<30,(0.000007*ADG^2+0.2884*ADG+34.321),IF(BW<35,(-0.000005*ADG^2+0.2909*ADG+39.275),IF(BW<40,(-0.00001*ADG^2+0.2944*ADG+43.826),(0.000008*ADG^2+0.2874*ADG+48.95) ))))))","v":48.95},{"$f":"IF(BW<15,(0.0000023*ADG^2+0.1408*ADG+17.791),IF(BW<20,(-0.0000021*ADG^2+0.1392*ADG+24.209),IF(BW<25,(0.0000025*ADG^2+0.1384*ADG+30.222),IF(BW<30,(0.0000314*ADG^2+0.1289*ADG+35.883),IF(BW<35,(-0.0000273*ADG^2+0.1454*ADG+40.737),IF(BW<40,(-0.0000273*ADG^2+0.1454*ADG+45.737),(0.0000063*ADG^2+0.1348*ADG+50.915) ))))))","v":50.914999999999999},{"$f":"IF(BW<15,(0.000006*ADG^2+0.0251*ADG+0.9295),IF(BW<20,(0.000017*ADG^2+0.0219*ADG+1.2719),IF(BW<25,(0.000001*ADG^2+0.0245*ADG+1.487),IF(BW<30,(-0.000005*ADG^2+0.0259*ADG+1.6202),IF(BW<35,(-0.0000018*ADG^2+0.0254*ADG+1.8099),IF(BW<40,(-0.0000089*ADG^2+0.0277*ADG+1.9607),(0.0000033*ADG^2+0.0249*ADG+2.1767) ))))))","v":2.1766999999999999},{"$f":"IF(BW<15,(-0.0000017*ADG^2+0.0114*ADG+0.5043),IF(BW<20,(0.0000123*ADG^2+0.0074*ADG+0.8591),IF(BW<25,(0.00000395*ADG^2+0.0087*ADG+1.0777),IF(BW<30,(-0.00000555*ADG^2+0.0109*ADG+1.2103),IF(BW<35,(-0.0000017*ADG^2+0.0101*ADG+1.4065),IF(BW<40,(-0.00000905*ADG^2+0.0123*ADG+1.5628),(0.00000495*ADG^2+0.0092*ADG+1.7665) ))))))","v":1.7665},null,null,null,null,null,null,null,null,null,null,null,null,null,null,30,"Köpekdişi (Bermudagrass), Kurutulmuş",90,2.2000000000000002,16,11.2,11.4,6.4,0.4,0.25,26,40,62,2.7,1.4,0.7,1.4,29,10,3.8,7,1.8,null,0.23,18,null,null,11,0,1]
[null,null,null,null,null,null,"Na,g",{"$f":"VLOOKUP(Keci,KeciReqs,13,FALSE)","v":0},null,null,null,null,null,null,null,null,null,null,null,"Yaşama Payı",null,null,null,"HESAPLAMALAR","KabaY","KM","ME","HP","MP","DIP","RUP","Ca","P","HS","NDF",null,null,null,null,null,null,null,null,null,null,null,null,null,null,null,null,null,"Sütçü, Oğlak, Erkek, , ",{"$f":"IF(BW<15,(0.0000034*ADG^2+0.0007*ADG+0.3297),IF(BW<20,(0.0000037*ADG^2+0.0003*ADG+0.4899),IF(BW<25,(0.00001*ADG^2-0.00188*ADG+0.7394),IF(BW<30,(0.000005*ADG^2-0.0009*ADG+0.8673),IF(BW<35,(0.0000031*ADG^2-0.001*ADG+1.1168),IF(BW<40,(-0.00000097*ADG^2+0.0002*ADG+1.2165),(-0.00000014*ADG^2+0.0003*ADG+1.3228) ))))))","v":1.3228},{"$f":"(-0.00028*BW^2+0.0647*BW+0.2264) +ADG*0.00551852","v":2.9378999999999995},{"$f":"IF(BW<15,(0.0000216*ADG^2+0.4267*ADG+25.748),IF(BW<20,(-0.0000193*ADG^2+0.4341*ADG+35.043),IF(BW<25,(-0.00000335*ADG^2+0.4336*ADG+43.016),IF(BW<30,(0.0000043*ADG^2+0.4301*ADG+51.099),IF(BW<35,(0.00000485*ADG^2+0.4291*ADG+58.725),IF(BW<40,(0.0000115*ADG^2+0.4269*ADG+66.119),(0.00000465*ADG^2+0.4305*ADG+72.67) ))))))","v":72.67},{"$f":"IF(BW<15,(0.0000193*ADG^2+0.4059*ADG+24.957),IF(BW<20,(0.0000414*ADG^2+0.4048*ADG+33.338),IF(BW<25,(-0.0000004*ADG^2+0.4119*ADG+41.237),IF(BW<30,(0.00000185*ADG^2+0.4117*ADG+48.878),IF(BW<35,(-0.00001128*ADG^2+0.4144*ADG+55.826),IF(BW<40,(-0.00001125*ADG^2+0.4144*ADG+62.826),(-0.00001085*ADG^2+0.4148*ADG+69.326) ))))))","v":69.325999999999993},{"$f":"IF(BW<15,(-0.000062*ADG^2+0.4085*ADG+22.914),IF(BW<20,(0.000045*ADG^2+0.3856*ADG+32.128),IF(BW<25,(-0.000029*ADG^2+0.4028*ADG+38.994),IF(BW<30,(-0.0000008*ADG^2+0.3933*ADG+46.66),IF(BW<35,(-0.00001*ADG^2+0.3988*ADG+53.08),IF(BW<40,(0.000002*ADG^2+0.3939*ADG+59.979),(0.00001*ADG^2+0.393*ADG+66.14) ))))))","v":66.14},{"$f":"IF(BW<15,(-0.00002*ADG^2+0.2933*ADG+17.252),IF(BW<20,(-0.00002*ADG^2+0.2933*ADG+23.252),IF(BW<25,(0.000002*ADG^2+0.2917*ADG+28.878),IF(BW<30,(0.000007*ADG^2+0.2884*ADG+34.321),IF(BW<35,(-0.000005*ADG^2+0.2909*ADG+39.275),IF(BW<40,(-0.00001*ADG^2+0.2944*ADG+43.826),(0.000008*ADG^2+0.2874*ADG+48.95) ))))))","v":48.95},{"$f":"IF(BW<15,(-0.00006*ADG^2+0.1493*ADG+20.705),IF(BW<20,(-0.000002*ADG^2+0.1392*ADG+28.209),IF(BW<25,(0.0000027*ADG^2+0.1384*ADG+35.222),IF(BW<30,(0.0000316*ADG^2+0.1289*ADG+41.883),IF(BW<35,(0.0000228*ADG^2+0.1307*ADG+47.848),IF(BW<40,(0.0000228*ADG^2+0.1307*ADG+53.848),(-0.0000212*ADG^2+0.1431*ADG+59.131) ))))))","v":59.131},{"$f":"IF(BW<15,(0.0000002*ADG^2+0.0261*ADG+0.9791),IF(BW<20,(0.000011*ADG^2+0.0238*ADG+1.2005),IF(BW<25,(0.0000125*ADG^2+0.0222*ADG+1.5205),IF(BW<30,(0.0000055*ADG^2+0.0235*ADG+1.6873),IF(BW<35,(0.0000049*ADG^2+0.0229*ADG+2.0622),IF(BW<40,(-0.0000016*ADG^2+0.0248*ADG+2.2078),(-0.00000085*ADG^2+0.0251*ADG+2.325) ))))))","v":2.3250000000000002},{"$f":"IF(BW<15,(0.0000092*ADG^2+0.0093*ADG+0.5838),IF(BW<20,(0.0000024*ADG^2+0.01*ADG+0.8171),IF(BW<25,(0.0000125*ADG^2+0.0069*ADG+1.1189),IF(BW<30,(0.0000054*ADG^2+0.0082*ADG+1.3217),IF(BW<35,(0.00000485*ADG^2+0.0076*ADG+1.6466),IF(BW<40,(-0.00000375*ADG^2+0.0103*ADG+1.742),(-0.000001*ADG^2+0.0097*ADG+1.9271) ))))))","v":1.9271},null,null,null,null,null,null,null,null,null,null,null,null,null,null,31,"Kudzu Kuru Otu",90,2,16,11.2,11.4,null,3,0.23,33,null,54,2.4,1.2,0.4,1.2,null,null,2.6,7,null,null,null,null,null,null,11,0,1]
[null,null,null,null,null,null,"Cl,g",{"$f":"VLOOKUP(Keci,KeciReqs,14,FALSE)","v":0},null,null,null,null,null,null,null,null,null,null,null,"Flaşing",null,null,null,null,null,null,null,null,null,null,null,null,null,null,null,null,null,null,null,null,null,null,null,null,null,null,null,null,null,null,null,null,"Sütçü Olmayan, Dişi, Yaşama Payı, , ",{"$f":" -0.0000388*BW^2 + 0.019*BW + 0.1404","v":1.06803},{"$f":" -0.000069*BW^2+ 0.0359*BW + 0.2776","v":2.0433750000000002},{"$f":" -0.002678*BW^2 + 1.353*BW + 10.47","v":76.784049999999993},{"$f":" -0.002203*BW^2 + 1.2506*BW + 11.161","v":73.279925000000006},{"$f":" -0.002435*BW^2 + 1.2363*BW + 9.5417","v":70.172325000000001},{"$f":" -0.0022*BW^2 + 0.9506*BW + 6.1607","v":51.788699999999999},{"$f":" -0.001367*BW^2 + 0.8589*BW + 7.494","v":50.598325000000003},{"$f":" -0.0000889*BW^2+ 0.0304*BW + 0.6065","v":2.0095774999999998},{"$f":" -0.000095*BW^2 + 0.0305*BW + 0.2119","v":1.602025},null,null,null,null,null,null,null,null,null,null,null,null,null,null,32,"Mısır Bitkisi, Peletlenmiş",91,2.2999999999999998,9,6.3,5.0999999999999996,4.0999999999999996,0.5,0.24,21,40,63,2.8,1.4,0.7,1.4,24,6,2.4,6,0.9,null,0.14000000000000001,null,null,null,20,0,1]
[null,null,null,null,null,null,"K,g",{"$f":"VLOOKUP(Keci,KeciReqs,15,FALSE)","v":0},null,null,null,null,null,null,null,null,null,null,null,"Erken Gebelik",null,null,null,{"$f":"X5","v":"Buğday Samanı"},{"$f":"IF(X5=0,0,IF(OR(A5=1,A5=2)=TRUE,Z35,0))","v":0.91},{"$f":"IF($X5=0,0,IF(ISERROR(Y5*Z5/100)=TRUE,0,Y5*Z5/100))","v":0.91},{"$f":"IF($X5=0,0,IF(ISERROR(Z35*AA5)=TRUE,0,Z35*AA5))","v":1.365},{"$f":"IF($X5=0,0,IF(ISERROR(Z35*AB5*10)=TRUE,0,Z35*AB5*10))","v":27.3},{"$f":"IF($X5=0,0,IF(ISERROR(Z35*AC5*10)=TRUE,0,Z35*AC5*10))","v":19.110000000000003},{"$f":"IF($X5=0,0,IF(ISERROR(Z35*AD5*10)=TRUE,0,Z35*AD5*10))","v":2.7300000000000004},{"$f":"IF($X5=0,0,IF(ISERROR(Z35*AE5*10)=TRUE,0,Z35*AE5*10))","v":16.380000000000003},{"$f":"IF($X5=0,0,IF(ISERROR(Z35*AF5*10)=TRUE,0,Z35*AF5*10))","v":1.456},{"$f":"IF($X5=0,0,IF(ISERROR(Z35*AG5*10)=TRUE,0,Z35*AG5*10))","v":0.45500000000000007},{"$f":"IF($X5=0,0,IF(ISERROR(Z35*AH5/100)=TRUE,0,Z35*AH5/100))","v":0.39130000000000004},{"$f":"IF($X5=0,0,IF(ISERROR(Z35*AI5/100)=TRUE,0,Z35*AI5/100))","v":0.73710000000000009},null,null,null,null,null,null,null,null,null,null,null,null,null,null,null,null,null,"Sütçü Olmayan, Dişi, Flaşing, , ",{"$f":" -0.0000385*BW^2 + 0.0205*BW + 0.1615","v":1.1725375},{"$f":" -0.0000796*BW^2 + 0.04*BW + 0.2888","v":2.2480100000000003},{"$f":" -0.002975*BW^2+ 1.4845*BW + 11.917","v":84.565124999999995},{"$f":" -0.002975*BW^2 + 1.4321*BW + 10.798","v":80.564125000000004},{"$f":" -0.00291*BW^2 + 1.3839*BW + 9.8631","v":77.174849999999992},{"$f":" -0.001785*BW^2 + 0.9774*BW + 8.3333","v":56.690675000000006},{"$f":" -0.002022*BW^2+ 0.9988*BW + 7.25","v":56.067450000000008},{"$f":" -0.000018*BW^2 + 0.0252*BW + 0.7911","v":2.1226500000000001},{"$f":" -0.000048*BW^2 + 0.0267*BW + 0.3774","v":1.7007000000000001},null,null,null,null,null,null,null,null,null,null,null,null,null,null,33,"Mısır Kuru Otu",80,2.4,9,6.3,5.0999999999999996,4.0999999999999996,0.5,0.25,25,48,67,3,1.5,0.9,1.5,29,100,2.4,7,0.9,0.2,0.14000000000000001,null,526.4,null,2,0,1]
[null,null,null,null,null,null,"Mg,g",{"$f":"VLOOKUP(Keci,KeciReqs,16,FALSE)","v":0},null,null,null,null,null,null,null,null,null,null,null,"Geç Gebelik",null,null,null,{"$f":"X6","v":"Fiğ Kuru Otu"},{"$f":"IF(X6=0,0,IF(OR(A6=1,A6=2)=TRUE,Z36,0))","v":0.71200000000000008},0.71200000000000008,1.4952000000000003,128.16,{"$f":"IF($X6=0,0,IF(ISERROR(Z36*AC6*10)=TRUE,0,Z36*AC6*10))","v":89.712000000000018},{"$f":"IF($X6=0,0,IF(ISERROR(Z36*AD6*10)=TRUE,0,Z36*AD6*10))","v":93.984000000000009},{"$f":"IF($X6=0,0,IF(ISERROR(Z36*AE6*10)=TRUE,0,Z36*AE6*10))","v":17.800000000000004},8.9000000000000021,2.4208000000000003,0.21360000000000004,{"$f":"IF($X6=0,0,IF(ISERROR(Z36*AI6/100)=TRUE,0,Z36*AI6/100))","v":0.34176000000000001},null,null,null,null,null,null,null,null,null,null,null,null,null,null,null,null,null,"Sütçü Olmayan, Dişi, Erken Gebelik, Tek, ",{"$f":" -0.0000456*BW^2 + 0.0215*BW + 0.2019","v":1.2464599999999999},{"$f":" -0.000092*BW^2+ 0.0418*BW + 0.3696","v":2.3902999999999999},{"$f":" -0.005*BW^2 + 1.9697*BW + 21.083","v":114.2915},{"$f":" -0.00464*BW^2 + 1.8679*BW + 20.25","v":108.9485},{"$f":" -0.00422*BW^2 + 1.7613*BW + 19.756","v":103.86200000000001},{"$f":" -0.00339*BW^2 + 1.322*BW + 14.208","v":76.663250000000005},{"$f":" -0.002022*BW^2 + 1.0155*BW + 9.8333","v":59.569250000000004},{"$f":" -0.0000895*BW^2+ 0.0321*BW + 2.7149","v":4.2096625000000003},{"$f":" -0.000041*BW^2 + 0.0273*BW + 1.1827","v":2.5601750000000001},null,null,null,null,null,null,null,null,null,null,null,null,null,null,34,"Mısır Sapları",80,2.1,5,3.5,1.5,1.5,0.35,0.19,35,70,59,2.6,1.3,0.6,1.3,44,100,1.3,7,1.1000000000000001,0.3,0.14000000000000001,22,null,null,2,0,1]
[null,null,null,null,null,null,"S,g",{"$f":"VLOOKUP(Keci,KeciReqs,17,FALSE)","v":0},null,null,null,null,null,null,null,null,null,null,null,"Erken Laktasyon",null,null,null,"KOYUN SÜT YEMİ",0,0.308,0.84084000000000003,45.491599999999998,30.8,0,0,3.1415999999999999,1.3860000000000001,2.4485999999999997E-2,{"$f":"IF($X7=0,0,IF(ISERROR(Z37*AI7/100)=TRUE,0,Z37*AI7/100))","v":7.6999999999999999E-2},null,null,null,null,null,null,null,null,null,null,null,null,null,null,null,null,null,"Sütçü Olmayan, Dişi, Erken Gebelik, İkiz, ",{"$f":" -0.0000446*BW^2 + 0.0226*BW + 0.2327","v":1.3407849999999999},{"$f":" -0.000086*BW^2 + 0.0432*BW + 0.4518","v":2.5676500000000004},{"$f":" -0.004345*BW^2 + 2.1054*BW + 29.256","v":131.90937500000001},{"$f":" -0.004343*BW^2 + 2.0244*BW + 27.708","v":125.912425},{"$f":" -0.003925*BW^2+ 1.9226*BW + 26.452","v":120.32187500000001},{"$f":" -0.00333*BW^2 + 1.4571*BW + 18.69","v":88.757249999999999},{"$f":" -0.002022*BW^2+ 1.0631*BW + 11.714","v":64.067949999999996},{"$f":" -0.0000536*BW^2+ 0.0315*BW + 4.2708","v":5.8411600000000004},{"$f":" -0.0000716*BW^2 + 0.0305*BW + 1.8274","v":3.2883100000000001},null,null,null,null,null,null,null,null,null,null,null,null,null,null,35,"Nohut Samanı",90.4,1.45,5.4,null,2.5499999999999998,2.85,0.94,0.26,41,65.599999999999994,42,null,null,null,null,46.9,98,1,7.4,null,null,null,37,null,null,3,0,1]
[null,null,null,null,null,null,"Co,mg",{"$f":"VLOOKUP(Keci,KeciReqs,18,FALSE)","v":0},null,null,null,null,null,null,null,null,null,null,null,"Orta Laktasyon",null,null,null,0,0,0,0,0,0,0,0,0,0,0,0,null,null,null,null,null,null,null,null,null,null,null,null,null,null,null,null,null,"Sütçü Olmayan, Dişi, Erken Gebelik, Üçüz, ",{"$f":" -0.000036*BW^2 + 0.0219*BW + 0.3","v":1.3956},{"$f":" -0.0000755*BW^2 + 0.0429*BW + 0.5376","v":2.6687124999999998},{"$f":" -0.003928*BW^2 + 2.1536*BW + 35.5","v":142.0658},{"$f":" -0.00333*BW^2 + 2*BW + 35.619","v":135.54575},{"$f":" -0.00297*BW^2 + 1.8964*BW + 34.262","v":129.57974999999999},{"$f":" -0.00238*BW^2 + 1.4143*BW + 24.952","v":95.538999999999987},{"$f":" -0.001427*BW^2 + 1.0143*BW + 15.143","v":66.612825000000001},{"$f":" -0.0000945*BW^2 + 0.0364*BW + 5.5952","v":7.3113375000000005},{"$f":" -0.0000595*BW^2 + 0.0311*BW + 2.3452","v":3.8757125000000001},null,null,null,null,null,null,null,null,null,null,null,null,null,null,36,"Pamuk Çırçır Artığı",91,1.5,10,7,6,null,1.7,0.25,34,70,42,1.9,0.9,0,0.9,51,100,2,14,1.9,null,0.14000000000000001,25,null,null,8,0,1]
[null,null,null,null,null,null,"Cu,mg",{"$f":"VLOOKUP(Keci,KeciReqs,19,FALSE)","v":0},null,null,null,null,null,null,null,null,null,null,null,"Geç Laktasyon",null,null,null,0,0,0,0,0,0,0,0,0,0,0,0,null,null,null,null,null,null,null,null,null,null,null,null,null,null,null,null,null,"Sütçü Olmayan, Dişi, Geç Gebelik, Tek, ",{"$f":"  - 0.000005*BW^2 + 0.0206*BW + 0.2297","v":1.347575},{"$f":" -0.0001205*BW^2 + 0.0514*BW + 0.574","v":3.0364874999999998},{"$f":" -0.008987*BW^2 + 3.0875*BW + 24.22","v":166.846825},{"$f":" -0.00851*BW^2 + 2.9494*BW + 22.875","v":159.34924999999998},{"$f":" -0.008685*BW^2 + 2.8845*BW + 20.202","v":152.57737500000002},{"$f":" -0.006368*BW^2 + 2.1161*BW + 15.101","v":112.22329999999999},{"$f":" -0.00339*BW^2 + 1.322*BW + 13.208","v":75.663250000000005},{"$f":" -0.000131*BW^2 + 0.0461*BW + 2.456","v":4.5952250000000001},{"$f":" -0.0001367*BW^2 + 0.0471*BW + 0.7589","v":2.9358825000000004},null,null,null,null,null,null,null,null,null,null,null,null,null,null,37,"Parlak Yalancı Darı (Bahiagrass) Kuru Otu ",90,1.8,8,5.6,4.2,3,0.48,0.2,32,72,51,2.2000000000000002,1.1000000000000001,0.3,1.1000000000000001,41,98,1.9,8,1.4,null,0.21,null,36.6,null,9,0,1]
[null,null,null,null,null,null,"I,mg",{"$f":"VLOOKUP(Keci,KeciReqs,20,FALSE)","v":0},null,null,null,null,null,null,null,null,null,null,null,null,null,null,null,0,0,0,0,0,0,0,0,0,0,0,0,null,null,null,null,null,null,null,null,null,null,null,null,null,null,null,null,null,"Sütçü Olmayan, Dişi, Geç Gebelik, İkiz, ",{"$f":"  - 0.0000155*BW^2 + 0.0218*BW + 0.2661","v":1.4182125000000001},{"$f":" -0.000113*BW^2 + 0.0551*BW + 0.7402","v":3.4288749999999997},{"$f":" 0.000478*BW^2 + 2.5595*BW + 52.286","v":194.50444999999999},{"$f":" 0.000597*BW^2 + 2.4202*BW + 50.774","v":185.69092499999999},{"$f":" 0.00048*BW^2 + 2.331*BW + 47.857","v":177.51399999999998},{"$f":" -0.00036*BW^2 + 1.7131*BW + 35.512","v":128.64350000000002},{"$f":" -0.002677*BW^2 + 1.3673*BW + 18.435","v":85.538574999999994},{"$f":" 0.0002032*BW^2 + 0.0146*BW + 4.5512","v":5.9688799999999995},{"$f":" 0.000204*BW^2 + 0.0146*BW + 1.9512","v":3.3713000000000002},null,null,null,null,null,null,null,null,null,null,null,null,null,null,38,"Pirinç Kabukları",92,0.5,3,2.1,0.3,1.4,0.14000000000000001,7.0000000000000007E-2,44,81,13,0.6,0.8,0,0.2,70,90,0.9,20,0.5,0.08,0.08,24,null,null,5,0,1]
[null,null,null,null,null,null,"Fe,mg",{"$f":"VLOOKUP(Keci,KeciReqs,21,FALSE)","v":0},null,null,null,null,null,null,null,null,null,null,null,null,null,null,null,0,0,0,0,0,0,0,0,0,0,0,0,null,null,null,null,null,null,null,null,null,null,null,null,null,null,null,null,null,"Sütçü Olmayan, Dişi, Geç Gebelik, Üçüz, ",{"$f":" - 0.0000595*BW^2 + 0.028*BW + 0.1224","v":1.4824125000000001},{"$f":" -0.0000945*BW^2 + 0.0548*BW + 0.9169","v":3.6450375000000004},{"$f":" -0.005951*BW^2 + 3.2714*BW + 50.381","v":212.30622499999998},{"$f":" -0.00535*BW^2 + 3.0821*BW + 49.357","v":202.68875},{"$f":" -0.00452*BW^2+ 2.8786*BW + 48.952","v":193.602},{"$f":" -0.003807*BW^2 + 2.1714*BW + 34.81","v":142.72082499999999},{"$f":" -0.00238*BW^2 + 1.3786*BW + 22.095","v":90.718500000000006},{"$f":" -0.0000715*BW^2 + 0.0393*BW + 5.4","v":7.3452125000000006},{"$f":" -0.000094*BW^2 + 0.0421*BW + 1.881","v":3.9121500000000005},null,null,null,null,null,null,null,null,null,null,null,null,null,null,39,"Pirinç Samanı",91,1.4,4,2.8,0.6,null,0.25,0.08,40,72,40,1.8,0.9,0,0.8,55,100,1.4,12,1.1000000000000001,null,0.11,null,null,null,3.5,0,1]
[null,null,null,null,null,null,"Mn,mg",{"$f":"VLOOKUP(Keci,KeciReqs,22,FALSE)","v":0},null,null,null,null,null,null,null,null,null,null,null,"Tiftik keçisinin durumu",null,null,null,0,0,0,0,0,0,0,0,0,0,0,0,null,null,null,null,null,null,null,null,null,null,null,null,null,null,null,null,null,"Sütçü Olmayan, Dişi, Erken Laktasyon, Tek, ",{"$f":" -0.000055*BW^2 + 0.025*BW + 0.2517","v":1.4603250000000001},{"$f":" -0.000108*BW^2 + 0.0479*BW + 0.4813","v":2.7891000000000004},{"$f":" -0.006488*BW^2 + 2.6768*BW + 35.435","v":163.03280000000001},{"$f":" -0.006365*BW^2 + 2.5732*BW + 33.458","v":155.72987499999999},{"$f":" -0.00601*BW^2 + 2.4387*BW + 33.089","v":149.03725},{"$f":" -0.0047*BW^2+ 1.828*BW + 23.53","v":109.85250000000001},{"$f":" -0.0025*BW^2+ 1.1655*BW + 13.024","v":69.563999999999993},{"$f":" -0.000077*BW^2 + 0.0353*BW + 3.9208","v":5.6293749999999996},{"$f":" -0.0000763*BW^2 + 0.0336*BW + 2.0125","v":3.6296925},null,null,null,null,null,null,null,null,null,null,null,null,null,null,40,"Pirinç Samanı, Amonyakla muamele",87,1.6,9,6.3,5.0999999999999996,null,0.25,0.08,39,68,45,2,1,0.1,1,53,100,1.3,12,1.1000000000000001,null,0.11,null,null,null,4,0,1]
[null,null,null,null,null,null,"Se,mg",{"$f":"VLOOKUP(Keci,KeciReqs,23,FALSE)","v":0},null,null,null,null,null,null,null,null,null,null,null,"Yaşama Payı",null,null,null,0,0,0,0,0,0,0,0,0,0,0,0,null,null,null,null,null,null,null,null,null,null,null,null,null,null,null,null,null,"Sütçü Olmayan, Dişi, Erken Laktasyon, İkiz, ",{"$f":" -0.000056*BW^2 + 0.0266*BW + 0.347","v":1.6405999999999998},{"$f":" -0.0001075*BW^2 + 0.0511*BW + 0.6514","v":3.1367124999999998},{"$f":" 0.00143*BW^2 + 2.2071*BW + 82","v":207.71625},{"$f":" -0.007615*BW^2 + 3.1714*BW + 53.048","v":204.43962500000004},{"$f":" -0.007615*BW^2 + 3.0714*BW + 49.762","v":195.65362500000003},{"$f":" -0.005593*BW^2 + 2.2607*BW + 36.452","v":143.87167499999998},{"$f":" -0.002618*BW^2 + 1.2643*BW + 16.476","v":78.093050000000005},{"$f":" -0.0001425*BW^2 + 0.045*BW + 7","v":9.0439375000000002},{"$f":" -0.000083*BW^2 + 0.0368*BW + 3.669","v":5.4419250000000003},null,null,null,null,null,null,null,null,null,null,null,null,null,null,41,"Sarı Çiçekli Gazal Boynuzu (Birdsfoot) Kuru Otu",89,2.1,16,11.2,11.4,3.5,1.73,0.24,31,50,57,2.5,1.3,0.6,1.3,38,92,2.2000000000000002,8,1.8,null,0.25,28,null,null,8,0,1]
[null,null,null,null,null,null,"Zn,mg",{"$f":"VLOOKUP(Keci,KeciReqs,24,FALSE)","v":0},null,null,null,null,null,null,null,null,null,null,null,"Flaşing",null,null,null,0,0,0,0,0,0,0,0,0,0,0,0,null,null,null,null,null,null,null,null,null,null,null,null,null,null,null,null,null,"Sütçü Olmayan, Dişi, Erken Laktasyon, Üçüz, ",{"$f":" -0.000058*BW^2 + 0.0278*BW + 0.3683","v":1.7218499999999999},{"$f":" -0.000123*BW^2 + 0.0547*BW + 0.6567","v":3.2931249999999994},{"$f":" -0.01476*BW^2 + 4.5714*BW + 40.762","v":247.54},{"$f":" -0.014522*BW^2 + 4.4286*BW + 36.667","v":236.31095000000002},{"$f":" -0.01333*BW^2 + 4.1571*BW + 37.619","v":225.93624999999997},{"$f":" -0.009523*BW^2 + 3.0286*BW +28.524","v":166.28992500000001},{"$f":" -0.00357*BW^2 + 1.4286*BW + 14.429","v":82.202750000000009},{"$f":" -0.000297*BW^2 + 0.0682*BW + 9.4119","v":12.264474999999999},{"$f":" -0.0002375*BW^2 + 0.06*BW + 4.481","v":7.0625625000000003},null,null,null,null,null,null,null,null,null,null,null,null,null,null,42,"Sığır Gübresi, Kurutulmuş",92,1.4,17,11.9,12.3,null,1.35,1,34,55,38,1.7,0.9,0,0.8,37,0,2.6,14,0.6,null,1.78,240,null,null,100,0,1]
[null,null,null,null,null,null,null,null,null,null,null,null,null,null,null,null,null,null,null,"Erken Gebelik",null,null,null,0,0,0,0,0,0,0,0,0,0,0,0,null,null,null,null,null,null,null,null,null,null,null,null,null,null,null,null,null,"Sütçü Olmayan, Dişi, Orta Laktasyon, Tek, ",{"$f":" -0.000063*BW^2 + 0.0265*BW + 0.22","v":1.4869250000000001},{"$f":" -0.000115*BW^2 + 0.0499*BW + 0.437","v":2.8336249999999996},{"$f":" -0.006547*BW^2 + 2.5774*BW + 25.738","v":147.690325},{"$f":" -0.00648*BW^2+ 2.49*BW + 23.821","v":141.16900000000001},{"$f":" -0.005695*BW^2 + 2.2627*BW + 28.558","v":135.77912499999999},{"$f":" -0.004522*BW^2+ 1.75*BW + 16.81","v":99.380949999999999},{"$f":" -0.002797*BW^2 + 1.2423*BW + 10.732","v":70.597574999999992},{"$f":" -0.0000883*BW^2 + 0.0368*BW + 3.903","v":5.6598924999999998},{"$f":" -0.0000465*BW^2 + 0.0314*BW + 2.0655","v":3.6518375000000001},null,null,null,null,null,null,null,null,null,null,null,null,null,null,43,"Sorgum Sapları",87,2,5,3.5,1.5,null,0.49,0.12,33,65,55,2.4,1.2,0.5,1.2,41,100,1.9,10,1.2,null,null,null,null,null,5,0,1]
[null,null,null,null,null,null,null,null,null,null,null,null,null,null,null,null,null,null,null,"Geç Gebelik",null,null,null,0,0,0,0,0,0,0,0,0,0,0,0,null,null,null,null,null,null,null,null,null,null,null,null,null,null,null,null,null,"Sütçü Olmayan, Dişi, Orta Laktasyon, İkiz, ",{"$f":" -0.000067*BW^2+ 0.0296*BW + 0.3387","v":1.7640250000000002},{"$f":" -0.000132*BW^2 + 0.0569*BW + 0.6486","v":3.3788},{"$f":" -0.008272*BW^2+ 3.2208*BW + 44.351","v":196.47220000000002},{"$f":" -0.007497*BW^2 + 3.0321*BW + 43.107","v":187.19407499999997},{"$f":" -0.00732*BW^2 + 2.9161*BW + 41.232","v":179.47450000000001},{"$f":" -0.005593*BW^2 + 2.1726*BW + 29.369","v":131.943175},{"$f":" -0.003392*BW^2 + 1.422*BW + 16.208","v":84.157199999999989},{"$f":" -0.0000836*BW^2 + 0.0392*BW + 7.2667","v":9.16981},{"$f":" -0.0000833*BW^2+ 0.0392*BW + 3.6667","v":5.5707175000000007},null,null,null,null,null,null,null,null,null,null,null,null,null,null,44,"Soya Kabukları ",90,2.8,13,9.1,8.6999999999999993,3.6,0.55000000000000004,0.17,38,62,77,3.4,1.8,1.1000000000000001,1.7,46,28,2.6,5,1.4,0.02,0.12,38,null,null,6,0,1]
[null,null,null,null,null,null,null,null,null,null,null,null,null,null,null,null,null,null,null,"Erken Laktasyon",null,null,null,0,0,0,0,0,0,0,0,0,0,0,0,null,null,null,null,null,null,null,null,null,null,null,null,null,null,null,null,null,"Sütçü Olmayan, Dişi, Orta Laktasyon, Üçüz, ",{"$f":" -0.000069*BW^2 + 0.0317*BW + 0.436","v":1.9707749999999999},{"$f":" -0.0001355*BW^2+ 0.0608*BW + 0.8357","v":3.7698125},{"$f":" -0.008808*BW^2 + 3.6071*BW + 60.238","v":231.98430000000002},{"$f":" -0.007736*BW^2 + 3.3679*BW + 59.31","v":221.1431},{"$f":" -0.00773*BW^2 + 3.2679*BW + 55.31","v":211.66125},{"$f":" -0.005356*BW^2 + 2.3536*BW + 42.357","v":155.60310000000001},{"$f":" -0.003453*BW^2+ 1.525*BW + 20.452","v":93.881675000000001},{"$f":" -0.000059*BW^2 + 0.0382*BW + 10.631","v":12.553525},{"$f":" -0.0001425*BW^2 + 0.0493*BW + 5.1429","v":7.4233375000000006},null,null,null,null,null,null,null,null,null,null,null,null,null,null,45,"Soya Kuru Otu",89,1.9,15,10.5,10.5,null,1.29,0.3,35,55,52,2.2999999999999998,1.1000000000000001,0.4,1.1000000000000001,40,92,2.2000000000000002,8,1.1000000000000001,0.15,0.24,24,9,30,6,0,1]
[null,null,null,null,null,null,null,null,null,null,null,null,null,null,null,null,null,null,null,"Geç Laktasyon",null,null,null,0,0,0,0,0,0,0,0,0,0,0,0,null,null,null,null,null,null,null,null,null,null,null,null,null,null,null,null,null,"Sütçü Olmayan, Dişi, Geç Laktasyon, Tek, ",{"$f":" -0.00005*BW^2+ 0.0232*BW + 0.2315","v":1.3562499999999997},{"$f":" -0.0000984*BW^2 + 0.045*BW + 0.4226","v":2.5999400000000001},{"$f":" -0.004939*BW^2 + 2.0827*BW + 23.613","v":123.221025},{"$f":" -0.00464*BW^2 + 1.9679*BW + 23.25","v":117.4485},{"$f":" -0.00446*BW^2+ 1.8994*BW + 21.256","v":112.2315},{"$f":" -0.00363*BW^2+ 1.4363*BW + 15.018","v":83.033749999999998},{"$f":" -0.002499*BW^2 + 1.1298*BW + 10.488","v":65.067524999999989},{"$f":" -0.0000708*BW^2 + 0.0333*BW + 3.8702","v":5.4875300000000005},{"$f":" -0.0000238*BW^2+ 0.0267*BW + 2.0929","v":3.4894050000000005},null,null,null,null,null,null,null,null,null,null,null,null,null,null,46,"Soya Samanı",88,1.5,5,3.5,1.5,null,1.59,0.06,44,70,42,1.9,0.9,0,0.9,54,100,1.4,6,0.6,null,0.26,null,null,null,2,0,1]
[null,null,null,null,null,null,null,null,null,null,null,null,null,null,null,null,null,null,null,null,null,null,null,0,0,0,0,0,0,0,0,0,0,0,0,null,null,null,null,null,null,null,null,null,null,null,null,null,null,null,null,null,"Sütçü Olmayan, Dişi, Geç Laktasyon, İkiz, ",{"$f":" -0.00006*BW^2+ 0.0269*BW + 0.28","v":1.5780000000000001},{"$f":" -0.0001188*BW^2 + 0.0516*BW + 0.5403","v":3.0189300000000001},{"$f":" -0.006308*BW^2 + 2.594*BW + 33.726","v":157.3143},{"$f":" -0.006189*BW^2+ 2.4905*BW + 32.25","v":150.505775},{"$f":" -0.00583*BW^2 + 2.375*BW + 30.833","v":143.82225},{"$f":" -0.004523*BW^2 + 1.781*BW + 21.857","v":106.129925},{"$f":" -0.002797*BW^2 + 1.2685*BW + 14.042","v":75.348574999999997},{"$f":" -0.0000838*BW^2 + 0.0373*BW + 7.1214","v":8.9194050000000011},{"$f":" -0.0000704*BW^2 + 0.0352*BW + 3.6155","v":5.3385400000000001},null,null,null,null,null,null,null,null,null,null,null,null,null,null,47,"Sudan Otu, Kuru ",88,2.1,9,6.3,5.0999999999999996,2.7,0.5,0.22,36,67,57,2.5,1.3,0.6,1.3,43,98,1.8,10,2.2000000000000002,0.8,0.12,26,11.8,null,10,0,1]
[null,null,null,null,null,null,null,null,null,null,null,null,null,null,null,null,null,null,null,"Moher, g/gün",null,null,null,0,0,0,0,0,0,0,0,0,0,0,0,null,null,null,null,null,null,null,null,null,null,null,null,null,null,null,null,null,"Sütçü Olmayan, Dişi, Geç Laktasyon, Üçüz, ",{"$f":" -0.000059*BW^2 + 0.0284*BW + 0.381","v":1.7645250000000001},{"$f":" -0.0001125*BW^2+ 0.0543*BW + 0.726","v":3.3721874999999999},{"$f":" -0.006903*BW^2+ 2.9357*BW + 45.476","v":186.05792500000001},{"$f":" -0.006903*BW^2 + 2.8357*BW + 42.476","v":177.55792500000001},{"$f":" -0.00595*BW^2 + 2.6429*BW + 42.381","v":169.74175},{"$f":" -0.00476*BW^2+ 1.9786*BW + 30.762","v":125.18599999999999},{"$f":" -0.002975*BW^2 + 1.3679*BW + 17.833","v":84.068124999999995},{"$f":" -0.00006*BW^2 + 0.0361*BW + 10.46","v":12.264000000000001},{"$f":" -0.0001188*BW^2 + 0.0436*BW + 5.119","v":7.1576299999999993},null,null,null,null,null,null,null,null,null,null,null,null,null,null,48,"Şeker Kamışı Posası",91,1.3,1,0.7,2.1,null,0.9,0.28999999999999998,49,86,36,1.6,0.9,0,0.7,59,100,0.7,3,0.5,null,0.1,null,null,null,5,0,1]
[null,null,null,null,null,null,null,null,null,null,null,null,null,null,null,null,null,null,null,{"$f":"Tiftik/365*1000","v":0},null,null,null,0,0,0,0,0,0,0,0,0,0,0,0,null,null,null,null,null,null,null,null,null,null,null,null,null,null,null,null,null,"Sütçü Olmayan, Erkek, Yaşama Payı, , ",{"$f":" -0.00002*BW^2 + 0.01861*BW + 0.26","v":1.2230500000000002},{"$f":" -0.0000362*BW^2 + 0.0352*BW + 0.514","v":2.3404950000000002},{"$f":" -0.0016*BW^2 + 1.296*BW + 16.4","v":82.84},{"$f":" -0.0013715*BW^2+ 1.2023*BW + 17.4","v":79.377712500000001},{"$f":" -0.00114*BW^2 + 1.1166*BW + 18.2","v":76.164500000000004},{"$f":" -0.0008*BW^2 + 0.82*BW + 13","v":55.679999999999993},{"$f":" -0.000914*BW^2+ 0.8709*BW + 13.8","v":58.934650000000005},{"$f":" -0.000045*BW^2 + 0.0291*BW + 0.76","v":2.2243750000000002},{"$f":" 0.02*BW + 0.7","v":1.8},null,null,null,null,null,null,null,null,null,null,null,null,null,null,49,"Taş Yoncası (Clover Sweet) Kuru Otu",91,1.9,16,11.2,11.4,4.8,1.27,0.25,30,50,53,2.2999999999999998,1.2,0.4,1.2,38,92,2.4,9,1.8,0.37,0.46,null,19.8,null,20,0,1]
[null,null,null,null,null,null,null,null,null,null,null,null,null,null,null,null,null,null,null,null,null,null,null,0,0,0,0,0,0,0,0,0,0,0,0,null,null,null,null,null,null,null,null,null,null,null,null,null,null,null,null,null,"Sütçü Olmayan, Erkek, Flaşing, , ",{"$f":" -0.0000204*BW^2+ 0.0201*BW + 0.306","v":1.34979},{"$f":" -0.0000406*BW^2 + 0.0389*BW + 0.56","v":2.5766849999999999},{"$f":" -0.001485*BW^2 + 1.3731*BW + 20.2","v":91.228375},{"$f":" -0.001484*BW^2 + 1.3251*BW + 18.6","v":86.991399999999999},{"$f":" -0.00126*BW^2 + 1.2314*BW + 19.6","v":83.515500000000003},{"$f":" -0.0009147*BW^2 + 0.9109*BW + 13.8","v":61.132532499999996},{"$f":" -0.000914*BW^2+ 0.9509*BW + 14.8","v":64.334649999999996},{"$f":" -0.0000345*BW^2+ 0.0297*BW + 0.82","v":2.3491374999999999},{"$f":" -0.0000344*BW^2 + 0.0289*BW + 0.44","v":1.9254399999999998},null,null,null,null,null,null,null,null,null,null,null,null,null,null,50,"Tritikale Kuru Otu ",90,2,10,7,6,null,0.3,0.26,34,69,56,2.5,1.2,0.5,1.2,41,98,null,null,2.2999999999999998,null,null,25,null,null,5.5,0,1]
[null,null,null,null,null,null,null,null,null,null,null,null,null,null,null,null,null,null,null,null,null,null,null,0,0,0,0,0,0,0,0,0,0,0,0,null,null,null,null,null,null,null,null,null,null,null,null,null,null,null,null,null,"Sütçü Olmayan, Oğlak, Dişi, , ",{"$f":"IF(BW<15,(0.0000064*ADG^2-0.0003*ADG+0.3287),IF(BW<20,(-0.0000044*ADG^2+0.0016*ADG+0.46),IF(BW<25,(0.00000054*ADG^2+0.00044*ADG+0.6024),IF(BW<30,(0.0000055*ADG^2-0.00024*ADG+0.7048),IF(BW<35,(0.0000045*ADG^2+0.0002*ADG+0.8046),IF(BW<40,(0.000004*ADG^2+0.0003*ADG+0.9009),(0.0000044*ADG^2+0.0001*ADG+0.9927) ))))))","v":0.99270000000000003},{"$f":"(0.0055*ADG) + (-0.00018*BW^2 + 0.0461*BW + 0.1709)","v":2.1619000000000002},{"$f":"(0.6*ADG) + (-0.0071*BW^2 + 1.9214*BW + 7.5714)","v":91.770899999999997},{"$f":"(0.57361*ADG) + (-0.00765*BW^2 + 1.85814*BW + 7.1474)","v":86.203850000000003},{"$f":"(0.55*ADG) + (-0.00825*BW^2 + 1.8358*BW + 5.8784)","v":81.89115000000001},{"$f":"IF(BW<15,(0.4059*ADG+17.04),IF(BW<20,(0.4034*ADG+23.478),IF(BW<25,(0.40495*ADG+28.902),IF(BW<30,(0.40452*ADG+34.121),IF(BW<35,(0.40558*ADG+39.04),IF(BW<40,(0.40355*ADG+44.195),(0.0000101*ADG^2+0.4012*ADG+48.929) ))))))","v":48.929000000000002},{"$f":"IF(BW<15,(-0.000002*ADG^2+0.1392*ADG+15.209),IF(BW<20,(0.0000464*ADG^2+0.1264*ADG+20.919),IF(BW<25,(0.0000026*ADG^2+0.1384*ADG+25.222),IF(BW<30,(0.0000026*ADG^2+0.1384*ADG+30.222),IF(BW<35,(0.0000227*ADG^2+0.1307*ADG+34.848),IF(BW<40,(0.0000064*ADG^2+0.1348*ADG+38.915),(-0.000014*ADG^2+0.1406*ADG+42.847) ))))))","v":42.847000000000001},{"$f":"IF(BW<15,(0.0000052*ADG^2+ 0.0248*ADG+0.9501),IF(BW<20,(-0.0000031*ADG^2+ 0.0257*ADG+1.1666),IF(BW<25,(-0.0000056*ADG^2+ 0.0264*ADG+1.321),IF(BW<30,(-0.0000072*ADG^2+ 0.0271*ADG+1.4403),IF(BW<35,(-0.00000975*ADG^2+ 0.0281*ADG+1.6158),IF(BW<40,(-0.0000096*ADG^2+ 0.0291*ADG+1.7214),(-0.00000875*ADG^2+0.0287*ADG+1.8663) ))))))","v":1.8663000000000001},{"$f":"IF(BW<15,(0.000014*ADG^2+ 0.0078*ADG+0.5967),IF(BW<20,(-0.0000013*ADG^2+ 0.0103*ADG+0.7623),IF(BW<25,(-0.0000061*ADG^2+ 0.0115*ADG+0.8996),IF(BW<30,(-0.0000077*ADG^2+ 0.0122*ADG+1.0189),IF(BW<35,(-0.0000093*ADG^2+ 0.013*ADG+1.1972),IF(BW<40,(-0.000011*ADG^2+ 0.0143*ADG+1.307),(-0.0000102*ADG^2+0.0139*ADG+1.4519) ))))))","v":1.4519},null,null,null,null,null,null,null,null,null,null,null,null,null,null,51,"Üzüm Posası, sapsız",91,1.1000000000000001,12,8.4,7.8,5.4,0.5,0.08,32,53,30,1.3,0.8,0,0.6,48,34,7.5,9,0.5,0.01,null,24,null,null,2.5,0,1]
[null,null,null,null,null,null,null,null,null,null,null,null,null,null,null,null,null,null,null,null,null,null,null,0,0,0,0,0,0,0,0,0,0,0,0,null,null,null,null,null,null,null,null,null,null,null,null,null,null,null,null,null,"Sütçü Olmayan, Oğlak, Kastre Erkek, , ",{"$f":"IF(BW<15,(0.0000064*ADG^2-0.0003*ADG+0.3287),IF(BW<20,(-0.0000044*ADG^2+0.0016*ADG+0.46),IF(BW<25,(0.00000054*ADG^2+0.00044*ADG+0.6024),IF(BW<30,(0.0000055*ADG^2-0.00024*ADG+0.7048),IF(BW<35,(0.0000045*ADG^2+0.0002*ADG+0.8046),IF(BW<40,(0.000004*ADG^2+0.0003*ADG+0.9009),(0.0000044*ADG^2+0.0001*ADG+0.9927) ))))))","v":0.99270000000000003},{"$f":"(0.0055*ADG) + (-0.00018*BW^2 + 0.0461*BW + 0.1709)","v":2.1619000000000002},{"$f":"(0.6*ADG) + (-0.0071*BW^2 + 1.9214*BW + 7.5714)","v":91.770899999999997},{"$f":"(0.57361*ADG) + (-0.00765*BW^2 + 1.85814*BW + 7.1474)","v":86.203850000000003},{"$f":"(0.55*ADG) + (-0.00825*BW^2 + 1.8358*BW + 5.8784)","v":81.89115000000001},{"$f":"IF(BW<15,(0.4059*ADG+17.04),IF(BW<20,(0.4034*ADG+23.478),IF(BW<25,(0.40495*ADG+28.902),IF(BW<30,(0.40452*ADG+34.121),IF(BW<35,(0.40558*ADG+39.04),IF(BW<40,(0.40355*ADG+44.195),(0.0000101*ADG^2+0.4012*ADG+48.929) ))))))","v":48.929000000000002},{"$f":"IF(BW<15,(-0.000002*ADG^2+0.1392*ADG+15.209),IF(BW<20,(0.0000464*ADG^2+0.1264*ADG+20.919),IF(BW<25,(0.0000026*ADG^2+0.1384*ADG+25.222),IF(BW<30,(0.0000026*ADG^2+0.1384*ADG+30.222),IF(BW<35,(0.0000227*ADG^2+0.1307*ADG+34.848),IF(BW<40,(0.0000064*ADG^2+0.1348*ADG+38.915),(-0.000014*ADG^2+0.1406*ADG+42.847) ))))))","v":42.847000000000001},{"$f":"IF(BW<15,(0.0000052*ADG^2+ 0.0248*ADG+0.9501),IF(BW<20,(-0.0000031*ADG^2+ 0.0257*ADG+1.1666),IF(BW<25,(-0.0000056*ADG^2+ 0.0264*ADG+1.321),IF(BW<30,(-0.0000072*ADG^2+ 0.0271*ADG+1.4403),IF(BW<35,(-0.00000975*ADG^2+ 0.0281*ADG+1.6158),IF(BW<40,(-0.0000096*ADG^2+ 0.0291*ADG+1.7214),(-0.00000875*ADG^2+0.0287*ADG+1.8663) ))))))","v":1.8663000000000001},{"$f":"IF(BW<15,(0.000014*ADG^2+ 0.0078*ADG+0.5967),IF(BW<20,(-0.0000013*ADG^2+ 0.0103*ADG+0.7623),IF(BW<25,(-0.0000061*ADG^2+ 0.0115*ADG+0.8996),IF(BW<30,(-0.0000077*ADG^2+ 0.0122*ADG+1.0189),IF(BW<35,(-0.0000093*ADG^2+ 0.013*ADG+1.1972),IF(BW<40,(-0.000011*ADG^2+ 0.0143*ADG+1.307),(-0.0000102*ADG^2+0.0139*ADG+1.4519) ))))))","v":1.4519},null,null,null,null,null,null,null,null,null,null,null,null,null,null,52,"Yem Kanyaşı (Canary grass) Kuru Otu",91,1.9,9,6.3,5.0999999999999996,2.2999999999999998,0.38,0.25,32,67,53,2.2999999999999998,1.2,0.4,1.2,34,98,2.7,8,2.7,null,0.14000000000000001,18,5.2,null,6,0,1]
[null,null,null,null,null,null,null,null,null,null,null,null,null,null,null,null,null,null,null,null,null,null,null,0,0,0,0,0,0,0,0,0,0,0,0,null,null,null,null,null,null,null,null,null,null,null,null,null,null,null,null,null,"Sütçü Olmayan, Oğlak, Erkek, , ",{"$f":"IF(BW<15,(0.000007*ADG^2-0.0005*ADG+0.382),IF(BW<20,(0.00001*ADG^2-0.0014*ADG+0.5138),IF(BW<25,(0.000005*ADG^2-0.00075*ADG+0.68),IF(BW<30,(-0.000002*ADG^2+0.0009*ADG+0.8169),IF(BW<35,(-0.000002*ADG^2+0.0009*ADG+0.9122),IF(BW<40,(-0.0000065*ADG^2+0.0025*ADG+1.01),(0.0000025*ADG^2+0.0006*ADG+1.13) ))))))","v":1.1299999999999999},{"$f":"(0.0055*ADG) + (-0.00023*BW^2 + 0.0546*BW + 0.191)","v":2.4982500000000001},{"$f":"(0.6*ADG) + (-0.0071*BW^2 + 1.9214*BW + 7.5714)","v":91.770899999999997},{"$f":"(0.57361*ADG) + (-0.00765*BW^2 + 1.85814*BW + 7.1474)","v":86.203850000000003},{"$f":"(0.55*ADG) + (-0.00825*BW^2 + 1.8358*BW + 5.8784)","v":81.89115000000001},{"$f":"IF(BW<15,(0.4059*ADG+17.04),IF(BW<20,(0.4034*ADG+23.478),IF(BW<25,(0.40495*ADG+28.902),IF(BW<30,(0.40452*ADG+34.121),IF(BW<35,(0.40558*ADG+39.04),IF(BW<40,(0.40355*ADG+44.195),(0.0000101*ADG^2+0.4012*ADG+48.929) ))))))","v":48.929000000000002},{"$f":"IF(BW<15,(0.0000464*ADG^2+0.1264*ADG+17.919),IF(BW<20,(0.0000024*ADG^2+0.1408*ADG+23.791),IF(BW<25,(-0.0000013*ADG^2+0.1364*ADG+29.885),IF(BW<30,(0.0000026*ADG^2+0.1384*ADG+35.222),IF(BW<35,(0.0000035*ADG^2+0.1382*ADG+40.224),IF(BW<40,(0.0000035*ADG^2+0.1382*ADG+45.224),(-0.0000278*ADG^2+0.1454*ADG+49.737) ))))))","v":49.737000000000002},{"$f":"IF(BW<15,(0.0256*ADG+1.0107),IF(BW<20,(0.02579*ADG+1.1121),IF(BW<25,(0.02472*ADG+1.4807),IF(BW<30,(0.02465*ADG+1.6557),IF(BW<35,(-0.0000018*ADG^2+0.0254*ADG+1.8099),IF(BW<40,(-0.0000049*ADG^2+0.0271*ADG+1.9345),(0.0000009*ADG^2+0.0254*ADG+2.1673) ))))))","v":2.1673},{"$f":"IF(BW<15,(0.0000082*ADG^2+ 0.0088*ADG+0.6462),IF(BW<20,(0.0000123*ADG^2+ 0.0074*ADG+0.8591),IF(BW<25,(0.000005*ADG^2+ 0.0083*ADG+1.086),IF(BW<30,(-0.0000015*ADG^2+ 0.0098*ADG+1.2185),IF(BW<35,(-0.00000385*ADG^2+ 0.0109*ADG+1.3441),IF(BW<40,(-0.0000099*ADG^2+ 0.0127*ADG+1.5179),(0.0000031*ADG^2+0.0098*ADG+1.7097) ))))))","v":1.7097},null,null,null,null,null,null,null,null,null,null,null,null,null,null,53,"Yer Fıstığı Kabukları",91,0.8,7,4.9000000000000004,3.3,null,0.2,7.0000000000000007E-2,63,74,22,1,0.8,0,0.4,65,98,1.5,5,0.9,null,null,null,null,null,3,0,1]
[null,null,null,null,null,null,null,null,null,null,null,null,null,null,null,null,null,null,null,null,null,null,null,0,0,0,0,0,0,0,0,0,0,0,0,null,null,null,null,null,null,null,null,null,null,null,null,null,null,null,null,null,"Tiftik Keçisi, Dişi, Yaşama Payı, , ",{"$f":"(Moher*0.02) + (-0.00007*BW^2 + 0.025*BW + 0.1165)","v":1.2797500000000002},{"$f":" IF(BW<40,(0.0002*Moher^2 + 0.033*Moher + 1.47),  IF(BW<50,(0.038*Moher + 1.79), IF(BW<60, (-0.0002*Moher^2 +0.043*Moher + 2.09), (0.038*Moher + 2.43)  )))","v":2.09},{"$f":" IF(BW<40,(0.02*Moher^2 + 2.1*Moher + 65),  IF(BW<50,(2.4*Moher + 80), IF(BW<60, (-0.02*Moher^2 +3.1*Moher + 89), (0.02*Moher^2 +1.9*Moher + 111)  )))","v":89},{"$f":" IF(BW<40,(0.02*Moher^2 + 1.9*Moher + 63),  IF(BW<50,(2.4*Moher + 75), IF(BW<60, (-0.02*Moher^2 + 2.9*Moher + 86), (-0.02*Moher^2 + 2.9*Moher + 99)  )))","v":86},{"$f":"(Moher*2.2) + (-0.00249*BW^2 + 1.555*BW + 14.65)","v":92.642749999999992},{"$f":"(Moher*1.6) + (-0.005*BW^2 + 1.45*BW + 4)","v":68.625},{"$f":"(Moher) + (0.8*BW + 12)","v":56},{"$f":" IF(BW<40,(0.02*Moher + 1.7),  IF(BW<50,(-0.002*Moher^2 + 0.07*Moher + 1.7), IF(BW<60, (-0.002*Moher^2 +0.09*Moher + 1.7), (0.02*Moher + 2.5)  )))","v":1.7},{"$f":" IF(BW<40,(-0.002*Moher^2 + 0.07*Moher + 1),  IF(BW<50,(0.002*Moher^2 - 0.01*Moher + 1.6), IF(BW<60, (0.002*Moher^2 - 0.03*Moher + 2.1), (-0.002*Moher^2 + 0.09*Moher + 1.5)  )))","v":2.1},null,null,null,null,null,null,null,null,null,null,null,null,null,null,54,"Yonca Kuru Otu, Çiçek Başı ",90,2.1,19,13.3,14.1,3.5,1.41,0.26,28,45,59,2.6,1.3,0.6,1.3,35,92,2.5,8,2.5,0.38,0.28000000000000003,22,28,26,8.5,0,1]
[null,null,null,null,null,null,null,null,null,null,null,null,null,null,null,null,null,null,null,null,null,null,null,0,0,0,0,0,0,0,0,0,0,0,0,null,null,null,null,null,null,null,null,null,null,null,null,null,null,null,null,null,"Tiftik Keçisi, Dişi, Flaşing, , ",{"$f":"(Moher*0.019) + (-0.000035*BW^2+0.025*BW + 0.18)","v":1.449125},{"$f":" IF(BW<40,(-0.0002*Moher^2 +0.045*Moher + 1.58),  IF(BW<50,(0.042*Moher + 1.97), IF(BW<60, (-0.0002*Moher^2 +0.047*Moher + 2.3), (-0.0002*Moher^2 +0.047*Moher + 2.64)  )))","v":2.2999999999999998},{"$f":" IF(BW<40,(0.02*Moher^2 + 2.3*Moher + 72),  IF(BW<50,(0.02*Moher^2 +2.3*Moher + 89), IF(BW<60, (-0.02*Moher^2 +3.3*Moher + 99), (0*Moher^2 +3.3*Moher + 114)  )))","v":99},{"$f":"(Moher*2.6) + (-0.0025*BW^2 + 1.755*BW + 16.65)","v":105.61249999999998},{"$f":"(Moher*2.4) + (-0.00249*BW^2 + 1.695*BW + 16.35)","v":102.04275000000001},{"$f":"(Moher*1.8) + (-0.005*BW^2 + 1.55*BW + 5)","v":75.125},{"$f":"(Moher) + (-0.005*BW^2+1.35*BW + 4)","v":63.125},{"$f":" IF(BW<40,(0.002*Moher^2 - 0.01*Moher + 1.9),  IF(BW<50,(0.002*Moher^2 - 0.01*Moher + 2.2), IF(BW<60, (-0.002*Moher^2 + 0.09*Moher + 1.9), (0.002*Moher^2 - 0.03*Moher + 3)  )))","v":1.9},{"$f":" IF(BW<40,(0.02*Moher + 1.4),  IF(BW<50,(0.002*Moher^2 - 0.01*Moher + 1.8), IF(BW<60, (0.002*Moher^2 - 0.03*Moher + 2.3), (-0.002*Moher^2 + 0.09*Moher + 1.7)  )))","v":2.2999999999999998},null,null,null,null,null,null,null,null,null,null,null,null,null,null,55,"Yonca Kuru Otu, Çiçek ortası ",89,2.1,17,11.9,12.3,3.9,1.4,0.24,30,47,58,2.6,1.3,0.6,1.3,36,92,2.2999999999999998,9,2,0.38,0.27,24,null,null,8.5,0,1]
[{"$f":"IF(B5=0,0,IF(C5<=0,0,A5))","v":1},{"$f":"IF(B5=0,0,IF(C5<=0,0,B5))","v":"Buğday Samanı"},{"$f":"IF(B5=0,0,IF(C5<=0,0,C5))","v":1},null,null,null,null,null,null,null,null,null,null,null,null,null,null,null,null,"Süt verimi, Erken Laktasyon",null,null,null,0,0,0,0,0,0,0,0,0,0,0,0,null,null,null,null,null,null,null,null,null,null,null,null,null,null,null,null,null,"Tiftik Keçisi, Dişi, Erken Gebelik, Tek, ",{"$f":"(Moher*0.02) + (-0.000075*BW^2 + 0.0271*BW + 0.1965)","v":1.4601250000000001},{"$f":" IF(BW<40,(0.038*Moher + 1.7),  IF(BW<50,(-0.0002*Moher^2 +0.041*Moher + 2.08), IF(BW<60, (0.0002*Moher^2 +0.031*Moher + 2.5), (0.038*Moher + 2.79)  )))","v":2.5},{"$f":" IF(BW<40,(0.02*Moher^2 +2.1*Moher + 87),  IF(BW<50,(0.02*Moher^2 +2.1*Moher + 106), IF(BW<60, (2.4*Moher + 123), (-0.02*Moher^2 +3.1*Moher + 134)  )))","v":123},{"$f":" IF(BW<40,(0.02*Moher^2 + 1.9*Moher + 84),  IF(BW<50,(0.02*Moher^2 + 1.9*Moher + 102), IF(BW<60, (-0.02*Moher^2 + 2.9*Moher + 113), (-0.02*Moher^2 + 2.9*Moher + 129)  )))","v":113},{"$f":"(Moher*2.2) + (-0.005*BW^2 + 2.05*BW + 22)","v":119.62499999999999},{"$f":"(Moher*1.6) + (-0.005*BW^2 + 1.65*BW + 13)","v":88.625},{"$f":" IF(BW<40,(Moher + 42),  IF(BW<50,(-0.02*Moher^2 + 1.3*Moher + 51), IF(BW<60, (0.02*Moher^2 + 0.3*Moher + 66), (Moher + 69)  )))","v":66},{"$f":" IF(BW<40,(-0.002*Moher^2 +0.07*Moher + 3.6),  IF(BW<50,(-0.002*Moher^2 +0.07*Moher + 3.9), IF(BW<60, (-0.002*Moher^2 +0.09*Moher + 3.9), (0.002*Moher^2 -0.03*Moher + 5)  )))","v":3.9},{"$f":" IF(BW<40,(0.02*Moher + 2.2),  IF(BW<50,(0.02*Moher + 2.5), IF(BW<60, (0.002*Moher^2 - 0.03*Moher + 3.1), (-0.002*Moher^2 + 0.09*Moher + 2.5)  )))","v":3.1},null,null,null,null,null,null,null,null,null,null,null,null,null,null,56,"Yonca Kuru Otu, Olgun",88,1.8,13,9.1,8.6999999999999993,3.9,1.18,0.19,38,59,50,2.2000000000000002,1.1000000000000001,0.3,1.1000000000000001,45,92,1.3,8,1.5,0.35,0.21,23,2.4,null,8.5,0,1]
[1,"Fiğ Kuru Otu",0.8,null,null,null,null,null,null,null,null,null,null,null,null,null,null,null,null,"Düşük verimli = 4 - 6 lt",null,null,null,0,0,0,0,0,0,0,0,0,0,0,0,null,null,null,null,null,null,null,null,null,null,null,null,null,null,null,null,null,"Tiftik Keçisi, Dişi, Erken Gebelik, İkiz, ",{"$f":"(Moher*0.02) + (-0.000075*BW^2 + 0.028*BW + 0.2365)","v":1.549625},{"$f":" IF(BW<40,(-0.0002*Moher^2 + 0.041*Moher + 1.82),  IF(BW<50,(0.0002*Moher^2 +0.033*Moher + 2.26), IF(BW<60, (0.0002*Moher^2 +0.031*Moher + 2.67), (0.038*Moher + 2.98)  )))","v":2.67},{"$f":" IF(BW<40,(-0.02*Moher^2 + 2.9*Moher + 94),  IF(BW<50,(2.4*Moher + 117), IF(BW<60, (0.02*Moher^2 +1.9*Moher + 139), (2.4*Moher + 155)  )))","v":139},{"$f":" IF(BW<40,(0.02*Moher^2 + 1.9*Moher + 94),  IF(BW<50,(0.02*Moher^2 + 1.9*Moher + 113), IF(BW<60, (-0.02*Moher^2 + 2.9*Moher + 126), (0.02*Moher^2 + 1.7*Moher + 152)  )))","v":126},{"$f":"(Moher*2.2) + (-0.00496*BW^2 + 2.21*BW + 26.3)","v":132.846},{"$f":"(Moher*1.6) + (-0.005*BW^2 + 1.75*BW + 17)","v":98.125},{"$f":" IF(BW<40,(Moher + 45),  IF(BW<50,(0.02*Moher^2 + 0.5*Moher + 58), IF(BW<60, (0.02*Moher^2 + 0.3*Moher + 70), (-0.02*Moher^2 + 1.5*Moher + 71)  )))","v":70},{"$f":" IF(BW<40,(0.02*Moher + 5.1),  IF(BW<50,(0.02*Moher + 5.8), IF(BW<60, (0.002*Moher^2 - 0.03*Moher + 6.4), (0.002*Moher^2 -0.03*Moher + 6.7)  )))","v":6.4},{"$f":"(Moher*0.02) + (0.03*BW + 2)","v":3.65},null,null,null,null,null,null,null,null,null,null,null,null,null,null,57,"Yonca Kuru Otu, Tam Çiçeklenmiş",88,2,16,11.2,11.4,4,1.2,0.23,34,52,54,2.4,1.2,0.4,1.2,40,92,2,8,1.7,0.37,0.25,23,13,null,8.5,0,1]
[4,"KOYUN SÜT YEMİ",0.35,null,null,null,null,null,null,null,null,null,null,null,null,null,null,null,null,"Orta verimli = 6 - 8 lt",null,null,null,0,0,0,0,0,0,0,0,0,0,0,0,null,null,null,null,null,null,null,null,null,null,null,null,null,null,null,null,null,"Tiftik Keçisi, Dişi, Geç Gebelik, Tek, ",{"$f":" IF(BW<50,(0.016*Moher + (0.02*BW + 0.3)), ( 0.02*Moher + (0.022*BW + 0.59)) )","v":1.7999999999999998},{"$f":" IF(BW<40,(0.038*Moher + 2.17),  IF(BW<50,(-0.0002*Moher^2 +0.041*Moher + 2.63), IF(BW<60, (0.038*Moher + 3.06), (0.0002*Moher^2 +0.031*Moher + 3.52)  )))","v":3.06},{"$f":" IF(BW<40,(-0.02*Moher^2 + 2.9*Moher + 114),  IF(BW<50,(-0.02*Moher^2 + 2.9*Moher + 138), IF(BW<60, (0.02*Moher^2 + 1.9*Moher + 165), (2.4*Moher + 183)  )))","v":165},{"$f":" IF(BW<40,(0.02*Moher^2 + 1.9*Moher + 113),  IF(BW<50,(0.02*Moher^2 + 1.9*Moher + 136), IF(BW<60, (0.02*Moher^2 + 1.7*Moher + 159), (2.4*Moher + 173)  )))","v":159},{"$f":" IF(BW<40,(0.02*Moher^2 + 1.9*Moher + 107),  IF(BW<50,(0.02*Moher^2 + 1.9*Moher + 129), IF(BW<60, (2.2*Moher + 148), (2.2*Moher + 167)  )))","v":148},{"$f":"(Moher*1.6) + (-0.005*BW^2 + 1.91*BW + 26.3)","v":116.22499999999999},{"$f":" IF(BW<40,(-0.02*Moher^2 + 1.3*Moher + 53),  IF(BW<50,(0.02*Moher^2 + 0.5*Moher + 68), IF(BW<60, (-0.02*Moher^2 + 1.5*Moher + 73), (-0.02*Moher^2 + 1.5*Moher + 83)  )))","v":73},{"$f":" IF(BW<40,(-0.002*Moher^2 + 0.07*Moher + 3.5),  IF(BW<50,(-0.002*Moher^2 + 0.07*Moher + 3.7), IF(BW<60, (0.002*Moher^2 - 0.03*Moher + 5.2), (0.002*Moher^2 - 0.03*Moher + 5.5)  )))","v":5.2},{"$f":" IF(BW<40,(0.02*Moher + 2.1),  IF(BW<50,(0.02*Moher + 2.4), IF(BW<60, (-0.002*Moher^2 + 0.09*Moher + 2.7), (-0.002*Moher^2 + 0.09*Moher + 3)  )))","v":2.7},null,null,null,null,null,null,null,null,null,null,null,null,null,null,58,"Yonca Küpleri",91,2.1,18,12.6,13.2,5.4,1.3,0.23,29,46,57,2.5,1.3,0.6,1.3,36,40,2,11,1.9,0.37,0.33,20,null,null,10,0,1]
[0,0,0,null,null,null,null,null,null,null,null,null,null,null,null,null,null,null,null,"Yüksek verimli = 8 - 10 lt",null,null,null,null,null,null,null,null,null,null,null,null,null,null,null,null,null,null,null,null,null,null,null,null,null,null,null,null,null,null,null,null,"Tiftik Keçisi, Dişi, Geç Gebelik, İkiz, ",{"$f":"(Moher*0.016) + (-0.000027*BW^2 + 0.022*BW + 0.3935)","v":1.521825},{"$f":" IF(BW<40,(-0.0002*Moher^2 + 0.041*Moher + 2.45),  IF(BW<50,(-0.0002*Moher^2 +0.041*Moher + 2.95), IF(BW<60, (0.038*Moher + 3.43), (0.0002*Moher^2 +0.031*Moher + 3.95)  )))","v":3.43},{"$f":" IF(BW<40,(2.4*Moher + 140),  IF(BW<50,(-0.02*Moher^2 + 2.9*Moher + 164), IF(BW<60, (-0.02*Moher^2 + 3.1*Moher + 187), (-0.02*Moher^2 + 3.1*Moher + 212)  )))","v":187},{"$f":"(Moher*2.4) + (-0.005*BW^2 + 2.91*BW + 49.3)","v":194.22500000000002},{"$f":" IF(BW<40,(-0.02*Moher^2 + 2.7*Moher + 125),  IF(BW<50,(2.2*Moher + 152), IF(BW<60, (-0.02*Moher^2 + 2.9*Moher + 170), (-0.02*Moher^2 + 2.9*Moher + 193)  )))","v":170},{"$f":"(Moher*1.6) + (-0.005*BW^2 + 2.19*BW + 32.7)","v":138.02500000000001},{"$f":" IF(BW<40,(-0.02*Moher^2 + 1.3*Moher + 60),  IF(BW<50,(0.02*Moher^2 + 0.5*Moher + 76), IF(BW<60, (Moher + 85), (0.02*Moher^2 + 0.3*Moher + 102)  )))","v":85},{"$f":" IF(BW<40,(0.04*Moher + 5.3),  IF(BW<50,(0.002*Moher^2 - 0.01*Moher + 5.8), IF(BW<60, (0.02*Moher + 6), (0.02*Moher + 6.3)  )))","v":6},{"$f":" IF(BW<40,(0.02*Moher + 2.9),  IF(BW<50,(0.002*Moher^2 - 0.01*Moher + 3.2), IF(BW<60, (0.02*Moher + 3.4), (0.02*Moher + 3.7)  )))","v":3.4},null,null,null,null,null,null,null,null,null,null,null,null,null,null,59,"Yonca Sapları",89,1.7,11,7.7,6.9,4.8,0.9,0.18,44,68,47,2.1,1,0.2,1,51,100,1.3,6,2.5,null,null,null,null,null,8,0,1]
[0,0,0,null,null,null,null,null,null,null,null,null,null,null,null,null,null,null,null,null,null,null,null,null,null,null,null,null,null,null,null,null,null,null,null,null,null,null,null,null,null,null,null,null,null,null,null,null,null,null,null,null,"Tiftik Keçisi, Dişi, Erken Laktasyon, Tek, ",{"$f":" IF(BW<40,(0.016*Moher + 0.86),  IF(BW<50,(0.014*Moher + 1.05), IF(BW<60, (0.02*Moher + 1.47), (0.02*Moher + 1.63)  )))","v":1.47},{"$f":"(Moher*0.038) + (-0.0002*BW^2 + 0.0515*BW + 0.6735)","v":2.9009999999999998},{"$f":" IF(BW<40,(-0.02*Moher^2 + 2.9*Moher + 103),  IF(BW<50,(0.02*Moher^2 + 2.1*Moher + 128), IF(BW<60, (-0.02*Moher^2 + 3.1*Moher + 143), (2.4*Moher + 168)  )))","v":143},{"$f":" IF(BW<40,(-0.02*Moher^2 + 2.7*Moher + 99),  IF(BW<50,(-0.02*Moher^2 +2.7*Moher + 120), IF(BW<60, (0.02*Moher^2 + 1.7*Moher + 146), (-0.02*Moher^2 +2.9*Moher + 156) )))","v":146},{"$f":"(Moher*2.2) + (-0.0075*BW^2 + 2.585*BW + 25.05)","v":144.53750000000002},{"$f":"(Moher*1.6) + (-0.005*BW^2 + 1.85*BW + 20)","v":106.625},{"$f":" IF(BW<40,(-0.02*Moher^2 + 1.3*Moher + 50),  IF(BW<50,(-0.02*Moher^2 + 1.3*Moher + 60), IF(BW<60, (0.02*Moher^2 + 0.3*Moher + 75), (0.02*Moher^2 + 0.3*Moher + 83)  )))","v":75},{"$f":" IF(BW<40,(0.02*Moher + 3.3),  IF(BW<50,(0.02*Moher + 3.5), IF(BW<60, (0.002*Moher^2 - 0.03*Moher + 4.5), (0.002*Moher^2 - 0.03*Moher + 4.7)  )))","v":4.5},{"$f":" IF(BW<40,(0.02*Moher + 2.1),  IF(BW<50,(0.02*Moher + 2.6), IF(BW<60, (0.02*Moher + 3), (0.02*Moher + 3.2)  )))","v":3},null,null,null,null,null,null,null,null,null,null,null,null,null,null,60,"Yonca, Kuru % 17 ",92,2.2000000000000002,19,13.3,14.1,11.4,1.42,0.25,26,45,61,2.7,1.4,0.7,1.3,34,6,3,11,2.5,0.45,0.28000000000000003,21,26.2,121,9,0,1]
[0,0,0,null,null,null,null,null,null,null,null,null,null,null,null,null,null,null,null,"Süt verimi, Orta Laktasyon",null,null,null,null,null,null,null,null,null,null,null,null,null,null,null,null,null,null,null,null,null,null,null,null,null,null,null,null,null,null,null,null,"Tiftik Keçisi, Dişi, Erken Laktasyon, İkiz, ",{"$f":" IF(BW<40,(0.0002*Moher^2 + 0.009*Moher + 0.85),  IF(BW<50,(0.016*Moher + 1.18), IF(BW<60, (0.016*Moher + 1.32), (0.016*Moher + 1.44)  )))","v":1.32},{"$f":" IF(BW<40,(-0.0002*Moher^2 + 0.041*Moher + 2.38),  IF(BW<50,(-0.0002*Moher^2 +0.041*Moher + 2.81), IF(BW<60, (0.038*Moher + 3.15), (0.038*Moher + 3.45)  )))","v":3.15},{"$f":"(Moher*2.4) + (-0.0125*BW^2 + 3.615*BW + 31.95)","v":192.96250000000001},{"$f":" IF(BW<40,(0.02*Moher^2 + 1.9*Moher + 125),  IF(BW<50,(-0.02*Moher^2 +2.7*Moher + 148), IF(BW<60, (0.02*Moher^2 + 1.7*Moher + 177), (2.4*Moher + 193)  )))","v":177},{"$f":"(Moher*2.2) + (-0.01*BW^2 + 3.16*BW + 32.3)","v":175.85000000000002},{"$f":"(Moher*1.6) + (-0.01*BW^2 + 2.56*BW + 19.3)","v":129.85000000000002},{"$f":" IF(BW<40,(Moher + 59),  IF(BW<50,(-0.02*Moher^2 + 1.3*Moher + 69), IF(BW<60, (Moher + 78), (0.02*Moher^2 + 0.3*Moher + 91)  )))","v":78},{"$f":" IF(BW<40,(0.002*Moher^2 - 0.03*Moher + 5),  IF(BW<50,(0.02*Moher + 5.3), IF(BW<60, (0.02*Moher + 5.5), (0.002*Moher^2 - 0.03*Moher + 5.9)  )))","v":5.5},{"$f":" IF(BW<40,(0.02*Moher + 2.8),  IF(BW<50,(0.02*Moher + 3.3), IF(BW<60, (0.02*Moher + 3.5), (0.02*Moher + 3.6)  )))","v":3.5},null,null,null,null,null,null,null,null,null,null,null,null,null,null,61,"Yosun, Kurutulmuş",91,1.2,7,4.9000000000000004,3.3,null,2.72,0.31,7,null,32,1.4,0.8,0,0.6,10,null,0.5,39,null,null,null,null,null,null,100,0,1]
[0,0,0,null,null,null,null,null,null,null,null,null,null,null,null,null,null,null,null,"Düşük verimli = 3,0 - 4,5 lt",null,null,null,null,null,null,null,null,null,null,null,null,null,null,null,null,null,null,null,null,null,null,null,null,null,null,null,null,null,null,null,null,"Tiftik Keçisi, Dişi, Geç Laktasyon, Tek, ",{"$f":" IF(BW<40,(0.002*Moher + 1.03),  IF(BW<50,(0.0002*Moher^2 + 0.015*Moher + 1.29), IF(BW<60, (0.02*Moher + 1.48), (0.018*Moher + 1.7)  )))","v":1.48},{"$f":"(Moher*0.038) + (-0.000175*BW^2 + 0.0571*BW + 0.4165)","v":3.027625},{"$f":"(Moher*2.4) + (-0.0075*BW^2 + 2.645*BW + 22.35)","v":145.13749999999999},{"$f":" IF(BW<40,(0.02*Moher^2 + 1.9*Moher + 92),  IF(BW<50,(0.02*Moher^2 + 1.9*Moher + 112), IF(BW<60, (2.4*Moher + 128), (2.4*Moher + 144)  )))","v":128},{"$f":"(Moher*2.2) + (-0.0109*BW^2 + 2.64*BW + 16.7)","v":128.92750000000001},{"$f":"(Moher*1.6) + (-0.005*BW^2 + 1.75*BW + 16)","v":97.125},{"$f":" IF(BW<40,(-0.02*Moher^2 + 1.3*Moher + 48),  IF(BW<50,(Moher + 60), IF(BW<60, (Moher + 70), (0.02*Moher^2 + 0.3*Moher + 85)  )))","v":70},{"$f":" IF(BW<40,(-0.002*Moher^2 + 0.07*Moher + 3.3),  IF(BW<50,(0.02*Moher + 3.9), IF(BW<60, (0.002*Moher^2 - 0.03*Moher + 4.5), (0.02*Moher + 4.5)  )))","v":4.5},{"$f":" IF(BW<40,(-0.002*Moher^2 + 0.07*Moher + 2.1),  IF(BW<50,(-0.002*Moher^2 + 0.07*Moher + 2.4), IF(BW<60, (0.02*Moher + 3), (-0.002*Moher^2 + 0.09*Moher + 2.7)  )))","v":3},null,null,null,null,null,null,null,null,null,null,null,null,null,null,62,"Yulaf Kavuzu",93,1.4,4,2.8,0.6,1,0.16,0.15,32,75,40,1.8,0.9,0,0.8,40,90,1.5,7,0.6,0.08,0.14000000000000001,31,null,null,3.5,0,1]
[0,0,0,null,null,null,null,null,null,null,null,null,null,null,null,null,null,null,null,"Orta verimli = 4,5 - 5,5 lt",null,null,null,null,null,null,null,null,null,null,null,null,null,null,null,null,null,null,null,null,null,null,null,null,null,null,null,null,null,null,null,null,"Tiftik Keçisi, Dişi, Geç Laktasyon, İkiz, ",{"$f":" IF(BW<40,(0.0016*Moher + 0.99),  IF(BW<50,(0.02*Moher + 1.51), IF(BW<60, (0.02*Moher + 1.76), (0.02*Moher + 1.98)  )))","v":1.76},{"$f":" IF(BW<40,(0.0002*Moher^2 + 0.033*Moher + 2.4),  IF(BW<50,(0.038*Moher + 2.88), IF(BW<60, (0.0002*Moher^2 + 0.031*Moher + 3.42), (0.036*Moher + 3.83)  )))","v":3.42},{"$f":" IF(BW<40,(-0.02*Moher^2 + 2.9*Moher + 115),  IF(BW<50,(2.4*Moher + 142), IF(BW<60, (-0.02*Moher^2 + 3.1*Moher + 160), (2.6*Moher + 183)  )))","v":160},{"$f":" IF(BW<40,( 2.4*Moher + 111),  IF(BW<50,(0.02*Moher^2 + 1.9*Moher + 137), IF(BW<60, (-0.02*Moher^2 + 2.9*Moher + 154), (2.4*Moher + 176)  )))","v":154},{"$f":"(Moher*2.2) + (-0.01*BW^2 + 3*BW + 26)","v":160.75},{"$f":"(Moher*1.6) + (-0.01*BW^2 + 2.44*BW + 14.7)","v":118.64999999999999},{"$f":" IF(BW<40,( -0.02*Moher^2 + 1.3*Moher + 58),  IF(BW<50,(0.02*Moher^2 + 0.5*Moher + 74), IF(BW<60, (Moher + 83), (Moher + 94)  )))","v":83},{"$f":" IF(BW<40,(0.02*Moher + 5),  IF(BW<50,( -0.002*Moher^2 + 0.07*Moher + 5.5), IF(BW<60, (-0.002*Moher^2 + 0.09*Moher + 5.6), (-0.002*Moher^2 + 0.09*Moher + 5.9)  )))","v":5.6},{"$f":" IF(BW<40,(0.02*Moher + 3),  IF(BW<50,( -0.002*Moher^2 + 0.07*Moher + 3.5), IF(BW<60, (-0.002*Moher^2 + 0.09*Moher + 3.6), (0.002*Moher^2 - 0.03*Moher + 4.7)  )))","v":3.6},null,null,null,null,null,null,null,null,null,null,null,null,null,null,63,"Yulaf Kuru Otu",90,2,10,7,6,2.5,0.4,0.27,31,63,54,2.4,1.2,0.4,1.2,39,98,2.2999999999999998,8,1.6,0.42,0.21,28,5.6,null,6,0,1]
[0,0,0,null,null,null,null,null,null,null,null,null,null,null,null,null,null,null,null,"Yüksek verimli = 5,5 - 7,0 lt",null,null,null,null,null,null,null,null,null,null,null,null,null,null,null,null,null,null,null,null,null,null,null,null,null,null,null,null,null,null,null,null,"Tiftik Keçisi, Erkek, Yaşama Payı, , ",{"$f":"(Moher*0.02) + (-0.0001*BW^2 + 0.03*BW + 0.11)","v":1.4575},{"$f":" IF(BW<40,(0.038*Moher + 1.66),  IF(BW<50,(0.0002*Moher^2 +0.033*Moher + 2.09), IF(BW<60, (-0.0002*Moher^2 +0.043*Moher + 2.41), (-0.0002*Moher^2 +0.043*Moher + 2.77)  )))","v":2.41},{"$f":" IF(BW<40,(0.02*Moher^2 + 2.1*Moher + 65),  IF(BW<50,(2.4*Moher + 80), IF(BW<60, (-0.02*Moher^2 +3.1*Moher + 89), (0.02*Moher^2 +1.9*Moher + 111)  )))","v":89},{"$f":" IF(BW<40,(0.02*Moher^2 + 1.9*Moher + 63),  IF(BW<50,(2.4*Moher + 75), IF(BW<60, (-0.02*Moher^2 + 2.9*Moher + 86), (-0.02*Moher^2 + 2.9*Moher + 99)  )))","v":86},{"$f":"(Moher*2.2) + (-0.00249*BW^2 + 1.555*BW + 14.65)","v":92.642749999999992},{"$f":"(Moher*1.6) + (-0.005*BW^2 + 1.45*BW + 4)","v":68.625},{"$f":"(Moher) + (-0.0025*BW^2 + 1.155*BW + 8.65)","v":64.612499999999997},{"$f":" IF(BW<40,(-0.002*Moher^2 + 0.7*Moher + 1.6),  IF(BW<50,(-0.002*Moher^2 + 0.7*Moher + 1.9), IF(BW<60, (0.02*Moher + 2.5), (-0.002*Moher^2 + 0.09*Moher + 2.2)  )))","v":2.5},{"$f":" IF(BW<40,(0.02*Moher + 1.4),  IF(BW<50,(0.002*Moher^2 - 0.01*Moher + 1.8), IF(BW<60, (-0.002*Moher^2 + 0.09*Moher + 1.5), (0.002*Moher^2 - 0.03*Moher + 2.6)  )))","v":1.5},null,null,null,null,null,null,null,null,null,null,null,null,null,null,64,"Yulaf Samanı",91,1.7,4,2.8,0.6,1.6,0.24,7.0000000000000007E-2,41,73,48,2.1,1.1000000000000001,0.2,1,48,98,2.2999999999999998,8,2.4,0.78,0.22,6,800,null,3,0,1]
[0,0,0,null,null,null,null,null,null,null,null,null,null,null,null,null,null,null,null,null,null,null,null,null,null,null,null,null,null,null,null,null,null,null,null,null,null,null,null,null,null,null,null,null,null,null,null,null,null,null,null,null,"Tiftik Keçisi, Erkek, Flaşing, , ",{"$f":"(Moher*0.022) + (-0.000074*BW^2 + 0.03*BW + 0.1765)","v":1.6026499999999997},{"$f":"(Moher*0.041) + (-0.0001092*BW^2 + 0.0515*BW + 0.3908)","v":2.89297},{"$f":" IF(BW<40,(0.02*Moher^2 + 2.3*Moher + 72),  IF(BW<50,(0.02*Moher^2 +2.3*Moher + 89), IF(BW<60, (-0.02*Moher^2 +3.3*Moher + 99), (0*Moher^2 +3.3*Moher + 114)  )))","v":99},{"$f":"(Moher*2.6) + (-0.0025*BW^2 + 1.755*BW + 16.65)","v":105.61249999999998},{"$f":"(Moher*2.4) + (-0.00249*BW^2 + 1.695*BW + 16.35)","v":102.04275000000001},{"$f":"(Moher*1.8) + (-0.005*BW^2 + 1.55*BW + 5)","v":75.125},{"$f":" IF(BW<40,(Moher + 46),  IF(BW<50,(Moher + 57), IF(BW<60, (1.1*Moher + 66.167), (1.1*Moher + 75.833)  )))","v":66.167000000000002},{"$f":" IF(BW<40,(-0.002*Moher^2 + 0.07*Moher + 1.8),  IF(BW<50,(-0.002*Moher^2 + 0.07*Moher + 2.1), IF(BW<60, (0.002*Moher^2 - 0.03*Moher + 3), (0.002*Moher^2 - 0.03*Moher + 3.3)  )))","v":3},{"$f":" IF(BW<40,(0.02*Moher + 1.5),  IF(BW<50,(0.002*Moher^2 - 0.01*Moher + 2), IF(BW<60, (-0.002*Moher^2 + 0.09*Moher + 1.7), (-0.002*Moher^2 + 0.09*Moher + 2)  )))","v":1.7},null,null,null,null,null,null,null,null,null,null,null,null,null,null,65,"Yulaf, Değirmen Kalıntıları",89,1.2,8,5.6,4.2,null,0.12,0.23,25,null,33,1.5,0.8,0,0.7,37,null,2.6,6,0.6,null,0.24,null,null,null,5,0,1]
[0,0,0,null,null,null,null,null,null,null,null,null,null,null,null,null,null,null,null,"Süt verimi, Geç Laktasyon",null,null,null,null,null,null,null,null,null,null,null,null,null,null,null,null,null,null,null,null,null,null,null,null,null,null,null,null,null,null,null,null,"Tiftik Keçisi, Oğlak, Dişi, , ",{"$f":" (-0.0007*BW^2 + 0.057*BW - 0.19) + (Moher*0.0075) + (ADG*-0.000107) +(-0.0001675*BW^2 + 0.0067*BW - 0.0045)","v":0.68481250000000005},{"$f":" (-0.0003*BW^2 + 0.055*BW + 0.15) + (Moher*0.0375) + (ADG*0.00875)","v":2.2674999999999996},{"$f":" (-0.01*BW^2 + 2.2*BW + 7.1667) + (Moher*2.45833) + (ADG*0.41429)","v":97.91670000000002},{"$f":" (-0.01*BW^2 + 2.1*BW + 6.4167) + (Moher*2.4) + (ADG*0.4)","v":91.666700000000006},{"$f":" (-0.0085*BW^2 + 1.97*BW + 7) + (Moher*2.25) + (ADG*0.39)","v":89.637499999999989},{"$f":" (-0.0057*BW^2 + 1.45*BW + 5) + (Moher * 1.6458) + (ADG * 0.283)","v":67.507499999999993},{"$f":" (-0.01*BW^2 + 1.5*BW + 2.25) + (Moher*1) + (ADG*0.2)","v":54.5},{"$f":" (-0.001*BW^2 + 0.08*BW + 0.3) + (Moher*0.01042) + (ADG*0.02357)","v":1.6750000000000005},{"$f":" (-0.0011*BW^2 + 0.08*BW - 0.05) + (Moher*0.01042) + (ADG*0.00857)","v":1.0225000000000002},null,null,null,null,null,null,null,null,null,null,null,null,null,null,66]
[0,0,0,null,null,null,null,null,null,null,null,null,null,null,null,null,null,null,null,"Düşük verimli = 2,0 - 2,5 lt",null,null,null,null,null,null,null,null,null,null,null,null,null,null,null,null,null,null,null,null,null,null,null,null,null,null,null,null,null,null,null,null,"Tiftik Keçisi, Oğlak, Erkek, , ",{"$f":" (-0.0021*BW^2 + 0.105*BW - 0.4992) + (Moher*0.009792) + (ADG*0.0025) +(0.00145*BW^2-0.0535*BW+0.3442)","v":0.71124999999999905},{"$f":" (-0.000356*BW^2 + 0.0635*BW + 0.17) + (Moher*0.0375) + (ADG*0.009)","v":2.5856000000000003},{"$f":" (-0.01*BW^2 + 2.2*BW + 7.1667) + (Moher*2.45833) + (ADG*0.41429)","v":97.91670000000002},{"$f":" (-0.01*BW^2 + 2.1*BW + 6.4167) + (Moher*2.4) + (ADG*0.4)","v":91.666700000000006},{"$f":" (-0.0085*BW^2 + 1.97*BW + 7) + (Moher*2.25) + (ADG*0.39)","v":89.637499999999989},{"$f":" (-0.0057*BW^2 + 1.45*BW + 5) + (Moher * 1.6458) + (ADG * 0.283)","v":67.507499999999993},{"$f":" (-0.0052*BW^2 + 1.45*BW + 5.25) + (Moher*0.95) + (ADG*0.22)","v":69.27},{"$f":" (0.0002*BW^2 + 0.03*BW + 0.5) + (Moher*0.0208) + (ADG*0.03)","v":2.7549999999999999},{"$f":" (0.00006*BW^2 + 0.03*BW + 0.2) + (Moher*0.020833) + (ADG*0.01321)","v":2.0314999999999999},null,null,null,null,null,null,null,null,null,null,null,null,null,null,67]
[0,0,0,null,null,null,null,null,null,null,null,null,null,null,null,null,null,null,null,"Orta verimli = 2,5 - 3,0 lt",null,null,null,null,null,null,null,null,null,null,null,null,null,null,null,null,null,null,null,null,null,null,null,null,null,null,null,null,null,null,null,null,null,null,null,null,null,null,null,null,null,null,null,null,null,null,null,null,null,null,null,null,null,null,null,null,68]
[0,0,0,null,null,null,null,null,null,null,null,null,null,null,null,null,null,null,null,"Yüksek verimli = 3,0 - 4,0 lt",null,null,null,null,null,null,null,null,null,null,null,null,null,null,null,null,null,null,null,null,null,null,null,null,null,null,null,null,null,null,null,null,null,null,null,null,null,null,null,null,null,null,null,null,null,null,null,null,null,null,null,null,null,null,null,null,69]
[0,0,0,null,null,null,null,null,null,null,null,null,null,null,null,null,null,null,null,null,null,null,null,null,null,null,null,null,null,null,null,null,null,null,null,null,null,null,null,null,null,null,null,null,null,null,null,null,null,null,null,null,null,null,null,null,null,null,null,null,null,null,null,null,null,null,null,null,null,null,null,null,null,null,null,null,70]
[0,0,0,null,null,null,null,null,null,null,null,null,null,null,null,null,null,null,null,"Oğlaklarda;",null,null,null,null,null,null,null,null,null,null,null,null,null,null,null,null,null,null,null,null,null,null,null,null,null,null,null,null,null,null,null,null,null,null,null,null,null,null,null,null,null,null,null,null,null,null,null,null,null,null,null,null,null,null,null,null,71]
[0,0,0,null,null,null,null,null,null,null,null,null,null,null,null,null,null,null,null,"Günlük canlı ağırlık artışı;",null,null,null,null,null,null,null,null,null,null,null,null,null,null,null,null,null,null,null,null,null,null,null,null,null,null,null,null,null,null,null,null,null,null,null,null,null,null,null,null,null,null,null,null,null,null,null,null,null,null,null,null,null,null,null,null,72]
[0,0,0,null,null,null,null,null,null,null,null,null,null,null,null,null,null,null,null," - Oğlaklarda 250-300 g",null,null,null,null,null,null,null,null,null,null,null,null,null,null,null,null,null,null,null,null,null,null,null,null,null,null,null,null,null,null,null,null,null,null,null,null,null,null,null,null,null,null,null,null,null,null,null,null,null,null,null,null,null,null,null,null,73]
[0,0,0,null,null,null,null,null,null,null,null,null,null,null,null,null,null,null,null," - Tiftik keçisi oğlaklarında",null,null,null,null,null,null,null,null,null,null,null,null,null,null,null,null,null,null,null,null,null,null,null,null,null,null,null,null,null,null,null,null,null,null,null,null,null,null,null,null,null,null,null,null,null,null,null,null,null,null,null,null,null,null,null,null,74]
[0,0,0,null,null,null,null,null,null,null,null,null,null,null,null,null,null,null,null,"    40-50 g girilebilir…",null,null,null,null,null,null,null,null,null,null,null,null,null,null,null,null,null,null,null,null,null,null,null,null,null,null,null,null,null,null,null,null,null,null,null,null,null,null,null,null,null,null,null,null,null,null,null,null,null,null,null,null,null,null,null,null,75]
[0,0,0,null,null,null,null,null,null,null,null,null,null,null,null,null,null,null,null,null,null,null,null,null,null,null,null,null,null,null,null,null,null,null,null,null,null,null,null,null,null,null,null,null,null,null,null,null,null,null,null,null,null,null,null,null,null,null,null,null,null,null,null,null,null,null,null,null,null,null,null,null,null,null,null,null,null,"SULU KABA YEMLER","KM,%","ME, Mcal/kg","HP,%","MP,%","DIP,%","RUP,%","Ca,%","P,%","HS,%","NDF,%","TSBM,%","SE, Mcal/kg","NEyp, Mcal/kg","NEb, Mcal/kg","NEl, Mcal/kg","ADF,%","eNDF,%","HY,%","HK,%","K,%","Cl,%","S,%","Zn,ppm","VitA, RE/kg","VitE,ppm","Fiyat,TL","En az","En çok"]
[0,0,0,null,null,null,null,null,null,null,null,null,null,null,null,null,null,null,null,null,null,null,null,null,null,null,null,null,null,null,null,null,null,null,null,null,null,null,null,null,null,null,null,null,null,null,null,null,null,null,null,null,null,null,null,null,null,null,null,null,null,null,null,null,null,null,null,null,null,null,null,null,null,null,null,null,1,"Adi Japon Üçgülü (Lespedeza), Yaş, Çiçek Başı",25,2.2000000000000002,16,11.2,11.4,8,1.2,0.24,32,null,60,2.6,1.3,0.7,1.3,null,null,2,10,1.1000000000000001,null,0.21,null,null,null,11,0,1]
[0,0,0,null,null,null,null,null,null,null,null,null,null,null,null,null,null,null,null,null,null,null,null,null,null,null,null,null,null,null,null,null,null,null,null,null,null,null,null,null,null,null,null,null,null,null,null,null,null,null,null,null,null,null,null,null,null,null,null,null,null,null,null,null,null,null,null,null,null,null,null,null,null,null,null,null,2,"Akasya Yaprakları",30,0.69,5,0.8,1.2,null,null,null,null,null,19,0.84,0.77,0,null,null,null,null,null,null,null,null,null,null,null,11,0,1]
[0,0,0,null,null,null,null,null,null,null,null,null,null,null,null,null,null,null,null,null,null,null,null,null,null,null,null,null,null,null,null,null,null,null,null,null,null,null,null,null,null,null,null,null,null,null,null,null,null,null,null,null,null,null,null,null,null,null,null,null,null,null,null,null,null,null,null,null,null,null,null,null,null,null,null,null,3,"Ardıç Yaprakları",52,2.31,6.5,1.8,2.6,null,null,0.08,null,null,64,2.82,1.41,0.78,null,null,null,null,null,null,null,null,null,null,null,11,0,1]
[0,0,0,null,null,null,null,null,null,null,null,null,null,null,null,null,null,null,null,"Tiftik verimi ortalaması;",null,null,null,null,null,null,null,null,null,null,null,null,null,null,null,null,null,null,null,null,null,null,null,null,null,null,null,null,null,null,null,null,null,null,null,null,null,null,null,null,null,null,null,null,null,null,null,null,null,null,null,null,null,null,null,null,4,"At kestanesi",43,null,15.9,null,null,null,null,null,null,38.200000000000003,null,null,null,null,null,25.3,null,null,9,null,null,null,null,null,null,11,0,1]
[0,0,0,null,null,null,null,null,null,null,null,null,null,null,null,null,null,null,null,"Türkiye'de;",null,null,null,null,null,null,null,null,null,null,null,null,null,null,null,null,null,null,null,null,null,null,null,null,null,null,null,null,null,null,null,null,null,null,null,null,null,null,null,null,null,null,null,null,null,null,null,null,null,null,null,null,null,null,null,null,5,"Ayçiçeği Bitkisi, Geç Büyüme Dönemi",12,2.31,8.3000000000000007,3,4.3,null,null,null,null,null,64,2.82,1.41,0.78,null,null,null,null,null,null,null,null,null,null,null,8,0,1]
[null,null,null,null,null,null,null,null,null,null,null,null,null,null,null,null,null,null,null,"  - 1 yaşlılarda 0,8-1,7 kg",null,null,null,null,null,null,null,null,null,null,null,null,null,null,null,null,null,null,null,null,null,null,null,null,null,null,null,null,null,null,null,null,null,null,null,null,null,null,null,null,null,null,null,null,null,null,null,null,null,null,null,null,null,null,null,null,6,"Bezelye Asması",14,2.42,27.4,15.5,22.1,null,null,null,null,null,67,2.95,1.5,0.88,null,null,null,null,null,null,null,null,null,null,null,10,0,1]
[null,null,null,null,null,null,null,null,null,null,null,null,null,null,null,null,null,null,null,"  - Erginlerde 1,6-3,7 kg",null,null,null,null,null,null,null,null,null,null,null,null,null,null,null,null,null,null,null,null,null,null,null,null,null,null,null,null,null,null,null,null,null,null,null,null,null,null,null,null,null,null,null,null,null,null,null,null,null,null,null,null,null,null,null,null,7,"Beyaz Üçgül (Clover Ladino), Yaş",19,2.5,25,17.5,19.5,5,1.27,0.38,14,35,69,3,1.6,0.9,1.5,33,41,4.8,11,2.4,null,0.2,20,70.599999999999994,null,11,0,1]
[null,null,null,null,null,null,null,null,null,null,null,null,null,null,null,null,null,null,null,"ABD ve G.Afrika'da;",null,null,null,null,null,null,null,null,null,null,null,null,null,null,null,null,null,null,null,null,null,null,null,null,null,null,null,null,null,null,null,null,null,null,null,null,null,null,null,null,null,null,null,null,null,null,null,null,null,null,null,null,null,null,null,null,8,"Böğürtlen, Eylül ",44,null,8.1999999999999993,null,null,null,null,null,null,null,73,null,null,null,null,null,null,null,null,null,null,null,null,null,null,11,0,1]
[null,null,null,null,null,null,null,null,null,null,null,null,null,null,null,null,null,null,null,"  - 3,5-4,0 kg",null,null,null,null,null,null,null,null,null,null,null,null,null,null,null,null,null,null,null,null,null,null,null,null,null,null,null,null,null,null,null,null,null,null,null,null,null,null,null,null,null,null,null,null,null,null,null,null,null,null,null,null,null,null,null,null,9,"Böğürtlen, Temmuz",45,null,8.6,null,null,null,null,null,null,null,72,null,null,null,null,null,null,null,null,null,null,null,null,null,null,11,0,1]
[null,null,null,null,null,null,null,null,null,null,null,null,null,null,null,null,null,null,null,null,null,null,null,null,null,null,null,null,null,null,null,null,null,null,null,null,null,null,null,null,null,null,null,null,null,null,null,null,null,null,null,null,null,null,null,null,null,null,null,null,null,null,null,null,null,null,null,null,null,null,null,null,null,null,null,null,10,"Börülce",15,2.31,16.2,8.1999999999999993,11.7,null,null,0.28000000000000003,null,null,64,2.82,1.41,0.78,null,null,null,null,null,null,null,null,null,null,null,11,0,1]
[null,null,null,null,null,null,null,null,null,null,null,null,null,null,null,null,null,null,null,null,null,null,null,null,null,null,null,null,null,null,null,null,null,null,null,null,null,null,null,null,null,null,null,null,null,null,null,null,null,null,null,null,null,null,null,null,null,null,null,null,null,null,null,null,null,null,null,null,null,null,null,null,null,null,null,null,11,"Brom Otu (Bromegrass), Yaş, Körpe ",30,2.2999999999999998,15,10.5,10.5,33,0.45,0.34,28,54,64,2.8,1.4,0.8,1.4,33,40,4.0999999999999996,10,2.2999999999999998,null,0.21,20,38.4,null,11,0,1]
[null,null,null,null,null,null,null,null,null,null,null,null,null,null,null,null,null,null,null,null,null,null,null,null,null,null,null,null,null,null,null,null,null,null,null,null,null,null,null,null,null,null,null,null,null,null,null,null,null,null,null,null,null,null,null,null,null,null,null,null,null,null,null,null,null,null,null,null,null,null,null,null,null,null,null,null,12,"Buğday, Yaş, Mera ",21,2.6,20,14,15,3.2,0.35,0.36,18,50,71,3.1,1.6,1,1.6,30,41,4,13,3.1,0.67,0.22,null,null,null,14,0,1]
[null,null,null,null,null,null,null,null,null,null,null,null,null,null,null,null,null,null,null,null,null,null,null,null,null,null,null,null,null,null,null,null,null,null,null,null,null,null,null,null,null,null,null,null,null,null,null,null,null,null,null,null,null,null,null,null,null,null,null,null,null,null,null,null,null,null,null,null,null,null,null,null,null,null,null,null,13,"Çayır Kelp Kuyruğu (Timothy), Yaş, Çiçeklenme Öncesi",26,2.2999999999999998,11,7.7,6.9,2.2000000000000002,0.4,0.28000000000000003,31,59,64,2.8,1.4,0.8,1.4,36,41,3.8,7,1.9,0.56999999999999995,0.15,28,35.799999999999997,111,11,0,1]
[null,null,null,null,null,null,null,null,null,null,null,null,null,null,null,null,null,null,null,null,null,null,null,null,null,null,null,null,null,null,null,null,null,null,null,null,null,null,null,null,null,null,null,null,null,null,null,null,null,null,null,null,null,null,null,null,null,null,null,null,null,null,null,null,null,null,null,null,null,null,null,null,null,null,null,null,14,"Çayır Salkım Otu (Bluegrass), Yaş, Çiç.Baş.",36,2.5,15,10.5,10.5,3,0.37,0.3,27,60,69,3,1.6,0.9,1.5,32,41,3.9,7,1.9,0.42,0.19,25,43.8,null,11,0,1]
[null,null,null,null,null,null,null,null,null,null,null,null,null,null,null,null,null,null,null,null,null,null,null,null,null,null,null,null,null,null,null,null,null,null,null,null,null,null,null,null,null,null,null,null,null,null,null,null,null,null,null,null,null,null,null,null,null,null,null,null,null,null,null,null,null,null,null,null,null,null,null,null,null,null,null,null,15,"Çayır Üçgülü (Clover Red), Yaş",24,2.2999999999999998,18,12.6,13.2,3.8,1.7,0.3,24,44,64,2.8,1.4,0.8,1.4,33,41,4,9,2,0.6,0.17,23,40.4,null,11,0,1]
[null,null,null,null,null,null,null,null,null,null,null,null,null,null,null,null,null,null,null,null,null,null,null,null,null,null,null,null,null,null,null,null,null,null,null,null,null,null,null,null,null,null,null,null,null,null,null,null,null,null,null,null,null,null,null,null,null,null,null,null,null,null,null,null,null,null,null,null,null,null,null,null,null,null,null,null,16,"Çitlembik Sürgünleri",56,1.56,7.8,2.7,3.8,null,null,0.08,null,null,43,1.9,0.94,0,null,null,null,null,null,null,null,null,null,null,null,11,0,1]
[null,null,null,null,null,null,null,null,null,null,null,null,null,null,null,null,null,null,null,null,null,null,null,null,null,null,null,null,null,null,null,null,null,null,null,null,null,null,null,null,null,null,null,null,null,null,null,null,null,null,null,null,null,null,null,null,null,null,null,null,null,null,null,null,null,null,null,null,null,null,null,null,null,null,null,null,17,"Dişbudak Yaprakları, Taze",44,null,10.9,null,null,null,null,null,null,51.2,null,null,null,null,null,38.4,null,null,10,null,null,null,null,null,null,11,0,1]
[null,null,null,null,null,null,null,null,null,null,null,null,null,null,null,null,null,null,null,null,null,null,null,null,null,null,null,null,null,null,null,null,null,null,null,null,null,null,null,null,null,null,null,null,null,null,null,null,null,null,null,null,null,null,null,null,null,null,null,null,null,null,null,null,null,null,null,null,null,null,null,null,null,null,null,null,18,"Domuz Ayrığı (Orchardgrass), Yaş, Çiçek Başı",24,2.4,14,9.8000000000000007,9.6,3.2,0.33,0.39,30,54,65,2.9,1.5,0.8,1.5,32,41,4,9,2.7,0.08,0.2,21,60.4,436,11,0,1]
[null,null,null,null,null,null,null,null,null,null,null,null,null,null,null,null,null,null,null,null,null,null,null,null,null,null,null,null,null,null,null,null,null,null,null,null,null,null,null,null,null,null,null,null,null,null,null,null,null,null,null,null,null,null,null,null,null,null,null,null,null,null,null,null,null,null,null,null,null,null,null,null,null,null,null,null,19,"Dut Sürgünleri",40,2.57,18.100000000000001,9.4,13.4,null,null,0.24,null,null,71,3.13,1.61,1,null,null,null,null,15,null,null,null,null,null,null,11,0,1]
[null,null,null,null,null,null,null,null,null,null,null,null,null,null,null,null,null,null,null,null,null,null,null,null,null,null,null,null,null,null,null,null,null,null,null,null,null,null,null,null,null,null,null,null,null,null,null,null,null,null,null,null,null,null,null,null,null,null,null,null,null,null,null,null,null,null,null,null,null,null,null,null,null,null,null,null,20,"Erik Yaprakları",30,1.56,7.8,0.1,0.1,null,null,null,null,null,43,1.9,0.94,0,null,null,null,null,null,null,null,null,null,null,null,11,0,1]
[null,null,null,null,null,null,null,null,null,null,null,null,null,null,null,null,null,null,null,null,null,null,null,null,null,null,null,null,null,null,null,null,null,null,null,null,null,null,null,null,null,null,null,null,null,null,null,null,null,null,null,null,null,null,null,null,null,null,null,null,null,null,null,null,null,null,null,null,null,null,null,null,null,null,null,null,21,"Fiğ Bitkisi",20,2.13,18.600000000000001,9.6999999999999993,13.9,null,null,0.34,null,null,59,2.6,1.28,0.62,null,null,null,null,null,null,null,null,null,null,null,6,0,1]
[null,null,null,null,null,null,null,null,null,null,null,null,null,null,null,null,null,null,null,null,null,null,null,null,null,null,null,null,null,null,null,null,null,null,null,null,null,null,null,null,null,null,null,null,null,null,null,null,null,null,null,null,null,null,null,null,null,null,null,null,null,null,null,null,null,null,null,null,null,null,null,null,null,null,null,null,22,"Hanımeli Yaprakları",33,2.5,10,4.0999999999999996,5.9,null,null,0.11,null,20,69,3.04,1.55,0.94,null,null,null,null,null,null,null,null,null,null,null,11,0,1]
[null,null,null,null,null,null,null,null,null,null,null,null,null,null,null,null,null,null,null,null,null,null,null,null,null,null,null,null,null,null,null,null,null,null,null,null,null,null,null,null,null,null,null,null,null,null,null,null,null,null,null,null,null,null,null,null,null,null,null,null,null,null,null,null,null,null,null,null,null,null,null,null,null,null,null,null,23,"Havuç Yaprakları ",16,2.6,13,9.1,8.6999999999999993,null,1.94,0.19,18,45,73,3.2,1.7,1.1000000000000001,1.7,23,41,3.8,15,1.9,null,null,null,null,null,1,0,1]
[null,null,null,null,null,null,null,null,null,null,null,null,null,null,null,null,null,null,null,null,null,null,null,null,null,null,null,null,null,null,null,null,null,null,null,null,null,null,null,null,null,null,null,null,null,null,null,null,null,null,null,null,null,null,null,null,null,null,null,null,null,null,null,null,null,null,null,null,null,null,null,null,null,null,null,null,24,"Hurma Yaprakları",48,1.95,11.8,5.3,7.6,null,null,0.11,null,null,54,2.38,1.1599999999999999,0.43,null,null,null,null,null,null,null,null,null,null,null,1,0,1]
[null,null,null,null,null,null,null,null,null,null,null,null,null,null,null,null,null,null,null,null,null,null,null,null,null,null,null,null,null,null,null,null,null,null,null,null,null,null,null,null,null,null,null,null,null,null,null,null,null,null,null,null,null,null,null,null,null,null,null,null,null,null,null,null,null,null,null,null,null,null,null,null,null,null,null,null,25,"Hünnap Sürgünleri",32,1.1200000000000001,8.6,2.2000000000000002,3.1,null,null,null,null,null,31,1.37,0.79,0,null,null,null,null,null,null,null,null,null,null,null,1,0,1]
[null,null,null,null,null,null,null,null,null,null,null,null,null,null,null,null,null,null,null,null,null,null,null,null,null,null,null,null,null,null,null,null,null,null,null,null,null,null,null,null,null,null,null,null,null,null,null,null,null,null,null,null,null,null,null,null,null,null,null,null,null,null,null,null,null,null,null,null,null,null,null,null,null,null,null,null,26,"İncir Yaprakları",30,1.95,11.2,4.7,6.7,null,null,0.71,null,null,54,2.38,1.1599999999999999,0.43,null,null,null,null,null,null,null,null,null,null,null,11,0,1]
[null,null,null,null,null,null,null,null,null,null,null,null,null,null,null,null,null,null,null,null,null,null,null,null,null,null,null,null,null,null,null,null,null,null,null,null,null,null,null,null,null,null,null,null,null,null,null,null,null,null,null,null,null,null,null,null,null,null,null,null,null,null,null,null,null,null,null,null,null,null,null,null,null,null,null,null,27,"Kaktüs",26,2.2999999999999998,5,3.5,1.5,null,3.5,0.1,18,29,63,2.8,1.4,0.7,1.4,23,null,2.1,17,1.7,null,0.2,null,null,null,11,0,1]
[null,null,null,null,null,null,null,null,null,null,null,null,null,null,null,null,null,null,null,null,null,null,null,null,null,null,null,null,null,null,null,null,null,null,null,null,null,null,null,null,null,null,null,null,null,null,null,null,null,null,null,null,null,null,null,null,null,null,null,null,null,null,null,null,null,null,null,null,null,null,null,null,null,null,null,null,28,"Kamışsı Yumak, Yaş",29,2.2999999999999998,15,10.5,10.5,3,0.48,0.37,25,64,64,2.8,1.4,0.8,1.4,32,40,5.5,9,2.5,null,0.18,22,null,null,11,0,1]
[null,null,null,null,null,null,null,null,null,null,null,null,null,null,null,null,null,null,null,null,null,null,null,null,null,null,null,null,null,null,null,null,null,null,null,null,null,null,null,null,null,null,null,null,null,null,null,null,null,null,null,null,null,null,null,null,null,null,null,null,null,null,null,null,null,null,null,null,null,null,null,null,null,null,null,null,29,"Kır Ayrığı (Wheatgrass), Yaş, Çiçek Başı",37,2.2000000000000002,11,7.7,6.9,2.8,0.46,0.32,26,50,60,2.6,1.3,0.7,1.3,28,41,1.6,7,2.4,null,null,null,42.6,null,11,0,1]
[null,null,null,null,null,null,null,null,null,null,null,null,null,null,null,null,null,null,null,null,null,null,null,null,null,null,null,null,null,null,null,null,null,null,null,null,null,null,null,null,null,null,null,null,null,null,null,null,null,null,null,null,null,null,null,null,null,null,null,null,null,null,null,null,null,null,null,null,null,null,null,null,null,null,null,null,30,"Kır Ayrığı (Wheatgrass), Yaş, Tam Çiçeklenme",50,2,10,7,6,3.3,0.39,0.28000000000000003,33,65,55,2.4,1.2,0.5,1.2,36,41,1.6,7,2.1,null,null,null,null,null,11,0,1]
[null,null,null,null,null,null,null,null,null,null,null,null,null,null,null,null,null,null,null,null,null,null,null,null,null,null,null,null,null,null,null,null,null,null,null,null,null,null,null,null,null,null,null,null,null,null,null,null,null,null,null,null,null,null,null,null,null,null,null,null,null,null,null,null,null,null,null,null,null,null,null,null,null,null,null,null,31,"Marul ",5,2.5299999999999998,22,11.9,17,null,null,null,null,null,70,3.09,1.58,0.97,null,null,null,null,23,null,null,null,null,null,null,11,0,1]
[null,null,null,null,null,null,null,null,null,null,null,null,null,null,null,null,null,null,null,null,null,null,null,null,null,null,null,null,null,null,null,null,null,null,null,null,null,null,null,null,null,null,null,null,null,null,null,null,null,null,null,null,null,null,null,null,null,null,null,null,null,null,null,null,null,null,null,null,null,null,null,null,null,null,null,null,32,"Meşe Sürgünleri",36,1.95,20.3,10.9,15.5,null,null,0.38,null,34,54,2.38,1.1599999999999999,0.43,null,null,null,null,null,null,null,null,null,null,null,11,0,1]
[null,null,null,null,null,null,null,null,null,null,null,null,null,null,null,null,null,null,null,null,null,null,null,null,null,null,null,null,null,null,null,null,null,null,null,null,null,null,null,null,null,null,null,null,null,null,null,null,null,null,null,null,null,null,null,null,null,null,null,null,null,null,null,null,null,null,null,null,null,null,null,null,null,null,null,null,33,"Meşe Sürgünleri",32,2.6,17.399999999999999,9,12.8,null,null,0.31,null,23,72,3.17,1.64,1.03,null,null,null,null,null,null,null,null,null,null,null,11,0,1]
[null,null,null,null,null,null,null,null,null,null,null,null,null,null,null,null,null,null,null,null,null,null,null,null,null,null,null,null,null,null,null,null,null,null,null,null,null,null,null,null,null,null,null,null,null,null,null,null,null,null,null,null,null,null,null,null,null,null,null,null,null,null,null,null,null,null,null,null,null,null,null,null,null,null,null,null,34,"Meşe Yaprakları",50,1.66,10.199999999999999,4.3,6.1,null,null,0.11,null,45,46,2.0299999999999998,0.99,0.1,null,null,null,null,null,null,null,null,null,null,null,11,0,1]
[null,null,null,null,null,null,null,null,null,null,null,null,null,null,null,null,null,null,null,null,null,null,null,null,null,null,null,null,null,null,null,null,null,null,null,null,null,null,null,null,null,null,null,null,null,null,null,null,null,null,null,null,null,null,null,null,null,null,null,null,null,null,null,null,null,null,null,null,null,null,null,null,null,null,null,null,35,"Mimoza Sürgünleri ",26,2.5,20.6,11.1,15.8,null,null,0.17,null,null,69,3.04,1.55,0.94,null,null,null,null,null,null,null,null,null,null,null,11,0,1]
[null,null,null,null,null,null,null,null,null,null,null,null,null,null,null,null,null,null,null,null,null,null,null,null,null,null,null,null,null,null,null,null,null,null,null,null,null,null,null,null,null,null,null,null,null,null,null,null,null,null,null,null,null,null,null,null,null,null,null,null,null,null,null,null,null,null,null,null,null,null,null,null,null,null,null,null,36,"Muz Yaprakları, Hasat Sonrası",24,2.6,17.899999999999999,9.5,13.6,null,1.1399999999999999,0.19,null,null,72,null,null,null,null,null,null,8.1999999999999993,10,null,null,null,null,null,null,11,0,1]
[null,null,null,null,null,null,null,null,null,null,null,null,null,null,null,null,null,null,null,null,null,null,null,null,null,null,null,null,null,null,null,null,null,null,null,null,null,null,null,null,null,null,null,null,null,null,null,null,null,null,null,null,null,null,null,null,null,null,null,null,null,null,null,null,null,null,null,null,null,null,null,null,null,null,null,null,37,"Muz Yaprakları, Körpe",18,2.48,20,10.9,15.6,null,0.24,0.21,null,null,69,null,null,null,null,null,null,4.0999999999999996,8,null,null,null,null,null,null,11,0,1]
[null,null,null,null,null,null,null,null,null,null,null,null,null,null,null,null,null,null,null,null,null,null,null,null,null,null,null,null,null,null,null,null,null,null,null,null,null,null,null,null,null,null,null,null,null,null,null,null,null,null,null,null,null,null,null,null,null,null,null,null,null,null,null,null,null,null,null,null,null,null,null,null,null,null,null,null,38,"Muz Yaprakları, Taze",19,1.81,15.7,4.7,6.7,null,null,0.7,null,null,50,2.21,1.07,0.28000000000000003,null,null,null,null,null,null,null,null,null,null,null,11,0,1]
[null,null,null,null,null,null,null,null,null,null,null,null,null,null,null,null,null,null,null,null,null,null,null,null,null,null,null,null,null,null,null,null,null,null,null,null,null,null,null,null,null,null,null,null,null,null,null,null,null,null,null,null,null,null,null,null,null,null,null,null,null,null,null,null,null,null,null,null,null,null,null,null,null,null,null,null,39,"OTLAK, AĞUSTOS",20,2.15,9.6999999999999993,6,5.2,3.5,0.26,0.15,30,65,50,2.1,1,0.3,1,40,41,1.6,7,2.1,null,null,null,null,null,0,null,4]
[null,null,null,null,null,null,null,null,null,null,null,null,null,null,null,null,null,null,null,null,null,null,null,null,null,null,null,null,null,null,null,null,null,null,null,null,null,null,null,null,null,null,null,null,null,null,null,null,null,null,null,null,null,null,null,null,null,null,null,null,null,null,null,null,null,null,null,null,null,null,null,null,null,null,null,null,40,"OTLAK, EYLÜL",20,2.0699999999999998,6.9,3,2,4,0.26,0.15,30,70,48,1.6,0.8,0.2,0.8,42,41,1.6,7,2.1,null,null,null,null,null,0,null,4]
[null,null,null,null,null,null,null,null,null,null,null,null,null,null,null,null,null,null,null,null,null,null,null,null,null,null,null,null,null,null,null,null,null,null,null,null,null,null,null,null,null,null,null,null,null,null,null,null,null,null,null,null,null,null,null,null,null,null,null,null,null,null,null,null,null,null,null,null,null,null,null,null,null,null,null,null,41,"OTLAK, HAZİRAN",20,2.35,11,7.7,6.9,2.2000000000000002,0.26,0.15,25,59,64,2.8,1.4,0.8,1.4,36,41,3.8,7,1.9,0.56999999999999995,0.15,28,35.799999999999997,111,0,null,4]
[null,null,null,null,null,null,null,null,null,null,null,null,null,null,null,null,null,null,null,null,null,null,null,null,null,null,null,null,null,null,null,null,null,null,null,null,null,null,null,null,null,null,null,null,null,null,null,null,null,null,null,null,null,null,null,null,null,null,null,null,null,null,null,null,null,null,null,null,null,null,null,null,null,null,null,null,42,"OTLAK, KIŞ",80,1.83,4.7,2,1,4,0.26,0.15,40,72,45,1.3,0.5,0.1,0.6,45,41,1.6,7,2.1,null,null,null,null,null,0,null,4]
[null,null,null,null,null,null,null,null,null,null,null,null,null,null,null,null,null,null,null,null,null,null,null,null,null,null,null,null,null,null,null,null,null,null,null,null,null,null,null,null,null,null,null,null,null,null,null,null,null,null,null,null,null,null,null,null,null,null,null,null,null,null,null,null,null,null,null,null,null,null,null,null,null,null,null,null,43,"OTLAK, TEMMUZ",20,2.25,10.5,7,6,3.3,0.26,0.15,25,65,55,2.4,1.2,0.5,1.2,36,41,1.6,7,2.1,null,null,null,null,null,0,null,4]
[null,null,null,null,null,null,null,null,null,null,null,null,null,null,null,null,null,null,null,null,null,null,null,null,null,null,null,null,null,null,null,null,null,null,null,null,null,null,null,null,null,null,null,null,null,null,null,null,null,null,null,null,null,null,null,null,null,null,null,null,null,null,null,null,null,null,null,null,null,null,null,null,null,null,null,null,44,"Sarı Çiçekli Gazal Boynuzu (Birdsfoot), Yaş",22,2.4,21,14.7,15.9,4.2,1.78,0.25,21,47,66,2.9,1.5,0.8,1.5,31,41,4.4000000000000004,9,2.6,null,0.25,31,null,null,11,0,1]
[null,null,null,null,null,null,null,null,null,null,null,null,null,null,null,null,null,null,null,null,null,null,null,null,null,null,null,null,null,null,null,null,null,null,null,null,null,null,null,null,null,null,null,null,null,null,null,null,null,null,null,null,null,null,null,null,null,null,null,null,null,null,null,null,null,null,null,null,null,null,null,null,null,null,null,null,45,"Söğüt Sürgünleri",41,2.2000000000000002,9.8000000000000007,null,null,null,null,null,27,48.1,null,null,null,null,null,39.9,null,null,7,null,null,null,null,null,null,11,0,1]
[null,null,null,null,null,null,null,null,null,null,null,null,null,null,null,null,null,null,null,null,null,null,null,null,null,null,null,null,null,null,null,null,null,null,null,null,null,null,null,null,null,null,null,null,null,null,null,null,null,null,null,null,null,null,null,null,null,null,null,null,null,null,null,null,null,null,null,null,null,null,null,null,null,null,null,null,46,"Sudan Otu, Taze, Körpe",18,2.5,17,11.9,12.3,null,0.46,0.36,23,55,70,3.1,1.6,1,1.6,29,41,3.9,9,2,null,0.11,24,39.6,null,11,0,1]
[null,null,null,null,null,null,null,null,null,null,null,null,null,null,null,null,null,null,null,null,null,null,null,null,null,null,null,null,null,null,null,null,null,null,null,null,null,null,null,null,null,null,null,null,null,null,null,null,null,null,null,null,null,null,null,null,null,null,null,null,null,null,null,null,null,null,null,null,null,null,null,null,null,null,null,null,47,"Sumak Sürgünleri",40,2.78,13.7,6.5,9.3000000000000007,null,null,0.2,null,null,77,3.4,1.79,1.17,null,null,null,null,null,null,null,null,null,null,null,11,0,1]
[null,null,null,null,null,null,null,null,null,null,null,null,null,null,null,null,null,null,null,null,null,null,null,null,null,null,null,null,null,null,null,null,null,null,null,null,null,null,null,null,null,null,null,null,null,null,null,null,null,null,null,null,null,null,null,null,null,null,null,null,null,null,null,null,null,null,null,null,null,null,null,null,null,null,null,null,48,"Şalgam Yaprakları",18,2.5,16,11.2,11.4,null,3.2,0.31,10,null,69,3,1.6,0.9,1.5,13,null,2.6,13,3,1.8,0.27,null,null,null,11,0,1]
[null,null,null,null,null,null,null,null,null,null,null,null,null,null,null,null,null,null,null,null,null,null,null,null,null,null,null,null,null,null,null,null,null,null,null,null,null,null,null,null,null,null,null,null,null,null,null,null,null,null,null,null,null,null,null,null,null,null,null,null,null,null,null,null,null,null,null,null,null,null,null,null,null,null,null,null,49,"Şeker Pancarı Yaprakları",20,2.1,14,9.8000000000000007,9.6,null,1.2,0.23,10,25,58,2.6,1.3,0.6,1.3,14,41,1.5,24,5.0999999999999996,0.2,0.45,20,null,null,2.5,0,1]
[null,null,null,null,null,null,null,null,null,null,null,null,null,null,null,null,null,null,null,null,null,null,null,null,null,null,null,null,null,null,null,null,null,null,null,null,null,null,null,null,null,null,null,null,null,null,null,null,null,null,null,null,null,null,null,null,null,null,null,null,null,null,null,null,null,null,null,null,null,null,null,null,null,null,null,null,50,"Şerbetçiotu Yaprakları",37,1.8,15,10.5,10.5,null,2.8,0.64,15,null,49,2.2000000000000002,1.1000000000000001,0.2,1.1000000000000001,null,null,3.6,35,null,null,null,null,null,null,11,0,1]
[null,null,null,null,null,null,null,null,null,null,null,null,null,null,null,null,null,null,null,null,null,null,null,null,null,null,null,null,null,null,null,null,null,null,null,null,null,null,null,null,null,null,null,null,null,null,null,null,null,null,null,null,null,null,null,null,null,null,null,null,null,null,null,null,null,null,null,null,null,null,null,null,null,null,null,null,51,"Şeytan Otu (Pangolagrass) Yaprakları ",20,2.25,17.7,9.5,13.5,null,null,null,null,null,62,null,null,null,null,null,null,2.9,8,null,null,null,null,null,null,11,0,1]
[null,null,null,null,null,null,null,null,null,null,null,null,null,null,null,null,null,null,null,null,null,null,null,null,null,null,null,null,null,null,null,null,null,null,null,null,null,null,null,null,null,null,null,null,null,null,null,null,null,null,null,null,null,null,null,null,null,null,null,null,null,null,null,null,null,null,null,null,null,null,null,null,null,null,null,null,52,"Şeytan Otu (Pangolagrass) Yaprakları ",26,2.13,12.9,6.3,9,null,0.4,0.23,null,null,59,null,null,null,null,null,null,1.7,8,null,null,null,null,null,null,11,0,1]
[null,null,null,null,null,null,null,null,null,null,null,null,null,null,null,null,null,null,null,null,null,null,null,null,null,null,null,null,null,null,null,null,null,null,null,null,null,null,null,null,null,null,null,null,null,null,null,null,null,null,null,null,null,null,null,null,null,null,null,null,null,null,null,null,null,null,null,null,null,null,null,null,null,null,null,null,53,"Yer Elması Yaprakları ",27,2.2000000000000002,6,4.2,2.4,null,1.62,0.11,18,41,61,2.7,1.4,0.7,1.3,30,40,1.1000000000000001,10,1.4,null,null,null,null,null,1,0,1]
[null,null,null,null,null,null,null,null,null,null,null,null,null,null,null,null,null,null,null,null,null,null,null,null,null,null,null,null,null,null,null,null,null,null,null,null,null,null,null,null,null,null,null,null,null,null,null,null,null,null,null,null,null,null,null,null,null,null,null,null,null,null,null,null,null,null,null,null,null,null,null,null,null,null,null,null,54,"Yerelması Yaprakları",22,2.2400000000000002,20.7,11.3,16.2,null,null,null,null,null,62,null,null,null,null,null,null,2.2999999999999998,16,null,null,null,null,null,null,1,0,1]
[null,null,null,null,null,null,null,null,null,null,null,null,null,null,null,null,null,null,null,null,null,null,null,null,null,null,null,null,null,null,null,null,null,null,null,null,null,null,null,null,null,null,null,null,null,null,null,null,null,null,null,null,null,null,null,null,null,null,null,null,null,null,null,null,null,null,null,null,null,null,null,null,null,null,null,null,55,"Yerfıstığı Asması, Hasat Sonrası",18,2.12,15.3,7.2,10.3,null,0.98,0.36,null,null,59,null,null,null,null,null,null,2.6,5,null,null,null,null,null,null,1,0,1]
[null,null,null,null,null,null,null,null,null,null,null,null,null,null,null,null,null,null,null,null,null,null,null,null,null,null,null,null,null,null,null,null,null,null,null,null,null,null,null,null,null,null,null,null,null,null,null,null,null,null,null,null,null,null,null,null,null,null,null,null,null,null,null,null,null,null,null,null,null,null,null,null,null,null,null,null,56,"Yerfıstığı Asması, Körpe",16,2.25,20.9,10.9,15.5,null,null,null,null,null,62,null,null,null,null,null,null,2,8,null,null,null,null,null,null,1,0,1]
[null,null,null,null,null,null,null,null,null,null,null,null,null,null,null,null,null,null,null,null,null,null,null,null,null,null,null,null,null,null,null,null,null,null,null,null,null,null,null,null,null,null,null,null,null,null,null,null,null,null,null,null,null,null,null,null,null,null,null,null,null,null,null,null,null,null,null,null,null,null,null,null,null,null,null,null,57,"Yonca, Yaş",24,2.2000000000000002,19,13.3,14.1,3.4,1.35,0.27,27,46,61,2.7,1.4,0.7,1.3,35,41,3,9,2.6,0.4,0.28999999999999998,18,37,null,5,0,1]
[null,null,null,null,null,null,null,null,null,null,null,null,null,null,null,null,null,null,null,null,null,null,null,null,null,null,null,null,null,null,null,null,null,null,null,null,null,null,null,null,null,null,null,null,null,null,null,null,null,null,null,null,null,null,null,null,null,null,null,null,null,null,null,null,null,null,null,null,null,null,null,null,null,null,null,null,58]
[null,null,null,null,null,null,null,null,null,null,null,null,null,null,null,null,null,null,null,null,null,null,null,null,null,null,null,null,null,null,null,null,null,null,null,null,null,null,null,null,null,null,null,null,null,null,null,null,null,null,null,null,null,null,null,null,null,null,null,null,null,null,null,null,null,null,null,null,null,null,null,null,null,null,null,null,59]
[null,null,null,null,null,null,null,null,null,null,null,null,null,null,null,null,null,null,null,null,null,null,null,null,null,null,null,null,null,null,null,null,null,null,null,null,null,null,null,null,null,null,null,null,null,null,null,null,null,null,null,null,null,null,null,null,null,null,null,null,null,null,null,null,null,null,null,null,null,null,null,null,null,null,null,null,60]
[null,null,null,null,null,null,null,null,null,null,null,null,null,null,null,null,null,null,null,null,null,null,null,null,null,null,null,null,null,null,null,null,null,null,null,null,null,null,null,null,null,null,null,null,null,null,null,null,null,null,null,null,null,null,null,null,null,null,null,null,null,null,null,null,null,null,null,null,null,null,null,null,null,null,null,null,61]
[null,null,null,null,null,null,null,null,null,null,null,null,null,null,null,null,null,null,null,null,null,null,null,null,null,null,null,null,null,null,null,null,null,null,null,null,null,null,null,null,null,null,null,null,null,null,null,null,null,null,null,null,null,null,null,null,null,null,null,null,null,null,null,null,null,null,null,null,null,null,null,null,null,null,null,null,62]
[null,null,null,null,null,null,null,null,null,null,null,null,null,null,null,null,null,null,null,null,null,null,null,null,null,null,null,null,null,null,null,null,null,null,null,null,null,null,null,null,null,null,null,null,null,null,null,null,null,null,null,null,null,null,null,null,null,null,null,null,null,null,null,null,null,null,null,null,null,null,null,null,null,null,null,null,63]
[null,null,null,null,null,null,null,null,null,null,null,null,null,null,null,null,null,null,null,null,null,null,null,null,null,null,null,null,null,null,null,null,null,null,null,null,null,null,null,null,null,null,null,null,null,null,null,null,null,null,null,null,null,null,null,null,null,null,null,null,null,null,null,null,null,null,null,null,null,null,null,null,null,null,null,null,64]
[null,null,null,null,null,null,null,null,null,null,null,null,null,null,null,null,null,null,null,null,null,null,null,null,null,null,null,null,null,null,null,null,null,null,null,null,null,null,null,null,null,null,null,null,null,null,null,null,null,null,null,null,null,null,null,null,null,null,null,null,null,null,null,null,null,null,null,null,null,null,null,null,null,null,null,null,65]
[null,null,null,null,null,null,null,null,null,null,null,null,null,null,null,null,null,null,null,null,null,null,null,null,null,null,null,null,null,null,null,null,null,null,null,null,null,null,null,null,null,null,null,null,null,null,null,null,null,null,null,null,null,null,null,null,null,null,null,null,null,null,null,null,null,null,null,null,null,null,null,null,null,null,null,null,66]
[null,null,null,null,null,null,null,null,null,null,null,null,null,null,null,null,null,null,null,null,null,null,null,null,null,null,null,null,null,null,null,null,null,null,null,null,null,null,null,null,null,null,null,null,null,null,null,null,null,null,null,null,null,null,null,null,null,null,null,null,null,null,null,null,null,null,null,null,null,null,null,null,null,null,null,null,67]
[null,null,null,null,null,null,null,null,null,null,null,null,null,null,null,null,null,null,null,null,null,null,null,null,null,null,null,null,null,null,null,null,null,null,null,null,null,null,null,null,null,null,null,null,null,null,null,null,null,null,null,null,null,null,null,null,null,null,null,null,null,null,null,null,null,null,null,null,null,null,null,null,null,null,null,null,68]
[null,null,null,null,null,null,null,null,null,null,null,null,null,null,null,null,null,null,null,null,null,null,null,null,null,null,null,null,null,null,null,null,null,null,null,null,null,null,null,null,null,null,null,null,null,null,null,null,null,null,null,null,null,null,null,null,null,null,null,null,null,null,null,null,null,null,null,null,null,null,null,null,null,null,null,null,69]
[null,null,null,null,null,null,null,null,null,null,null,null,null,null,null,null,null,null,null,null,null,null,null,null,null,null,null,null,null,null,null,null,null,null,null,null,null,null,null,null,null,null,null,null,null,null,null,null,null,null,null,null,null,null,null,null,null,null,null,null,null,null,null,null,null,null,null,null,null,null,null,null,null,null,null,null,70]
[null,null,null,null,null,null,null,null,null,null,null,null,null,null,null,null,null,null,null,null,null,null,null,null,null,null,null,null,null,null,null,null,null,null,null,null,null,null,null,null,null,null,null,null,null,null,null,null,null,null,null,null,null,null,null,null,null,null,null,null,null,null,null,null,null,null,null,null,null,null,null,null,null,null,null,null,71]
[null,null,null,null,null,null,null,null,null,null,null,null,null,null,null,null,null,null,null,null,null,null,null,null,null,null,null,null,null,null,null,null,null,null,null,null,null,null,null,null,null,null,null,null,null,null,null,null,null,null,null,null,null,null,null,null,null,null,null,null,null,null,null,null,null,null,null,null,null,null,null,null,null,null,null,null,72]
[null,null,null,null,null,null,null,null,null,null,null,null,null,null,null,null,null,null,null,null,null,null,null,null,null,null,null,null,null,null,null,null,null,null,null,null,null,null,null,null,null,null,null,null,null,null,null,null,null,null,null,null,null,null,null,null,null,null,null,null,null,null,null,null,null,null,null,null,null,null,null,null,null,null,null,null,73]
[null,null,null,null,null,null,null,null,null,null,null,null,null,null,null,null,null,null,null,null,null,null,null,null,null,null,null,null,null,null,null,null,null,null,null,null,null,null,null,null,null,null,null,null,null,null,null,null,null,null,null,null,null,null,null,null,null,null,null,null,null,null,null,null,null,null,null,null,null,null,null,null,null,null,null,null,74]
[null,null,null,null,null,null,null,null,null,null,null,null,null,null,null,null,null,null,null,null,null,null,null,null,null,null,null,null,null,null,null,null,null,null,null,null,null,null,null,null,null,null,null,null,null,null,null,null,null,null,null,null,null,null,null,null,null,null,null,null,null,null,null,null,null,null,null,null,null,null,null,null,null,null,null,null,75]
[null,null,null,null,null,null,null,null,null,null,null,null,null,null,null,null,null,null,null,null,null,null,null,null,null,null,null,null,null,null,null,null,null,null,null,null,null,null,null,null,null,null,null,null,null,null,null,null,null,null,null,null,null,null,null,null,null,null,null,null,null,null,null,null,null,null,null,null,null,null,null,null,null,null,null,null,null,"SİLAJLAR","KM,%","ME, Mcal/kg","HP,%","MP,%","DIP,%","RUP,%","Ca,%","P,%","HS,%","NDF,%","TSBM,%","SE, Mcal/kg","NEyp, Mcal/kg","NEb, Mcal/kg","NEl, Mcal/kg","ADF,%","eNDF,%","HY,%","HK,%","K,%","Cl,%","S,%","Zn,ppm","VitA, RE/kg","VitE,ppm","Fiyat,TL","En az","En çok"]
[null,null,null,null,null,null,null,null,null,null,null,null,null,null,null,null,null,null,null,null,null,null,null,null,null,null,null,null,null,null,null,null,null,null,null,null,null,null,null,null,null,null,null,null,null,null,null,null,null,null,null,null,null,null,null,null,null,null,null,null,null,null,null,null,null,null,null,null,null,null,null,null,null,null,null,null,1,"Arpa Silajı ",35,2.1,12,8.4,7.8,2.6,0.46,0.3,34,58,59,2.6,1.3,0.6,1.3,37,61,3,9,2.4,null,0.22,28,null,null,3.5,0,3]
[null,null,null,null,null,null,null,null,null,null,null,null,null,null,null,null,null,null,null,null,null,null,null,null,null,null,null,null,null,null,null,null,null,null,null,null,null,null,null,null,null,null,null,null,null,null,null,null,null,null,null,null,null,null,null,null,null,null,null,null,null,null,null,null,null,null,null,null,null,null,null,null,null,null,null,null,2,"Arpa Silajı, Olgun",35,2.1,12,8.4,7.8,3,0.3,0.2,30,50,58,2.6,1.3,0.6,1.3,34,61,3.5,9,1.5,null,0.15,25,null,null,3.5,0,3]
[null,null,null,null,null,null,null,null,null,null,null,null,null,null,null,null,null,null,null,null,null,null,null,null,null,null,null,null,null,null,null,null,null,null,null,null,null,null,null,null,null,null,null,null,null,null,null,null,null,null,null,null,null,null,null,null,null,null,null,null,null,null,null,null,null,null,null,null,null,null,null,null,null,null,null,null,3,"Bezelye Silajı",24,1.95,25.7,13.7,19.600000000000001,null,null,0.48,null,null,54,2.38,1.1599999999999999,0.43,null,null,null,null,null,null,null,null,null,null,null,5.5,0,3]
[null,null,null,null,null,null,null,null,null,null,null,null,null,null,null,null,null,null,null,null,null,null,null,null,null,null,null,null,null,null,null,null,null,null,null,null,null,null,null,null,null,null,null,null,null,null,null,null,null,null,null,null,null,null,null,null,null,null,null,null,null,null,null,null,null,null,null,null,null,null,null,null,null,null,null,null,4,"Bezelye Silajı ",25,2.1,16,11.2,11.4,null,1.25,0.28000000000000003,29,55,58,2.6,1.3,0.6,1.3,44,61,3.3,8,1.6,null,0.28999999999999998,32,37.799999999999997,null,5.5,0,3]
[null,null,null,null,null,null,null,null,null,null,null,null,null,null,null,null,null,null,null,null,null,null,null,null,null,null,null,null,null,null,null,null,null,null,null,null,null,null,null,null,null,null,null,null,null,null,null,null,null,null,null,null,null,null,null,null,null,null,null,null,null,null,null,null,null,null,null,null,null,null,null,null,null,null,null,null,5,"Brom Otu (Bromegrass) Balya Silajı",35,2.1,11,7.7,6.9,2.9,0.38,0.3,36,69,57,2.5,1.3,0.6,1.3,44,61,2.5,8,2,null,0.2,19,null,null,10,0,3]
[null,null,null,null,null,null,null,null,null,null,null,null,null,null,null,null,null,null,null,null,null,null,null,null,null,null,null,null,null,null,null,null,null,null,null,null,null,null,null,null,null,null,null,null,null,null,null,null,null,null,null,null,null,null,null,null,null,null,null,null,null,null,null,null,null,null,null,null,null,null,null,null,null,null,null,null,6,"Buğday Silajı ",33,2.1,12,8.4,7.8,2.5,0.4,0.28000000000000003,28,62,59,2.6,1.3,0.6,1.3,37,61,3.2,8,2.1,0.5,0.21,27,29.4,null,3.5,0,3]
[null,null,null,null,null,null,null,null,null,null,null,null,null,null,null,null,null,null,null,null,null,null,null,null,null,null,null,null,null,null,null,null,null,null,null,null,null,null,null,null,null,null,null,null,null,null,null,null,null,null,null,null,null,null,null,null,null,null,null,null,null,null,null,null,null,null,null,null,null,null,null,null,null,null,null,null,7,"Çayır Kelp Kuyruğu (Timothy) Silajı ",34,2.1,10,7,6,2.5,0.5,0.27,34,70,59,2.6,1.3,0.6,1.3,45,61,3.4,7,1.7,null,0.15,null,18,null,10,0,3]
[null,null,null,null,null,null,null,null,null,null,null,null,null,null,null,null,null,null,null,null,null,null,null,null,null,null,null,null,null,null,null,null,null,null,null,null,null,null,null,null,null,null,null,null,null,null,null,null,null,null,null,null,null,null,null,null,null,null,null,null,null,null,null,null,null,null,null,null,null,null,null,null,null,null,null,null,8,"Çayır Silajı",30,2.2000000000000002,11,7.7,6.9,2.6,0.7,0.24,32,60,61,2.7,1.4,0.7,1.3,39,61,3.4,8,2.1,null,0.22,29,null,null,5,0,3]
[null,null,null,null,null,null,null,null,null,null,null,null,null,null,null,null,null,null,null,null,null,null,null,null,null,null,null,null,null,null,null,null,null,null,null,null,null,null,null,null,null,null,null,null,null,null,null,null,null,null,null,null,null,null,null,null,null,null,null,null,null,null,null,null,null,null,null,null,null,null,null,null,null,null,null,null,9,"Çayır Silajı (Rye Grass) ",32,2.1,14,9.8000000000000007,9.6,3.5,0.43,0.38,22,59,59,2.6,1.3,0.6,1.3,37,61,3.3,8,2.9,0.73,0.23,29,11.6,null,5,0,3]
[null,null,null,null,null,null,null,null,null,null,null,null,null,null,null,null,null,null,null,null,null,null,null,null,null,null,null,null,null,null,null,null,null,null,null,null,null,null,null,null,null,null,null,null,null,null,null,null,null,null,null,null,null,null,null,null,null,null,null,null,null,null,null,null,null,null,null,null,null,null,null,null,null,null,null,null,10,"Çayır Silajı (Napiergrass) ",26,1.56,4.8,0.4,0.5,null,null,0.31,null,null,43,1.9,0.94,0,null,null,null,null,null,null,null,null,null,null,null,5,0,3]
[null,null,null,null,null,null,null,null,null,null,null,null,null,null,null,null,null,null,null,null,null,null,null,null,null,null,null,null,null,null,null,null,null,null,null,null,null,null,null,null,null,null,null,null,null,null,null,null,null,null,null,null,null,null,null,null,null,null,null,null,null,null,null,null,null,null,null,null,null,null,null,null,null,null,null,null,11,"Köpekdişi (Bermudagrass) Silajı ",26,1.8,10,7,6,1.5,0.46,0.2,30,null,50,2.2000000000000002,1.1000000000000001,0.3,1.1000000000000001,37,48,1.9,8,1.5,null,0.25,33,null,null,10,0,3]
[null,null,null,null,null,null,null,null,null,null,null,null,null,null,null,null,null,null,null,null,null,null,null,null,null,null,null,null,null,null,null,null,null,null,null,null,null,null,null,null,null,null,null,null,null,null,null,null,null,null,null,null,null,null,null,null,null,null,null,null,null,null,null,null,null,null,null,null,null,null,null,null,null,null,null,null,12,"Mısır Silajı, Olgun",34,2.6,8,5.6,4.2,2.2000000000000002,0.28000000000000003,0.23,21,46,72,3.2,1.7,1,1.6,27,70,3.1,5,1.1000000000000001,0.2,0.12,22,5.9219999999999997,null,2.5,0,3]
[null,null,null,null,null,null,null,null,null,null,null,null,null,null,null,null,null,null,null,null,null,null,null,null,null,null,null,null,null,null,null,null,null,null,null,null,null,null,null,null,null,null,null,null,null,null,null,null,null,null,null,null,null,null,null,null,null,null,null,null,null,null,null,null,null,null,null,null,null,null,null,null,null,null,null,null,13,"Mısır Silajı, Süt Olumu",26,2.4,8,5.6,4.2,1.4,0.4,0.27,26,54,65,2.9,1.5,0.8,1.5,32,60,2.8,6,1.6,null,0.11,20,null,null,2.5,0,3]
[null,null,null,null,null,null,null,null,null,null,null,null,null,null,null,null,null,null,null,null,null,null,null,null,null,null,null,null,null,null,null,null,null,null,null,null,null,null,null,null,null,null,null,null,null,null,null,null,null,null,null,null,null,null,null,null,null,null,null,null,null,null,null,null,null,null,null,null,null,null,null,null,null,null,null,null,14,"Mısır Silajı, Tatlı Mısır ",24,2.4,11,7.7,6.9,null,0.24,0.26,20,57,65,2.9,1.5,0.8,1.5,32,60,5,5,1.2,0.17,0.16,39,1.7110000000000001,null,2.5,0,3]
[null,null,null,null,null,null,null,null,null,null,null,null,null,null,null,null,null,null,null,null,null,null,null,null,null,null,null,null,null,null,null,null,null,null,null,null,null,null,null,null,null,null,null,null,null,null,null,null,null,null,null,null,null,null,null,null,null,null,null,null,null,null,null,null,null,null,null,null,null,null,null,null,null,null,null,null,15,"Patates Bitkisi Silajı ",15,2.1,15,10.5,10.5,null,2.1,0.28999999999999998,26,null,59,2.6,1.3,0.6,1.3,null,null,3.7,19,4,null,0.37,null,null,null,4,0,3]
[null,null,null,null,null,null,null,null,null,null,null,null,null,null,null,null,null,null,null,null,null,null,null,null,null,null,null,null,null,null,null,null,null,null,null,null,null,null,null,null,null,null,null,null,null,null,null,null,null,null,null,null,null,null,null,null,null,null,null,null,null,null,null,null,null,null,null,null,null,null,null,null,null,null,null,null,16,"Sorgum Silajı ",32,2.1,9,6.3,5.0999999999999996,2.7,0.48,0.21,27,59,59,2.6,1.3,0.6,1.3,38,70,2.7,6,1.7,0.45,0.11,30,3,662,5,0,3]
[null,null,null,null,null,null,null,null,null,null,null,null,null,null,null,null,null,null,null,null,null,null,null,null,null,null,null,null,null,null,null,null,null,null,null,null,null,null,null,null,null,null,null,null,null,null,null,null,null,null,null,null,null,null,null,null,null,null,null,null,null,null,null,null,null,null,null,null,null,null,null,null,null,null,null,null,17,"Soya Silajı",35,1.99,18,8.8000000000000007,12.5,null,null,0.36,null,null,55,2.4300000000000002,1.19,0.47,null,null,null,null,null,null,null,null,null,null,null,4,0,3]
[null,null,null,null,null,null,null,null,null,null,null,null,null,null,null,null,null,null,null,null,null,null,null,null,null,null,null,null,null,null,null,null,null,null,null,null,null,null,null,null,null,null,null,null,null,null,null,null,null,null,null,null,null,null,null,null,null,null,null,null,null,null,null,null,null,null,null,null,null,null,null,null,null,null,null,null,18,"Sudan Otu Silajı ",31,2.1,10,7,6,2.8,0.57999999999999996,0.27,30,64,58,2.6,1.3,0.6,1.3,42,61,3.1,10,2.4,0.52,0.14000000000000001,29,21,null,5,0,3]
[null,null,null,null,null,null,null,null,null,null,null,null,null,null,null,null,null,null,null,null,null,null,null,null,null,null,null,null,null,null,null,null,null,null,null,null,null,null,null,null,null,null,null,null,null,null,null,null,null,null,null,null,null,null,null,null,null,null,null,null,null,null,null,null,null,null,null,null,null,null,null,null,null,null,null,null,19,"Şeker Pancarı Yaprağı  Silajı ",25,1.9,12,8.4,7.8,null,1.38,0.22,12,null,52,2.2999999999999998,1.1000000000000001,0.4,1.1000000000000001,null,null,2,32,5.7,null,0.56999999999999995,20,null,null,2.5,0,3]
[null,null,null,null,null,null,null,null,null,null,null,null,null,null,null,null,null,null,null,null,null,null,null,null,null,null,null,null,null,null,null,null,null,null,null,null,null,null,null,null,null,null,null,null,null,null,null,null,null,null,null,null,null,null,null,null,null,null,null,null,null,null,null,null,null,null,null,null,null,null,null,null,null,null,null,null,20,"Şerbetçiotu Asması Silajı",30,1.9,15,10.5,10.5,null,3.3,0.37,21,null,53,2.2999999999999998,1.2,0.4,1.2,24,null,3.1,20,1.8,null,0.22,44,null,null,11,0,3]
[null,null,null,null,null,null,null,null,null,null,null,null,null,null,null,null,null,null,null,null,null,null,null,null,null,null,null,null,null,null,null,null,null,null,null,null,null,null,null,null,null,null,null,null,null,null,null,null,null,null,null,null,null,null,null,null,null,null,null,null,null,null,null,null,null,null,null,null,null,null,null,null,null,null,null,null,21,"Şeytan Otu Silajı (Pangolagrass) ",32,2.0299999999999998,8.9,3,4.3,null,null,0.08,null,null,56,2.4700000000000002,1.21,0.51,null,null,null,null,null,null,null,null,null,null,null,11,0,3]
[null,null,null,null,null,null,null,null,null,null,null,null,null,null,null,null,null,null,null,null,null,null,null,null,null,null,null,null,null,null,null,null,null,null,null,null,null,null,null,null,null,null,null,null,null,null,null,null,null,null,null,null,null,null,null,null,null,null,null,null,null,null,null,null,null,null,null,null,null,null,null,null,null,null,null,null,22,"Tritikale Silajı ",34,2.1,14,9.8000000000000007,9.6,null,0.57999999999999996,0.34,30,56,58,2.6,1.3,0.6,1.3,39,61,3.6,null,2.7,null,0.28000000000000003,36,null,null,3,0,3]
[null,null,null,null,null,null,null,null,null,null,null,null,null,null,null,null,null,null,null,null,null,null,null,null,null,null,null,null,null,null,null,null,null,null,null,null,null,null,null,null,null,null,null,null,null,null,null,null,null,null,null,null,null,null,null,null,null,null,null,null,null,null,null,null,null,null,null,null,null,null,null,null,null,null,null,null,23,"Yonca Silajı, Tam Çiçeklenmiş",26,2.1,17.5,8.5,12.1,null,null,null,null,null,58,2.56,1.26,0.57999999999999996,null,38,null,null,null,null,null,null,null,null,null,4,0,3]
[null,null,null,null,null,null,null,null,null,null,null,null,null,null,null,null,null,null,null,null,null,null,null,null,null,null,null,null,null,null,null,null,null,null,null,null,null,null,null,null,null,null,null,null,null,null,null,null,null,null,null,null,null,null,null,null,null,null,null,null,null,null,null,null,null,null,null,null,null,null,null,null,null,null,null,null,24,"Yonca Silajı ",30,2,18,12.6,13.2,3.4,1.4,0.28999999999999998,28,49,55,2.4,1.2,0.5,1.2,37,82,3,9,2.6,0.41,0.28999999999999998,26,19.8,null,4,0,3]
[null,null,null,null,null,null,null,null,null,null,null,null,null,null,null,null,null,null,null,null,null,null,null,null,null,null,null,null,null,null,null,null,null,null,null,null,null,null,null,null,null,null,null,null,null,null,null,null,null,null,null,null,null,null,null,null,null,null,null,null,null,null,null,null,null,null,null,null,null,null,null,null,null,null,null,null,25,"Yonca Silajı, Soldurulmuş",39,2.1,18,12.6,13.2,4,1.4,0.28999999999999998,28,49,58,2.6,1.3,0.6,1.3,37,82,3,9,2.6,0.41,0.28999999999999998,26,12,null,4,0,3]
[null,null,null,null,null,null,null,null,null,null,null,null,null,null,null,null,null,null,null,null,null,null,null,null,null,null,null,null,null,null,null,null,null,null,null,null,null,null,null,null,null,null,null,null,null,null,null,null,null,null,null,null,null,null,null,null,null,null,null,null,null,null,null,null,null,null,null,null,null,null,null,null,null,null,null,null,26,"Yulaf Silajı ",35,2.2000000000000002,12,8.4,7.8,2.5,0.34,0.3,31,59,60,2.6,1.3,0.7,1.3,39,61,3.2,10,2.4,0.5,0.25,27,9,null,4,0,3]
[null,null,null,null,null,null,null,null,null,null,null,null,null,null,null,null,null,null,null,null,null,null,null,null,null,null,null,null,null,null,null,null,null,null,null,null,null,null,null,null,null,null,null,null,null,null,null,null,null,null,null,null,null,null,null,null,null,null,null,null,null,null,null,null,null,null,null,null,null,null,null,null,null,null,null,null,27]
[null,null,null,null,null,null,null,null,null,null,null,null,null,null,null,null,null,null,null,null,null,null,null,null,null,null,null,null,null,null,null,null,null,null,null,null,null,null,null,null,null,null,null,null,null,null,null,null,null,null,null,null,null,null,null,null,null,null,null,null,null,null,null,null,null,null,null,null,null,null,null,null,null,null,null,null,28]
[null,null,null,null,null,null,null,null,null,null,null,null,null,null,null,null,null,null,null,null,null,null,null,null,null,null,null,null,null,null,null,null,null,null,null,null,null,null,null,null,null,null,null,null,null,null,null,null,null,null,null,null,null,null,null,null,null,null,null,null,null,null,null,null,null,null,null,null,null,null,null,null,null,null,null,null,29]
[null,null,null,null,null,null,null,null,null,null,null,null,null,null,null,null,null,null,null,null,null,null,null,null,null,null,null,null,null,null,null,null,null,null,null,null,null,null,null,null,null,null,null,null,null,null,null,null,null,null,null,null,null,null,null,null,null,null,null,null,null,null,null,null,null,null,null,null,null,null,null,null,null,null,null,null,30]
[null,null,null,null,null,null,null,null,null,null,null,null,null,null,null,null,null,null,null,null,null,null,null,null,null,null,null,null,null,null,null,null,null,null,null,null,null,null,null,null,null,null,null,null,null,null,null,null,null,null,null,null,null,null,null,null,null,null,null,null,null,null,null,null,null,null,null,null,null,null,null,null,null,null,null,null,31]
[null,null,null,null,null,null,null,null,null,null,null,null,null,null,null,null,null,null,null,null,null,null,null,null,null,null,null,null,null,null,null,null,null,null,null,null,null,null,null,null,null,null,null,null,null,null,null,null,null,null,null,null,null,null,null,null,null,null,null,null,null,null,null,null,null,null,null,null,null,null,null,null,null,null,null,null,32]
[null,null,null,null,null,null,null,null,null,null,null,null,null,null,null,null,null,null,null,null,null,null,null,null,null,null,null,null,null,null,null,null,null,null,null,null,null,null,null,null,null,null,null,null,null,null,null,null,null,null,null,null,null,null,null,null,null,null,null,null,null,null,null,null,null,null,null,null,null,null,null,null,null,null,null,null,33]
[null,null,null,null,null,null,null,null,null,null,null,null,null,null,null,null,null,null,null,null,null,null,null,null,null,null,null,null,null,null,null,null,null,null,null,null,null,null,null,null,null,null,null,null,null,null,null,null,null,null,null,null,null,null,null,null,null,null,null,null,null,null,null,null,null,null,null,null,null,null,null,null,null,null,null,null,34]
[null,null,null,null,null,null,null,null,null,null,null,null,null,null,null,null,null,null,null,null,null,null,null,null,null,null,null,null,null,null,null,null,null,null,null,null,null,null,null,null,null,null,null,null,null,null,null,null,null,null,null,null,null,null,null,null,null,null,null,null,null,null,null,null,null,null,null,null,null,null,null,null,null,null,null,null,35]
[null,null,null,null,null,null,null,null,null,null,null,null,null,null,null,null,null,null,null,null,null,null,null,null,null,null,null,null,null,null,null,null,null,null,null,null,null,null,null,null,null,null,null,null,null,null,null,null,null,null,null,null,null,null,null,null,null,null,null,null,null,null,null,null,null,null,null,null,null,null,null,null,null,null,null,null,36]
[null,null,null,null,null,null,null,null,null,null,null,null,null,null,null,null,null,null,null,null,null,null,null,null,null,null,null,null,null,null,null,null,null,null,null,null,null,null,null,null,null,null,null,null,null,null,null,null,null,null,null,null,null,null,null,null,null,null,null,null,null,null,null,null,null,null,null,null,null,null,null,null,null,null,null,null,37]
[null,null,null,null,null,null,null,null,null,null,null,null,null,null,null,null,null,null,null,null,null,null,null,null,null,null,null,null,null,null,null,null,null,null,null,null,null,null,null,null,null,null,null,null,null,null,null,null,null,null,null,null,null,null,null,null,null,null,null,null,null,null,null,null,null,null,null,null,null,null,null,null,null,null,null,null,38]
[null,null,null,null,null,null,null,null,null,null,null,null,null,null,null,null,null,null,null,null,null,null,null,null,null,null,null,null,null,null,null,null,null,null,null,null,null,null,null,null,null,null,null,null,null,null,null,null,null,null,null,null,null,null,null,null,null,null,null,null,null,null,null,null,null,null,null,null,null,null,null,null,null,null,null,null,39]
[null,null,null,null,null,null,null,null,null,null,null,null,null,null,null,null,null,null,null,null,null,null,null,null,null,null,null,null,null,null,null,null,null,null,null,null,null,null,null,null,null,null,null,null,null,null,null,null,null,null,null,null,null,null,null,null,null,null,null,null,null,null,null,null,null,null,null,null,null,null,null,null,null,null,null,null,40]
[null,null,null,null,null,null,null,null,null,null,null,null,null,null,null,null,null,null,null,null,null,null,null,null,null,null,null,null,null,null,null,null,null,null,null,null,null,null,null,null,null,null,null,null,null,null,null,null,null,null,null,null,null,null,null,null,null,null,null,null,null,null,null,null,null,null,null,null,null,null,null,null,null,null,null,null,41]
[null,null,null,null,null,null,null,null,null,null,null,null,null,null,null,null,null,null,null,null,null,null,null,null,null,null,null,null,null,null,null,null,null,null,null,null,null,null,null,null,null,null,null,null,null,null,null,null,null,null,null,null,null,null,null,null,null,null,null,null,null,null,null,null,null,null,null,null,null,null,null,null,null,null,null,null,42]
[null,null,null,null,null,null,null,null,null,null,null,null,null,null,null,null,null,null,null,null,null,null,null,null,null,null,null,null,null,null,null,null,null,null,null,null,null,null,null,null,null,null,null,null,null,null,null,null,null,null,null,null,null,null,null,null,null,null,null,null,null,null,null,null,null,null,null,null,null,null,null,null,null,null,null,null,43]
[null,null,null,null,null,null,null,null,null,null,null,null,null,null,null,null,null,null,null,null,null,null,null,null,null,null,null,null,null,null,null,null,null,null,null,null,null,null,null,null,null,null,null,null,null,null,null,null,null,null,null,null,null,null,null,null,null,null,null,null,null,null,null,null,null,null,null,null,null,null,null,null,null,null,null,null,44]
[null,null,null,null,null,null,null,null,null,null,null,null,null,null,null,null,null,null,null,null,null,null,null,null,null,null,null,null,null,null,null,null,null,null,null,null,null,null,null,null,null,null,null,null,null,null,null,null,null,null,null,null,null,null,null,null,null,null,null,null,null,null,null,null,null,null,null,null,null,null,null,null,null,null,null,null,45]
[null,null,null,null,null,null,null,null,null,null,null,null,null,null,null,null,null,null,null,null,null,null,null,null,null,null,null,null,null,null,null,null,null,null,null,null,null,null,null,null,null,null,null,null,null,null,null,null,null,null,null,null,null,null,null,null,null,null,null,null,null,null,null,null,null,null,null,null,null,null,null,null,null,null,null,null,46]
[null,null,null,null,null,null,null,null,null,null,null,null,null,null,null,null,null,null,null,null,null,null,null,null,null,null,null,null,null,null,null,null,null,null,null,null,null,null,null,null,null,null,null,null,null,null,null,null,null,null,null,null,null,null,null,null,null,null,null,null,null,null,null,null,null,null,null,null,null,null,null,null,null,null,null,null,47]
[null,null,null,null,null,null,null,null,null,null,null,null,null,null,null,null,null,null,null,null,null,null,null,null,null,null,null,null,null,null,null,null,null,null,null,null,null,null,null,null,null,null,null,null,null,null,null,null,null,null,null,null,null,null,null,null,null,null,null,null,null,null,null,null,null,null,null,null,null,null,null,null,null,null,null,null,48]
[null,null,null,null,null,null,null,null,null,null,null,null,null,null,null,null,null,null,null,null,null,null,null,null,null,null,null,null,null,null,null,null,null,null,null,null,null,null,null,null,null,null,null,null,null,null,null,null,null,null,null,null,null,null,null,null,null,null,null,null,null,null,null,null,null,null,null,null,null,null,null,null,null,null,null,null,49]
[null,null,null,null,null,null,null,null,null,null,null,null,null,null,null,null,null,null,null,null,null,null,null,null,null,null,null,null,null,null,null,null,null,null,null,null,null,null,null,null,null,null,null,null,null,null,null,null,null,null,null,null,null,null,null,null,null,null,null,null,null,null,null,null,null,null,null,null,null,null,null,null,null,null,null,null,50]
[null,null,null,null,null,null,null,null,null,null,null,null,null,null,null,null,null,null,null,null,null,null,null,null,null,null,null,null,null,null,null,null,null,null,null,null,null,null,null,null,null,null,null,null,null,null,null,null,null,null,null,null,null,null,null,null,null,null,null,null,null,null,null,null,null,null,null,null,null,null,null,null,null,null,null,null,51]
[null,null,null,null,null,null,null,null,null,null,null,null,null,null,null,null,null,null,null,null,null,null,null,null,null,null,null,null,null,null,null,null,null,null,null,null,null,null,null,null,null,null,null,null,null,null,null,null,null,null,null,null,null,null,null,null,null,null,null,null,null,null,null,null,null,null,null,null,null,null,null,null,null,null,null,null,52]
[null,null,null,null,null,null,null,null,null,null,null,null,null,null,null,null,null,null,null,null,null,null,null,null,null,null,null,null,null,null,null,null,null,null,null,null,null,null,null,null,null,null,null,null,null,null,null,null,null,null,null,null,null,null,null,null,null,null,null,null,null,null,null,null,null,null,null,null,null,null,null,null,null,null,null,null,53]
[null,null,null,null,null,null,null,null,null,null,null,null,null,null,null,null,null,null,null,null,null,null,null,null,null,null,null,null,null,null,null,null,null,null,null,null,null,null,null,null,null,null,null,null,null,null,null,null,null,null,null,null,null,null,null,null,null,null,null,null,null,null,null,null,null,null,null,null,null,null,null,null,null,null,null,null,54]
[null,null,null,null,null,null,null,null,null,null,null,null,null,null,null,null,null,null,null,null,null,null,null,null,null,null,null,null,null,null,null,null,null,null,null,null,null,null,null,null,null,null,null,null,null,null,null,null,null,null,null,null,null,null,null,null,null,null,null,null,null,null,null,null,null,null,null,null,null,null,null,null,null,null,null,null,55]
[null,null,null,null,null,null,null,null,null,null,null,null,null,null,null,null,null,null,null,null,null,null,null,null,null,null,null,null,null,null,null,null,null,null,null,null,null,null,null,null,null,null,null,null,null,null,null,null,null,null,null,null,null,null,null,null,null,null,null,null,null,null,null,null,null,null,null,null,null,null,null,null,null,null,null,null,56]
[null,null,null,null,null,null,null,null,null,null,null,null,null,null,null,null,null,null,null,null,null,null,null,null,null,null,null,null,null,null,null,null,null,null,null,null,null,null,null,null,null,null,null,null,null,null,null,null,null,null,null,null,null,null,null,null,null,null,null,null,null,null,null,null,null,null,null,null,null,null,null,null,null,null,null,null,57]
[null,null,null,null,null,null,null,null,null,null,null,null,null,null,null,null,null,null,null,null,null,null,null,null,null,null,null,null,null,null,null,null,null,null,null,null,null,null,null,null,null,null,null,null,null,null,null,null,null,null,null,null,null,null,null,null,null,null,null,null,null,null,null,null,null,null,null,null,null,null,null,null,null,null,null,null,58]
[null,null,null,null,null,null,null,null,null,null,null,null,null,null,null,null,null,null,null,null,null,null,null,null,null,null,null,null,null,null,null,null,null,null,null,null,null,null,null,null,null,null,null,null,null,null,null,null,null,null,null,null,null,null,null,null,null,null,null,null,null,null,null,null,null,null,null,null,null,null,null,null,null,null,null,null,59]
[null,null,null,null,null,null,null,null,null,null,null,null,null,null,null,null,null,null,null,null,null,null,null,null,null,null,null,null,null,null,null,null,null,null,null,null,null,null,null,null,null,null,null,null,null,null,null,null,null,null,null,null,null,null,null,null,null,null,null,null,null,null,null,null,null,null,null,null,null,null,null,null,null,null,null,null,60]
[null,null,null,null,null,null,null,null,null,null,null,null,null,null,null,null,null,null,null,null,null,null,null,null,null,null,null,null,null,null,null,null,null,null,null,null,null,null,null,null,null,null,null,null,null,null,null,null,null,null,null,null,null,null,null,null,null,null,null,null,null,null,null,null,null,null,null,null,null,null,null,null,null,null,null,null,61]
[null,null,null,null,null,null,null,null,null,null,null,null,null,null,null,null,null,null,null,null,null,null,null,null,null,null,null,null,null,null,null,null,null,null,null,null,null,null,null,null,null,null,null,null,null,null,null,null,null,null,null,null,null,null,null,null,null,null,null,null,null,null,null,null,null,null,null,null,null,null,null,null,null,null,null,null,62]
[null,null,null,null,null,null,null,null,null,null,null,null,null,null,null,null,null,null,null,null,null,null,null,null,null,null,null,null,null,null,null,null,null,null,null,null,null,null,null,null,null,null,null,null,null,null,null,null,null,null,null,null,null,null,null,null,null,null,null,null,null,null,null,null,null,null,null,null,null,null,null,null,null,null,null,null,63]
[null,null,null,null,null,null,null,null,null,null,null,null,null,null,null,null,null,null,null,null,null,null,null,null,null,null,null,null,null,null,null,null,null,null,null,null,null,null,null,null,null,null,null,null,null,null,null,null,null,null,null,null,null,null,null,null,null,null,null,null,null,null,null,null,null,null,null,null,null,null,null,null,null,null,null,null,64]
[null,null,null,null,null,null,null,null,null,null,null,null,null,null,null,null,null,null,null,null,null,null,null,null,null,null,null,null,null,null,null,null,null,null,null,null,null,null,null,null,null,null,null,null,null,null,null,null,null,null,null,null,null,null,null,null,null,null,null,null,null,null,null,null,null,null,null,null,null,null,null,null,null,null,null,null,65]
[null,null,null,null,null,null,null,null,null,null,null,null,null,null,null,null,null,null,null,null,null,null,null,null,null,null,null,null,null,null,null,null,null,null,null,null,null,null,null,null,null,null,null,null,null,null,null,null,null,null,null,null,null,null,null,null,null,null,null,null,null,null,null,null,null,null,null,null,null,null,null,null,null,null,null,null,66]
[null,null,null,null,null,null,null,null,null,null,null,null,null,null,null,null,null,null,null,null,null,null,null,null,null,null,null,null,null,null,null,null,null,null,null,null,null,null,null,null,null,null,null,null,null,null,null,null,null,null,null,null,null,null,null,null,null,null,null,null,null,null,null,null,null,null,null,null,null,null,null,null,null,null,null,null,67]
[null,null,null,null,null,null,null,null,null,null,null,null,null,null,null,null,null,null,null,null,null,null,null,null,null,null,null,null,null,null,null,null,null,null,null,null,null,null,null,null,null,null,null,null,null,null,null,null,null,null,null,null,null,null,null,null,null,null,null,null,null,null,null,null,null,null,null,null,null,null,null,null,null,null,null,null,68]
[null,null,null,null,null,null,null,null,null,null,null,null,null,null,null,null,null,null,null,null,null,null,null,null,null,null,null,null,null,null,null,null,null,null,null,null,null,null,null,null,null,null,null,null,null,null,null,null,null,null,null,null,null,null,null,null,null,null,null,null,null,null,null,null,null,null,null,null,null,null,null,null,null,null,null,null,69]
[null,null,null,null,null,null,null,null,null,null,null,null,null,null,null,null,null,null,null,null,null,null,null,null,null,null,null,null,null,null,null,null,null,null,null,null,null,null,null,null,null,null,null,null,null,null,null,null,null,null,null,null,null,null,null,null,null,null,null,null,null,null,null,null,null,null,null,null,null,null,null,null,null,null,null,null,70]
[null,null,null,null,null,null,null,null,null,null,null,null,null,null,null,null,null,null,null,null,null,null,null,null,null,null,null,null,null,null,null,null,null,null,null,null,null,null,null,null,null,null,null,null,null,null,null,null,null,null,null,null,null,null,null,null,null,null,null,null,null,null,null,null,null,null,null,null,null,null,null,null,null,null,null,null,71]
[null,null,null,null,null,null,null,null,null,null,null,null,null,null,null,null,null,null,null,null,null,null,null,null,null,null,null,null,null,null,null,null,null,null,null,null,null,null,null,null,null,null,null,null,null,null,null,null,null,null,null,null,null,null,null,null,null,null,null,null,null,null,null,null,null,null,null,null,null,null,null,null,null,null,null,null,72]
[null,null,null,null,null,null,null,null,null,null,null,null,null,null,null,null,null,null,null,null,null,null,null,null,null,null,null,null,null,null,null,null,null,null,null,null,null,null,null,null,null,null,null,null,null,null,null,null,null,null,null,null,null,null,null,null,null,null,null,null,null,null,null,null,null,null,null,null,null,null,null,null,null,null,null,null,73]
[null,null,null,null,null,null,null,null,null,null,null,null,null,null,null,null,null,null,null,null,null,null,null,null,null,null,null,null,null,null,null,null,null,null,null,null,null,null,null,null,null,null,null,null,null,null,null,null,null,null,null,null,null,null,null,null,null,null,null,null,null,null,null,null,null,null,null,null,null,null,null,null,null,null,null,null,74]
[null,null,null,null,null,null,null,null,null,null,null,null,null,null,null,null,null,null,null,null,null,null,null,null,null,null,null,null,null,null,null,null,null,null,null,null,null,null,null,null,null,null,null,null,null,null,null,null,null,null,null,null,null,null,null,null,null,null,null,null,null,null,null,null,null,null,null,null,null,null,null,null,null,null,null,null,75]
[null,null,null,null,null,null,null,null,null,null,null,null,null,null,null,null,null,null,null,null,null,null,null,null,null,null,null,null,null,null,null,null,null,null,null,null,null,null,null,null,null,null,null,null,null,null,null,null,null,null,null,null,null,null,null,null,null,null,null,null,null,null,null,null,null,null,null,null,null,null,null,null,null,null,null,null,null,"ENERJİ KAYNAKLARI","KM,%","ME, Mcal/kg","HP,%","MP,%","DIP,%","RUP,%","Ca,%","P,%","HS,%","NDF,%","TSBM,%","SE, Mcal/kg","NEyp, Mcal/kg","NEb, Mcal/kg","NEl, Mcal/kg","ADF,%","eNDF,%","HY,%","HK,%","K,%","Cl,%","S,%","Zn,ppm","VitA, RE/kg","VitE,ppm","Fiyat,TL","En az","En çok"]
[null,null,null,null,null,null,null,null,null,null,null,null,null,null,null,null,null,null,null,null,null,null,null,null,null,null,null,null,null,null,null,null,null,null,null,null,null,null,null,null,null,null,null,null,null,null,null,null,null,null,null,null,null,null,null,null,null,null,null,null,null,null,null,null,null,null,null,null,null,null,null,null,null,null,null,null,1,"Arpa, Tane",89,3,12,8.4,7.8,3.4,0.06,0.38,5,20,84,3.7,2,1.3,1.9,7,34,2.1,3,0.6,0.18,0.16,23,263.2,25,8.5,0,0.5]
[null,null,null,null,null,null,null,null,null,null,null,null,null,null,null,null,null,null,null,null,null,null,null,null,null,null,null,null,null,null,null,null,null,null,null,null,null,null,null,null,null,null,null,null,null,null,null,null,null,null,null,null,null,null,null,null,null,null,null,null,null,null,null,null,null,null,null,null,null,null,null,null,null,null,null,null,2,"Arpa, Tane, 2 sıralı",87,3,12,8.4,7.8,3.4,0.05,0.31,6,24,84,3.7,2,1.3,1.9,8,34,2.2999999999999998,2,0.6,0.18,0.17,null,null,null,8.5,0,0.5]
[null,null,null,null,null,null,null,null,null,null,null,null,null,null,null,null,null,null,null,null,null,null,null,null,null,null,null,null,null,null,null,null,null,null,null,null,null,null,null,null,null,null,null,null,null,null,null,null,null,null,null,null,null,null,null,null,null,null,null,null,null,null,null,null,null,null,null,null,null,null,null,null,null,null,null,null,3,"Arpa, Tane, 6 sıralı",87,3,11,7.7,6.9,3.4,0.05,0.36,6,24,84,3.7,2,1.3,1.9,8,34,2.2000000000000002,3,0.6,0.18,0.15,null,null,null,8.5,0,0.5]
[null,null,null,null,null,null,null,null,null,null,null,null,null,null,null,null,null,null,null,null,null,null,null,null,null,null,null,null,null,null,null,null,null,null,null,null,null,null,null,null,null,null,null,null,null,null,null,null,null,null,null,null,null,null,null,null,null,null,null,null,null,null,null,null,null,null,null,null,null,null,null,null,null,null,null,null,4,"Arpa, Tane, Buhar. Ezilmiş",86,3,12,8.4,7.8,4.5999999999999996,0.06,0.41,5,20,84,3.7,2,1.3,1.9,7,27,2.1,3,0.6,0.18,0.17,30,null,null,10.5,0,0.5]
[null,null,null,null,null,null,null,null,null,null,null,null,null,null,null,null,null,null,null,null,null,null,null,null,null,null,null,null,null,null,null,null,null,null,null,null,null,null,null,null,null,null,null,null,null,null,null,null,null,null,null,null,null,null,null,null,null,null,null,null,null,null,null,null,null,null,null,null,null,null,null,null,null,null,null,null,5,"Arpa, Tane, Elek Altı",89,2.8,12,8.4,7.8,null,0.3,0.33,9,null,77,3.4,1.8,1.2,1.7,11,null,2.6,4,0.7,null,0.15,null,null,null,7,0,0.5]
[null,null,null,null,null,null,null,null,null,null,null,null,null,null,null,null,null,null,null,null,null,null,null,null,null,null,null,null,null,null,null,null,null,null,null,null,null,null,null,null,null,null,null,null,null,null,null,null,null,null,null,null,null,null,null,null,null,null,null,null,null,null,null,null,null,null,null,null,null,null,null,null,null,null,null,null,6,"Arpa, Tane, Hafif, (54-57 kg/hl) ",88,2.8,13,9.1,8.6999999999999993,3.9,null,null,9,30,78,3.4,1.8,1.2,1.8,12,34,2.2999999999999998,4,null,null,null,null,null,null,8,0,0.5]
[null,null,null,null,null,null,null,null,null,null,null,null,null,null,null,null,null,null,null,null,null,null,null,null,null,null,null,null,null,null,null,null,null,null,null,null,null,null,null,null,null,null,null,null,null,null,null,null,null,null,null,null,null,null,null,null,null,null,null,null,null,null,null,null,null,null,null,null,null,null,null,null,null,null,null,null,7,"Arpa, Tane, Pul ",85,3.3,12,8.4,7.8,4.7,0.06,0.35,5,20,90,4,2.2000000000000002,1.5,2.2000000000000002,7,30,2.1,3,0.6,0.18,0.16,23,null,null,9.75,0,0.5]
[null,null,null,null,null,null,null,null,null,null,null,null,null,null,null,null,null,null,null,null,null,null,null,null,null,null,null,null,null,null,null,null,null,null,null,null,null,null,null,null,null,null,null,null,null,null,null,null,null,null,null,null,null,null,null,null,null,null,null,null,null,null,null,null,null,null,null,null,null,null,null,null,null,null,null,null,8,"Bezelye, Kurutulmuş",93,3.01,24.9,14.1,20.100000000000001,5.5,0.17,0.41,6.5,12.7,83,null,null,null,null,7.2,null,1.5,4,null,null,null,null,null,null,20,null,0.3]
[null,null,null,null,null,null,null,null,null,null,null,null,null,null,null,null,null,null,null,null,null,null,null,null,null,null,null,null,null,null,null,null,null,null,null,null,null,null,null,null,null,null,null,null,null,null,null,null,null,null,null,null,null,null,null,null,null,null,null,null,null,null,null,null,null,null,null,null,null,null,null,null,null,null,null,null,9,"Bezelye, Yaş",12,2.68,30.8,17.899999999999999,25.5,5.5,0.17,0.41,6.5,12.7,74,null,null,null,null,7.2,null,1.7,14,null,null,null,null,null,null,17,null,1]
[null,null,null,null,null,null,null,null,null,null,null,null,null,null,null,null,null,null,null,null,null,null,null,null,null,null,null,null,null,null,null,null,null,null,null,null,null,null,null,null,null,null,null,null,null,null,null,null,null,null,null,null,null,null,null,null,null,null,null,null,null,null,null,null,null,null,null,null,null,null,null,null,null,null,null,null,10,"Buğday, Tane ",89,3.2,14,9.8000000000000007,9.6,3.2,0.05,0.43,3,12,88,3.9,2.2000000000000002,1.4,2,4,0,2.2999999999999998,2,0.4,0.09,0.15,40,0,17,10.5,0,0.3]
[null,null,null,null,null,null,null,null,null,null,null,null,null,null,null,null,null,null,null,null,null,null,null,null,null,null,null,null,null,null,null,null,null,null,null,null,null,null,null,null,null,null,null,null,null,null,null,null,null,null,null,null,null,null,null,null,null,null,null,null,null,null,null,null,null,null,null,null,null,null,null,null,null,null,null,null,11,"Buğday, Tane, Çimlendirilmiş",86,3.2,12,8.4,7.8,2.2000000000000002,0.04,0.36,3,13,88,3.9,2.2000000000000002,1.4,2,4,0,2,2,0.4,null,0.17,45,null,null,10.5,0,0.1]
[null,null,null,null,null,null,null,null,null,null,null,null,null,null,null,null,null,null,null,null,null,null,null,null,null,null,null,null,null,null,null,null,null,null,null,null,null,null,null,null,null,null,null,null,null,null,null,null,null,null,null,null,null,null,null,null,null,null,null,null,null,null,null,null,null,null,null,null,null,null,null,null,null,null,null,null,12,"Buğday, Tane, Pul",85,3.3,14,9.8000000000000007,9.6,4.0999999999999996,0.05,0.39,3,12,91,4,2.2000000000000002,1.5,2.1,4,0,2.2999999999999998,2,0.4,null,0.15,40,null,null,10,0,0.5]
[null,null,null,null,null,null,null,null,null,null,null,null,null,null,null,null,null,null,null,null,null,null,null,null,null,null,null,null,null,null,null,null,null,null,null,null,null,null,null,null,null,null,null,null,null,null,null,null,null,null,null,null,null,null,null,null,null,null,null,null,null,null,null,null,null,null,null,null,null,null,null,null,null,null,null,null,13,"Buğday, Tane, Sert",89,3.2,14,9.8000000000000007,9.6,3.9,0.05,0.43,3,14,88,3.9,2.2000000000000002,1.4,2,6,0,2,2,0.5,null,0.16,45,null,15,10.5,0,0.3]
[null,null,null,null,null,null,null,null,null,null,null,null,null,null,null,null,null,null,null,null,null,null,null,null,null,null,null,null,null,null,null,null,null,null,null,null,null,null,null,null,null,null,null,null,null,null,null,null,null,null,null,null,null,null,null,null,null,null,null,null,null,null,null,null,null,null,null,null,null,null,null,null,null,null,null,null,14,"Buğday, Tane, Yumuşak",89,3.2,12,8.4,7.8,2.8,0.06,0.4,3,12,88,3.9,2.2000000000000002,1.4,2,4,0,2,2,0.4,null,0.15,30,null,19,10.5,0,0.3]
[null,null,null,null,null,null,null,null,null,null,null,null,null,null,null,null,null,null,null,null,null,null,null,null,null,null,null,null,null,null,null,null,null,null,null,null,null,null,null,null,null,null,null,null,null,null,null,null,null,null,null,null,null,null,null,null,null,null,null,null,null,null,null,null,null,null,null,null,null,null,null,null,null,null,null,null,15,"Çavdar, Tane",89,3,12,8.4,7.8,2.4,7.0000000000000007E-2,0.39,2,19,82,3.6,2,1.3,1.9,9,34,1.7,2,0.5,0.03,0.17,33,0,17,35,0,0.1]
[null,null,null,null,null,null,null,null,null,null,null,null,null,null,null,null,null,null,null,null,null,null,null,null,null,null,null,null,null,null,null,null,null,null,null,null,null,null,null,null,null,null,null,null,null,null,null,null,null,null,null,null,null,null,null,null,null,null,null,null,null,null,null,null,null,null,null,null,null,null,null,null,null,null,null,null,16,"Darı, Kabuksuz",87,3,13,9.1,8.6999999999999993,null,0.03,0.36,2,18,82,3.6,2,1.3,1.9,6,34,4.5,3,0.5,null,null,null,null,null,40,0,0.3]
[null,null,null,null,null,null,null,null,null,null,null,null,null,null,null,null,null,null,null,null,null,null,null,null,null,null,null,null,null,null,null,null,null,null,null,null,null,null,null,null,null,null,null,null,null,null,null,null,null,null,null,null,null,null,null,null,null,null,null,null,null,null,null,null,null,null,null,null,null,null,null,null,null,null,null,null,17,"Havuç",12,3,10,7,6,null,0.6,0.3,9,20,83,3.7,2,1.3,1.9,11,0,1.4,10,2.4,0.5,0.17,null,135.6,60,1.2,0,3]
[null,null,null,null,null,null,null,null,null,null,null,null,null,null,null,null,null,null,null,null,null,null,null,null,null,null,null,null,null,null,null,null,null,null,null,null,null,null,null,null,null,null,null,null,null,null,null,null,null,null,null,null,null,null,null,null,null,null,null,null,null,null,null,null,null,null,null,null,null,null,null,null,null,null,null,null,18,"Kara Buğday, Tane",88,2.8,12,8.4,7.8,null,0.11,0.36,12,null,77,3.4,1.8,1.2,1.7,17,null,2.8,2,0.5,0.05,0.16,10,null,null,10.5,0,0.3]
[null,null,null,null,null,null,null,null,null,null,null,null,null,null,null,null,null,null,null,null,null,null,null,null,null,null,null,null,null,null,null,null,null,null,null,null,null,null,null,null,null,null,null,null,null,null,null,null,null,null,null,null,null,null,null,null,null,null,null,null,null,null,null,null,null,null,null,null,null,null,null,null,null,null,null,null,19,"Keçiboynuzu, Çekirdekli",88,2.86,6.3,2.1,3,null,0.23,0.34,9.07,44.77,79,3.48,1.85,1.22,null,44.65,null,33,3.99,null,null,null,null,null,null,2,null,0.1]
[null,null,null,null,null,null,null,null,null,null,null,null,null,null,null,null,null,null,null,null,null,null,null,null,null,null,null,null,null,null,null,null,null,null,null,null,null,null,null,null,null,null,null,null,null,null,null,null,null,null,null,null,null,null,null,null,null,null,null,null,null,null,null,null,null,null,null,null,null,null,null,null,null,null,null,null,20,"Kızıl Buğday, Tane",88,2.7,13,9.1,8.6999999999999993,3.5,0.04,0.4,10,21,75,3.3,1.7,1.1000000000000001,1.7,17,34,2.1,4,0.4,null,0.15,47,null,null,10.5,0,0.3]
[null,null,null,null,null,null,null,null,null,null,null,null,null,null,null,null,null,null,null,null,null,null,null,null,null,null,null,null,null,null,null,null,null,null,null,null,null,null,null,null,null,null,null,null,null,null,null,null,null,null,null,null,null,null,null,null,null,null,null,null,null,null,null,null,null,null,null,null,null,null,null,null,null,null,null,null,21,"KOYUN SÜT YEMİ",88,2.73,14.77,10,null,null,1.02,0.45,7.95,25,null,null,null,null,null,null,null,null,null,null,null,null,null,null,null,12,null,1]
[null,null,null,null,null,null,null,null,null,null,null,null,null,null,null,null,null,null,null,null,null,null,null,null,null,null,null,null,null,null,null,null,null,null,null,null,null,null,null,null,null,null,null,null,null,null,null,null,null,null,null,null,null,null,null,null,null,null,null,null,null,null,null,null,null,null,null,null,null,null,null,null,null,null,null,null,22,"KUZU BESİ YEMİ",88,3.06,18.18,13,null,null,1.02,0.45,8,25,null,null,null,null,null,null,null,null,null,null,null,null,null,null,null,12.8,null,1]
[null,null,null,null,null,null,null,null,null,null,null,null,null,null,null,null,null,null,null,null,null,null,null,null,null,null,null,null,null,null,null,null,null,null,null,null,null,null,null,null,null,null,null,null,null,null,null,null,null,null,null,null,null,null,null,null,null,null,null,null,null,null,null,null,null,null,null,null,null,null,null,null,null,null,null,null,23,"KUZU BÜYÜTME YEMİ",88,2.84,18.18,13,null,null,1.7,0.56999999999999995,6.82,20,null,null,null,null,null,null,null,null,null,null,null,null,null,null,null,13,null,1]
[null,null,null,null,null,null,null,null,null,null,null,null,null,null,null,null,null,null,null,null,null,null,null,null,null,null,null,null,null,null,null,null,null,null,null,null,null,null,null,null,null,null,null,null,null,null,null,null,null,null,null,null,null,null,null,null,null,null,null,null,null,null,null,null,null,null,null,null,null,null,null,null,null,null,null,null,24,"KUZU-BUZAĞI BAŞ. YEMİ",88,3.18,20.45,15,null,null,1.7,0.56999999999999995,6.82,20,null,null,null,null,null,null,null,null,null,null,null,null,null,null,null,13,null,1]
[null,null,null,null,null,null,null,null,null,null,null,null,null,null,null,null,null,null,null,null,null,null,null,null,null,null,null,null,null,null,null,null,null,null,null,null,null,null,null,null,null,null,null,null,null,null,null,null,null,null,null,null,null,null,null,null,null,null,null,null,null,null,null,null,null,null,null,null,null,null,null,null,null,null,null,null,25,"Lahana",9,3.04,20.6,11.3,16.100000000000001,null,0.64,0.35,null,17.2,84,3.7,2,1.35,null,10.4,null,null,9,null,null,null,null,null,null,1,null,0.5]
[null,null,null,null,null,null,null,null,null,null,null,null,null,null,null,null,null,null,null,null,null,null,null,null,null,null,null,null,null,null,null,null,null,null,null,null,null,null,null,null,null,null,null,null,null,null,null,null,null,null,null,null,null,null,null,null,null,null,null,null,null,null,null,null,null,null,null,null,null,null,null,null,null,null,null,null,26,"Meşe Palamudu",64,1.7,4.8,1.2,1.7,null,null,null,null,null,47,2.0699999999999998,1.01,0.15,null,null,null,null,null,null,null,null,null,null,null,1,null,0.1]
[null,null,null,null,null,null,null,null,null,null,null,null,null,null,null,null,null,null,null,null,null,null,null,null,null,null,null,null,null,null,null,null,null,null,null,null,null,null,null,null,null,null,null,null,null,null,null,null,null,null,null,null,null,null,null,null,null,null,null,null,null,null,null,null,null,null,null,null,null,null,null,null,null,null,null,null,27,"Mısır, Elekaltı",86,3.3,10,7,6,5.2,0.04,0.27,3,9,91,4,2.2000000000000002,1.5,2.1,4,20,4.3,2,0.4,0.05,0.12,16,null,null,7,0,0.5]
[null,null,null,null,null,null,null,null,null,null,null,null,null,null,null,null,null,null,null,null,null,null,null,null,null,null,null,null,null,null,null,null,null,null,null,null,null,null,null,null,null,null,null,null,null,null,null,null,null,null,null,null,null,null,null,null,null,null,null,null,null,null,null,null,null,null,null,null,null,null,null,null,null,null,null,null,28,"Mısır, Tane",88,3.2,9,6.3,5.0999999999999996,5.2,0.02,0.3,2,9,88,3.9,2.2000000000000002,1.4,2,3,60,4.3,2,0.4,0.05,0.12,18,394.8,25,8.5,0,0.5]
[null,null,null,null,null,null,null,null,null,null,null,null,null,null,null,null,null,null,null,null,null,null,null,null,null,null,null,null,null,null,null,null,null,null,null,null,null,null,null,null,null,null,null,null,null,null,null,null,null,null,null,null,null,null,null,null,null,null,null,null,null,null,null,null,null,null,null,null,null,null,null,null,null,null,null,null,29,"Mısır, Tane, Ezilmiş",88,3.2,9,6.3,5.0999999999999996,4.9000000000000004,0.02,0.3,2,9,88,3.9,2.2000000000000002,1.4,2,3,34,4.3,2,0.4,0.05,0.12,18,null,null,8.5,0,0.5]
[null,null,null,null,null,null,null,null,null,null,null,null,null,null,null,null,null,null,null,null,null,null,null,null,null,null,null,null,null,null,null,null,null,null,null,null,null,null,null,null,null,null,null,null,null,null,null,null,null,null,null,null,null,null,null,null,null,null,null,null,null,null,null,null,null,null,null,null,null,null,null,null,null,null,null,null,30,"Mısır, Tane, Pul",85,3.4,9,6.3,5.0999999999999996,5.3,0.02,0.27,2,9,93,4.0999999999999996,2.2999999999999998,1.6,2.1,3,40,4.0999999999999996,2,0.4,0.05,0.12,18,null,null,11.5,0,0.5]
[null,null,null,null,null,null,null,null,null,null,null,null,null,null,null,null,null,null,null,null,null,null,null,null,null,null,null,null,null,null,null,null,null,null,null,null,null,null,null,null,null,null,null,null,null,null,null,null,null,null,null,null,null,null,null,null,null,null,null,null,null,null,null,null,null,null,null,null,null,null,null,null,null,null,null,null,31,"Mısır, Tane, Yüksek Lizin",92,3.1,12,8.4,7.8,7,0.03,0.24,4,11,87,3.8,2.1,1.4,2,4,60,4.4000000000000004,2,0.4,0.05,0.11,18,658,null,9.5,0,0.5]
[null,null,null,null,null,null,null,null,null,null,null,null,null,null,null,null,null,null,null,null,null,null,null,null,null,null,null,null,null,null,null,null,null,null,null,null,null,null,null,null,null,null,null,null,null,null,null,null,null,null,null,null,null,null,null,null,null,null,null,null,null,null,null,null,null,null,null,null,null,null,null,null,null,null,null,null,32,"Mısır, Tane, Yüksek Nemli",74,3.4,10,7,6,4.2,0.02,0.3,2,9,93,4.0999999999999996,2.2999999999999998,1.6,2.1,3,0,4,2,0.4,0.06,0.13,20,null,null,9.5,0,0.5]
[null,null,null,null,null,null,null,null,null,null,null,null,null,null,null,null,null,null,null,null,null,null,null,null,null,null,null,null,null,null,null,null,null,null,null,null,null,null,null,null,null,null,null,null,null,null,null,null,null,null,null,null,null,null,null,null,null,null,null,null,null,null,null,null,null,null,null,null,null,null,null,null,null,null,null,null,33,"Mısır, Tane, Yüksek Yağlı ",88,3.3,8,5.6,4.2,4.3,0.01,0.3,2,8,91,4,2.2000000000000002,1.5,2.1,3,60,6.9,2,0.3,0.05,0.13,18,null,null,10,0,0.5]
[null,null,null,null,null,null,null,null,null,null,null,null,null,null,null,null,null,null,null,null,null,null,null,null,null,null,null,null,null,null,null,null,null,null,null,null,null,null,null,null,null,null,null,null,null,null,null,null,null,null,null,null,null,null,null,null,null,null,null,null,null,null,null,null,null,null,null,null,null,null,null,null,null,null,null,null,34,"Nohut",91,3.3,21.7,10.6,15.2,3.5,0.17,0.37,10.5,22.8,76,3.35,1.76,1.1399999999999999,null,13.8,null,5,3.3,null,null,null,null,null,null,30,null,0.2]
[null,null,null,null,null,null,null,null,null,null,null,null,null,null,null,null,null,null,null,null,null,null,null,null,null,null,null,null,null,null,null,null,null,null,null,null,null,null,null,null,null,null,null,null,null,null,null,null,null,null,null,null,null,null,null,null,null,null,null,null,null,null,null,null,null,null,null,null,null,null,null,null,null,null,null,null,35,"Pamuk Tohumu",91,3.4,23,16.100000000000001,17.7,8.6999999999999993,0.14000000000000001,0.64,29,47,95,4.2,2.4,1.6,2.2000000000000002,39,100,17.8,4,1.1000000000000001,0.06,0.24,34,null,null,80,0,0.1]
[null,null,null,null,null,null,null,null,null,null,null,null,null,null,null,null,null,null,null,null,null,null,null,null,null,null,null,null,null,null,null,null,null,null,null,null,null,null,null,null,null,null,null,null,null,null,null,null,null,null,null,null,null,null,null,null,null,null,null,null,null,null,null,null,null,null,null,null,null,null,null,null,null,null,null,null,36,"Patates, Taze",23,2.93,9.5,4.0999999999999996,5.9,null,0.04,0.24,null,null,81,3.57,1.91,1.27,null,null,null,null,null,null,null,null,null,null,null,2.5,null,0.5]
[null,null,null,null,null,null,null,null,null,null,null,null,null,null,null,null,null,null,null,null,null,null,null,null,null,null,null,null,null,null,null,null,null,null,null,null,null,null,null,null,null,null,null,null,null,null,null,null,null,null,null,null,null,null,null,null,null,null,null,null,null,null,null,null,null,null,null,null,null,null,null,null,null,null,null,null,37,"Pirinç, Tane",89,2.9,8,5.6,4.2,2.4,7.0000000000000007E-2,0.32,10,16,79,3.5,1.9,1.2,1.8,12,34,1.9,5,0.4,0.09,0.05,17,null,null,12,0,0.2]
[null,null,null,null,null,null,null,null,null,null,null,null,null,null,null,null,null,null,null,null,null,null,null,null,null,null,null,null,null,null,null,null,null,null,null,null,null,null,null,null,null,null,null,null,null,null,null,null,null,null,null,null,null,null,null,null,null,null,null,null,null,null,null,null,null,null,null,null,null,null,null,null,null,null,null,null,38,"SIĞIR SÜT YEMİ,16 HP, 2400 ME",89,2.71,18.3,null,null,null,1.19,0.56000000000000005,null,26,75.2,3.4,1.87,1.24,1.63,11.9,null,2.4700000000000002,7.98,0.99,0.4,0.2,108,null,null,10.199999999999999]
[null,null,null,null,null,null,null,null,null,null,null,null,null,null,null,null,null,null,null,null,null,null,null,null,null,null,null,null,null,null,null,null,null,null,null,null,null,null,null,null,null,null,null,null,null,null,null,null,null,null,null,null,null,null,null,null,null,null,null,null,null,null,null,null,null,null,null,null,null,null,null,null,null,null,null,null,39,"SIĞIR SÜT YEMİ,16 HP, 2500 ME",89,2.76,18.3,null,null,null,1.19,0.56000000000000005,null,21,75.2,3.5,1.92,1.3,1.69,9.1,null,2.4700000000000002,7.3,0.99,0.4,0.2,108,null,null,10.6]
[null,null,null,null,null,null,null,null,null,null,null,null,null,null,null,null,null,null,null,null,null,null,null,null,null,null,null,null,null,null,null,null,null,null,null,null,null,null,null,null,null,null,null,null,null,null,null,null,null,null,null,null,null,null,null,null,null,null,null,null,null,null,null,null,null,null,null,null,null,null,null,null,null,null,null,null,40,"SIĞIR SÜT YEMİ,18 HP, 2500 ME",89,2.76,20.420000000000002,null,null,null,1.19,0.56000000000000005,null,23.7,79.7,3.5,1.92,1.3,1.69,10.5,null,2.65,8.1999999999999993,0.92,0.33,0.23,100,null,null,10.6]
[null,null,null,null,null,null,null,null,null,null,null,null,null,null,null,null,null,null,null,null,null,null,null,null,null,null,null,null,null,null,null,null,null,null,null,null,null,null,null,null,null,null,null,null,null,null,null,null,null,null,null,null,null,null,null,null,null,null,null,null,null,null,null,null,null,null,null,null,null,null,null,null,null,null,null,null,41,"SIĞIR SÜT YEMİ,18 HP, 2600 ME",89,2.91,20.420000000000002,null,null,null,1.19,0.56000000000000005,null,18.75,79.7,3.62,2.02,1.37,1.76,8.17,null,2.65,6.94,0.92,0.33,0.23,100,null,null,10.6]
[null,null,null,null,null,null,null,null,null,null,null,null,null,null,null,null,null,null,null,null,null,null,null,null,null,null,null,null,null,null,null,null,null,null,null,null,null,null,null,null,null,null,null,null,null,null,null,null,null,null,null,null,null,null,null,null,null,null,null,null,null,null,null,null,null,null,null,null,null,null,null,null,null,null,null,null,42,"SIĞIR SÜT YEMİ,19 HP, 2700 ME",89,3.07,21.8,null,null,null,1.19,0.56000000000000005,null,20.2,79.7,3.7,2.12,1.42,1.92,8.6999999999999993,null,2.65,6.9,0.85,0.33,0.23,100,null,null,11.5]
[null,null,null,null,null,null,null,null,null,null,null,null,null,null,null,null,null,null,null,null,null,null,null,null,null,null,null,null,null,null,null,null,null,null,null,null,null,null,null,null,null,null,null,null,null,null,null,null,null,null,null,null,null,null,null,null,null,null,null,null,null,null,null,null,null,null,null,null,null,null,null,null,null,null,null,null,43,"Sorgum, Tane (Milo), Öğütülmüş",89,3,11,7.7,6.9,6.1,0.04,0.32,3,15,82,3.6,2,1.3,1.9,6,5,3.1,2,0.4,0.1,0.14000000000000001,18,131.6,12,43,0,0.2]
[null,null,null,null,null,null,null,null,null,null,null,null,null,null,null,null,null,null,null,null,null,null,null,null,null,null,null,null,null,null,null,null,null,null,null,null,null,null,null,null,null,null,null,null,null,null,null,null,null,null,null,null,null,null,null,null,null,null,null,null,null,null,null,null,null,null,null,null,null,null,null,null,null,null,null,null,44,"Sorgum, Tane (Milo), Pul ",82,3.3,11,7.7,6.9,6.8,0.04,0.28000000000000003,3,15,90,4,2.2000000000000002,1.5,2.1,6,38,3.1,2,0.4,0.1,0.14000000000000001,18,null,null,47,0,0.2]
[null,null,null,null,null,null,null,null,null,null,null,null,null,null,null,null,null,null,null,null,null,null,null,null,null,null,null,null,null,null,null,null,null,null,null,null,null,null,null,null,null,null,null,null,null,null,null,null,null,null,null,null,null,null,null,null,null,null,null,null,null,null,null,null,null,null,null,null,null,null,null,null,null,null,null,null,45,"Soya Fasulyesi ",88,3.4,40,28,33,11.2,0.27,0.64,9,15,93,4.0999999999999996,2.2999999999999998,1.6,2.1,11,100,18.8,5,2,0.03,0.34,56,200,37,40,0,0.1]
[null,null,null,null,null,null,null,null,null,null,null,null,null,null,null,null,null,null,null,null,null,null,null,null,null,null,null,null,null,null,null,null,null,null,null,null,null,null,null,null,null,null,null,null,null,null,null,null,null,null,null,null,null,null,null,null,null,null,null,null,null,null,null,null,null,null,null,null,null,null,null,null,null,null,null,null,46,"Soya Fasulyesi, Ekstrude ",88,3.4,40,28,33,14,0.27,0.64,9,15,93,4.0999999999999996,2.2999999999999998,1.6,2.1,11,100,18.8,5,2,0.03,0.34,56,0,7,45,0,0.2]
[null,null,null,null,null,null,null,null,null,null,null,null,null,null,null,null,null,null,null,null,null,null,null,null,null,null,null,null,null,null,null,null,null,null,null,null,null,null,null,null,null,null,null,null,null,null,null,null,null,null,null,null,null,null,null,null,null,null,null,null,null,null,null,null,null,null,null,null,null,null,null,null,null,null,null,null,47,"Soya Fasulyesi, Kavrulmuş ",88,3.4,40,28,33,19.2,0.27,0.64,9,15,93,4.0999999999999996,2.2999999999999998,1.6,2.1,11,100,18.8,5,2,0.03,0.34,56,null,null,45,0,0.2]
[null,null,null,null,null,null,null,null,null,null,null,null,null,null,null,null,null,null,null,null,null,null,null,null,null,null,null,null,null,null,null,null,null,null,null,null,null,null,null,null,null,null,null,null,null,null,null,null,null,null,null,null,null,null,null,null,null,null,null,null,null,null,null,null,null,null,null,null,null,null,null,null,null,null,null,null,48,"Şalgam",9,3.1,12,8.4,7.8,0,0.7,0.34,11,44,86,3.8,2.1,1.4,2,34,40,1.5,8,3.2,0.65,0.43,40,null,null,1,0,0.5]
[null,null,null,null,null,null,null,null,null,null,null,null,null,null,null,null,null,null,null,null,null,null,null,null,null,null,null,null,null,null,null,null,null,null,null,null,null,null,null,null,null,null,null,null,null,null,null,null,null,null,null,null,null,null,null,null,null,null,null,null,null,null,null,null,null,null,null,null,null,null,null,null,null,null,null,null,49,"Tapioka unu ",89,3,2,1.4,1.2,null,0.03,0.05,5,34,83,3.7,2,1.3,1.9,8,null,0.8,3,null,null,null,null,null,null,25,0,0.1]
[null,null,null,null,null,null,null,null,null,null,null,null,null,null,null,null,null,null,null,null,null,null,null,null,null,null,null,null,null,null,null,null,null,null,null,null,null,null,null,null,null,null,null,null,null,null,null,null,null,null,null,null,null,null,null,null,null,null,null,null,null,null,null,null,null,null,null,null,null,null,null,null,null,null,null,null,50,"TOKLU BESİ YEMİ",88,3.06,13.89,9,null,null,1.25,0.45,9.09,30,null,null,null,null,null,null,null,null,null,null,null,null,null,null,null,12.6,null,1]
[null,null,null,null,null,null,null,null,null,null,null,null,null,null,null,null,null,null,null,null,null,null,null,null,null,null,null,null,null,null,null,null,null,null,null,null,null,null,null,null,null,null,null,null,null,null,null,null,null,null,null,null,null,null,null,null,null,null,null,null,null,null,null,null,null,null,null,null,null,null,null,null,null,null,null,null,51,"Tritikale, Tane ",89,3.1,14,9.8000000000000007,9.6,3.5,7.0000000000000007E-2,0.39,4,22,85,3.7,2.1,1.4,1.9,5,34,2.4,2,0.5,null,0.17,37,null,null,20,0,0.2]
[null,null,null,null,null,null,null,null,null,null,null,null,null,null,null,null,null,null,null,null,null,null,null,null,null,null,null,null,null,null,null,null,null,null,null,null,null,null,null,null,null,null,null,null,null,null,null,null,null,null,null,null,null,null,null,null,null,null,null,null,null,null,null,null,null,null,null,null,null,null,null,null,null,null,null,null,52,"Yağ, Hayvansal, Kanatlı, Bitkisel ",99,7.1,0,0,3,null,0,0,0,0,195,8.6,6.3,5.0999999999999996,6.3,0,0,99,0,0,null,null,null,null,null,150,0,0.05]
[null,null,null,null,null,null,null,null,null,null,null,null,null,null,null,null,null,null,null,null,null,null,null,null,null,null,null,null,null,null,null,null,null,null,null,null,null,null,null,null,null,null,null,null,null,null,null,null,null,null,null,null,null,null,null,null,null,null,null,null,null,null,null,null,null,null,null,null,null,null,null,null,null,null,null,null,53,"Yonca Tohumu, Elek Altı",91,3,34,23.8,27.6,null,0.3,0.67,13,null,84,3.7,2,1.3,1.9,15,null,10.5,6,null,null,null,null,null,null,30,0,0.1]
[null,null,null,null,null,null,null,null,null,null,null,null,null,null,null,null,null,null,null,null,null,null,null,null,null,null,null,null,null,null,null,null,null,null,null,null,null,null,null,null,null,null,null,null,null,null,null,null,null,null,null,null,null,null,null,null,null,null,null,null,null,null,null,null,null,null,null,null,null,null,null,null,null,null,null,null,54,"Yulaf, Tane",89,2.7,13,9.1,8.6999999999999993,2.2999999999999998,0.05,0.41,11,28,76,3.4,1.8,1.1000000000000001,1.7,15,34,5,4,0.5,0.11,0.2,40,null,15,7,0,0.3]
[null,null,null,null,null,null,null,null,null,null,null,null,null,null,null,null,null,null,null,null,null,null,null,null,null,null,null,null,null,null,null,null,null,null,null,null,null,null,null,null,null,null,null,null,null,null,null,null,null,null,null,null,null,null,null,null,null,null,null,null,null,null,null,null,null,null,null,null,null,null,null,null,null,null,null,null,55,"Yulaf, Tane, Kabuksuz",91,3.3,18,12.6,13.2,2.7,0.08,0.47,3,null,91,4,2.2000000000000002,1.5,2.1,null,null,6.6,2,0.4,0.1,0.2,null,null,16,9,0,0.3]
[null,null,null,null,null,null,null,null,null,null,null,null,null,null,null,null,null,null,null,null,null,null,null,null,null,null,null,null,null,null,null,null,null,null,null,null,null,null,null,null,null,null,null,null,null,null,null,null,null,null,null,null,null,null,null,null,null,null,null,null,null,null,null,null,null,null,null,null,null,null,null,null,null,null,null,null,56,"Yulaf, Tane, Öğütülmüş",90,3.3,17,11.9,12.3,3.4,0.06,0.48,3,28,90,4,2.2000000000000002,1.5,2.1,4,null,6,3,0.5,null,0.23,null,null,null,8.75,0,0.3]
[null,null,null,null,null,null,null,null,null,null,null,null,null,null,null,null,null,null,null,null,null,null,null,null,null,null,null,null,null,null,null,null,null,null,null,null,null,null,null,null,null,null,null,null,null,null,null,null,null,null,null,null,null,null,null,null,null,null,null,null,null,null,null,null,null,null,null,null,null,null,null,null,null,null,null,null,57,"Yulaf, Tane, Pul",84,3.2,13,9.1,8.6999999999999993,3.4,0.05,0.37,11,30,88,3.9,2.2000000000000002,1.4,2,15,32,4.9000000000000004,4,0.5,0.11,0.2,40,null,null,9.75,0,0.3]
[null,null,null,null,null,null,null,null,null,null,null,null,null,null,null,null,null,null,null,null,null,null,null,null,null,null,null,null,null,null,null,null,null,null,null,null,null,null,null,null,null,null,null,null,null,null,null,null,null,null,null,null,null,null,null,null,null,null,null,null,null,null,null,null,null,null,null,null,null,null,null,null,null,null,null,null,58]
[null,null,null,null,null,null,null,null,null,null,null,null,null,null,null,null,null,null,null,null,null,null,null,null,null,null,null,null,null,null,null,null,null,null,null,null,null,null,null,null,null,null,null,null,null,null,null,null,null,null,null,null,null,null,null,null,null,null,null,null,null,null,null,null,null,null,null,null,null,null,null,null,null,null,null,null,59]
[null,null,null,null,null,null,null,null,null,null,null,null,null,null,null,null,null,null,null,null,null,null,null,null,null,null,null,null,null,null,null,null,null,null,null,null,null,null,null,null,null,null,null,null,null,null,null,null,null,null,null,null,null,null,null,null,null,null,null,null,null,null,null,null,null,null,null,null,null,null,null,null,null,null,null,null,60]
[null,null,null,null,null,null,null,null,null,null,null,null,null,null,null,null,null,null,null,null,null,null,null,null,null,null,null,null,null,null,null,null,null,null,null,null,null,null,null,null,null,null,null,null,null,null,null,null,null,null,null,null,null,null,null,null,null,null,null,null,null,null,null,null,null,null,null,null,null,null,null,null,null,null,null,null,61]
[null,null,null,null,null,null,null,null,null,null,null,null,null,null,null,null,null,null,null,null,null,null,null,null,null,null,null,null,null,null,null,null,null,null,null,null,null,null,null,null,null,null,null,null,null,null,null,null,null,null,null,null,null,null,null,null,null,null,null,null,null,null,null,null,null,null,null,null,null,null,null,null,null,null,null,null,62]
[null,null,null,null,null,null,null,null,null,null,null,null,null,null,null,null,null,null,null,null,null,null,null,null,null,null,null,null,null,null,null,null,null,null,null,null,null,null,null,null,null,null,null,null,null,null,null,null,null,null,null,null,null,null,null,null,null,null,null,null,null,null,null,null,null,null,null,null,null,null,null,null,null,null,null,null,63]
[null,null,null,null,null,null,null,null,null,null,null,null,null,null,null,null,null,null,null,null,null,null,null,null,null,null,null,null,null,null,null,null,null,null,null,null,null,null,null,null,null,null,null,null,null,null,null,null,null,null,null,null,null,null,null,null,null,null,null,null,null,null,null,null,null,null,null,null,null,null,null,null,null,null,null,null,64]
[null,null,null,null,null,null,null,null,null,null,null,null,null,null,null,null,null,null,null,null,null,null,null,null,null,null,null,null,null,null,null,null,null,null,null,null,null,null,null,null,null,null,null,null,null,null,null,null,null,null,null,null,null,null,null,null,null,null,null,null,null,null,null,null,null,null,null,null,null,null,null,null,null,null,null,null,65]
[null,null,null,null,null,null,null,null,null,null,null,null,null,null,null,null,null,null,null,null,null,null,null,null,null,null,null,null,null,null,null,null,null,null,null,null,null,null,null,null,null,null,null,null,null,null,null,null,null,null,null,null,null,null,null,null,null,null,null,null,null,null,null,null,null,null,null,null,null,null,null,null,null,null,null,null,66]
[null,null,null,null,null,null,null,null,null,null,null,null,null,null,null,null,null,null,null,null,null,null,null,null,null,null,null,null,null,null,null,null,null,null,null,null,null,null,null,null,null,null,null,null,null,null,null,null,null,null,null,null,null,null,null,null,null,null,null,null,null,null,null,null,null,null,null,null,null,null,null,null,null,null,null,null,67]
[null,null,null,null,null,null,null,null,null,null,null,null,null,null,null,null,null,null,null,null,null,null,null,null,null,null,null,null,null,null,null,null,null,null,null,null,null,null,null,null,null,null,null,null,null,null,null,null,null,null,null,null,null,null,null,null,null,null,null,null,null,null,null,null,null,null,null,null,null,null,null,null,null,null,null,null,68]
[null,null,null,null,null,null,null,null,null,null,null,null,null,null,null,null,null,null,null,null,null,null,null,null,null,null,null,null,null,null,null,null,null,null,null,null,null,null,null,null,null,null,null,null,null,null,null,null,null,null,null,null,null,null,null,null,null,null,null,null,null,null,null,null,null,null,null,null,null,null,null,null,null,null,null,null,69]
[null,null,null,null,null,null,null,null,null,null,null,null,null,null,null,null,null,null,null,null,null,null,null,null,null,null,null,null,null,null,null,null,null,null,null,null,null,null,null,null,null,null,null,null,null,null,null,null,null,null,null,null,null,null,null,null,null,null,null,null,null,null,null,null,null,null,null,null,null,null,null,null,null,null,null,null,70]
[null,null,null,null,null,null,null,null,null,null,null,null,null,null,null,null,null,null,null,null,null,null,null,null,null,null,null,null,null,null,null,null,null,null,null,null,null,null,null,null,null,null,null,null,null,null,null,null,null,null,null,null,null,null,null,null,null,null,null,null,null,null,null,null,null,null,null,null,null,null,null,null,null,null,null,null,71]
[null,null,null,null,null,null,null,null,null,null,null,null,null,null,null,null,null,null,null,null,null,null,null,null,null,null,null,null,null,null,null,null,null,null,null,null,null,null,null,null,null,null,null,null,null,null,null,null,null,null,null,null,null,null,null,null,null,null,null,null,null,null,null,null,null,null,null,null,null,null,null,null,null,null,null,null,72]
[null,null,null,null,null,null,null,null,null,null,null,null,null,null,null,null,null,null,null,null,null,null,null,null,null,null,null,null,null,null,null,null,null,null,null,null,null,null,null,null,null,null,null,null,null,null,null,null,null,null,null,null,null,null,null,null,null,null,null,null,null,null,null,null,null,null,null,null,null,null,null,null,null,null,null,null,73]
[null,null,null,null,null,null,null,null,null,null,null,null,null,null,null,null,null,null,null,null,null,null,null,null,null,null,null,null,null,null,null,null,null,null,null,null,null,null,null,null,null,null,null,null,null,null,null,null,null,null,null,null,null,null,null,null,null,null,null,null,null,null,null,null,null,null,null,null,null,null,null,null,null,null,null,null,74]
[null,null,null,null,null,null,null,null,null,null,null,null,null,null,null,null,null,null,null,null,null,null,null,null,null,null,null,null,null,null,null,null,null,null,null,null,null,null,null,null,null,null,null,null,null,null,null,null,null,null,null,null,null,null,null,null,null,null,null,null,null,null,null,null,null,null,null,null,null,null,null,null,null,null,null,null,75]
[null,null,null,null,null,null,null,null,null,null,null,null,null,null,null,null,null,null,null,null,null,null,null,null,null,null,null,null,null,null,null,null,null,null,null,null,null,null,null,null,null,null,null,null,null,null,null,null,null,null,null,null,null,null,null,null,null,null,null,null,null,null,null,null,null,null,null,null,null,null,null,null,null,null,null,null,null,"YAN ÜRÜNLER","KM,%","ME, Mcal/kg","HP,%","MP,%","DIP,%","RUP,%","Ca,%","P,%","HS,%","NDF,%","TSBM,%","SE, Mcal/kg","NEyp, Mcal/kg","NEb, Mcal/kg","NEl, Mcal/kg","ADF,%","eNDF,%","HY,%","HK,%","K,%","Cl,%","S,%","Zn,ppm","VitA, RE/kg","VitE,ppm","Fiyat,TL","En az","En çok"]
[null,null,null,null,null,null,null,null,null,null,null,null,null,null,null,null,null,null,null,null,null,null,null,null,null,null,null,null,null,null,null,null,null,null,null,null,null,null,null,null,null,null,null,null,null,null,null,null,null,null,null,null,null,null,null,null,null,null,null,null,null,null,null,null,null,null,null,null,null,null,null,null,null,null,null,null,1,"Balkabağı Kabukları",10,3.1,16,11.2,11.4,0,0.24,0.43,14,25,85,3.7,2.1,1.4,1.9,18,0,8.9,9,3.3,null,null,null,null,null,1,0,1]
[null,null,null,null,null,null,null,null,null,null,null,null,null,null,null,null,null,null,null,null,null,null,null,null,null,null,null,null,null,null,null,null,null,null,null,null,null,null,null,null,null,null,null,null,null,null,null,null,null,null,null,null,null,null,null,null,null,null,null,null,null,null,null,null,null,null,null,null,null,null,null,null,null,null,null,null,2,"Bezelye Iskartaları",89,3.1,25,17.5,19.5,5.5,0.15,0.45,7,15,86,3.8,2.1,1.4,2,9,0,1.5,4,1.1000000000000001,0.06,0.26,30,200,3,12,0,1]
[null,null,null,null,null,null,null,null,null,null,null,null,null,null,null,null,null,null,null,null,null,null,null,null,null,null,null,null,null,null,null,null,null,null,null,null,null,null,null,null,null,null,null,null,null,null,null,null,null,null,null,null,null,null,null,null,null,null,null,null,null,null,null,null,null,null,null,null,null,null,null,null,null,null,null,null,3,"Bira Posası, Kurutulmuş",92,3,25,17.5,19.5,13.5,0.28999999999999998,0.6,14,49,84,3.7,2,1.3,1.9,24,18,8.1999999999999993,4,0.1,0.15,0.32,78,null,29,15,0,1]
[null,null,null,null,null,null,null,null,null,null,null,null,null,null,null,null,null,null,null,null,null,null,null,null,null,null,null,null,null,null,null,null,null,null,null,null,null,null,null,null,null,null,null,null,null,null,null,null,null,null,null,null,null,null,null,null,null,null,null,null,null,null,null,null,null,null,null,null,null,null,null,null,null,null,null,null,4,"Bira Posası, Yaş",23,3.1,27,18.899999999999999,21.3,14,0.28999999999999998,0.61,13,45,85,3.7,2.1,1.4,1.9,21,18,7.6,4,0.1,0.15,0.32,78,null,null,20,0,1]
[null,null,null,null,null,null,null,null,null,null,null,null,null,null,null,null,null,null,null,null,null,null,null,null,null,null,null,null,null,null,null,null,null,null,null,null,null,null,null,null,null,null,null,null,null,null,null,null,null,null,null,null,null,null,null,null,null,null,null,null,null,null,null,null,null,null,null,null,null,null,null,null,null,null,null,null,5,"Buğday Değirmen Artığı",90,2.7,17,11.9,12.3,4.8,0.12,1,9,37,75,3.3,1.7,1.1000000000000001,1.7,12,0,4.4000000000000004,5,1.2,7.0000000000000007E-2,0.22,90,null,null,8,0,1]
[null,null,null,null,null,null,null,null,null,null,null,null,null,null,null,null,null,null,null,null,null,null,null,null,null,null,null,null,null,null,null,null,null,null,null,null,null,null,null,null,null,null,null,null,null,null,null,null,null,null,null,null,null,null,null,null,null,null,null,null,null,null,null,null,null,null,null,null,null,null,null,null,null,null,null,null,6,"Buğday Kepeği",89,2.5,17,11.9,12.3,4.8,0.13,1.29,11,46,70,3.1,1.6,1,1.6,13,4,4.5,7,1.4,0.05,0.24,96,600,21,7,0,0.1]
[null,null,null,null,null,null,null,null,null,null,null,null,null,null,null,null,null,null,null,null,null,null,null,null,null,null,null,null,null,null,null,null,null,null,null,null,null,null,null,null,null,null,null,null,null,null,null,null,null,null,null,null,null,null,null,null,null,null,null,null,null,null,null,null,null,null,null,null,null,null,null,null,null,null,null,null,7,"Buğday Kepeği, İnce",89,2.9,20,14,15,5,0.1,0.95,7,30,80,3.5,1.9,1.2,1.8,7,0,5.4,5,1.1000000000000001,0.08,0.2,118,null,61,8,0,0.1]
[null,null,null,null,null,null,null,null,null,null,null,null,null,null,null,null,null,null,null,null,null,null,null,null,null,null,null,null,null,null,null,null,null,null,null,null,null,null,null,null,null,null,null,null,null,null,null,null,null,null,null,null,null,null,null,null,null,null,null,null,null,null,null,null,null,null,null,null,null,null,null,null,null,null,null,null,8,"Buğday Kepeği, Razmol",89,3,19,13.3,14.1,4.2,0.15,1.02,8,36,82,3.6,2,1.3,1.9,12,2,4.5999999999999996,5,1.4,0.05,0.2,98,null,null,9,0,0.1]
[null,null,null,null,null,null,null,null,null,null,null,null,null,null,null,null,null,null,null,null,null,null,null,null,null,null,null,null,null,null,null,null,null,null,null,null,null,null,null,null,null,null,null,null,null,null,null,null,null,null,null,null,null,null,null,null,null,null,null,null,null,null,null,null,null,null,null,null,null,null,null,null,null,null,null,null,9,"Damıtma Çözünürleri, Kurutulmuş",93,3.2,29,20.3,23.1,0,0.33,1.38,4,22,88,3.9,2.2000000000000002,1.4,2,7,4,9.1999999999999993,7,1.8,0.28000000000000003,0.4,91,null,null,40,0,1]
[null,null,null,null,null,null,null,null,null,null,null,null,null,null,null,null,null,null,null,null,null,null,null,null,null,null,null,null,null,null,null,null,null,null,null,null,null,null,null,null,null,null,null,null,null,null,null,null,null,null,null,null,null,null,null,null,null,null,null,null,null,null,null,null,null,null,null,null,null,null,null,null,null,null,null,null,10,"Damıtma Katı Maddeleri, Arpa ",90,2.8,30,21,24,16.8,0.15,0.67,18,45,77,3.4,1.8,1.2,1.7,22,4,3.7,4,1,0.18,0.43,50,null,null,12,0,1]
[null,null,null,null,null,null,null,null,null,null,null,null,null,null,null,null,null,null,null,null,null,null,null,null,null,null,null,null,null,null,null,null,null,null,null,null,null,null,null,null,null,null,null,null,null,null,null,null,null,null,null,null,null,null,null,null,null,null,null,null,null,null,null,null,null,null,null,null,null,null,null,null,null,null,null,null,11,"Damıtma Katı Maddeleri, Mısır, Kurutulmuş",91,3.3,29,20.3,23.1,17.399999999999999,0.15,0.78,8,42,92,4.0999999999999996,2.2999999999999998,1.5,2.1,21,4,10.5,4,0.9,0.14000000000000001,0.45,65,394.8,null,11,0,1]
[null,null,null,null,null,null,null,null,null,null,null,null,null,null,null,null,null,null,null,null,null,null,null,null,null,null,null,null,null,null,null,null,null,null,null,null,null,null,null,null,null,null,null,null,null,null,null,null,null,null,null,null,null,null,null,null,null,null,null,null,null,null,null,null,null,null,null,null,null,null,null,null,null,null,null,null,12,"Damıtma Katı Maddeleri, Mısır, Taze",36,3.5,29,20.3,23.1,16,0.15,0.78,8,41,98,4.3,2.4,1.6,2.2000000000000002,21,4,10.5,4,0.9,0.14000000000000001,0.45,65,null,null,11,0,1]
[null,null,null,null,null,null,null,null,null,null,null,null,null,null,null,null,null,null,null,null,null,null,null,null,null,null,null,null,null,null,null,null,null,null,null,null,null,null,null,null,null,null,null,null,null,null,null,null,null,null,null,null,null,null,null,null,null,null,null,null,null,null,null,null,null,null,null,null,null,null,null,null,null,null,null,null,13,"Damıtma Katı Maddeleri, Sorgum, Kurutulmuş ",91,3.1,32,22.4,25.8,19.8,0.22,0.63,13,44,85,3.7,2.1,1.4,1.9,22,4,10,3,0.3,null,0.45,50,null,null,45,0,1]
[null,null,null,null,null,null,null,null,null,null,null,null,null,null,null,null,null,null,null,null,null,null,null,null,null,null,null,null,null,null,null,null,null,null,null,null,null,null,null,null,null,null,null,null,null,null,null,null,null,null,null,null,null,null,null,null,null,null,null,null,null,null,null,null,null,null,null,null,null,null,null,null,null,null,null,null,14,"Damıtma Katı Maddeleri, Sorgum, Taze ",35,3.2,32,22.4,25.8,17.600000000000001,0.22,0.63,13,44,89,3.9,2.2000000000000002,1.5,2.1,22,4,10,3,0.3,null,0.45,50,null,null,5,0,1]
[null,null,null,null,null,null,null,null,null,null,null,null,null,null,null,null,null,null,null,null,null,null,null,null,null,null,null,null,null,null,null,null,null,null,null,null,null,null,null,null,null,null,null,null,null,null,null,null,null,null,null,null,null,null,null,null,null,null,null,null,null,null,null,null,null,null,null,null,null,null,null,null,null,null,null,null,15,"Damıtma Katı Maddeleri, Taze ",25,3.3,28,19.600000000000001,22.2,14.6,0.28000000000000003,0.78,8,40,90,4,2.2000000000000002,1.5,2.1,18,4,9.6,6,1.2,0.28000000000000003,0.4,95,null,null,3,0,1]
[null,null,null,null,null,null,null,null,null,null,null,null,null,null,null,null,null,null,null,null,null,null,null,null,null,null,null,null,null,null,null,null,null,null,null,null,null,null,null,null,null,null,null,null,null,null,null,null,null,null,null,null,null,null,null,null,null,null,null,null,null,null,null,null,null,null,null,null,null,null,null,null,null,null,null,null,16,"Damıtma Katı Maddeleri+Çözünürleri, Mısır, Kurutulmuş (DDGS)",90,3.3,29,20.3,23.1,14.5,0.28000000000000003,0.79,9,43,92,4.0999999999999996,2.2999999999999998,1.5,2.1,17,4,10.6,6,1,0.18,0.39,80,394.8,43,12,0,1]
[null,null,null,null,null,null,null,null,null,null,null,null,null,null,null,null,null,null,null,null,null,null,null,null,null,null,null,null,null,null,null,null,null,null,null,null,null,null,null,null,null,null,null,null,null,null,null,null,null,null,null,null,null,null,null,null,null,null,null,null,null,null,null,null,null,null,null,null,null,null,null,null,null,null,null,null,17,"Damıtma Katı Maddeleri+Çözünürleri, Mısır, Taze ",7,3.3,22,15.4,16.8,12.1,0.14000000000000001,0.72,8,21,92,4.0999999999999996,2.2999999999999998,1.5,2.1,10,0,8.1,5,0.2,null,0.6,60,null,null,12,0,1]
[null,null,null,null,null,null,null,null,null,null,null,null,null,null,null,null,null,null,null,null,null,null,null,null,null,null,null,null,null,null,null,null,null,null,null,null,null,null,null,null,null,null,null,null,null,null,null,null,null,null,null,null,null,null,null,null,null,null,null,null,null,null,null,null,null,null,null,null,null,null,null,null,null,null,null,null,18,"Damıtma Katı Maddeleri+Çözünürleri, Sorgum, Kurutulmuş ",92,3.1,31,21.7,24.9,16.399999999999999,0.25,0.65,13,47,85,3.7,2.1,1.4,1.9,19,4,10,3,0.5,null,0.4,55,null,null,50,0,1]
[null,null,null,null,null,null,null,null,null,null,null,null,null,null,null,null,null,null,null,null,null,null,null,null,null,null,null,null,null,null,null,null,null,null,null,null,null,null,null,null,null,null,null,null,null,null,null,null,null,null,null,null,null,null,null,null,null,null,null,null,null,null,null,null,null,null,null,null,null,null,null,null,null,null,null,null,19,"Domates Posası, Kurutulmuş ",92,2.2999999999999998,23,16.100000000000001,17.7,null,0.43,0.59,26,55,64,2.8,1.4,0.8,1.4,50,34,10.6,6,3.6,null,null,null,null,null,35,0,1]
[null,null,null,null,null,null,null,null,null,null,null,null,null,null,null,null,null,null,null,null,null,null,null,null,null,null,null,null,null,null,null,null,null,null,null,null,null,null,null,null,null,null,null,null,null,null,null,null,null,null,null,null,null,null,null,null,null,null,null,null,null,null,null,null,null,null,null,null,null,null,null,null,null,null,null,null,20,"Domates Posası, Yaş",13,2.2400000000000002,21.7,null,null,null,null,null,null,null,62,2.73,1.36,0.72,null,null,null,null,null,null,null,null,null,null,null,3]
[null,null,null,null,null,null,null,null,null,null,null,null,null,null,null,null,null,null,null,null,null,null,null,null,null,null,null,null,null,null,null,null,null,null,null,null,null,null,null,null,null,null,null,null,null,null,null,null,null,null,null,null,null,null,null,null,null,null,null,null,null,null,null,null,null,null,null,null,null,null,null,null,null,null,null,null,21,"Ekmek Artıkları ",68,3.3,14,9.8000000000000007,9.6,3.4,0.09,0.18,1,3,91,4,2.2000000000000002,1.5,2.1,2,0,3.2,3,0.2,0.76,0.15,40,null,null,1,0,1]
[null,null,null,null,null,null,null,null,null,null,null,null,null,null,null,null,null,null,null,null,null,null,null,null,null,null,null,null,null,null,null,null,null,null,null,null,null,null,null,null,null,null,null,null,null,null,null,null,null,null,null,null,null,null,null,null,null,null,null,null,null,null,null,null,null,null,null,null,null,null,null,null,null,null,null,null,22,"Elma Posası, Kurutulmuş",89,2.4,5,3.5,1.5,0.8,0.13,0.12,19,45,65,2.9,1.5,0.8,1.5,35,34,5.2,4,0.5,null,0.02,null,null,null,3,0,1]
[null,null,null,null,null,null,null,null,null,null,null,null,null,null,null,null,null,null,null,null,null,null,null,null,null,null,null,null,null,null,null,null,null,null,null,null,null,null,null,null,null,null,null,null,null,null,null,null,null,null,null,null,null,null,null,null,null,null,null,null,null,null,null,null,null,null,null,null,null,null,null,null,null,null,null,null,23,"Elma Posası, Taze",20,2.5,6,4.2,2.4,0.6,0.14000000000000001,0.14000000000000001,17,40,68,3,1.5,0.9,1.5,34,34,5.6,4,0.6,null,0.06,11,null,null,2,0,1]
[null,null,null,null,null,null,null,null,null,null,null,null,null,null,null,null,null,null,null,null,null,null,null,null,null,null,null,null,null,null,null,null,null,null,null,null,null,null,null,null,null,null,null,null,null,null,null,null,null,null,null,null,null,null,null,null,null,null,null,null,null,null,null,null,null,null,null,null,null,null,null,null,null,null,null,null,24,"Fırıncılık Artıkları, Kurutulmuş ",90,3.3,12,8.4,7.8,3.6,0.18,0.28000000000000003,4,14,90,4,2.2000000000000002,1.5,2.1,6,0,11,4,0.3,2.25,0.15,33,3.1,45,1,0,1]
[null,null,null,null,null,null,null,null,null,null,null,null,null,null,null,null,null,null,null,null,null,null,null,null,null,null,null,null,null,null,null,null,null,null,null,null,null,null,null,null,null,null,null,null,null,null,null,null,null,null,null,null,null,null,null,null,null,null,null,null,null,null,null,null,null,null,null,null,null,null,null,null,null,null,null,null,25,"Havuç Posası ",14,2.2000000000000002,6,4.2,2.4,null,null,null,19,40,62,2.7,1.4,0.7,1.4,23,0,7.8,9,null,null,null,null,null,null,1.2,0,1]
[null,null,null,null,null,null,null,null,null,null,null,null,null,null,null,null,null,null,null,null,null,null,null,null,null,null,null,null,null,null,null,null,null,null,null,null,null,null,null,null,null,null,null,null,null,null,null,null,null,null,null,null,null,null,null,null,null,null,null,null,null,null,null,null,null,null,null,null,null,null,null,null,null,null,null,null,26,"Kuru Fasulye, Artıkları",90,3,24,16.8,18.600000000000001,6,0.15,0.59,5,20,84,3.7,2,1.3,1.9,8,0,1.4,5,1.4,0.06,0.26,45,null,null,120,0,1]
[null,null,null,null,null,null,null,null,null,null,null,null,null,null,null,null,null,null,null,null,null,null,null,null,null,null,null,null,null,null,null,null,null,null,null,null,null,null,null,null,null,null,null,null,null,null,null,null,null,null,null,null,null,null,null,null,null,null,null,null,null,null,null,null,null,null,null,null,null,null,null,null,null,null,null,null,27,"Melas, Narenciye",65,2.8,10,7,6,0,1.9,0.17,0,0,77,3.4,1.8,1.2,1.7,0,0,0.3,8,0.2,0.11,0.23,137,null,null,17,0,1]
[null,null,null,null,null,null,null,null,null,null,null,null,null,null,null,null,null,null,null,null,null,null,null,null,null,null,null,null,null,null,null,null,null,null,null,null,null,null,null,null,null,null,null,null,null,null,null,null,null,null,null,null,null,null,null,null,null,null,null,null,null,null,null,null,null,null,null,null,null,null,null,null,null,null,null,null,28,"Melas, Odun Hemiselüloz",61,2.7,1,0.7,2.1,0,1.3,0.09,1,4,76,3.4,1.8,1.1000000000000001,1.7,2,0,0.7,9,0.1,null,0.05,null,null,null,13,0,1]
[null,null,null,null,null,null,null,null,null,null,null,null,null,null,null,null,null,null,null,null,null,null,null,null,null,null,null,null,null,null,null,null,null,null,null,null,null,null,null,null,null,null,null,null,null,null,null,null,null,null,null,null,null,null,null,null,null,null,null,null,null,null,null,null,null,null,null,null,null,null,null,null,null,null,null,null,29,"Melas, Pancar ",77,2.7,9,6.3,5.0999999999999996,0,0.12,0.03,0,0,75,3.3,1.7,1.1000000000000001,1.7,0,0,0.2,12,6,1.64,0.6,18,null,5,4,0,1]
[null,null,null,null,null,null,null,null,null,null,null,null,null,null,null,null,null,null,null,null,null,null,null,null,null,null,null,null,null,null,null,null,null,null,null,null,null,null,null,null,null,null,null,null,null,null,null,null,null,null,null,null,null,null,null,null,null,null,null,null,null,null,null,null,null,null,null,null,null,null,null,null,null,null,null,null,30,"Melas, Şeker Kamışı",76,2.7,6,4.2,2.4,0,0.97,0.1,0,0,75,3.3,1.7,1.1000000000000001,1.7,0,0,0.8,12,3.7,2.5,0.53,25,null,7,4,0,1]
[null,null,null,null,null,null,null,null,null,null,null,null,null,null,null,null,null,null,null,null,null,null,null,null,null,null,null,null,null,null,null,null,null,null,null,null,null,null,null,null,null,null,null,null,null,null,null,null,null,null,null,null,null,null,null,null,null,null,null,null,null,null,null,null,null,null,null,null,null,null,null,null,null,null,null,null,31,"Melas, Şeker Kamışı, Kurutulmuş",94,2.7,9,6.3,5.0999999999999996,0,1.1000000000000001,0.15,2,7,74,3.3,1.7,1.1000000000000001,1.7,3,0,0.3,14,3.6,3,null,30,null,null,4,0,1]
[null,null,null,null,null,null,null,null,null,null,null,null,null,null,null,null,null,null,null,null,null,null,null,null,null,null,null,null,null,null,null,null,null,null,null,null,null,null,null,null,null,null,null,null,null,null,null,null,null,null,null,null,null,null,null,null,null,null,null,null,null,null,null,null,null,null,null,null,null,null,null,null,null,null,null,null,32,"Mısır Kepeği+Germ (Hominy)",90,3.2,11,7.7,6.9,5.3,0.04,0.54,5,21,89,3.9,2.2000000000000002,1.5,2.1,7,9,6.1,3,0.6,0.06,0.1,32,1.3160000000000001,null,10,0,1]
[null,null,null,null,null,null,null,null,null,null,null,null,null,null,null,null,null,null,null,null,null,null,null,null,null,null,null,null,null,null,null,null,null,null,null,null,null,null,null,null,null,null,null,null,null,null,null,null,null,null,null,null,null,null,null,null,null,null,null,null,null,null,null,null,null,null,null,null,null,null,null,null,null,null,null,null,33,"Mısır Kepeği ",91,1.7,11,7.7,6.9,null,0.04,0.15,10,51,76,3.4,1.8,1.1000000000000001,1.7,17,0,6.3,3,0.1,0.13,0.08,18,null,null,9,0,1]
[null,null,null,null,null,null,null,null,null,null,null,null,null,null,null,null,null,null,null,null,null,null,null,null,null,null,null,null,null,null,null,null,null,null,null,null,null,null,null,null,null,null,null,null,null,null,null,null,null,null,null,null,null,null,null,null,null,null,null,null,null,null,null,null,null,null,null,null,null,null,null,null,null,null,null,null,34,"Mısır Koçan Unu ",87,3,9,6.3,5.0999999999999996,4.7,0.06,0.28000000000000003,9,26,82,3.6,2,1.3,1.9,10,56,3.7,2,0.5,0.05,0.13,16,526.4,20,3.5,0,1]
[null,null,null,null,null,null,null,null,null,null,null,null,null,null,null,null,null,null,null,null,null,null,null,null,null,null,null,null,null,null,null,null,null,null,null,null,null,null,null,null,null,null,null,null,null,null,null,null,null,null,null,null,null,null,null,null,null,null,null,null,null,null,null,null,null,null,null,null,null,null,null,null,null,null,null,null,35,"Mısır Konserve Artıkları ",29,2.5,8,5.6,4.2,1.2,0.1,0.28999999999999998,28,59,68,3,1.5,0.9,1.5,36,0,3,5,1,null,0.13,25,null,null,15,0,1]
[null,null,null,null,null,null,null,null,null,null,null,null,null,null,null,null,null,null,null,null,null,null,null,null,null,null,null,null,null,null,null,null,null,null,null,null,null,null,null,null,null,null,null,null,null,null,null,null,null,null,null,null,null,null,null,null,null,null,null,null,null,null,null,null,null,null,null,null,null,null,null,null,null,null,null,null,36,"Mısır Sömeği ",90,1.7,3,2.1,0.3,1.5,0.12,0.04,36,88,48,2.1,1.1000000000000001,0.2,1,39,56,0.5,2,0.8,null,0.4,5,131.6,null,25,0,1]
[null,null,null,null,null,null,null,null,null,null,null,null,null,null,null,null,null,null,null,null,null,null,null,null,null,null,null,null,null,null,null,null,null,null,null,null,null,null,null,null,null,null,null,null,null,null,null,null,null,null,null,null,null,null,null,null,null,null,null,null,null,null,null,null,null,null,null,null,null,null,null,null,null,null,null,null,37,"Pancar Posası, Kurutulmuş",91,2.7,11,7.7,6.9,4.8,0.65,0.08,21,41,75,3.3,1.7,1.1000000000000001,1.7,21,33,0.7,6,1.4,0.4,0.22,22,null,null,5.5,0,1]
[null,null,null,null,null,null,null,null,null,null,null,null,null,null,null,null,null,null,null,null,null,null,null,null,null,null,null,null,null,null,null,null,null,null,null,null,null,null,null,null,null,null,null,null,null,null,null,null,null,null,null,null,null,null,null,null,null,null,null,null,null,null,null,null,null,null,null,null,null,null,null,null,null,null,null,null,38,"Pancar Posası, Kurutulmuş, Melaslı",92,2.7,11,7.7,6.9,3.7,0.6,0.1,17,40,76,3.4,1.8,1.1000000000000001,1.7,22,33,0.6,6,1.8,null,0.42,11,null,null,6,0,1]
[null,null,null,null,null,null,null,null,null,null,null,null,null,null,null,null,null,null,null,null,null,null,null,null,null,null,null,null,null,null,null,null,null,null,null,null,null,null,null,null,null,null,null,null,null,null,null,null,null,null,null,null,null,null,null,null,null,null,null,null,null,null,null,null,null,null,null,null,null,null,null,null,null,null,null,null,39,"Pancar Posası, Yaş",17,2.7,11,7.7,6.9,3.9,0.68,0.08,20,48,76,3.4,1.8,1.1000000000000001,1.7,23,33,0.7,6,1.4,0.4,0.21,20,null,null,2,0,1]
[null,null,null,null,null,null,null,null,null,null,null,null,null,null,null,null,null,null,null,null,null,null,null,null,null,null,null,null,null,null,null,null,null,null,null,null,null,null,null,null,null,null,null,null,null,null,null,null,null,null,null,null,null,null,null,null,null,null,null,null,null,null,null,null,null,null,null,null,null,null,null,null,null,null,null,null,40,"Pancar Posası, Ambalajlı",19,2.76,11.1,7.7,6.9,3.9,0.68,0.08,20,45.8,74,3.18,1.57,0.97,1.55,23,33,0.7,4.7,0.91,0.16,0.22,10,0,0,2,0,1]
[null,null,null,null,null,null,null,null,null,null,null,null,null,null,null,null,null,null,null,null,null,null,null,null,null,null,null,null,null,null,null,null,null,null,null,null,null,null,null,null,null,null,null,null,null,null,null,null,null,null,null,null,null,null,null,null,null,null,null,null,null,null,null,null,null,null,null,null,null,null,null,null,null,null,null,null,41,"Pancar Posası, Yaş, Melaslı",24,2.8,11,7.7,6.9,2.8,0.6,0.1,16,39,77,3.4,1.8,1.2,1.7,21,33,0.6,6,1.8,null,0.42,11,null,null,6,0,1]
[null,null,null,null,null,null,null,null,null,null,null,null,null,null,null,null,null,null,null,null,null,null,null,null,null,null,null,null,null,null,null,null,null,null,null,null,null,null,null,null,null,null,null,null,null,null,null,null,null,null,null,null,null,null,null,null,null,null,null,null,null,null,null,null,null,null,null,null,null,null,null,null,null,null,null,null,42,"Patates Artıkları, Kurutulmuş",89,3.1,8,5.6,4.2,0,0.16,0.25,7,15,85,3.7,2.1,1.4,1.9,9,0,0.5,5,1.2,0.39,0.11,12,null,null,4,0,1]
[null,null,null,null,null,null,null,null,null,null,null,null,null,null,null,null,null,null,null,null,null,null,null,null,null,null,null,null,null,null,null,null,null,null,null,null,null,null,null,null,null,null,null,null,null,null,null,null,null,null,null,null,null,null,null,null,null,null,null,null,null,null,null,null,null,null,null,null,null,null,null,null,null,null,null,null,43,"Patates Artıkları, Yaş",14,3,7,4.9000000000000004,3.3,0,0.16,0.25,9,18,82,3.6,2,1.3,1.9,11,0,1.5,3,1.2,0.36,0.11,12,null,null,2,0,1]
[null,null,null,null,null,null,null,null,null,null,null,null,null,null,null,null,null,null,null,null,null,null,null,null,null,null,null,null,null,null,null,null,null,null,null,null,null,null,null,null,null,null,null,null,null,null,null,null,null,null,null,null,null,null,null,null,null,null,null,null,null,null,null,null,null,null,null,null,null,null,null,null,null,null,null,null,44,"Patates Kabukları",21,2.9,10,7,6,0,0.03,0.24,2,4,80,3.5,1.9,1.2,1.8,3,0,0.4,5,2.2000000000000002,0.3,0.09,null,null,null,1,0,1]
[null,null,null,null,null,null,null,null,null,null,null,null,null,null,null,null,null,null,null,null,null,null,null,null,null,null,null,null,null,null,null,null,null,null,null,null,null,null,null,null,null,null,null,null,null,null,null,null,null,null,null,null,null,null,null,null,null,null,null,null,null,null,null,null,null,null,null,null,null,null,null,null,null,null,null,null,45,"Pirinç Değirmen Kalıntıları ",91,1.5,7,4.9000000000000004,3.3,null,0.4,0.31,32,60,42,1.9,0.9,0,0.9,48,0,5.7,null,2.2000000000000002,null,0.3,31,null,null,10,0,1]
[null,null,null,null,null,null,null,null,null,null,null,null,null,null,null,null,null,null,null,null,null,null,null,null,null,null,null,null,null,null,null,null,null,null,null,null,null,null,null,null,null,null,null,null,null,null,null,null,null,null,null,null,null,null,null,null,null,null,null,null,null,null,null,null,null,null,null,null,null,null,null,null,null,null,null,null,46,"Pirinç Kepeği",91,2.6,14,9.8000000000000007,9.6,4.2,7.0000000000000007E-2,1.7,13,24,72,3.2,1.7,1,1.6,18,0,17,11,1.8,0.09,0.19,40,null,null,9,0,1]
[null,null,null,null,null,null,null,null,null,null,null,null,null,null,null,null,null,null,null,null,null,null,null,null,null,null,null,null,null,null,null,null,null,null,null,null,null,null,null,null,null,null,null,null,null,null,null,null,null,null,null,null,null,null,null,null,null,null,null,null,null,null,null,null,null,null,null,null,null,null,null,null,null,null,null,null,47,"Pirinç Parlatma Kabukları",90,3.3,14,9.8000000000000007,9.6,null,0.05,1.36,4,null,90,4,2.2000000000000002,1.5,2.1,5,null,14,9,1.2,0.12,0.19,28,null,null,5,0,1]
[null,null,null,null,null,null,null,null,null,null,null,null,null,null,null,null,null,null,null,null,null,null,null,null,null,null,null,null,null,null,null,null,null,null,null,null,null,null,null,null,null,null,null,null,null,null,null,null,null,null,null,null,null,null,null,null,null,null,null,null,null,null,null,null,null,null,null,null,null,null,null,null,null,null,null,null,48,"Portakal Posası, Kurutulmuş",89,2.9,9,6.3,5.0999999999999996,null,0.71,0.11,9,20,80,3.5,1.9,1.2,1.8,16,33,1.8,4,0.6,null,0.05,null,null,null,34,0,1]
[null,null,null,null,null,null,null,null,null,null,null,null,null,null,null,null,null,null,null,null,null,null,null,null,null,null,null,null,null,null,null,null,null,null,null,null,null,null,null,null,null,null,null,null,null,null,null,null,null,null,null,null,null,null,null,null,null,null,null,null,null,null,null,null,null,null,null,null,null,null,null,null,null,null,null,null,49,"Soya Unu Değirmen Kalıntısı ",90,1.8,15,10.5,10.5,null,0.49,0.18,36,null,51,2.2000000000000002,1.1000000000000001,0.3,1.1000000000000001,46,null,2,6,1.7,null,7.0000000000000007E-2,null,null,null,5,0,1]
[null,null,null,null,null,null,null,null,null,null,null,null,null,null,null,null,null,null,null,null,null,null,null,null,null,null,null,null,null,null,null,null,null,null,null,null,null,null,null,null,null,null,null,null,null,null,null,null,null,null,null,null,null,null,null,null,null,null,null,null,null,null,null,null,null,null,null,null,null,null,null,null,null,null,null,null,50,"Turunçgil Posası, Kurutulmuş",90,2.9,7,4.9000000000000004,3.3,2.7,1.81,0.12,13,21,79,3.5,1.9,1.2,1.8,18,33,2.2000000000000002,7,0.8,0.04,0.08,14,0,null,34,0,1]
[null,null,null,null,null,null,null,null,null,null,null,null,null,null,null,null,null,null,null,null,null,null,null,null,null,null,null,null,null,null,null,null,null,null,null,null,null,null,null,null,null,null,null,null,null,null,null,null,null,null,null,null,null,null,null,null,null,null,null,null,null,null,null,null,null,null,null,null,null,null,null,null,null,null,null,null,51]
[null,null,null,null,null,null,null,null,null,null,null,null,null,null,null,null,null,null,null,null,null,null,null,null,null,null,null,null,null,null,null,null,null,null,null,null,null,null,null,null,null,null,null,null,null,null,null,null,null,null,null,null,null,null,null,null,null,null,null,null,null,null,null,null,null,null,null,null,null,null,null,null,null,null,null,null,52]
[null,null,null,null,null,null,null,null,null,null,null,null,null,null,null,null,null,null,null,null,null,null,null,null,null,null,null,null,null,null,null,null,null,null,null,null,null,null,null,null,null,null,null,null,null,null,null,null,null,null,null,null,null,null,null,null,null,null,null,null,null,null,null,null,null,null,null,null,null,null,null,null,null,null,null,null,53]
[null,null,null,null,null,null,null,null,null,null,null,null,null,null,null,null,null,null,null,null,null,null,null,null,null,null,null,null,null,null,null,null,null,null,null,null,null,null,null,null,null,null,null,null,null,null,null,null,null,null,null,null,null,null,null,null,null,null,null,null,null,null,null,null,null,null,null,null,null,null,null,null,null,null,null,null,54]
[null,null,null,null,null,null,null,null,null,null,null,null,null,null,null,null,null,null,null,null,null,null,null,null,null,null,null,null,null,null,null,null,null,null,null,null,null,null,null,null,null,null,null,null,null,null,null,null,null,null,null,null,null,null,null,null,null,null,null,null,null,null,null,null,null,null,null,null,null,null,null,null,null,null,null,null,55]
[null,null,null,null,null,null,null,null,null,null,null,null,null,null,null,null,null,null,null,null,null,null,null,null,null,null,null,null,null,null,null,null,null,null,null,null,null,null,null,null,null,null,null,null,null,null,null,null,null,null,null,null,null,null,null,null,null,null,null,null,null,null,null,null,null,null,null,null,null,null,null,null,null,null,null,null,56]
[null,null,null,null,null,null,null,null,null,null,null,null,null,null,null,null,null,null,null,null,null,null,null,null,null,null,null,null,null,null,null,null,null,null,null,null,null,null,null,null,null,null,null,null,null,null,null,null,null,null,null,null,null,null,null,null,null,null,null,null,null,null,null,null,null,null,null,null,null,null,null,null,null,null,null,null,57]
[null,null,null,null,null,null,null,null,null,null,null,null,null,null,null,null,null,null,null,null,null,null,null,null,null,null,null,null,null,null,null,null,null,null,null,null,null,null,null,null,null,null,null,null,null,null,null,null,null,null,null,null,null,null,null,null,null,null,null,null,null,null,null,null,null,null,null,null,null,null,null,null,null,null,null,null,58]
[null,null,null,null,null,null,null,null,null,null,null,null,null,null,null,null,null,null,null,null,null,null,null,null,null,null,null,null,null,null,null,null,null,null,null,null,null,null,null,null,null,null,null,null,null,null,null,null,null,null,null,null,null,null,null,null,null,null,null,null,null,null,null,null,null,null,null,null,null,null,null,null,null,null,null,null,59]
[null,null,null,null,null,null,null,null,null,null,null,null,null,null,null,null,null,null,null,null,null,null,null,null,null,null,null,null,null,null,null,null,null,null,null,null,null,null,null,null,null,null,null,null,null,null,null,null,null,null,null,null,null,null,null,null,null,null,null,null,null,null,null,null,null,null,null,null,null,null,null,null,null,null,null,null,60]
[null,null,null,null,null,null,null,null,null,null,null,null,null,null,null,null,null,null,null,null,null,null,null,null,null,null,null,null,null,null,null,null,null,null,null,null,null,null,null,null,null,null,null,null,null,null,null,null,null,null,null,null,null,null,null,null,null,null,null,null,null,null,null,null,null,null,null,null,null,null,null,null,null,null,null,null,61]
[null,null,null,null,null,null,null,null,null,null,null,null,null,null,null,null,null,null,null,null,null,null,null,null,null,null,null,null,null,null,null,null,null,null,null,null,null,null,null,null,null,null,null,null,null,null,null,null,null,null,null,null,null,null,null,null,null,null,null,null,null,null,null,null,null,null,null,null,null,null,null,null,null,null,null,null,62]
[null,null,null,null,null,null,null,null,null,null,null,null,null,null,null,null,null,null,null,null,null,null,null,null,null,null,null,null,null,null,null,null,null,null,null,null,null,null,null,null,null,null,null,null,null,null,null,null,null,null,null,null,null,null,null,null,null,null,null,null,null,null,null,null,null,null,null,null,null,null,null,null,null,null,null,null,63]
[null,null,null,null,null,null,null,null,null,null,null,null,null,null,null,null,null,null,null,null,null,null,null,null,null,null,null,null,null,null,null,null,null,null,null,null,null,null,null,null,null,null,null,null,null,null,null,null,null,null,null,null,null,null,null,null,null,null,null,null,null,null,null,null,null,null,null,null,null,null,null,null,null,null,null,null,64]
[null,null,null,null,null,null,null,null,null,null,null,null,null,null,null,null,null,null,null,null,null,null,null,null,null,null,null,null,null,null,null,null,null,null,null,null,null,null,null,null,null,null,null,null,null,null,null,null,null,null,null,null,null,null,null,null,null,null,null,null,null,null,null,null,null,null,null,null,null,null,null,null,null,null,null,null,65]
[null,null,null,null,null,null,null,null,null,null,null,null,null,null,null,null,null,null,null,null,null,null,null,null,null,null,null,null,null,null,null,null,null,null,null,null,null,null,null,null,null,null,null,null,null,null,null,null,null,null,null,null,null,null,null,null,null,null,null,null,null,null,null,null,null,null,null,null,null,null,null,null,null,null,null,null,66]
[null,null,null,null,null,null,null,null,null,null,null,null,null,null,null,null,null,null,null,null,null,null,null,null,null,null,null,null,null,null,null,null,null,null,null,null,null,null,null,null,null,null,null,null,null,null,null,null,null,null,null,null,null,null,null,null,null,null,null,null,null,null,null,null,null,null,null,null,null,null,null,null,null,null,null,null,67]
[null,null,null,null,null,null,null,null,null,null,null,null,null,null,null,null,null,null,null,null,null,null,null,null,null,null,null,null,null,null,null,null,null,null,null,null,null,null,null,null,null,null,null,null,null,null,null,null,null,null,null,null,null,null,null,null,null,null,null,null,null,null,null,null,null,null,null,null,null,null,null,null,null,null,null,null,68]
[null,null,null,null,null,null,null,null,null,null,null,null,null,null,null,null,null,null,null,null,null,null,null,null,null,null,null,null,null,null,null,null,null,null,null,null,null,null,null,null,null,null,null,null,null,null,null,null,null,null,null,null,null,null,null,null,null,null,null,null,null,null,null,null,null,null,null,null,null,null,null,null,null,null,null,null,69]
[null,null,null,null,null,null,null,null,null,null,null,null,null,null,null,null,null,null,null,null,null,null,null,null,null,null,null,null,null,null,null,null,null,null,null,null,null,null,null,null,null,null,null,null,null,null,null,null,null,null,null,null,null,null,null,null,null,null,null,null,null,null,null,null,null,null,null,null,null,null,null,null,null,null,null,null,70]
[null,null,null,null,null,null,null,null,null,null,null,null,null,null,null,null,null,null,null,null,null,null,null,null,null,null,null,null,null,null,null,null,null,null,null,null,null,null,null,null,null,null,null,null,null,null,null,null,null,null,null,null,null,null,null,null,null,null,null,null,null,null,null,null,null,null,null,null,null,null,null,null,null,null,null,null,71]
[null,null,null,null,null,null,null,null,null,null,null,null,null,null,null,null,null,null,null,null,null,null,null,null,null,null,null,null,null,null,null,null,null,null,null,null,null,null,null,null,null,null,null,null,null,null,null,null,null,null,null,null,null,null,null,null,null,null,null,null,null,null,null,null,null,null,null,null,null,null,null,null,null,null,null,null,72]
[null,null,null,null,null,null,null,null,null,null,null,null,null,null,null,null,null,null,null,null,null,null,null,null,null,null,null,null,null,null,null,null,null,null,null,null,null,null,null,null,null,null,null,null,null,null,null,null,null,null,null,null,null,null,null,null,null,null,null,null,null,null,null,null,null,null,null,null,null,null,null,null,null,null,null,null,73]
[null,null,null,null,null,null,null,null,null,null,null,null,null,null,null,null,null,null,null,null,null,null,null,null,null,null,null,null,null,null,null,null,null,null,null,null,null,null,null,null,null,null,null,null,null,null,null,null,null,null,null,null,null,null,null,null,null,null,null,null,null,null,null,null,null,null,null,null,null,null,null,null,null,null,null,null,74]
[null,null,null,null,null,null,null,null,null,null,null,null,null,null,null,null,null,null,null,null,null,null,null,null,null,null,null,null,null,null,null,null,null,null,null,null,null,null,null,null,null,null,null,null,null,null,null,null,null,null,null,null,null,null,null,null,null,null,null,null,null,null,null,null,null,null,null,null,null,null,null,null,null,null,null,null,75]
[null,null,null,null,null,null,null,null,null,null,null,null,null,null,null,null,null,null,null,null,null,null,null,null,null,null,null,null,null,null,null,null,null,null,null,null,null,null,null,null,null,null,null,null,null,null,null,null,null,null,null,null,null,null,null,null,null,null,null,null,null,null,null,null,null,null,null,null,null,null,null,null,null,null,null,null,null,"PROTEİN KAYNAKLARI","KM,%","ME, Mcal/kg","HP,%","MP,%","DIP,%","RUP,%","Ca,%","P,%","HS,%","NDF,%","TSBM,%","SE, Mcal/kg","NEyp, Mcal/kg","NEb, Mcal/kg","NEl, Mcal/kg","ADF,%","eNDF,%","HY,%","HK,%","K,%","Cl,%","S,%","Zn,ppm","VitA, RE/kg","VitE,ppm","Fiyat,TL","En az","En çok"]
[null,null,null,null,null,null,null,null,null,null,null,null,null,null,null,null,null,null,null,null,null,null,null,null,null,null,null,null,null,null,null,null,null,null,null,null,null,null,null,null,null,null,null,null,null,null,null,null,null,null,null,null,null,null,null,null,null,null,null,null,null,null,null,null,null,null,null,null,null,null,null,null,null,null,null,null,1,"Aspir Küspesi, Kabuksuz, Solvent ",91,2.7,48,33.6,40.200000000000003,null,0.38,1.6,9,null,76,3.4,1.8,1.1000000000000001,1.7,null,null,0.6,7,1.2,0.18,0.22,36,null,null,8.5,null,0.2]
[null,null,null,null,null,null,null,null,null,null,null,null,null,null,null,null,null,null,null,null,null,null,null,null,null,null,null,null,null,null,null,null,null,null,null,null,null,null,null,null,null,null,null,null,null,null,null,null,null,null,null,null,null,null,null,null,null,null,null,null,null,null,null,null,null,null,null,null,null,null,null,null,null,null,null,null,2,"Aspir Küspesi, Solvent ",91,2,24,16.8,18.600000000000001,null,0.35,0.78,33,57,55,2.4,1.2,0.5,1.2,41,36,1.2,6,1,0.21,0.23,65,null,null,8.5,null,0.2]
[null,null,null,null,null,null,null,null,null,null,null,null,null,null,null,null,null,null,null,null,null,null,null,null,null,null,null,null,null,null,null,null,null,null,null,null,null,null,null,null,null,null,null,null,null,null,null,null,null,null,null,null,null,null,null,null,null,null,null,null,null,null,null,null,null,null,null,null,null,null,null,null,null,null,null,null,3,"Avokado Çekirdeği Küspesi",91,1.9,20,14,15,null,null,null,19,null,52,2.2999999999999998,1.1000000000000001,0.4,1.1000000000000001,24,null,1.2,16,null,null,null,null,null,null,35,null,0.2]
[null,null,null,null,null,null,null,null,null,null,null,null,null,null,null,null,null,null,null,null,null,null,null,null,null,null,null,null,null,null,null,null,null,null,null,null,null,null,null,null,null,null,null,null,null,null,null,null,null,null,null,null,null,null,null,null,null,null,null,null,null,null,null,null,null,null,null,null,null,null,null,null,null,null,null,null,4,"Ayçiçeği Küspesi Solvent,%35",92,2.4,38,26.6,31.2,10.3,0.44,0.97,20,36,65,2.9,1.5,0.8,1.5,24,23,2.5,8,1.2,0.15,0.33,55,null,12,12,null,0.2]
[null,null,null,null,null,null,null,null,null,null,null,null,null,null,null,null,null,null,null,null,null,null,null,null,null,null,null,null,null,null,null,null,null,null,null,null,null,null,null,null,null,null,null,null,null,null,null,null,null,null,null,null,null,null,null,null,null,null,null,null,null,null,null,null,null,null,null,null,null,null,null,null,null,null,null,null,5,"Ayçiçeği Küspesi, Kabuklu, %28",91,2.1,31,21.7,24.9,10.9,0.4,1.03,27,44,57,2.5,1.3,0.6,1.3,32,37,2.4,7,1,null,0.3,85,null,null,11,null,0.2]
[null,null,null,null,null,null,null,null,null,null,null,null,null,null,null,null,null,null,null,null,null,null,null,null,null,null,null,null,null,null,null,null,null,null,null,null,null,null,null,null,null,null,null,null,null,null,null,null,null,null,null,null,null,null,null,null,null,null,null,null,null,null,null,null,null,null,null,null,null,null,null,null,null,null,null,null,6,"Ayçiçeği Tohumu Kabukları",90,1.4,4,2.8,0.6,2.6,0,0.11,52,73,40,1.8,0.9,0,0.8,63,90,2.2000000000000002,3,0.2,null,0.19,200,null,null,3,null,0.2]
[null,null,null,null,null,null,null,null,null,null,null,null,null,null,null,null,null,null,null,null,null,null,null,null,null,null,null,null,null,null,null,null,null,null,null,null,null,null,null,null,null,null,null,null,null,null,null,null,null,null,null,null,null,null,null,null,null,null,null,null,null,null,null,null,null,null,null,null,null,null,null,null,null,null,null,null,7,"Balık Unu",90,2.7,66,46.2,56.4,39.6,5.5,3.15,1,12,74,3.3,1.7,1.1000000000000001,1.7,2,10,8,20,0.7,0.76,0.8,130,null,13,65,null,0.1]
[null,null,null,null,null,null,null,null,null,null,null,null,null,null,null,null,null,null,null,null,null,null,null,null,null,null,null,null,null,null,null,null,null,null,null,null,null,null,null,null,null,null,null,null,null,null,null,null,null,null,null,null,null,null,null,null,null,null,null,null,null,null,null,null,null,null,null,null,null,null,null,null,null,null,null,null,8,"Bira Mayası, Kuru",94,2.9,48,33.6,40.200000000000003,null,0.1,1.56,3,null,79,3.5,1.9,1.2,1.8,null,null,1,7,1.8,null,0.41,41,null,null,55,null,0.1]
[null,null,null,null,null,null,null,null,null,null,null,null,null,null,null,null,null,null,null,null,null,null,null,null,null,null,null,null,null,null,null,null,null,null,null,null,null,null,null,null,null,null,null,null,null,null,null,null,null,null,null,null,null,null,null,null,null,null,null,null,null,null,null,null,null,null,null,null,null,null,null,null,null,null,null,null,9,"Biüret ",99,0,248,173.6,220.2,0,0,0,0,0,0,0,0,0,0,0,0,0,0,0,0,0,0,null,null,15,null,0.01]
[null,null,null,null,null,null,null,null,null,null,null,null,null,null,null,null,null,null,null,null,null,null,null,null,null,null,null,null,null,null,null,null,null,null,null,null,null,null,null,null,null,null,null,null,null,null,null,null,null,null,null,null,null,null,null,null,null,null,null,null,null,null,null,null,null,null,null,null,null,null,null,null,null,null,null,null,10,"Kan Unu",93,3.29,89,59.2,84.5,null,0.52,0.26,null,null,91,4.04,2.2200000000000002,1.52,null,null,null,null,null,null,null,null,null,null,null,65,null,0.05]
[null,null,null,null,null,null,null,null,null,null,null,null,null,null,null,null,null,null,null,null,null,null,null,null,null,null,null,null,null,null,null,null,null,null,null,null,null,null,null,null,null,null,null,null,null,null,null,null,null,null,null,null,null,null,null,null,null,null,null,null,null,null,null,null,null,null,null,null,null,null,null,null,null,null,null,null,11,"Kanatlı Dışkısı, Kurutulmuş",89,1.4,28,19.600000000000001,22.2,6.2,10.199999999999999,2.8,13,35,38,1.7,0.9,0,0.8,15,0,2.1,33,2.2999999999999998,1.05,0.2,520,null,null,25,null,0.05]
[null,null,null,null,null,null,null,null,null,null,null,null,null,null,null,null,null,null,null,null,null,null,null,null,null,null,null,null,null,null,null,null,null,null,null,null,null,null,null,null,null,null,null,null,null,null,null,null,null,null,null,null,null,null,null,null,null,null,null,null,null,null,null,null,null,null,null,null,null,null,null,null,null,null,null,null,12,"Kanatlı Unu",93,2.9,62,43.4,52.8,30.4,4,2.25,2,null,79,3.5,1.9,1.2,1.8,null,null,14.5,17,0.5,0.57999999999999996,0.56000000000000005,129,null,null,60,null,0.05]
[null,null,null,null,null,null,null,null,null,null,null,null,null,null,null,null,null,null,null,null,null,null,null,null,null,null,null,null,null,null,null,null,null,null,null,null,null,null,null,null,null,null,null,null,null,null,null,null,null,null,null,null,null,null,null,null,null,null,null,null,null,null,null,null,null,null,null,null,null,null,null,null,null,null,null,null,13,"Kanola Küspesi, Solvent ",90,2.6,40,28,33,12,0.75,1.1599999999999999,12,29,71,3.1,1.6,1,1.6,20,23,4,8,1.3,7.0000000000000007E-2,0.78,68,null,null,12,null,0.2]
[null,null,null,null,null,null,null,null,null,null,null,null,null,null,null,null,null,null,null,null,null,null,null,null,null,null,null,null,null,null,null,null,null,null,null,null,null,null,null,null,null,null,null,null,null,null,null,null,null,null,null,null,null,null,null,null,null,null,null,null,null,null,null,null,null,null,null,null,null,null,null,null,null,null,null,null,14,"Karides Artıkları Unu",90,1.7,50,35,42,30,8.5,1.75,11,null,48,2.1,1.1000000000000001,0.2,1,null,null,5.5,25,null,1.1499999999999999,null,null,null,null,50,null,0.05]
[null,null,null,null,null,null,null,null,null,null,null,null,null,null,null,null,null,null,null,null,null,null,null,null,null,null,null,null,null,null,null,null,null,null,null,null,null,null,null,null,null,null,null,null,null,null,null,null,null,null,null,null,null,null,null,null,null,null,null,null,null,null,null,null,null,null,null,null,null,null,null,null,null,null,null,null,15,"Keten Tohumu Küspesi, Solvent ",91,2.7,39,27.3,32.1,14,0.43,0.93,10,25,76,3.4,1.8,1.1000000000000001,1.7,18,23,1.9,6,1.5,0.04,0.47,60,null,15,50,null,0.2]
[null,null,null,null,null,null,null,null,null,null,null,null,null,null,null,null,null,null,null,null,null,null,null,null,null,null,null,null,null,null,null,null,null,null,null,null,null,null,null,null,null,null,null,null,null,null,null,null,null,null,null,null,null,null,null,null,null,null,null,null,null,null,null,null,null,null,null,null,null,null,null,null,null,null,null,null,16,"Mısır Gluten Unu, % 41",91,3.1,46,32.200000000000003,38.4,26.7,0.13,0.55000000000000004,5,32,85,3.7,2.1,1.4,1.9,9,23,3.2,3,0.2,7.0000000000000007E-2,0.55000000000000004,35,2.3690000000000002,34,20,null,0.2]
[null,null,null,null,null,null,null,null,null,null,null,null,null,null,null,null,null,null,null,null,null,null,null,null,null,null,null,null,null,null,null,null,null,null,null,null,null,null,null,null,null,null,null,null,null,null,null,null,null,null,null,null,null,null,null,null,null,null,null,null,null,null,null,null,null,null,null,null,null,null,null,null,null,null,null,null,17,"Mısır Gluten Unu, % 60",91,3.2,67,46.9,57.3,40.200000000000003,0.06,0.54,4,11,89,3.9,2.2000000000000002,1.5,2.1,6,23,2.6,3,0.2,0.1,0.82,40,4.4740000000000002,26,25,null,0.2]
[null,null,null,null,null,null,null,null,null,null,null,null,null,null,null,null,null,null,null,null,null,null,null,null,null,null,null,null,null,null,null,null,null,null,null,null,null,null,null,null,null,null,null,null,null,null,null,null,null,null,null,null,null,null,null,null,null,null,null,null,null,null,null,null,null,null,null,null,null,null,null,null,null,null,null,null,18,"Mısır Gluten Yemi ",90,2.9,22,15.4,16.8,5.5,0.12,0.85,9,38,80,3.5,1.9,1.2,1.8,12,36,3.2,7,1.3,0.25,0.33,84,921.2,14,9,null,0.2]
[null,null,null,null,null,null,null,null,null,null,null,null,null,null,null,null,null,null,null,null,null,null,null,null,null,null,null,null,null,null,null,null,null,null,null,null,null,null,null,null,null,null,null,null,null,null,null,null,null,null,null,null,null,null,null,null,null,null,null,null,null,null,null,null,null,null,null,null,null,null,null,null,null,null,null,null,19,"Pamuk Tohumu Kapçığı ",90,1.6,5,3.5,1.5,2.2999999999999998,0.15,0.08,48,87,45,2,1,0.1,1,68,100,1.9,3,1.1000000000000001,0.02,0.05,10,null,null,9,null,0.05]
[null,null,null,null,null,null,null,null,null,null,null,null,null,null,null,null,null,null,null,null,null,null,null,null,null,null,null,null,null,null,null,null,null,null,null,null,null,null,null,null,null,null,null,null,null,null,null,null,null,null,null,null,null,null,null,null,null,null,null,null,null,null,null,null,null,null,null,null,null,null,null,null,null,null,null,null,20,"Pamuk Tohumu Küspesi, Pres, % 37",93,2.6,40.799999999999997,28.5,38.4,22,0.21,0.97,14.3,31,80,3.5,1.9,1.2,1.8,18,23,5,7,1.7,0.05,0.42,64,0,null,14.5,null,0.25]
[null,null,null,null,null,null,null,null,null,null,null,null,null,null,null,null,null,null,null,null,null,null,null,null,null,null,null,null,null,null,null,null,null,null,null,null,null,null,null,null,null,null,null,null,null,null,null,null,null,null,null,null,null,null,null,null,null,null,null,null,null,null,null,null,null,null,null,null,null,null,null,null,null,null,null,null,21,"Pamuk Tohumu Küspesi, Pres, % 41 ",92,2.9,46,32.200000000000003,38.4,23,0.21,1.19,13,31,80,3.5,1.9,1.2,1.8,18,23,5,7,1.7,0.05,0.42,64,0,null,15,null,0.25]
[null,null,null,null,null,null,null,null,null,null,null,null,null,null,null,null,null,null,null,null,null,null,null,null,null,null,null,null,null,null,null,null,null,null,null,null,null,null,null,null,null,null,null,null,null,null,null,null,null,null,null,null,null,null,null,null,null,null,null,null,null,null,null,null,null,null,null,null,null,null,null,null,null,null,null,null,22,"PAMUK TOHUMU KÜSPESİ, SOLVENT, % 25",91,2.2999999999999998,27.6,19.3,40.200000000000003,20.2,0.22,1.25,13,25,77,3.4,1.8,1.2,1.7,17,23,1.8,7,1.7,0.05,0.44,66,null,null,13,null,0.25]
[null,null,null,null,null,null,null,null,null,null,null,null,null,null,null,null,null,null,null,null,null,null,null,null,null,null,null,null,null,null,null,null,null,null,null,null,null,null,null,null,null,null,null,null,null,null,null,null,null,null,null,null,null,null,null,null,null,null,null,null,null,null,null,null,null,null,null,null,null,null,null,null,null,null,null,null,23,"PAMUK TOHUMU KÜSPESİ, SOLVENT, % 28",91,2.4,30.9,21.6,40.200000000000003,20.2,0.22,1.25,13,25,77,3.4,1.8,1.2,1.7,17,23,1.8,7,1.7,0.05,0.44,66,null,null,13,null,0.25]
[null,null,null,null,null,null,null,null,null,null,null,null,null,null,null,null,null,null,null,null,null,null,null,null,null,null,null,null,null,null,null,null,null,null,null,null,null,null,null,null,null,null,null,null,null,null,null,null,null,null,null,null,null,null,null,null,null,null,null,null,null,null,null,null,null,null,null,null,null,null,null,null,null,null,null,null,24,"PAMUK TOHUMU KÜSPESİ, SOLVENT, % 32",91,2.5,35.4,24.8,40.200000000000003,20.2,0.22,1.25,13,25,77,3.4,1.8,1.2,1.7,17,23,1.8,7,1.7,0.05,0.44,66,null,null,14.5,null,0.25]
[null,null,null,null,null,null,null,null,null,null,null,null,null,null,null,null,null,null,null,null,null,null,null,null,null,null,null,null,null,null,null,null,null,null,null,null,null,null,null,null,null,null,null,null,null,null,null,null,null,null,null,null,null,null,null,null,null,null,null,null,null,null,null,null,null,null,null,null,null,null,null,null,null,null,null,null,25,"PAMUK TOHUMU KÜSPESİ, SOLVENT, % 36",91,2.6,39.799999999999997,27.9,40.200000000000003,20.2,0.22,1.25,13,25,77,3.4,1.8,1.2,1.7,17,23,1.8,7,1.7,0.05,0.44,66,null,null,14.5,null,0.25]
[null,null,null,null,null,null,null,null,null,null,null,null,null,null,null,null,null,null,null,null,null,null,null,null,null,null,null,null,null,null,null,null,null,null,null,null,null,null,null,null,null,null,null,null,null,null,null,null,null,null,null,null,null,null,null,null,null,null,null,null,null,null,null,null,null,null,null,null,null,null,null,null,null,null,null,null,26,"Pamuk Tohumu Küspesi, Solvent, % 41 ",90,2.8,48,33.6,40.200000000000003,20.2,0.22,1.25,13,25,77,3.4,1.8,1.2,1.7,17,23,1.8,7,1.7,0.05,0.44,66,null,null,45,null,0.2]
[null,null,null,null,null,null,null,null,null,null,null,null,null,null,null,null,null,null,null,null,null,null,null,null,null,null,null,null,null,null,null,null,null,null,null,null,null,null,null,null,null,null,null,null,null,null,null,null,null,null,null,null,null,null,null,null,null,null,null,null,null,null,null,null,null,null,null,null,null,null,null,null,null,null,null,null,27,"Pamuk Tohumu, Ekstrude",92,3.1,26,18.2,20.399999999999999,13,0.17,0.68,32,53,87,3.8,2.2000000000000002,1.5,2,44,33,9.5,5,1.3,null,0.24,38,null,null,85,null,0.2]
[null,null,null,null,null,null,null,null,null,null,null,null,null,null,null,null,null,null,null,null,null,null,null,null,null,null,null,null,null,null,null,null,null,null,null,null,null,null,null,null,null,null,null,null,null,null,null,null,null,null,null,null,null,null,null,null,null,null,null,null,null,null,null,null,null,null,null,null,null,null,null,null,null,null,null,null,28,"Pamuk Tohumu, Linti Alınmış",90,3.4,24,16.8,18.600000000000001,9.4,0.13,0.55000000000000004,20,40,95,4.2,2.4,1.6,2.2000000000000002,29,100,22.2,4,1.2,null,0.24,36,null,null,85,null,0.2]
[null,null,null,null,null,null,null,null,null,null,null,null,null,null,null,null,null,null,null,null,null,null,null,null,null,null,null,null,null,null,null,null,null,null,null,null,null,null,null,null,null,null,null,null,null,null,null,null,null,null,null,null,null,null,null,null,null,null,null,null,null,null,null,null,null,null,null,null,null,null,null,null,null,null,null,null,29,"Peyniraltı Suyu Tozu",94,3,14,9.8000000000000007,9.6,2.1,1,0.9,0,0,82,3.6,2,1.3,1.9,0,0,1,9,1.4,1.2,0.92,10,null,null,70,null,0.05]
[null,null,null,null,null,null,null,null,null,null,null,null,null,null,null,null,null,null,null,null,null,null,null,null,null,null,null,null,null,null,null,null,null,null,null,null,null,null,null,null,null,null,null,null,null,null,null,null,null,null,null,null,null,null,null,null,null,null,null,null,null,null,null,null,null,null,null,null,null,null,null,null,null,null,null,null,30,"Soya Küspesi, Solvent, % 44 ",91,3,49,34.299999999999997,41.1,17.2,0.38,0.71,6,15,84,3.7,2,1.3,1.9,10,23,1.6,7,2.2999999999999998,7.0000000000000007E-2,0.45,62,0,3,17,null,0.2]
[null,null,null,null,null,null,null,null,null,null,null,null,null,null,null,null,null,null,null,null,null,null,null,null,null,null,null,null,null,null,null,null,null,null,null,null,null,null,null,null,null,null,null,null,null,null,null,null,null,null,null,null,null,null,null,null,null,null,null,null,null,null,null,null,null,null,null,null,null,null,null,null,null,null,null,null,31,"Soya Küspesi, Solvent, % 49 ",91,3.1,54,37.799999999999997,45.6,19.399999999999999,0.28000000000000003,0.71,3,9,87,3.8,2.1,1.4,2,6,23,1.2,6,2.2000000000000002,0.08,0.49,61,null,3,20,null,0.2]
[null,null,null,null,null,null,null,null,null,null,null,null,null,null,null,null,null,null,null,null,null,null,null,null,null,null,null,null,null,null,null,null,null,null,null,null,null,null,null,null,null,null,null,null,null,null,null,null,null,null,null,null,null,null,null,null,null,null,null,null,null,null,null,null,null,null,null,null,null,null,null,null,null,null,null,null,32,"Süt Tozu, Yağsız",94,3.1,36,25.2,29.4,0,1.36,1.0900000000000001,0,0,87,3.8,2.1,1.4,2,0,0,1,8.4,1.7,0.96,0.34,41,3.69,null,70,null,0.05]
[null,null,null,null,null,null,null,null,null,null,null,null,null,null,null,null,null,null,null,null,null,null,null,null,null,null,null,null,null,null,null,null,null,null,null,null,null,null,null,null,null,null,null,null,null,null,null,null,null,null,null,null,null,null,null,null,null,null,null,null,null,null,null,null,null,null,null,null,null,null,null,null,null,null,null,null,33,"Tüy Unu, Hidrolize ",92,2.5,86,60.2,74.400000000000006,62.8,0.6,0.62,2,44,69,3,1.6,0.9,1.5,16,23,6.5,4,0.2,0.3,1.85,95,null,null,55,null,0.02]
[null,null,null,null,null,null,null,null,null,null,null,null,null,null,null,null,null,null,null,null,null,null,null,null,null,null,null,null,null,null,null,null,null,null,null,null,null,null,null,null,null,null,null,null,null,null,null,null,null,null,null,null,null,null,null,null,null,null,null,null,null,null,null,null,null,null,null,null,null,null,null,null,null,null,null,null,34,"Üre, % 46N",99,0,288,201.6,256.2,0,0,0,0,0,0,0,0,0,0,0,0,0,0,0,0,0,0,null,null,17,null,0.01]
[null,null,null,null,null,null,null,null,null,null,null,null,null,null,null,null,null,null,null,null,null,null,null,null,null,null,null,null,null,null,null,null,null,null,null,null,null,null,null,null,null,null,null,null,null,null,null,null,null,null,null,null,null,null,null,null,null,null,null,null,null,null,null,null,null,null,null,null,null,null,null,null,null,null,null,null,35,"Yer Fıstığı Küspesi, Solvent ",91,2.8,50,35,42,13.5,0.24,0.57999999999999996,8,27,77,3.4,1.8,1.2,1.7,15,23,3.6,6,1,0.03,0.3,38,null,null,12,null,0.2]
[null,null,null,null,null,null,null,null,null,null,null,null,null,null,null,null,null,null,null,null,null,null,null,null,null,null,null,null,null,null,null,null,null,null,null,null,null,null,null,null,null,null,null,null,null,null,null,null,null,null,null,null,null,null,null,null,null,null,null,null,null,null,null,null,null,null,null,null,null,null,null,null,null,null,null,null,36,"Yonca Yaprağı Unu",89,2.5,28,19.600000000000001,22.2,4.2,2.88,0.34,15,34,69,3,1.6,0.9,1.5,25,35,2.7,15,2.2000000000000002,null,0.32,39,17.600000000000001,null,15,null,0.2]
[null,null,null,null,null,null,null,null,null,null,null,null,null,null,null,null,null,null,null,null,null,null,null,null,null,null,null,null,null,null,null,null,null,null,null,null,null,null,null,null,null,null,null,null,null,null,null,null,null,null,null,null,null,null,null,null,null,null,null,null,null,null,null,null,null,null,null,null,null,null,null,null,null,null,null,null,37]
[null,null,null,null,null,null,null,null,null,null,null,null,null,null,null,null,null,null,null,null,null,null,null,null,null,null,null,null,null,null,null,null,null,null,null,null,null,null,null,null,null,null,null,null,null,null,null,null,null,null,null,null,null,null,null,null,null,null,null,null,null,null,null,null,null,null,null,null,null,null,null,null,null,null,null,null,38]
[null,null,null,null,null,null,null,null,null,null,null,null,null,null,null,null,null,null,null,null,null,null,null,null,null,null,null,null,null,null,null,null,null,null,null,null,null,null,null,null,null,null,null,null,null,null,null,null,null,null,null,null,null,null,null,null,null,null,null,null,null,null,null,null,null,null,null,null,null,null,null,null,null,null,null,null,39]
[null,null,null,null,null,null,null,null,null,null,null,null,null,null,null,null,null,null,null,null,null,null,null,null,null,null,null,null,null,null,null,null,null,null,null,null,null,null,null,null,null,null,null,null,null,null,null,null,null,null,null,null,null,null,null,null,null,null,null,null,null,null,null,null,null,null,null,null,null,null,null,null,null,null,null,null,40]
[null,null,null,null,null,null,null,null,null,null,null,null,null,null,null,null,null,null,null,null,null,null,null,null,null,null,null,null,null,null,null,null,null,null,null,null,null,null,null,null,null,null,null,null,null,null,null,null,null,null,null,null,null,null,null,null,null,null,null,null,null,null,null,null,null,null,null,null,null,null,null,null,null,null,null,null,41]
[null,null,null,null,null,null,null,null,null,null,null,null,null,null,null,null,null,null,null,null,null,null,null,null,null,null,null,null,null,null,null,null,null,null,null,null,null,null,null,null,null,null,null,null,null,null,null,null,null,null,null,null,null,null,null,null,null,null,null,null,null,null,null,null,null,null,null,null,null,null,null,null,null,null,null,null,42]
[null,null,null,null,null,null,null,null,null,null,null,null,null,null,null,null,null,null,null,null,null,null,null,null,null,null,null,null,null,null,null,null,null,null,null,null,null,null,null,null,null,null,null,null,null,null,null,null,null,null,null,null,null,null,null,null,null,null,null,null,null,null,null,null,null,null,null,null,null,null,null,null,null,null,null,null,43]
[null,null,null,null,null,null,null,null,null,null,null,null,null,null,null,null,null,null,null,null,null,null,null,null,null,null,null,null,null,null,null,null,null,null,null,null,null,null,null,null,null,null,null,null,null,null,null,null,null,null,null,null,null,null,null,null,null,null,null,null,null,null,null,null,null,null,null,null,null,null,null,null,null,null,null,null,44]
[null,null,null,null,null,null,null,null,null,null,null,null,null,null,null,null,null,null,null,null,null,null,null,null,null,null,null,null,null,null,null,null,null,null,null,null,null,null,null,null,null,null,null,null,null,null,null,null,null,null,null,null,null,null,null,null,null,null,null,null,null,null,null,null,null,null,null,null,null,null,null,null,null,null,null,null,45]
[null,null,null,null,null,null,null,null,null,null,null,null,null,null,null,null,null,null,null,null,null,null,null,null,null,null,null,null,null,null,null,null,null,null,null,null,null,null,null,null,null,null,null,null,null,null,null,null,null,null,null,null,null,null,null,null,null,null,null,null,null,null,null,null,null,null,null,null,null,null,null,null,null,null,null,null,46]
[null,null,null,null,null,null,null,null,null,null,null,null,null,null,null,null,null,null,null,null,null,null,null,null,null,null,null,null,null,null,null,null,null,null,null,null,null,null,null,null,null,null,null,null,null,null,null,null,null,null,null,null,null,null,null,null,null,null,null,null,null,null,null,null,null,null,null,null,null,null,null,null,null,null,null,null,47]
[null,null,null,null,null,null,null,null,null,null,null,null,null,null,null,null,null,null,null,null,null,null,null,null,null,null,null,null,null,null,null,null,null,null,null,null,null,null,null,null,null,null,null,null,null,null,null,null,null,null,null,null,null,null,null,null,null,null,null,null,null,null,null,null,null,null,null,null,null,null,null,null,null,null,null,null,48]
[null,null,null,null,null,null,null,null,null,null,null,null,null,null,null,null,null,null,null,null,null,null,null,null,null,null,null,null,null,null,null,null,null,null,null,null,null,null,null,null,null,null,null,null,null,null,null,null,null,null,null,null,null,null,null,null,null,null,null,null,null,null,null,null,null,null,null,null,null,null,null,null,null,null,null,null,49]
[null,null,null,null,null,null,null,null,null,null,null,null,null,null,null,null,null,null,null,null,null,null,null,null,null,null,null,null,null,null,null,null,null,null,null,null,null,null,null,null,null,null,null,null,null,null,null,null,null,null,null,null,null,null,null,null,null,null,null,null,null,null,null,null,null,null,null,null,null,null,null,null,null,null,null,null,50]
[null,null,null,null,null,null,null,null,null,null,null,null,null,null,null,null,null,null,null,null,null,null,null,null,null,null,null,null,null,null,null,null,null,null,null,null,null,null,null,null,null,null,null,null,null,null,null,null,null,null,null,null,null,null,null,null,null,null,null,null,null,null,null,null,null,null,null,null,null,null,null,null,null,null,null,null,51]
[null,null,null,null,null,null,null,null,null,null,null,null,null,null,null,null,null,null,null,null,null,null,null,null,null,null,null,null,null,null,null,null,null,null,null,null,null,null,null,null,null,null,null,null,null,null,null,null,null,null,null,null,null,null,null,null,null,null,null,null,null,null,null,null,null,null,null,null,null,null,null,null,null,null,null,null,52]
[null,null,null,null,null,null,null,null,null,null,null,null,null,null,null,null,null,null,null,null,null,null,null,null,null,null,null,null,null,null,null,null,null,null,null,null,null,null,null,null,null,null,null,null,null,null,null,null,null,null,null,null,null,null,null,null,null,null,null,null,null,null,null,null,null,null,null,null,null,null,null,null,null,null,null,null,53]
[null,null,null,null,null,null,null,null,null,null,null,null,null,null,null,null,null,null,null,null,null,null,null,null,null,null,null,null,null,null,null,null,null,null,null,null,null,null,null,null,null,null,null,null,null,null,null,null,null,null,null,null,null,null,null,null,null,null,null,null,null,null,null,null,null,null,null,null,null,null,null,null,null,null,null,null,54]
[null,null,null,null,null,null,null,null,null,null,null,null,null,null,null,null,null,null,null,null,null,null,null,null,null,null,null,null,null,null,null,null,null,null,null,null,null,null,null,null,null,null,null,null,null,null,null,null,null,null,null,null,null,null,null,null,null,null,null,null,null,null,null,null,null,null,null,null,null,null,null,null,null,null,null,null,55]
[null,null,null,null,null,null,null,null,null,null,null,null,null,null,null,null,null,null,null,null,null,null,null,null,null,null,null,null,null,null,null,null,null,null,null,null,null,null,null,null,null,null,null,null,null,null,null,null,null,null,null,null,null,null,null,null,null,null,null,null,null,null,null,null,null,null,null,null,null,null,null,null,null,null,null,null,56]
[null,null,null,null,null,null,null,null,null,null,null,null,null,null,null,null,null,null,null,null,null,null,null,null,null,null,null,null,null,null,null,null,null,null,null,null,null,null,null,null,null,null,null,null,null,null,null,null,null,null,null,null,null,null,null,null,null,null,null,null,null,null,null,null,null,null,null,null,null,null,null,null,null,null,null,null,57]
[null,null,null,null,null,null,null,null,null,null,null,null,null,null,null,null,null,null,null,null,null,null,null,null,null,null,null,null,null,null,null,null,null,null,null,null,null,null,null,null,null,null,null,null,null,null,null,null,null,null,null,null,null,null,null,null,null,null,null,null,null,null,null,null,null,null,null,null,null,null,null,null,null,null,null,null,58]
[null,null,null,null,null,null,null,null,null,null,null,null,null,null,null,null,null,null,null,null,null,null,null,null,null,null,null,null,null,null,null,null,null,null,null,null,null,null,null,null,null,null,null,null,null,null,null,null,null,null,null,null,null,null,null,null,null,null,null,null,null,null,null,null,null,null,null,null,null,null,null,null,null,null,null,null,59]
[null,null,null,null,null,null,null,null,null,null,null,null,null,null,null,null,null,null,null,null,null,null,null,null,null,null,null,null,null,null,null,null,null,null,null,null,null,null,null,null,null,null,null,null,null,null,null,null,null,null,null,null,null,null,null,null,null,null,null,null,null,null,null,null,null,null,null,null,null,null,null,null,null,null,null,null,60]
[null,null,null,null,null,null,null,null,null,null,null,null,null,null,null,null,null,null,null,null,null,null,null,null,null,null,null,null,null,null,null,null,null,null,null,null,null,null,null,null,null,null,null,null,null,null,null,null,null,null,null,null,null,null,null,null,null,null,null,null,null,null,null,null,null,null,null,null,null,null,null,null,null,null,null,null,61]
[null,null,null,null,null,null,null,null,null,null,null,null,null,null,null,null,null,null,null,null,null,null,null,null,null,null,null,null,null,null,null,null,null,null,null,null,null,null,null,null,null,null,null,null,null,null,null,null,null,null,null,null,null,null,null,null,null,null,null,null,null,null,null,null,null,null,null,null,null,null,null,null,null,null,null,null,62]
[null,null,null,null,null,null,null,null,null,null,null,null,null,null,null,null,null,null,null,null,null,null,null,null,null,null,null,null,null,null,null,null,null,null,null,null,null,null,null,null,null,null,null,null,null,null,null,null,null,null,null,null,null,null,null,null,null,null,null,null,null,null,null,null,null,null,null,null,null,null,null,null,null,null,null,null,63]
[null,null,null,null,null,null,null,null,null,null,null,null,null,null,null,null,null,null,null,null,null,null,null,null,null,null,null,null,null,null,null,null,null,null,null,null,null,null,null,null,null,null,null,null,null,null,null,null,null,null,null,null,null,null,null,null,null,null,null,null,null,null,null,null,null,null,null,null,null,null,null,null,null,null,null,null,64]
[null,null,null,null,null,null,null,null,null,null,null,null,null,null,null,null,null,null,null,null,null,null,null,null,null,null,null,null,null,null,null,null,null,null,null,null,null,null,null,null,null,null,null,null,null,null,null,null,null,null,null,null,null,null,null,null,null,null,null,null,null,null,null,null,null,null,null,null,null,null,null,null,null,null,null,null,65]
[null,null,null,null,null,null,null,null,null,null,null,null,null,null,null,null,null,null,null,null,null,null,null,null,null,null,null,null,null,null,null,null,null,null,null,null,null,null,null,null,null,null,null,null,null,null,null,null,null,null,null,null,null,null,null,null,null,null,null,null,null,null,null,null,null,null,null,null,null,null,null,null,null,null,null,null,66]
[null,null,null,null,null,null,null,null,null,null,null,null,null,null,null,null,null,null,null,null,null,null,null,null,null,null,null,null,null,null,null,null,null,null,null,null,null,null,null,null,null,null,null,null,null,null,null,null,null,null,null,null,null,null,null,null,null,null,null,null,null,null,null,null,null,null,null,null,null,null,null,null,null,null,null,null,67]
[null,null,null,null,null,null,null,null,null,null,null,null,null,null,null,null,null,null,null,null,null,null,null,null,null,null,null,null,null,null,null,null,null,null,null,null,null,null,null,null,null,null,null,null,null,null,null,null,null,null,null,null,null,null,null,null,null,null,null,null,null,null,null,null,null,null,null,null,null,null,null,null,null,null,null,null,68]
[null,null,null,null,null,null,null,null,null,null,null,null,null,null,null,null,null,null,null,null,null,null,null,null,null,null,null,null,null,null,null,null,null,null,null,null,null,null,null,null,null,null,null,null,null,null,null,null,null,null,null,null,null,null,null,null,null,null,null,null,null,null,null,null,null,null,null,null,null,null,null,null,null,null,null,null,69]
[null,null,null,null,null,null,null,null,null,null,null,null,null,null,null,null,null,null,null,null,null,null,null,null,null,null,null,null,null,null,null,null,null,null,null,null,null,null,null,null,null,null,null,null,null,null,null,null,null,null,null,null,null,null,null,null,null,null,null,null,null,null,null,null,null,null,null,null,null,null,null,null,null,null,null,null,70]
[null,null,null,null,null,null,null,null,null,null,null,null,null,null,null,null,null,null,null,null,null,null,null,null,null,null,null,null,null,null,null,null,null,null,null,null,null,null,null,null,null,null,null,null,null,null,null,null,null,null,null,null,null,null,null,null,null,null,null,null,null,null,null,null,null,null,null,null,null,null,null,null,null,null,null,null,71]
[null,null,null,null,null,null,null,null,null,null,null,null,null,null,null,null,null,null,null,null,null,null,null,null,null,null,null,null,null,null,null,null,null,null,null,null,null,null,null,null,null,null,null,null,null,null,null,null,null,null,null,null,null,null,null,null,null,null,null,null,null,null,null,null,null,null,null,null,null,null,null,null,null,null,null,null,72]
[null,null,null,null,null,null,null,null,null,null,null,null,null,null,null,null,null,null,null,null,null,null,null,null,null,null,null,null,null,null,null,null,null,null,null,null,null,null,null,null,null,null,null,null,null,null,null,null,null,null,null,null,null,null,null,null,null,null,null,null,null,null,null,null,null,null,null,null,null,null,null,null,null,null,null,null,73]
[null,null,null,null,null,null,null,null,null,null,null,null,null,null,null,null,null,null,null,null,null,null,null,null,null,null,null,null,null,null,null,null,null,null,null,null,null,null,null,null,null,null,null,null,null,null,null,null,null,null,null,null,null,null,null,null,null,null,null,null,null,null,null,null,null,null,null,null,null,null,null,null,null,null,null,null,74]
[null,null,null,null,null,null,null,null,null,null,null,null,null,null,null,null,null,null,null,null,null,null,null,null,null,null,null,null,null,null,null,null,null,null,null,null,null,null,null,null,null,null,null,null,null,null,null,null,null,null,null,null,null,null,null,null,null,null,null,null,null,null,null,null,null,null,null,null,null,null,null,null,null,null,null,null,75]
[null,null,null,null,null,null,null,null,null,null,null,null,null,null,null,null,null,null,null,null,null,null,null,null,null,null,null,null,null,null,null,null,null,null,null,null,null,null,null,null,null,null,null,null,null,null,null,null,null,null,null,null,null,null,null,null,null,null,null,null,null,null,null,null,null,null,null,null,null,null,null,null,null,null,null,null,null,"VİTAMİN-MİNERAL ve KATKI MADDELERİ","KM,%","ME, Mcal/kg","HP,%","MP,%","DIP,%","RUP,%","Ca,%","P,%","HS,%","NDF,%","TSBM,%","SE, Mcal/kg","NEyp, Mcal/kg","NEb, Mcal/kg","NEl, Mcal/kg","ADF,%","eNDF,%","HY,%","HK,%","K,%","Cl,%","S,%","Zn,ppm","VitA, RE/kg","VitE,ppm","Fiyat,TL","En az","En çok"]
[null,null,null,null,null,null,null,null,null,null,null,null,null,null,null,null,null,null,null,null,null,null,null,null,null,null,null,null,null,null,null,null,null,null,null,null,null,null,null,null,null,null,null,null,null,null,null,null,null,null,null,null,null,null,null,null,null,null,null,null,null,null,null,null,null,null,null,null,null,null,null,null,null,null,null,null,1,"Amonyum Klorid ",99,0,163,114.1,143.69999999999999,0,0,0,0,0,0,0,0,0,0,0,0,0,0,0,66,0,0,null,null,9,null,1.4999999999999999E-2]
[null,null,null,null,null,null,null,null,null,null,null,null,null,null,null,null,null,null,null,null,null,null,null,null,null,null,null,null,null,null,null,null,null,null,null,null,null,null,null,null,null,null,null,null,null,null,null,null,null,null,null,null,null,null,null,null,null,null,null,null,null,null,null,null,null,null,null,null,null,null,null,null,null,null,null,null,2,"Amonyum Sülfat ",99,0,132,92.4,115.8,0,null,null,0,0,0,0,0,0,0,0,0,0,0,null,null,24.15,null,null,null,9,null,1.4999999999999999E-2]
[null,null,null,null,null,null,null,null,null,null,null,null,null,null,null,null,null,null,null,null,null,null,null,null,null,null,null,null,null,null,null,null,null,null,null,null,null,null,null,null,null,null,null,null,null,null,null,null,null,null,null,null,null,null,null,null,null,null,null,null,null,null,null,null,null,null,null,null,null,null,null,null,null,null,null,null,3,"Diamonyum Fosfat ",98,0,115,80.5,100.5,0,0.52,20.41,0,0,0,0,0,0,0,0,0,0,35,0,null,2.16,null,null,null,80,null,0.02]
[null,null,null,null,null,null,null,null,null,null,null,null,null,null,null,null,null,null,null,null,null,null,null,null,null,null,null,null,null,null,null,null,null,null,null,null,null,null,null,null,null,null,null,null,null,null,null,null,null,null,null,null,null,null,null,null,null,null,null,null,null,null,null,null,null,null,null,null,null,null,null,null,null,null,null,null,4,"Dikalsiyum Fosfat ",96,0,0,0,3,null,22,18.649999999999999,0,0,0,0,0,0,0,0,0,0,94,0.1,null,1,70,null,null,35,null,7.0000000000000007E-2]
[null,null,null,null,null,null,null,null,null,null,null,null,null,null,null,null,null,null,null,null,null,null,null,null,null,null,null,null,null,null,null,null,null,null,null,null,null,null,null,null,null,null,null,null,null,null,null,null,null,null,null,null,null,null,null,null,null,null,null,null,null,null,null,null,null,null,null,null,null,null,null,null,null,null,null,null,5,"Floru Alınmış Fosfat ",99,0,0,0,3,null,32.6,18.07,0,0,0,0,0,0,0,0,0,0,95,1,null,null,100,null,null,75,null,0.05]
[null,null,null,null,null,null,null,null,null,null,null,null,null,null,null,null,null,null,null,null,null,null,null,null,null,null,null,null,null,null,null,null,null,null,null,null,null,null,null,null,null,null,null,null,null,null,null,null,null,null,null,null,null,null,null,null,null,null,null,null,null,null,null,null,null,null,null,null,null,null,null,null,null,null,null,null,6,"Kalsiyum Karbonat ",99,0,0,0,3,null,38.5,0.04,0,0,0,0,0,0,0,0,0,0,99,0.1,null,0,0,null,null,2,null,0.01]
[null,null,null,null,null,null,null,null,null,null,null,null,null,null,null,null,null,null,null,null,null,null,null,null,null,null,null,null,null,null,null,null,null,null,null,null,null,null,null,null,null,null,null,null,null,null,null,null,null,null,null,null,null,null,null,null,null,null,null,null,null,null,null,null,null,null,null,null,null,null,null,null,null,null,null,null,7,"Kemik Unu, İstimlenmiş, Domuz/Kanatlı ",95,0.6,13,9.1,8.6999999999999993,null,27,12.74,1,0,16,0.7,0.6,0,0.2,0,0,11.6,77,0.2,null,2.5,290,null,null,75,null,0.05]
[null,null,null,null,null,null,null,null,null,null,null,null,null,null,null,null,null,null,null,null,null,null,null,null,null,null,null,null,null,null,null,null,null,null,null,null,null,null,null,null,null,null,null,null,null,null,null,null,null,null,null,null,null,null,null,null,null,null,null,null,null,null,null,null,null,null,null,null,null,null,null,null,null,null,null,null,8,"Kireç Taşı",98,0,0,0,3,0,34,0.02,0,0,0,0,0,0,0,0,0,0,98,null,null,0.03,null,null,null,2,null,0.02]
[null,null,null,null,null,null,null,null,null,null,null,null,null,null,null,null,null,null,null,null,null,null,null,null,null,null,null,null,null,null,null,null,null,null,null,null,null,null,null,null,null,null,null,null,null,null,null,null,null,null,null,null,null,null,null,null,null,null,null,null,null,null,null,null,null,null,null,null,null,null,null,null,null,null,null,null,9,"Kireç Taşı, Dolomitik",99,0,0,0,3,0,22.3,0.04,0,0,0,0,0,0,0,0,0,0,98,0.4,null,null,null,null,null,2,null,0.02]
[null,null,null,null,null,null,null,null,null,null,null,null,null,null,null,null,null,null,null,null,null,null,null,null,null,null,null,null,null,null,null,null,null,null,null,null,null,null,null,null,null,null,null,null,null,null,null,null,null,null,null,null,null,null,null,null,null,null,null,null,null,null,null,null,null,null,null,null,null,null,null,null,null,null,null,null,10,"Kuraçao Fosfat ",99,0,0,0,3,null,34,15,0,0,0,0,0,0,0,0,0,0,95,null,null,null,null,null,null,75,null,0.01]
[null,null,null,null,null,null,null,null,null,null,null,null,null,null,null,null,null,null,null,null,null,null,null,null,null,null,null,null,null,null,null,null,null,null,null,null,null,null,null,null,null,null,null,null,null,null,null,null,null,null,null,null,null,null,null,null,null,null,null,null,null,null,null,null,null,null,null,null,null,null,null,null,null,null,null,null,11,"Mermer Tozu",98,0,0,0,0,0,37,0,0,0,0,0,0,0,0,0,0,0,98,0,null,0,0,null,null,2,null,0.1]
[null,null,null,null,null,null,null,null,null,null,null,null,null,null,null,null,null,null,null,null,null,null,null,null,null,null,null,null,null,null,null,null,null,null,null,null,null,null,null,null,null,null,null,null,null,null,null,null,null,null,null,null,null,null,null,null,null,null,null,null,null,null,null,null,null,null,null,null,null,null,null,null,null,null,null,null,12,"Monoamonyum Fosfat ",98,0,70,49,60,0,0.3,24.7,0,0,0,0,0,0,0,0,0,0,24,0,null,1.42,81,null,null,9,null,0.01]
[null,null,null,null,null,null,null,null,null,null,null,null,null,null,null,null,null,null,null,null,null,null,null,null,null,null,null,null,null,null,null,null,null,null,null,null,null,null,null,null,null,null,null,null,null,null,null,null,null,null,null,null,null,null,null,null,null,null,null,null,null,null,null,null,null,null,null,null,null,null,null,null,null,null,null,null,13,"Mono-Dikalsiyum Fosfat ",97,0,0,0,3,null,16.7,21.1,0,0,0,0,0,0,0,0,0,0,94,0.1,null,1.2,70,null,null,30,null,0.01]
[null,null,null,null,null,null,null,null,null,null,null,null,null,null,null,null,null,null,null,null,null,null,null,null,null,null,null,null,null,null,null,null,null,null,null,null,null,null,null,null,null,null,null,null,null,null,null,null,null,null,null,null,null,null,null,null,null,null,null,null,null,null,null,null,null,null,null,null,null,null,null,null,null,null,null,null,14,"Sodyum Tripolifosfat ",96,0,0,0,3,0,0,25.98,0,0,0,0,0,0,0,0,0,0,96,0,null,0,null,null,null,13.5,null,0.01]
[null,null,null,null,null,null,null,null,null,null,null,null,null,null,null,null,null,null,null,null,null,null,null,null,null,null,null,null,null,null,null,null,null,null,null,null,null,null,null,null,null,null,null,null,null,null,null,null,null,null,null,null,null,null,null,null,null,null,null,null,null,null,null,null,null,null,null,null,null,null,null,null,null,null,null,null,15,"Tuz",100,null,null,null,null,null,null,null,null,null,null,null,null,null,null,null,null,null,null,null,null,null,null,null,null,1.5,1E-3,5.0000000000000001E-3]
[null,null,null,null,null,null,null,null,null,null,null,null,null,null,null,null,null,null,null,null,null,null,null,null,null,null,null,null,null,null,null,null,null,null,null,null,null,null,null,null,null,null,null,null,null,null,null,null,null,null,null,null,null,null,null,null,null,null,null,null,null,null,null,null,null,null,null,null,null,null,null,null,null,null,null,null,16,"Vitamin-Mineral Karması",100,null,null,null,null,null,null,null,null,null,null,null,null,null,null,null,null,null,null,null,null,null,null,null,null,25,1E-3,4.0000000000000001E-3]
[null,null,null,null,null,null,null,null,null,null,null,null,null,null,null,null,null,null,null,null,null,null,null,null,null,null,null,null,null,null,null,null,null,null,null,null,null,null,null,null,null,null,null,null,null,null,null,null,null,null,null,null,null,null,null,null,null,null,null,null,null,null,null,null,null,null,null,null,null,null,null,null,null,null,null,null,17]
[null,null,null,null,null,null,null,null,null,null,null,null,null,null,null,null,null,null,null,null,null,null,null,null,null,null,null,null,null,null,null,null,null,null,null,null,null,null,null,null,null,null,null,null,null,null,null,null,null,null,null,null,null,null,null,null,null,null,null,null,null,null,null,null,null,null,null,null,null,null,null,null,null,null,null,null,18]
[null,null,null,null,null,null,null,null,null,null,null,null,null,null,null,null,null,null,null,null,null,null,null,null,null,null,null,null,null,null,null,null,null,null,null,null,null,null,null,null,null,null,null,null,null,null,null,null,null,null,null,null,null,null,null,null,null,null,null,null,null,null,null,null,null,null,null,null,null,null,null,null,null,null,null,null,19]
[null,null,null,null,null,null,null,null,null,null,null,null,null,null,null,null,null,null,null,null,null,null,null,null,null,null,null,null,null,null,null,null,null,null,null,null,null,null,null,null,null,null,null,null,null,null,null,null,null,null,null,null,null,null,null,null,null,null,null,null,null,null,null,null,null,null,null,null,null,null,null,null,null,null,null,null,20]
[null,null,null,null,null,null,null,null,null,null,null,null,null,null,null,null,null,null,null,null,null,null,null,null,null,null,null,null,null,null,null,null,null,null,null,null,null,null,null,null,null,null,null,null,null,null,null,null,null,null,null,null,null,null,null,null,null,null,null,null,null,null,null,null,null,null,null,null,null,null,null,null,null,null,null,null,21]
[null,null,null,null,null,null,null,null,null,null,null,null,null,null,null,null,null,null,null,null,null,null,null,null,null,null,null,null,null,null,null,null,null,null,null,null,null,null,null,null,null,null,null,null,null,null,null,null,null,null,null,null,null,null,null,null,null,null,null,null,null,null,null,null,null,null,null,null,null,null,null,null,null,null,null,null,22]
[null,null,null,null,null,null,null,null,null,null,null,null,null,null,null,null,null,null,null,null,null,null,null,null,null,null,null,null,null,null,null,null,null,null,null,null,null,null,null,null,null,null,null,null,null,null,null,null,null,null,null,null,null,null,null,null,null,null,null,null,null,null,null,null,null,null,null,null,null,null,null,null,null,null,null,null,23]
[null,null,null,null,null,null,null,null,null,null,null,null,null,null,null,null,null,null,null,null,null,null,null,null,null,null,null,null,null,null,null,null,null,null,null,null,null,null,null,null,null,null,null,null,null,null,null,null,null,null,null,null,null,null,null,null,null,null,null,null,null,null,null,null,null,null,null,null,null,null,null,null,null,null,null,null,24]
[null,null,null,null,null,null,null,null,null,null,null,null,null,null,null,null,null,null,null,null,null,null,null,null,null,null,null,null,null,null,null,null,null,null,null,null,null,null,null,null,null,null,null,null,null,null,null,null,null,null,null,null,null,null,null,null,null,null,null,null,null,null,null,null,null,null,null,null,null,null,null,null,null,null,null,null,25]
[null,null,null,null,null,null,null,null,null,null,null,null,null,null,null,null,null,null,null,null,null,null,null,null,null,null,null,null,null,null,null,null,null,null,null,null,null,null,null,null,null,null,null,null,null,null,null,null,null,null,null,null,null,null,null,null,null,null,null,null,null,null,null,null,null,null,null,null,null,null,null,null,null,null,null,null,26]
[null,null,null,null,null,null,null,null,null,null,null,null,null,null,null,null,null,null,null,null,null,null,null,null,null,null,null,null,null,null,null,null,null,null,null,null,null,null,null,null,null,null,null,null,null,null,null,null,null,null,null,null,null,null,null,null,null,null,null,null,null,null,null,null,null,null,null,null,null,null,null,null,null,null,null,null,27]
[null,null,null,null,null,null,null,null,null,null,null,null,null,null,null,null,null,null,null,null,null,null,null,null,null,null,null,null,null,null,null,null,null,null,null,null,null,null,null,null,null,null,null,null,null,null,null,null,null,null,null,null,null,null,null,null,null,null,null,null,null,null,null,null,null,null,null,null,null,null,null,null,null,null,null,null,28]
[null,null,null,null,null,null,null,null,null,null,null,null,null,null,null,null,null,null,null,null,null,null,null,null,null,null,null,null,null,null,null,null,null,null,null,null,null,null,null,null,null,null,null,null,null,null,null,null,null,null,null,null,null,null,null,null,null,null,null,null,null,null,null,null,null,null,null,null,null,null,null,null,null,null,null,null,29]
[null,null,null,null,null,null,null,null,null,null,null,null,null,null,null,null,null,null,null,null,null,null,null,null,null,null,null,null,null,null,null,null,null,null,null,null,null,null,null,null,null,null,null,null,null,null,null,null,null,null,null,null,null,null,null,null,null,null,null,null,null,null,null,null,null,null,null,null,null,null,null,null,null,null,null,null,30]
[null,null,null,null,null,null,null,null,null,null,null,null,null,null,null,null,null,null,null,null,null,null,null,null,null,null,null,null,null,null,null,null,null,null,null,null,null,null,null,null,null,null,null,null,null,null,null,null,null,null,null,null,null,null,null,null,null,null,null,null,null,null,null,null,null,null,null,null,null,null,null,null,null,null,null,null,31]
[null,null,null,null,null,null,null,null,null,null,null,null,null,null,null,null,null,null,null,null,null,null,null,null,null,null,null,null,null,null,null,null,null,null,null,null,null,null,null,null,null,null,null,null,null,null,null,null,null,null,null,null,null,null,null,null,null,null,null,null,null,null,null,null,null,null,null,null,null,null,null,null,null,null,null,null,32]
[null,null,null,null,null,null,null,null,null,null,null,null,null,null,null,null,null,null,null,null,null,null,null,null,null,null,null,null,null,null,null,null,null,null,null,null,null,null,null,null,null,null,null,null,null,null,null,null,null,null,null,null,null,null,null,null,null,null,null,null,null,null,null,null,null,null,null,null,null,null,null,null,null,null,null,null,33]
[null,null,null,null,null,null,null,null,null,null,null,null,null,null,null,null,null,null,null,null,null,null,null,null,null,null,null,null,null,null,null,null,null,null,null,null,null,null,null,null,null,null,null,null,null,null,null,null,null,null,null,null,null,null,null,null,null,null,null,null,null,null,null,null,null,null,null,null,null,null,null,null,null,null,null,null,34]
[null,null,null,null,null,null,null,null,null,null,null,null,null,null,null,null,null,null,null,null,null,null,null,null,null,null,null,null,null,null,null,null,null,null,null,null,null,null,null,null,null,null,null,null,null,null,null,null,null,null,null,null,null,null,null,null,null,null,null,null,null,null,null,null,null,null,null,null,null,null,null,null,null,null,null,null,35]
[null,null,null,null,null,null,null,null,null,null,null,null,null,null,null,null,null,null,null,null,null,null,null,null,null,null,null,null,null,null,null,null,null,null,null,null,null,null,null,null,null,null,null,null,null,null,null,null,null,null,null,null,null,null,null,null,null,null,null,null,null,null,null,null,null,null,null,null,null,null,null,null,null,null,null,null,36]
[null,null,null,null,null,null,null,null,null,null,null,null,null,null,null,null,null,null,null,null,null,null,null,null,null,null,null,null,null,null,null,null,null,null,null,null,null,null,null,null,null,null,null,null,null,null,null,null,null,null,null,null,null,null,null,null,null,null,null,null,null,null,null,null,null,null,null,null,null,null,null,null,null,null,null,null,37]
[null,null,null,null,null,null,null,null,null,null,null,null,null,null,null,null,null,null,null,null,null,null,null,null,null,null,null,null,null,null,null,null,null,null,null,null,null,null,null,null,null,null,null,null,null,null,null,null,null,null,null,null,null,null,null,null,null,null,null,null,null,null,null,null,null,null,null,null,null,null,null,null,null,null,null,null,38]
[null,null,null,null,null,null,null,null,null,null,null,null,null,null,null,null,null,null,null,null,null,null,null,null,null,null,null,null,null,null,null,null,null,null,null,null,null,null,null,null,null,null,null,null,null,null,null,null,null,null,null,null,null,null,null,null,null,null,null,null,null,null,null,null,null,null,null,null,null,null,null,null,null,null,null,null,39]
[null,null,null,null,null,null,null,null,null,null,null,null,null,null,null,null,null,null,null,null,null,null,null,null,null,null,null,null,null,null,null,null,null,null,null,null,null,null,null,null,null,null,null,null,null,null,null,null,null,null,null,null,null,null,null,null,null,null,null,null,null,null,null,null,null,null,null,null,null,null,null,null,null,null,null,null,40]
[null,null,null,null,null,null,null,null,null,null,null,null,null,null,null,null,null,null,null,null,null,null,null,null,null,null,null,null,null,null,null,null,null,null,null,null,null,null,null,null,null,null,null,null,null,null,null,null,null,null,null,null,null,null,null,null,null,null,null,null,null,null,null,null,null,null,null,null,null,null,null,null,null,null,null,null,41]
[null,null,null,null,null,null,null,null,null,null,null,null,null,null,null,null,null,null,null,null,null,null,null,null,null,null,null,null,null,null,null,null,null,null,null,null,null,null,null,null,null,null,null,null,null,null,null,null,null,null,null,null,null,null,null,null,null,null,null,null,null,null,null,null,null,null,null,null,null,null,null,null,null,null,null,null,42]
[null,null,null,null,null,null,null,null,null,null,null,null,null,null,null,null,null,null,null,null,null,null,null,null,null,null,null,null,null,null,null,null,null,null,null,null,null,null,null,null,null,null,null,null,null,null,null,null,null,null,null,null,null,null,null,null,null,null,null,null,null,null,null,null,null,null,null,null,null,null,null,null,null,null,null,null,43]
[null,null,null,null,null,null,null,null,null,null,null,null,null,null,null,null,null,null,null,null,null,null,null,null,null,null,null,null,null,null,null,null,null,null,null,null,null,null,null,null,null,null,null,null,null,null,null,null,null,null,null,null,null,null,null,null,null,null,null,null,null,null,null,null,null,null,null,null,null,null,null,null,null,null,null,null,44]
[null,null,null,null,null,null,null,null,null,null,null,null,null,null,null,null,null,null,null,null,null,null,null,null,null,null,null,null,null,null,null,null,null,null,null,null,null,null,null,null,null,null,null,null,null,null,null,null,null,null,null,null,null,null,null,null,null,null,null,null,null,null,null,null,null,null,null,null,null,null,null,null,null,null,null,null,45]
[null,null,null,null,null,null,null,null,null,null,null,null,null,null,null,null,null,null,null,null,null,null,null,null,null,null,null,null,null,null,null,null,null,null,null,null,null,null,null,null,null,null,null,null,null,null,null,null,null,null,null,null,null,null,null,null,null,null,null,null,null,null,null,null,null,null,null,null,null,null,null,null,null,null,null,null,46]
[null,null,null,null,null,null,null,null,null,null,null,null,null,null,null,null,null,null,null,null,null,null,null,null,null,null,null,null,null,null,null,null,null,null,null,null,null,null,null,null,null,null,null,null,null,null,null,null,null,null,null,null,null,null,null,null,null,null,null,null,null,null,null,null,null,null,null,null,null,null,null,null,null,null,null,null,47]
[null,null,null,null,null,null,null,null,null,null,null,null,null,null,null,null,null,null,null,null,null,null,null,null,null,null,null,null,null,null,null,null,null,null,null,null,null,null,null,null,null,null,null,null,null,null,null,null,null,null,null,null,null,null,null,null,null,null,null,null,null,null,null,null,null,null,null,null,null,null,null,null,null,null,null,null,48]
[null,null,null,null,null,null,null,null,null,null,null,null,null,null,null,null,null,null,null,null,null,null,null,null,null,null,null,null,null,null,null,null,null,null,null,null,null,null,null,null,null,null,null,null,null,null,null,null,null,null,null,null,null,null,null,null,null,null,null,null,null,null,null,null,null,null,null,null,null,null,null,null,null,null,null,null,49]
[null,null,null,null,null,null,null,null,null,null,null,null,null,null,null,null,null,null,null,null,null,null,null,null,null,null,null,null,null,null,null,null,null,null,null,null,null,null,null,null,null,null,null,null,null,null,null,null,null,null,null,null,null,null,null,null,null,null,null,null,null,null,null,null,null,null,null,null,null,null,null,null,null,null,null,null,50]
[null,null,null,null,null,null,null,null,null,null,null,null,null,null,null,null,null,null,null,null,null,null,null,null,null,null,null,null,null,null,null,null,null,null,null,null,null,null,null,null,null,null,null,null,null,null,null,null,null,null,null,null,null,null,null,null,null,null,null,null,null,null,null,null,null,null,null,null,null,null,null,null,null,null,null,null,51]
[null,null,null,null,null,null,null,null,null,null,null,null,null,null,null,null,null,null,null,null,null,null,null,null,null,null,null,null,null,null,null,null,null,null,null,null,null,null,null,null,null,null,null,null,null,null,null,null,null,null,null,null,null,null,null,null,null,null,null,null,null,null,null,null,null,null,null,null,null,null,null,null,null,null,null,null,52]
[null,null,null,null,null,null,null,null,null,null,null,null,null,null,null,null,null,null,null,null,null,null,null,null,null,null,null,null,null,null,null,null,null,null,null,null,null,null,null,null,null,null,null,null,null,null,null,null,null,null,null,null,null,null,null,null,null,null,null,null,null,null,null,null,null,null,null,null,null,null,null,null,null,null,null,null,53]
[null,null,null,null,null,null,null,null,null,null,null,null,null,null,null,null,null,null,null,null,null,null,null,null,null,null,null,null,null,null,null,null,null,null,null,null,null,null,null,null,null,null,null,null,null,null,null,null,null,null,null,null,null,null,null,null,null,null,null,null,null,null,null,null,null,null,null,null,null,null,null,null,null,null,null,null,54]
[null,null,null,null,null,null,null,null,null,null,null,null,null,null,null,null,null,null,null,null,null,null,null,null,null,null,null,null,null,null,null,null,null,null,null,null,null,null,null,null,null,null,null,null,null,null,null,null,null,null,null,null,null,null,null,null,null,null,null,null,null,null,null,null,null,null,null,null,null,null,null,null,null,null,null,null,55]
[null,null,null,null,null,null,null,null,null,null,null,null,null,null,null,null,null,null,null,null,null,null,null,null,null,null,null,null,null,null,null,null,null,null,null,null,null,null,null,null,null,null,null,null,null,null,null,null,null,null,null,null,null,null,null,null,null,null,null,null,null,null,null,null,null,null,null,null,null,null,null,null,null,null,null,null,56]
[null,null,null,null,null,null,null,null,null,null,null,null,null,null,null,null,null,null,null,null,null,null,null,null,null,null,null,null,null,null,null,null,null,null,null,null,null,null,null,null,null,null,null,null,null,null,null,null,null,null,null,null,null,null,null,null,null,null,null,null,null,null,null,null,null,null,null,null,null,null,null,null,null,null,null,null,57]
[null,null,null,null,null,null,null,null,null,null,null,null,null,null,null,null,null,null,null,null,null,null,null,null,null,null,null,null,null,null,null,null,null,null,null,null,null,null,null,null,null,null,null,null,null,null,null,null,null,null,null,null,null,null,null,null,null,null,null,null,null,null,null,null,null,null,null,null,null,null,null,null,null,null,null,null,58]
[null,null,null,null,null,null,null,null,null,null,null,null,null,null,null,null,null,null,null,null,null,null,null,null,null,null,null,null,null,null,null,null,null,null,null,null,null,null,null,null,null,null,null,null,null,null,null,null,null,null,null,null,null,null,null,null,null,null,null,null,null,null,null,null,null,null,null,null,null,null,null,null,null,null,null,null,59]
[null,null,null,null,null,null,null,null,null,null,null,null,null,null,null,null,null,null,null,null,null,null,null,null,null,null,null,null,null,null,null,null,null,null,null,null,null,null,null,null,null,null,null,null,null,null,null,null,null,null,null,null,null,null,null,null,null,null,null,null,null,null,null,null,null,null,null,null,null,null,null,null,null,null,null,null,60]
[null,null,null,null,null,null,null,null,null,null,null,null,null,null,null,null,null,null,null,null,null,null,null,null,null,null,null,null,null,null,null,null,null,null,null,null,null,null,null,null,null,null,null,null,null,null,null,null,null,null,null,null,null,null,null,null,null,null,null,null,null,null,null,null,null,null,null,null,null,null,null,null,null,null,null,null,61]
[null,null,null,null,null,null,null,null,null,null,null,null,null,null,null,null,null,null,null,null,null,null,null,null,null,null,null,null,null,null,null,null,null,null,null,null,null,null,null,null,null,null,null,null,null,null,null,null,null,null,null,null,null,null,null,null,null,null,null,null,null,null,null,null,null,null,null,null,null,null,null,null,null,null,null,null,62]
[null,null,null,null,null,null,null,null,null,null,null,null,null,null,null,null,null,null,null,null,null,null,null,null,null,null,null,null,null,null,null,null,null,null,null,null,null,null,null,null,null,null,null,null,null,null,null,null,null,null,null,null,null,null,null,null,null,null,null,null,null,null,null,null,null,null,null,null,null,null,null,null,null,null,null,null,63]
[null,null,null,null,null,null,null,null,null,null,null,null,null,null,null,null,null,null,null,null,null,null,null,null,null,null,null,null,null,null,null,null,null,null,null,null,null,null,null,null,null,null,null,null,null,null,null,null,null,null,null,null,null,null,null,null,null,null,null,null,null,null,null,null,null,null,null,null,null,null,null,null,null,null,null,null,64]
[null,null,null,null,null,null,null,null,null,null,null,null,null,null,null,null,null,null,null,null,null,null,null,null,null,null,null,null,null,null,null,null,null,null,null,null,null,null,null,null,null,null,null,null,null,null,null,null,null,null,null,null,null,null,null,null,null,null,null,null,null,null,null,null,null,null,null,null,null,null,null,null,null,null,null,null,65]
[null,null,null,null,null,null,null,null,null,null,null,null,null,null,null,null,null,null,null,null,null,null,null,null,null,null,null,null,null,null,null,null,null,null,null,null,null,null,null,null,null,null,null,null,null,null,null,null,null,null,null,null,null,null,null,null,null,null,null,null,null,null,null,null,null,null,null,null,null,null,null,null,null,null,null,null,66]
[null,null,null,null,null,null,null,null,null,null,null,null,null,null,null,null,null,null,null,null,null,null,null,null,null,null,null,null,null,null,null,null,null,null,null,null,null,null,null,null,null,null,null,null,null,null,null,null,null,null,null,null,null,null,null,null,null,null,null,null,null,null,null,null,null,null,null,null,null,null,null,null,null,null,null,null,67]
[null,null,null,null,null,null,null,null,null,null,null,null,null,null,null,null,null,null,null,null,null,null,null,null,null,null,null,null,null,null,null,null,null,null,null,null,null,null,null,null,null,null,null,null,null,null,null,null,null,null,null,null,null,null,null,null,null,null,null,null,null,null,null,null,null,null,null,null,null,null,null,null,null,null,null,null,68]
[null,null,null,null,null,null,null,null,null,null,null,null,null,null,null,null,null,null,null,null,null,null,null,null,null,null,null,null,null,null,null,null,null,null,null,null,null,null,null,null,null,null,null,null,null,null,null,null,null,null,null,null,null,null,null,null,null,null,null,null,null,null,null,null,null,null,null,null,null,null,null,null,null,null,null,null,69]
[null,null,null,null,null,null,null,null,null,null,null,null,null,null,null,null,null,null,null,null,null,null,null,null,null,null,null,null,null,null,null,null,null,null,null,null,null,null,null,null,null,null,null,null,null,null,null,null,null,null,null,null,null,null,null,null,null,null,null,null,null,null,null,null,null,null,null,null,null,null,null,null,null,null,null,null,70]
[null,null,null,null,null,null,null,null,null,null,null,null,null,null,null,null,null,null,null,null,null,null,null,null,null,null,null,null,null,null,null,null,null,null,null,null,null,null,null,null,null,null,null,null,null,null,null,null,null,null,null,null,null,null,null,null,null,null,null,null,null,null,null,null,null,null,null,null,null,null,null,null,null,null,null,null,71]
[null,null,null,null,null,null,null,null,null,null,null,null,null,null,null,null,null,null,null,null,null,null,null,null,null,null,null,null,null,null,null,null,null,null,null,null,null,null,null,null,null,null,null,null,null,null,null,null,null,null,null,null,null,null,null,null,null,null,null,null,null,null,null,null,null,null,null,null,null,null,null,null,null,null,null,null,72]
[null,null,null,null,null,null,null,null,null,null,null,null,null,null,null,null,null,null,null,null,null,null,null,null,null,null,null,null,null,null,null,null,null,null,null,null,null,null,null,null,null,null,null,null,null,null,null,null,null,null,null,null,null,null,null,null,null,null,null,null,null,null,null,null,null,null,null,null,null,null,null,null,null,null,null,null,73]
[null,null,null,null,null,null,null,null,null,null,null,null,null,null,null,null,null,null,null,null,null,null,null,null,null,null,null,null,null,null,null,null,null,null,null,null,null,null,null,null,null,null,null,null,null,null,null,null,null,null,null,null,null,null,null,null,null,null,null,null,null,null,null,null,null,null,null,null,null,null,null,null,null,null,null,null,74]
[null,null,null,null,null,null,null,null,null,null,null,null,null,null,null,null,null,null,null,null,null,null,null,null,null,null,null,null,null,null,null,null,null,null,null,null,null,null,null,null,null,null,null,null,null,null,null,null,null,null,null,null,null,null,null,null,null,null,null,null,null,null,null,null,null,null,null,null,null,null,null,null,null,null,null,null,75]